Workbook

Sheet Sheet1
A1: プログラミング演習 相互評価 | F1: HR | G1: 班 | H1: HRNO | I1: 氏名 | K1: 3 | L1: 大変良い
F2: 11 | G2: 1 | H2: 1100 | I2: 情報太郎 | K2: 2 | L2: 良い/おおむね
K3: 1 | L3: 良くない
A4: 番号 | B4: HRNO | C4: 制作物 | F4: 発表者 | I4: アドバイス・感想 | K4: 発表者 | L4: 制作物 | M4: 総計
C5: WS・フローチャート | D5: プログラム 完成度 | E5: プログラム 創造性 | F5: 段取り 時間 | G5: 声量 話し方 | H5: 目線 表情
A6: 1 | B6: =$F$2*100+A6 -> 1101 | K6: =IF($H$2=B6,"",SUM(C6:E6)) -> 0 | L6: =IF($H$2=B6,"",SUM(F6:H6)) -> 0 | M6: =IF($H$2=B6,"",(SUM(K6:L6))) -> 0
A7: 2 | B7: =$F$2*100+A7 -> 1102 | K7: =IF($H$2=B7,"",SUM(C7:E7)) -> 0 | L7: =IF($H$2=B7,"",SUM(F7:H7)) -> 0 | M7: =IF($H$2=B7,"",(SUM(K7:L7))) -> 0
A8: 3 | B8: 1103 | K8: 0 | L8: 0 | M8: 0
A9: 4 | B9: 1104 | K9: 0 | L9: 0 | M9: 0
A10: 5 | B10: 1105 | K10: 0 | L10: 0 | M10: 0
A11: 6 | B11: 1106 | K11: 0 | L11: 0 | M11: 0
A12: 7 | B12: 1107 | K12: 0 | L12: 0 | M12: 0
A13: 8 | B13: 1108 | K13: 0 | L13: 0 | M13: 0
A14: 9 | B14: 1109 | K14: 0 | L14: 0 | M14: 0
A15: 10 | B15: 1110 | K15: 0 | L15: 0 | M15: 0
A16: 11 | B16: 1111 | K16: 0 | L16: 0 | M16: 0
A17: 12 | B17: 1112 | K17: 0 | L17: 0 | M17: 0
A18: 13 | B18: 1113 | K18: 0 | L18: 0 | M18: 0
A19: 14 | B19: 1114 | K19: 0 | L19: 0 | M19: 0
A20: 15 | B20: 1115 | K20: 0 | L20: 0 | M20: 0
A21: 16 | B21: 1116 | K21: 0 | L21: 0 | M21: 0
A22: 17 | B22: 1117 | K22: 0 | L22: 0 | M22: 0
A23: 18 | B23: 1118 | K23: 0 | L23: 0 | M23: 0
A24: 19 | B24: 1119 | K24: 0 | L24: 0 | M24: 0
A25: 20 | B25: 1120 | K25: 0 | L25: 0 | M25: 0
A26: 21 | B26: 1121 | K26: 0 | L26: 0 | M26: 0
A27: 22 | B27: 1122 | K27: 0 | L27: 0 | M27: 0
A28: 23 | B28: 1123 | K28: 0 | L28: 0 | M28: 0
A29: 24 | B29: 1124 | K29: 0 | L29: 0 | M29: 0
A30: 25 | B30: 1125 | K30: 0 | L30: 0 | M30: 0
A31: 26 | B31: 1126 | K31: 0 | L31: 0 | M31: 0
A32: 27 | B32: 1127 | K32: 0 | L32: 0 | M32: 0
A33: 28 | B33: 1128 | K33: 0 | L33: 0 | M33: 0
A34: 29 | B34: 1129 | K34: 0 | L34: 0 | M34: 0
A35: 30 | B35: 1130 | K35: 0 | L35: 0 | M35: 0
A36: 31 | B36: 1131 | K36: 0 | L36: 0 | M36: 0
A37: 32 | B37: 1132 | K37: 0 | L37: 0 | M37: 0
A38: 33 | B38: 1133 | K38: 0 | L38: 0 | M38: 0
A39: 34 | B39: 1134 | K39: 0 | L39: 0 | M39: 0
A40: 35 | B40: 1135 | K40: 0 | L40: 0 | M40: 0
A41: 36 | B41: 1136 | K41: 0 | L41: 0 | M41: 0
A42: 37 | B42: 1137 | K42: 0 | L42: 0 | M42: 0
A43: 38 | B43: 1138 | K43: 0 | L43: 0 | M43: 0
A44: 39 | B44: 1139 | K44: 0 | L44: 0 | M44: 0
A45: 40 | B45: 1140 | K45: 0 | L45: 0 | M45: 0
A46: 41 | B46: 1141 | K46: 0 | L46: 0 | M46: 0
A47: 42 | B47: 1142 | K47: 0 | L47: 0 | M47: 0
A48: 43 | B48: 1143 | K48: 0 | L48: 0 | M48: 0
A49: 44 | B49: 1144 | K49: 0 | L49: 0 | M49: 0
A50: 45 | B50: 1145 | K50: 0 | L50: 0 | M50: 0
J51: Ave | K51: =AVERAGE(K6:K50) -> 0 | L51: =AVERAGE(L6:L50) -> 0 | M51: =AVERAGE(M6:M50) -> 0

Sheet 集計
A1: 連番 | B1: HRNO | C1: 名前 | D1: 列１ | E1: 列２ | F1: 列３ | G1: 列４ | H1: 列５ | I1: 列６ | J1: 感想 | L1: 発表 | M1: 制作 | N1: 総計 | P1: class | Q1: 11 | S1: 発表 | W1: 制作物 | AA1: 総合
A2: 1 | B2: =$Q$1*100+A2 -> 1101 | C2: =INDIRECT($B2&"!I2") -> 情報太郎 | D2: =INDIRECT($B2&"!"&$Q$4&$Q$3+5) -> 1 | E2: =INDIRECT($B2&"!"&$Q$5&$Q$3+5) -> 1 | F2: =INDIRECT($B2&"!"&$Q$6&$Q$3+5) -> 1 | G2: =INDIRECT($B2&"!"&$Q$7&$Q$3+5) -> 1 | H2: =INDIRECT($B2&"!"&$Q$8&$Q$3+5) -> 1 | I2: =INDIRECT($B2&"!"&$Q$9&$Q$3+5) -> 1 | J2: =INDIRECT($B2&"!"&$Q$10&$Q$3+5) -> 1番1番への感想 | L2: =SUMIF(D2:F2,">=0") -> 3 | M2: =SUMIF(G2:I2,">=0") -> 3 | N2: =SUMIF(D2:I2,">=0") -> 6 | S2: 番号 | T2: 平均 | U2: 順位 | W2: 番号 | X2: 平均 | Y2: 順位 | AA2: 番号 | AB2: 平均 | AC2: 順位
A3: 2 | B3: 1102 | C3: =INDIRECT($B3&"!I2") -> 情報次郎 | D3: =INDIRECT($B3&"!"&$Q$4&$Q$3+5) -> 1 | E3: =INDIRECT($B3&"!"&$Q$5&$Q$3+5) -> 1 | F3: =INDIRECT($B3&"!"&$Q$6&$Q$3+5) -> 1 | G3: =INDIRECT($B3&"!"&$Q$7&$Q$3+5) -> 1 | H3: =INDIRECT($B3&"!"&$Q$8&$Q$3+5) -> 1 | I3: =INDIRECT($B3&"!"&$Q$9&$Q$3+5) -> 1 | J3: =INDIRECT($B3&"!"&$Q$10&$Q$3+5) -> 2番1番への感想 | L3: 3 | M3: 3 | N3: 6 | P3: No | Q3: 1 | S3: 1 | T3: =INDIRECT($S3&"s!L47") -> 3 | U3: =_xlfn.RANK.EQ(T3,$T$3:$T$47) -> 45 | W3: 1 | X3: =INDIRECT($S3&"s!M47") -> 3 | Y3: =_xlfn.RANK.EQ(X3,$X$3:$X$47) -> 45 | AA3: 1 | AB3: =INDIRECT($S3&"s!N47") -> 6 | AC3: =_xlfn.RANK.EQ(AB3,$AB$3:$AB$47) -> 45
A4: 3 | B4: 1103 | C4: 情報三郎 | D4: =INDIRECT($B4&"!"&$Q$4&$Q$3+5) -> 1 | E4: 1 | F4: 1 | G4: 1 | H4: 1 | I4: 1 | J4: 3番1番への感想 | L4: 3 | M4: 3 | N4: 6 | P4: 列２ | Q4: C | S4: 2 | T4: =INDIRECT($S4&"s!L47") -> 6.2 | U4: =_xlfn.RANK.EQ(T4,$T$3:$T$47) -> 10 | W4: 2 | X4: =INDIRECT($S4&"s!M47") -> 6 | Y4: =_xlfn.RANK.EQ(X4,$X$3:$X$47) -> 18 | AA4: 2 | AB4: =INDIRECT($S4&"s!N47") -> 12.2 | AC4: =_xlfn.RANK.EQ(AB4,$AB$3:$AB$47) -> 16
A5: 4 | B5: 1104 | C5: 情報四郎 | D5: =INDIRECT($B5&"!"&$Q$4&$Q$3+5) -> 1 | E5: 1 | F5: 1 | G5: 1 | H5: 1 | I5: 1 | J5: 4番1番への感想 | L5: 3 | M5: 3 | N5: 6 | P5: 列３ | Q5: D | S5: 3 | T5: 6 | U5: 18 | W5: 3 | X5: 6.2 | Y5: 14 | AA5: 3 | AB5: 12.2 | AC5: 16
A6: 5 | B6: 1105 | C6: 情報五郎 | D6: =INDIRECT($B6&"!"&$Q$4&$Q$3+5) -> 1 | E6: 1 | F6: 1 | G6: 1 | H6: 1 | I6: 1 | J6: 5番1番への感想 | L6: 3 | M6: 3 | N6: 6 | P6: 列４ | Q6: E | S6: 4 | T6: 4 | U6: 44 | W6: 4 | X6: 8 | Y6: 1 | AA6: 4 | AB6: 12 | AC6: 21
A7: 6 | B7: 1106 | C7: =INDIRECT($B7&"!H1") ->  | L7: 0 | M7: 0 | N7: 0 | P7: 列５ | Q7: F | S7: 5 | T7: 6 | U7: 18 | W7: 5 | X7: 6 | Y7: 18 | AA7: 5 | AB7: 12 | AC7: 21
A8: 7 | B8: 1107 | L8: 0 | M8: 0 | N8: 0 | P8: 列６ | Q8: G | S8: 6 | T8: 6.8 | U8: 1 | W8: 6 | X8: 5.8 | Y8: 26 | AA8: 6 | AB8: 12.6 | AC8: 10
A9: 8 | B9: 1108 | L9: 0 | M9: 0 | N9: 0 | P9: 列７ | Q9: H | S9: 7 | T9: 5 | U9: 40 | W9: 7 | X9: 5.8 | Y9: 26 | AA9: 7 | AB9: 10.8 | AC9: 38
A10: 9 | B10: 1109 | L10: 0 | M10: 0 | N10: 0 | P10: 列８ | Q10: I | S10: 8 | T10: 6.2 | U10: 10 | W10: 8 | X10: 6.4 | Y10: 10 | AA10: 8 | AB10: 12.6 | AC10: 10
A11: 10 | B11: 1110 | L11: 0 | M11: 0 | N11: 0 | S11: 9 | T11: 5.6 | U11: 30 | W11: 9 | X11: 6 | Y11: 18 | AA11: 9 | AB11: 11.6 | AC11: 27
A12: 11 | B12: 1111 | L12: 0 | M12: 0 | N12: 0 | S12: 10 | T12: 6.6 | U12: 7 | W12: 10 | X12: 6.6 | Y12: 7 | AA12: 10 | AB12: 13.2 | AC12: 3
A13: 12 | B13: 1112 | L13: 0 | M13: 0 | N13: 0 | S13: 11 | T13: 6 | U13: 18 | W13: 11 | X13: 5.6 | Y13: 33 | AA13: 11 | AB13: 11.6 | AC13: 27
A14: 13 | B14: 1113 | L14: 0 | M14: 0 | N14: 0 | S14: 12 | T14: 5.2 | U14: 37 | W14: 12 | X14: 5.2 | Y14: 38 | AA14: 12 | AB14: 10.4 | AC14: 42
A15: 14 | B15: 1114 | L15: 0 | M15: 0 | N15: 0 | S15: 13 | T15: 6.8 | U15: 1 | W15: 13 | X15: 6.4 | Y15: 10 | AA15: 13 | AB15: 13.2 | AC15: 3
A16: 15 | B16: 1115 | L16: 0 | M16: 0 | N16: 0 | S16: 14 | T16: 5 | U16: 40 | W16: 14 | X16: 5 | Y16: 42 | AA16: 14 | AB16: 10 | AC16: 43
A17: 16 | B17: 1116 | L17: 0 | M17: 0 | N17: 0 | S17: 15 | T17: 5.6 | U17: 30 | W17: 15 | X17: 7.6 | Y17: 2 | AA17: 15 | AB17: 13.2 | AC17: 3
A18: 17 | B18: 1117 | L18: 0 | M18: 0 | N18: 0 | S18: 16 | T18: 6.2 | U18: 10 | W18: 16 | X18: 6.2 | Y18: 14 | AA18: 16 | AB18: 12.4 | AC18: 12
A19: 18 | B19: 1118 | L19: 0 | M19: 0 | N19: 0 | S19: 17 | T19: 6.2 | U19: 10 | W19: 17 | X19: 5.8 | Y19: 26 | AA19: 17 | AB19: 12 | AC19: 21
A20: 19 | B20: 1119 | L20: 0 | M20: 0 | N20: 0 | S20: 18 | T20: 6.2 | U20: 10 | W20: 18 | X20: 5.8 | Y20: 26 | AA20: 18 | AB20: 12 | AC20: 21
A21: 20 | B21: 1120 | L21: 0 | M21: 0 | N21: 0 | S21: 19 | T21: 5.8 | U21: 25 | W21: 19 | X21: 6.2 | Y21: 14 | AA21: 19 | AB21: 12 | AC21: 21
A22: 21 | B22: 1121 | L22: 0 | M22: 0 | N22: 0 | S22: 20 | T22: 4.6 | U22: 43 | W22: 20 | X22: 5.2 | Y22: 38 | AA22: 20 | AB22: 9.8 | AC22: 44
A23: 22 | B23: 1122 | L23: 0 | M23: 0 | N23: 0 | S23: 21 | T23: 6.8 | U23: 1 | W23: 21 | X23: 6.4 | Y23: 10 | AA23: 21 | AB23: 13.2 | AC23: 3
A24: 23 | B24: 1123 | L24: 0 | M24: 0 | N24: 0 | S24: 22 | T24: 6.4 | U24: 8 | W24: 22 | X24: 6.8 | Y24: 5 | AA24: 22 | AB24: 13.2 | AC24: 3
A25: 24 | B25: 1124 | L25: 0 | M25: 0 | N25: 0 | S25: 23 | T25: 6 | U25: 18 | W25: 23 | X25: 6.4 | Y25: 10 | AA25: 23 | AB25: 12.4 | AC25: 12
A26: 25 | B26: 1125 | L26: 0 | M26: 0 | N26: 0 | S26: 24 | T26: 6.4 | U26: 8 | W26: 24 | X26: 6 | Y26: 18 | AA26: 24 | AB26: 12.4 | AC26: 12
A27: 26 | B27: 1126 | L27: 0 | M27: 0 | N27: 0 | S27: 25 | T27: 5.6 | U27: 30 | W27: 25 | X27: 5.8 | Y27: 26 | AA27: 25 | AB27: 11.4 | AC27: 31
A28: 27 | B28: 1127 | L28: 0 | M28: 0 | N28: 0 | S28: 26 | T28: 6.8 | U28: 1 | W28: 26 | X28: 5.6 | Y28: 33 | AA28: 26 | AB28: 12.4 | AC28: 12
A29: 28 | B29: 1128 | L29: 0 | M29: 0 | N29: 0 | S29: 27 | T29: 5.8 | U29: 25 | W29: 27 | X29: 6 | Y29: 18 | AA29: 27 | AB29: 11.8 | AC29: 26
A30: 29 | B30: 1129 | L30: 0 | M30: 0 | N30: 0 | S30: 28 | T30: 5.8 | U30: 25 | W30: 28 | X30: 5.8 | Y30: 26 | AA30: 28 | AB30: 11.6 | AC30: 27
A31: 30 | B31: 1130 | L31: 0 | M31: 0 | N31: 0 | S31: 29 | T31: 5.8 | U31: 25 | W31: 29 | X31: 7.2 | Y31: 3 | AA31: 29 | AB31: 13 | AC31: 8
A32: 31 | B32: 1131 | L32: 0 | M32: 0 | N32: 0 | S32: 30 | T32: 6 | U32: 18 | W32: 30 | X32: 6.2 | Y32: 14 | AA32: 30 | AB32: 12.2 | AC32: 16
A33: 32 | B33: 1132 | L33: 0 | M33: 0 | N33: 0 | S33: 31 | T33: 6.2 | U33: 10 | W33: 31 | X33: 5.2 | Y33: 38 | AA33: 31 | AB33: 11.4 | AC33: 31
A34: 33 | B34: 1133 | L34: 0 | M34: 0 | N34: 0 | S34: 32 | T34: 5.6 | U34: 30 | W34: 32 | X34: 5.2 | Y34: 38 | AA34: 32 | AB34: 10.8 | AC34: 38
A35: 34 | B35: 1134 | L35: 0 | M35: 0 | N35: 0 | S35: 33 | T35: 6.2 | U35: 10 | W35: 33 | X35: 6 | Y35: 18 | AA35: 33 | AB35: 12.2 | AC35: 16
A36: 35 | B36: 1135 | L36: 0 | M36: 0 | N36: 0 | S36: 34 | T36: 5.6 | U36: 30 | W36: 34 | X36: 6.6 | Y36: 7 | AA36: 34 | AB36: 12.2 | AC36: 16
A37: 36 | B37: 1136 | L37: 0 | M37: 0 | N37: 0 | S37: 35 | T37: 4.8 | U37: 42 | W37: 35 | X37: 6 | Y37: 18 | AA37: 35 | AB37: 10.8 | AC37: 38
A38: 37 | B38: 1137 | L38: 0 | M38: 0 | N38: 0 | S38: 36 | T38: 5.2 | U38: 37 | W38: 36 | X38: 6 | Y38: 18 | AA38: 36 | AB38: 11.2 | AC38: 33
A39: 38 | B39: 1138 | L39: 0 | M39: 0 | N39: 0 | S39: 37 | T39: 6.8 | U39: 1 | W39: 37 | X39: 7.2 | Y39: 3 | AA39: 37 | AB39: 14 | AC39: 1
A40: 39 | B40: 1139 | L40: 0 | M40: 0 | N40: 0 | S40: 38 | T40: 6.2 | U40: 10 | W40: 38 | X40: 6.8 | Y40: 5 | AA40: 38 | AB40: 13 | AC40: 8
A41: 40 | B41: 1140 | L41: 0 | M41: 0 | N41: 0 | S41: 39 | T41: 5.6 | U41: 30 | W41: 39 | X41: 5 | Y41: 42 | AA41: 39 | AB41: 10.6 | AC41: 41
A42: 41 | B42: 1141 | L42: 0 | M42: 0 | N42: 0 | S42: 40 | T42: 5.2 | U42: 37 | W42: 40 | X42: 5.8 | Y42: 26 | AA42: 40 | AB42: 11 | AC42: 36
A43: 42 | B43: 1142 | L43: 0 | M43: 0 | N43: 0 | S43: 41 | T43: 6 | U43: 18 | W43: 41 | X43: 5.6 | Y43: 33 | AA43: 41 | AB43: 11.6 | AC43: 27
A44: 43 | B44: 1143 | L44: 0 | M44: 0 | N44: 0 | S44: 42 | T44: 6.8 | U44: 1 | W44: 42 | X44: 6.6 | Y44: 7 | AA44: 42 | AB44: 13.4 | AC44: 2
A45: 44 | B45: 1144 | L45: 0 | M45: 0 | N45: 0 | S45: 43 | T45: 5.6 | U45: 30 | W45: 43 | X45: 5.6 | Y45: 33 | AA45: 43 | AB45: 11.2 | AC45: 33
A46: 45 | B46: 1145 | L46: 0 | M46: 0 | N46: 0 | S46: 44 | T46: 5.8 | U46: 25 | W46: 44 | X46: 5.4 | Y46: 37 | AA46: 44 | AB46: 11.2 | AC46: 33
K47: 平均 | L47: =IF(SUM(L2:L46)=0,0,AVERAGEIF(L2:L46,">0")) -> 3 | M47: =IF(SUM(M2:M46)=0,0,AVERAGEIF(M2:M46,">0")) -> 3 | N47: =IF(SUM(N2:N46)=0,0,AVERAGEIF(N2:N46,">0")) -> 6 | S47: 45 | T47: 6 | U47: 18 | W47: 45 | X47: 5 | Y47: 42 | AA47: 45 | AB47: 11 | AC47: =_xlfn.RANK.EQ(AB47,$AB$3:$AB$47) -> 36
A49: 1 | B49: 2 | C49: 3 | D49: 4 | E49: 5 | F49: 6 | G49: 7 | H49: 8 | I49: 9 | J49: 10 | K49: 11 | L49: 12 | M49: 13 | N49: 14 | O49: 15 | P49: 16 | Q49: 17 | R49: 18 | S49: 19 | T49: 20 | U49: 21 | V49: 22 | W49: 23 | X49: 24 | Y49: 25 | Z49: 26 | AA49: 27 | AB49: 28 | AC49: 29 | AD49: 30

Sheet 1s
A1: 連番 | B1: HRNO | C1: 名前 | D1: 列１ | E1: 列２ | F1: 列３ | G1: 列４ | H1: 列５ | I1: 列６ | J1: 感想 | L1: 発表 | M1: 制作 | N1: 総計 | P1: class | Q1: =集計!Q1 -> 11 | S1: 発表 | W1: 制作物 | AA1: 総合
A2: 1 | B2: =$Q$1*100+A2 -> 1101 | C2: =INDIRECT($B2&"!I2") -> 情報太郎 | D2: =INDIRECT($B2&"!"&$Q$4&$Q$3+5) -> 1 | E2: =INDIRECT($B2&"!"&$Q$5&$Q$3+5) -> 1 | F2: =INDIRECT($B2&"!"&$Q$6&$Q$3+5) -> 1 | G2: =INDIRECT($B2&"!"&$Q$7&$Q$3+5) -> 1 | H2: =INDIRECT($B2&"!"&$Q$8&$Q$3+5) -> 1 | I2: =INDIRECT($B2&"!"&$Q$9&$Q$3+5) -> 1 | J2: =INDIRECT($B2&"!"&$Q$10&$Q$3+5) -> 1番1番への感想 | L2: =SUMIF(D2:F2,">=0") -> 3 | M2: =SUMIF(G2:I2,">=0") -> 3 | N2: =SUMIF(D2:I2,">=0") -> 6 | S2: 番号 | T2: 平均 | U2: 順位 | W2: 番号 | X2: 平均 | Y2: 順位 | AA2: 番号 | AB2: 平均 | AC2: 順位
A3: 2 | B3: 1102 | C3: =INDIRECT($B3&"!I2") -> 情報次郎 | D3: =INDIRECT($B3&"!"&$Q$4&$Q$3+5) -> 1 | E3: =INDIRECT($B3&"!"&$Q$5&$Q$3+5) -> 1 | F3: =INDIRECT($B3&"!"&$Q$6&$Q$3+5) -> 1 | G3: =INDIRECT($B3&"!"&$Q$7&$Q$3+5) -> 1 | H3: =INDIRECT($B3&"!"&$Q$8&$Q$3+5) -> 1 | I3: =INDIRECT($B3&"!"&$Q$9&$Q$3+5) -> 1 | J3: =INDIRECT($B3&"!"&$Q$10&$Q$3+5) -> 2番1番への感想 | L3: 3 | M3: 3 | N3: 6 | P3: No | Q3: 1 | S3: 1 | T3: =INDIRECT($S3&"s!L47") -> 3 | U3: =_xlfn.RANK.EQ(T3,$T$3:$T$47) -> 45 | W3: 1 | X3: =INDIRECT($S3&"s!M47") -> 3 | Y3: =_xlfn.RANK.EQ(X3,$X$3:$X$47) -> 45 | AA3: 1 | AB3: =INDIRECT($S3&"s!N47") -> 6 | AC3: =_xlfn.RANK.EQ(AB3,$AB$3:$AB$47) -> 45
A4: 3 | B4: 1103 | C4: 情報三郎 | D4: =INDIRECT($B4&"!"&$Q$4&$Q$3+5) -> 1 | E4: 1 | F4: 1 | G4: 1 | H4: 1 | I4: 1 | J4: 3番1番への感想 | L4: 3 | M4: 3 | N4: 6 | P4: 列２ | Q4: C | S4: 2 | T4: =INDIRECT($S4&"s!L47") -> 6.2 | U4: =_xlfn.RANK.EQ(T4,$T$3:$T$47) -> 10 | W4: 2 | X4: =INDIRECT($S4&"s!M47") -> 6 | Y4: =_xlfn.RANK.EQ(X4,$X$3:$X$47) -> 18 | AA4: 2 | AB4: =INDIRECT($S4&"s!N47") -> 12.2 | AC4: =_xlfn.RANK.EQ(AB4,$AB$3:$AB$47) -> 16
A5: 4 | B5: 1104 | C5: 情報四郎 | D5: =INDIRECT($B5&"!"&$Q$4&$Q$3+5) -> 1 | E5: 1 | F5: 1 | G5: 1 | H5: 1 | I5: 1 | J5: 4番1番への感想 | L5: 3 | M5: 3 | N5: 6 | P5: 列３ | Q5: D | S5: 3 | T5: 6 | U5: 18 | W5: 3 | X5: 6.2 | Y5: 14 | AA5: 3 | AB5: 12.2 | AC5: 16
A6: 5 | B6: 1105 | C6: 情報五郎 | D6: =INDIRECT($B6&"!"&$Q$4&$Q$3+5) -> 1 | E6: 1 | F6: 1 | G6: 1 | H6: 1 | I6: 1 | J6: 5番1番への感想 | L6: 3 | M6: 3 | N6: 6 | P6: 列４ | Q6: E | S6: 4 | T6: 4 | U6: 44 | W6: 4 | X6: 8 | Y6: 1 | AA6: 4 | AB6: 12 | AC6: 21
A7: 6 | B7: 1106 | C7: =INDIRECT($B7&"!H1") ->  | L7: 0 | M7: 0 | N7: 0 | P7: 列５ | Q7: F | S7: 5 | T7: 6 | U7: 18 | W7: 5 | X7: 6 | Y7: 18 | AA7: 5 | AB7: 12 | AC7: 21
A8: 7 | B8: 1107 | L8: 0 | M8: 0 | N8: 0 | P8: 列６ | Q8: G | S8: 6 | T8: 6.8 | U8: 1 | W8: 6 | X8: 5.8 | Y8: 26 | AA8: 6 | AB8: 12.6 | AC8: 10
A9: 8 | B9: 1108 | L9: 0 | M9: 0 | N9: 0 | P9: 列７ | Q9: H | S9: 7 | T9: 5 | U9: 40 | W9: 7 | X9: 5.8 | Y9: 26 | AA9: 7 | AB9: 10.8 | AC9: 38
A10: 9 | B10: 1109 | L10: 0 | M10: 0 | N10: 0 | P10: 列８ | Q10: I | S10: 8 | T10: 6.2 | U10: 10 | W10: 8 | X10: 6.4 | Y10: 10 | AA10: 8 | AB10: 12.6 | AC10: 10
A11: 10 | B11: 1110 | L11: 0 | M11: 0 | N11: 0 | S11: 9 | T11: 5.6 | U11: 30 | W11: 9 | X11: 6 | Y11: 18 | AA11: 9 | AB11: 11.6 | AC11: 27
A12: 11 | B12: 1111 | L12: 0 | M12: 0 | N12: 0 | S12: 10 | T12: 6.6 | U12: 7 | W12: 10 | X12: 6.6 | Y12: 7 | AA12: 10 | AB12: 13.2 | AC12: 3
A13: 12 | B13: 1112 | L13: 0 | M13: 0 | N13: 0 | S13: 11 | T13: 6 | U13: 18 | W13: 11 | X13: 5.6 | Y13: 33 | AA13: 11 | AB13: 11.6 | AC13: 27
A14: 13 | B14: 1113 | L14: 0 | M14: 0 | N14: 0 | S14: 12 | T14: 5.2 | U14: 37 | W14: 12 | X14: 5.2 | Y14: 38 | AA14: 12 | AB14: 10.4 | AC14: 42
A15: 14 | B15: 1114 | L15: 0 | M15: 0 | N15: 0 | S15: 13 | T15: 6.8 | U15: 1 | W15: 13 | X15: 6.4 | Y15: 10 | AA15: 13 | AB15: 13.2 | AC15: 3
A16: 15 | B16: 1115 | L16: 0 | M16: 0 | N16: 0 | S16: 14 | T16: 5 | U16: 40 | W16: 14 | X16: 5 | Y16: 42 | AA16: 14 | AB16: 10 | AC16: 43
A17: 16 | B17: 1116 | L17: 0 | M17: 0 | N17: 0 | S17: 15 | T17: 5.6 | U17: 30 | W17: 15 | X17: 7.6 | Y17: 2 | AA17: 15 | AB17: 13.2 | AC17: 3
A18: 17 | B18: 1117 | L18: 0 | M18: 0 | N18: 0 | S18: 16 | T18: 6.2 | U18: 10 | W18: 16 | X18: 6.2 | Y18: 14 | AA18: 16 | AB18: 12.4 | AC18: 12
A19: 18 | B19: 1118 | L19: 0 | M19: 0 | N19: 0 | S19: 17 | T19: 6.2 | U19: 10 | W19: 17 | X19: 5.8 | Y19: 26 | AA19: 17 | AB19: 12 | AC19: 21
A20: 19 | B20: 1119 | L20: 0 | M20: 0 | N20: 0 | S20: 18 | T20: 6.2 | U20: 10 | W20: 18 | X20: 5.8 | Y20: 26 | AA20: 18 | AB20: 12 | AC20: 21
A21: 20 | B21: 1120 | L21: 0 | M21: 0 | N21: 0 | S21: 19 | T21: 5.8 | U21: 25 | W21: 19 | X21: 6.2 | Y21: 14 | AA21: 19 | AB21: 12 | AC21: 21
A22: 21 | B22: 1121 | L22: 0 | M22: 0 | N22: 0 | S22: 20 | T22: 4.6 | U22: 43 | W22: 20 | X22: 5.2 | Y22: 38 | AA22: 20 | AB22: 9.8 | AC22: 44
A23: 22 | B23: 1122 | L23: 0 | M23: 0 | N23: 0 | S23: 21 | T23: 6.8 | U23: 1 | W23: 21 | X23: 6.4 | Y23: 10 | AA23: 21 | AB23: 13.2 | AC23: 3
A24: 23 | B24: 1123 | L24: 0 | M24: 0 | N24: 0 | S24: 22 | T24: 6.4 | U24: 8 | W24: 22 | X24: 6.8 | Y24: 5 | AA24: 22 | AB24: 13.2 | AC24: 3
A25: 24 | B25: 1124 | L25: 0 | M25: 0 | N25: 0 | S25: 23 | T25: 6 | U25: 18 | W25: 23 | X25: 6.4 | Y25: 10 | AA25: 23 | AB25: 12.4 | AC25: 12
A26: 25 | B26: 1125 | L26: 0 | M26: 0 | N26: 0 | S26: 24 | T26: 6.4 | U26: 8 | W26: 24 | X26: 6 | Y26: 18 | AA26: 24 | AB26: 12.4 | AC26: 12
A27: 26 | B27: 1126 | L27: 0 | M27: 0 | N27: 0 | S27: 25 | T27: 5.6 | U27: 30 | W27: 25 | X27: 5.8 | Y27: 26 | AA27: 25 | AB27: 11.4 | AC27: 31
A28: 27 | B28: 1127 | L28: 0 | M28: 0 | N28: 0 | S28: 26 | T28: 6.8 | U28: 1 | W28: 26 | X28: 5.6 | Y28: 33 | AA28: 26 | AB28: 12.4 | AC28: 12
A29: 28 | B29: 1128 | L29: 0 | M29: 0 | N29: 0 | S29: 27 | T29: 5.8 | U29: 25 | W29: 27 | X29: 6 | Y29: 18 | AA29: 27 | AB29: 11.8 | AC29: 26
A30: 29 | B30: 1129 | L30: 0 | M30: 0 | N30: 0 | S30: 28 | T30: 5.8 | U30: 25 | W30: 28 | X30: 5.8 | Y30: 26 | AA30: 28 | AB30: 11.6 | AC30: 27
A31: 30 | B31: 1130 | L31: 0 | M31: 0 | N31: 0 | S31: 29 | T31: 5.8 | U31: 25 | W31: 29 | X31: 7.2 | Y31: 3 | AA31: 29 | AB31: 13 | AC31: 8
A32: 31 | B32: 1131 | L32: 0 | M32: 0 | N32: 0 | S32: 30 | T32: 6 | U32: 18 | W32: 30 | X32: 6.2 | Y32: 14 | AA32: 30 | AB32: 12.2 | AC32: 16
A33: 32 | B33: 1132 | L33: 0 | M33: 0 | N33: 0 | S33: 31 | T33: 6.2 | U33: 10 | W33: 31 | X33: 5.2 | Y33: 38 | AA33: 31 | AB33: 11.4 | AC33: 31
A34: 33 | B34: 1133 | L34: 0 | M34: 0 | N34: 0 | S34: 32 | T34: 5.6 | U34: 30 | W34: 32 | X34: 5.2 | Y34: 38 | AA34: 32 | AB34: 10.8 | AC34: 38
A35: 34 | B35: 1134 | L35: 0 | M35: 0 | N35: 0 | S35: 33 | T35: 6.2 | U35: 10 | W35: 33 | X35: 6 | Y35: 18 | AA35: 33 | AB35: 12.2 | AC35: 16
A36: 35 | B36: 1135 | L36: 0 | M36: 0 | N36: 0 | S36: 34 | T36: 5.6 | U36: 30 | W36: 34 | X36: 6.6 | Y36: 7 | AA36: 34 | AB36: 12.2 | AC36: 16
A37: 36 | B37: 1136 | L37: 0 | M37: 0 | N37: 0 | S37: 35 | T37: 4.8 | U37: 42 | W37: 35 | X37: 6 | Y37: 18 | AA37: 35 | AB37: 10.8 | AC37: 38
A38: 37 | B38: 1137 | L38: 0 | M38: 0 | N38: 0 | S38: 36 | T38: 5.2 | U38: 37 | W38: 36 | X38: 6 | Y38: 18 | AA38: 36 | AB38: 11.2 | AC38: 33
A39: 38 | B39: 1138 | L39: 0 | M39: 0 | N39: 0 | S39: 37 | T39: 6.8 | U39: 1 | W39: 37 | X39: 7.2 | Y39: 3 | AA39: 37 | AB39: 14 | AC39: 1
A40: 39 | B40: 1139 | L40: 0 | M40: 0 | N40: 0 | S40: 38 | T40: 6.2 | U40: 10 | W40: 38 | X40: 6.8 | Y40: 5 | AA40: 38 | AB40: 13 | AC40: 8
A41: 40 | B41: 1140 | L41: 0 | M41: 0 | N41: 0 | S41: 39 | T41: 5.6 | U41: 30 | W41: 39 | X41: 5 | Y41: 42 | AA41: 39 | AB41: 10.6 | AC41: 41
A42: 41 | B42: 1141 | L42: 0 | M42: 0 | N42: 0 | S42: 40 | T42: 5.2 | U42: 37 | W42: 40 | X42: 5.8 | Y42: 26 | AA42: 40 | AB42: 11 | AC42: 36
A43: 42 | B43: 1142 | L43: 0 | M43: 0 | N43: 0 | S43: 41 | T43: 6 | U43: 18 | W43: 41 | X43: 5.6 | Y43: 33 | AA43: 41 | AB43: 11.6 | AC43: 27
A44: 43 | B44: 1143 | L44: 0 | M44: 0 | N44: 0 | S44: 42 | T44: 6.8 | U44: 1 | W44: 42 | X44: 6.6 | Y44: 7 | AA44: 42 | AB44: 13.4 | AC44: 2
A45: 44 | B45: 1144 | L45: 0 | M45: 0 | N45: 0 | S45: 43 | T45: 5.6 | U45: 30 | W45: 43 | X45: 5.6 | Y45: 33 | AA45: 43 | AB45: 11.2 | AC45: 33
A46: 45 | B46: 1145 | L46: 0 | M46: 0 | N46: 0 | S46: 44 | T46: 5.8 | U46: 25 | W46: 44 | X46: 5.4 | Y46: 37 | AA46: 44 | AB46: 11.2 | AC46: 33
K47: 平均 | L47: =IF(SUM(L2:L46)=0,0,AVERAGEIF(L2:L46,">0")) -> 3 | M47: =IF(SUM(M2:M46)=0,0,AVERAGEIF(M2:M46,">0")) -> 3 | N47: =IF(SUM(N2:N46)=0,0,AVERAGEIF(N2:N46,">0")) -> 6 | S47: 45 | T47: 6 | U47: 18 | W47: 45 | X47: 5 | Y47: 42 | AA47: 45 | AB47: 11 | AC47: =_xlfn.RANK.EQ(AB47,$AB$3:$AB$47) -> 36

Sheet 2s
A1: 連番 | B1: HRNO | C1: 名前 | D1: 列１ | E1: 列２ | F1: 列３ | G1: 列４ | H1: 列５ | I1: 列６ | J1: 感想 | L1: 発表 | M1: 制作 | N1: 総計 | P1: class | Q1: =集計!Q1 -> 11 | S1: 発表 | W1: 制作物 | AA1: 総合
A2: 1 | B2: =$Q$1*100+A2 -> 1101 | C2: =INDIRECT($B2&"!I2") -> 情報太郎 | D2: =INDIRECT($B2&"!"&$Q$4&$Q$3+5) -> 2 | E2: =INDIRECT($B2&"!"&$Q$5&$Q$3+5) -> 2 | F2: =INDIRECT($B2&"!"&$Q$6&$Q$3+5) -> 2 | G2: =INDIRECT($B2&"!"&$Q$7&$Q$3+5) -> 2 | H2: =INDIRECT($B2&"!"&$Q$8&$Q$3+5) -> 2 | I2: =INDIRECT($B2&"!"&$Q$9&$Q$3+5) -> 2 | J2: =INDIRECT($B2&"!"&$Q$10&$Q$3+5) -> 1番2番への感想 | L2: =SUMIF(D2:F2,">=0") -> 6 | M2: =SUMIF(G2:I2,">=0") -> 6 | N2: =SUMIF(D2:I2,">=0") -> 12 | S2: 番号 | T2: 平均 | U2: 順位 | W2: 番号 | X2: 平均 | Y2: 順位 | AA2: 番号 | AB2: 平均 | AC2: 順位
A3: 2 | B3: 1102 | C3: =INDIRECT($B3&"!I2") -> 情報次郎 | D3: =INDIRECT($B3&"!"&$Q$4&$Q$3+5) -> 2 | E3: =INDIRECT($B3&"!"&$Q$5&$Q$3+5) -> 2 | F3: =INDIRECT($B3&"!"&$Q$6&$Q$3+5) -> 2 | G3: =INDIRECT($B3&"!"&$Q$7&$Q$3+5) -> 2 | H3: =INDIRECT($B3&"!"&$Q$8&$Q$3+5) -> 2 | I3: =INDIRECT($B3&"!"&$Q$9&$Q$3+5) -> 2 | J3: =INDIRECT($B3&"!"&$Q$10&$Q$3+5) -> 2番2番への感想 | L3: 6 | M3: 6 | N3: 12 | P3: No | Q3: 2 | S3: 1 | T3: =INDIRECT($S3&"s!L47") -> 3 | U3: =_xlfn.RANK.EQ(T3,$T$3:$T$47) -> 45 | W3: 1 | X3: =INDIRECT($S3&"s!M47") -> 3 | Y3: =_xlfn.RANK.EQ(X3,$X$3:$X$47) -> 45 | AA3: 1 | AB3: =INDIRECT($S3&"s!N47") -> 6 | AC3: =_xlfn.RANK.EQ(AB3,$AB$3:$AB$47) -> 45
A4: 3 | B4: 1103 | C4: 情報三郎 | D4: =INDIRECT($B4&"!"&$Q$4&$Q$3+5) -> 2 | E4: 3 | F4: 2 | G4: 3 | H4: 2 | I4: 1 | J4: 3番2番への感想 | L4: 7 | M4: 6 | N4: 13 | P4: 列２ | Q4: C | S4: 2 | T4: =INDIRECT($S4&"s!L47") -> 6.2 | U4: =_xlfn.RANK.EQ(T4,$T$3:$T$47) -> 10 | W4: 2 | X4: =INDIRECT($S4&"s!M47") -> 6 | Y4: =_xlfn.RANK.EQ(X4,$X$3:$X$47) -> 18 | AA4: 2 | AB4: =INDIRECT($S4&"s!N47") -> 12.2 | AC4: =_xlfn.RANK.EQ(AB4,$AB$3:$AB$47) -> 16
A5: 4 | B5: 1104 | C5: 情報四郎 | D5: =INDIRECT($B5&"!"&$Q$4&$Q$3+5) -> 2 | E5: 2 | F5: 2 | G5: 2 | H5: 2 | I5: 2 | J5: 4番2番への感想 | L5: 6 | M5: 6 | N5: 12 | P5: 列３ | Q5: D | S5: 3 | T5: 6 | U5: 18 | W5: 3 | X5: 6.2 | Y5: 14 | AA5: 3 | AB5: 12.2 | AC5: 16
A6: 5 | B6: 1105 | C6: 情報五郎 | D6: =INDIRECT($B6&"!"&$Q$4&$Q$3+5) -> 2 | E6: 2 | F6: 2 | G6: 2 | H6: 2 | I6: 2 | J6: 5番2番への感想 | L6: 6 | M6: 6 | N6: 12 | P6: 列４ | Q6: E | S6: 4 | T6: 4 | U6: 44 | W6: 4 | X6: 8 | Y6: 1 | AA6: 4 | AB6: 12 | AC6: 21
A7: 6 | B7: 1106 | C7: =INDIRECT($B7&"!H1") ->  | L7: 0 | M7: 0 | N7: 0 | P7: 列５ | Q7: F | S7: 5 | T7: 6 | U7: 18 | W7: 5 | X7: 6 | Y7: 18 | AA7: 5 | AB7: 12 | AC7: 21
A8: 7 | B8: 1107 | L8: 0 | M8: 0 | N8: 0 | P8: 列６ | Q8: G | S8: 6 | T8: 6.8 | U8: 1 | W8: 6 | X8: 5.8 | Y8: 26 | AA8: 6 | AB8: 12.6 | AC8: 10
A9: 8 | B9: 1108 | L9: 0 | M9: 0 | N9: 0 | P9: 列７ | Q9: H | S9: 7 | T9: 5 | U9: 40 | W9: 7 | X9: 5.8 | Y9: 26 | AA9: 7 | AB9: 10.8 | AC9: 38
A10: 9 | B10: 1109 | L10: 0 | M10: 0 | N10: 0 | P10: 列８ | Q10: I | S10: 8 | T10: 6.2 | U10: 10 | W10: 8 | X10: 6.4 | Y10: 10 | AA10: 8 | AB10: 12.6 | AC10: 10
A11: 10 | B11: 1110 | L11: 0 | M11: 0 | N11: 0 | S11: 9 | T11: 5.6 | U11: 30 | W11: 9 | X11: 6 | Y11: 18 | AA11: 9 | AB11: 11.6 | AC11: 27
A12: 11 | B12: 1111 | L12: 0 | M12: 0 | N12: 0 | S12: 10 | T12: 6.6 | U12: 7 | W12: 10 | X12: 6.6 | Y12: 7 | AA12: 10 | AB12: 13.2 | AC12: 3
A13: 12 | B13: 1112 | L13: 0 | M13: 0 | N13: 0 | S13: 11 | T13: 6 | U13: 18 | W13: 11 | X13: 5.6 | Y13: 33 | AA13: 11 | AB13: 11.6 | AC13: 27
A14: 13 | B14: 1113 | L14: 0 | M14: 0 | N14: 0 | S14: 12 | T14: 5.2 | U14: 37 | W14: 12 | X14: 5.2 | Y14: 38 | AA14: 12 | AB14: 10.4 | AC14: 42
A15: 14 | B15: 1114 | L15: 0 | M15: 0 | N15: 0 | S15: 13 | T15: 6.8 | U15: 1 | W15: 13 | X15: 6.4 | Y15: 10 | AA15: 13 | AB15: 13.2 | AC15: 3
A16: 15 | B16: 1115 | L16: 0 | M16: 0 | N16: 0 | S16: 14 | T16: 5 | U16: 40 | W16: 14 | X16: 5 | Y16: 42 | AA16: 14 | AB16: 10 | AC16: 43
A17: 16 | B17: 1116 | L17: 0 | M17: 0 | N17: 0 | S17: 15 | T17: 5.6 | U17: 30 | W17: 15 | X17: 7.6 | Y17: 2 | AA17: 15 | AB17: 13.2 | AC17: 3
A18: 17 | B18: 1117 | L18: 0 | M18: 0 | N18: 0 | S18: 16 | T18: 6.2 | U18: 10 | W18: 16 | X18: 6.2 | Y18: 14 | AA18: 16 | AB18: 12.4 | AC18: 12
A19: 18 | B19: 1118 | L19: 0 | M19: 0 | N19: 0 | S19: 17 | T19: 6.2 | U19: 10 | W19: 17 | X19: 5.8 | Y19: 26 | AA19: 17 | AB19: 12 | AC19: 21
A20: 19 | B20: 1119 | L20: 0 | M20: 0 | N20: 0 | S20: 18 | T20: 6.2 | U20: 10 | W20: 18 | X20: 5.8 | Y20: 26 | AA20: 18 | AB20: 12 | AC20: 21
A21: 20 | B21: 1120 | L21: 0 | M21: 0 | N21: 0 | S21: 19 | T21: 5.8 | U21: 25 | W21: 19 | X21: 6.2 | Y21: 14 | AA21: 19 | AB21: 12 | AC21: 21
A22: 21 | B22: 1121 | L22: 0 | M22: 0 | N22: 0 | S22: 20 | T22: 4.6 | U22: 43 | W22: 20 | X22: 5.2 | Y22: 38 | AA22: 20 | AB22: 9.8 | AC22: 44
A23: 22 | B23: 1122 | L23: 0 | M23: 0 | N23: 0 | S23: 21 | T23: 6.8 | U23: 1 | W23: 21 | X23: 6.4 | Y23: 10 | AA23: 21 | AB23: 13.2 | AC23: 3
A24: 23 | B24: 1123 | L24: 0 | M24: 0 | N24: 0 | S24: 22 | T24: 6.4 | U24: 8 | W24: 22 | X24: 6.8 | Y24: 5 | AA24: 22 | AB24: 13.2 | AC24: 3
A25: 24 | B25: 1124 | L25: 0 | M25: 0 | N25: 0 | S25: 23 | T25: 6 | U25: 18 | W25: 23 | X25: 6.4 | Y25: 10 | AA25: 23 | AB25: 12.4 | AC25: 12
A26: 25 | B26: 1125 | L26: 0 | M26: 0 | N26: 0 | S26: 24 | T26: 6.4 | U26: 8 | W26: 24 | X26: 6 | Y26: 18 | AA26: 24 | AB26: 12.4 | AC26: 12
A27: 26 | B27: 1126 | L27: 0 | M27: 0 | N27: 0 | S27: 25 | T27: 5.6 | U27: 30 | W27: 25 | X27: 5.8 | Y27: 26 | AA27: 25 | AB27: 11.4 | AC27: 31
A28: 27 | B28: 1127 | L28: 0 | M28: 0 | N28: 0 | S28: 26 | T28: 6.8 | U28: 1 | W28: 26 | X28: 5.6 | Y28: 33 | AA28: 26 | AB28: 12.4 | AC28: 12
A29: 28 | B29: 1128 | L29: 0 | M29: 0 | N29: 0 | S29: 27 | T29: 5.8 | U29: 25 | W29: 27 | X29: 6 | Y29: 18 | AA29: 27 | AB29: 11.8 | AC29: 26
A30: 29 | B30: 1129 | L30: 0 | M30: 0 | N30: 0 | S30: 28 | T30: 5.8 | U30: 25 | W30: 28 | X30: 5.8 | Y30: 26 | AA30: 28 | AB30: 11.6 | AC30: 27
A31: 30 | B31: 1130 | L31: 0 | M31: 0 | N31: 0 | S31: 29 | T31: 5.8 | U31: 25 | W31: 29 | X31: 7.2 | Y31: 3 | AA31: 29 | AB31: 13 | AC31: 8
A32: 31 | B32: 1131 | L32: 0 | M32: 0 | N32: 0 | S32: 30 | T32: 6 | U32: 18 | W32: 30 | X32: 6.2 | Y32: 14 | AA32: 30 | AB32: 12.2 | AC32: 16
A33: 32 | B33: 1132 | L33: 0 | M33: 0 | N33: 0 | S33: 31 | T33: 6.2 | U33: 10 | W33: 31 | X33: 5.2 | Y33: 38 | AA33: 31 | AB33: 11.4 | AC33: 31
A34: 33 | B34: 1133 | L34: 0 | M34: 0 | N34: 0 | S34: 32 | T34: 5.6 | U34: 30 | W34: 32 | X34: 5.2 | Y34: 38 | AA34: 32 | AB34: 10.8 | AC34: 38
A35: 34 | B35: 1134 | L35: 0 | M35: 0 | N35: 0 | S35: 33 | T35: 6.2 | U35: 10 | W35: 33 | X35: 6 | Y35: 18 | AA35: 33 | AB35: 12.2 | AC35: 16
A36: 35 | B36: 1135 | L36: 0 | M36: 0 | N36: 0 | S36: 34 | T36: 5.6 | U36: 30 | W36: 34 | X36: 6.6 | Y36: 7 | AA36: 34 | AB36: 12.2 | AC36: 16
A37: 36 | B37: 1136 | L37: 0 | M37: 0 | N37: 0 | S37: 35 | T37: 4.8 | U37: 42 | W37: 35 | X37: 6 | Y37: 18 | AA37: 35 | AB37: 10.8 | AC37: 38
A38: 37 | B38: 1137 | L38: 0 | M38: 0 | N38: 0 | S38: 36 | T38: 5.2 | U38: 37 | W38: 36 | X38: 6 | Y38: 18 | AA38: 36 | AB38: 11.2 | AC38: 33
A39: 38 | B39: 1138 | L39: 0 | M39: 0 | N39: 0 | S39: 37 | T39: 6.8 | U39: 1 | W39: 37 | X39: 7.2 | Y39: 3 | AA39: 37 | AB39: 14 | AC39: 1
A40: 39 | B40: 1139 | L40: 0 | M40: 0 | N40: 0 | S40: 38 | T40: 6.2 | U40: 10 | W40: 38 | X40: 6.8 | Y40: 5 | AA40: 38 | AB40: 13 | AC40: 8
A41: 40 | B41: 1140 | L41: 0 | M41: 0 | N41: 0 | S41: 39 | T41: 5.6 | U41: 30 | W41: 39 | X41: 5 | Y41: 42 | AA41: 39 | AB41: 10.6 | AC41: 41
A42: 41 | B42: 1141 | L42: 0 | M42: 0 | N42: 0 | S42: 40 | T42: 5.2 | U42: 37 | W42: 40 | X42: 5.8 | Y42: 26 | AA42: 40 | AB42: 11 | AC42: 36
A43: 42 | B43: 1142 | L43: 0 | M43: 0 | N43: 0 | S43: 41 | T43: 6 | U43: 18 | W43: 41 | X43: 5.6 | Y43: 33 | AA43: 41 | AB43: 11.6 | AC43: 27
A44: 43 | B44: 1143 | L44: 0 | M44: 0 | N44: 0 | S44: 42 | T44: 6.8 | U44: 1 | W44: 42 | X44: 6.6 | Y44: 7 | AA44: 42 | AB44: 13.4 | AC44: 2
A45: 44 | B45: 1144 | L45: 0 | M45: 0 | N45: 0 | S45: 43 | T45: 5.6 | U45: 30 | W45: 43 | X45: 5.6 | Y45: 33 | AA45: 43 | AB45: 11.2 | AC45: 33
A46: 45 | B46: 1145 | L46: 0 | M46: 0 | N46: 0 | S46: 44 | T46: 5.8 | U46: 25 | W46: 44 | X46: 5.4 | Y46: 37 | AA46: 44 | AB46: 11.2 | AC46: 33
K47: 平均 | L47: =IF(SUM(L2:L46)=0,0,AVERAGEIF(L2:L46,">0")) -> 6.2 | M47: =IF(SUM(M2:M46)=0,0,AVERAGEIF(M2:M46,">0")) -> 6 | N47: =IF(SUM(N2:N46)=0,0,AVERAGEIF(N2:N46,">0")) -> 12.2 | S47: 45 | T47: 6 | U47: 18 | W47: 45 | X47: 5 | Y47: 42 | AA47: 45 | AB47: 11 | AC47: =_xlfn.RANK.EQ(AB47,$AB$3:$AB$47) -> 36

Sheet 3s
A1: 連番 | B1: HRNO | C1: 名前 | D1: 列１ | E1: 列２ | F1: 列３ | G1: 列４ | H1: 列５ | I1: 列６ | J1: 感想 | L1: 発表 | M1: 制作 | N1: 総計 | P1: class | Q1: =集計!Q1 -> 11 | S1: 発表 | W1: 制作物 | AA1: 総合
A2: 1 | B2: =$Q$1*100+A2 -> 1101 | C2: =INDIRECT($B2&"!I2") -> 情報太郎 | D2: =INDIRECT($B2&"!"&$Q$4&$Q$3+5) -> 3 | E2: =INDIRECT($B2&"!"&$Q$5&$Q$3+5) -> 3 | F2: =INDIRECT($B2&"!"&$Q$6&$Q$3+5) -> 3 | G2: =INDIRECT($B2&"!"&$Q$7&$Q$3+5) -> 3 | H2: =INDIRECT($B2&"!"&$Q$8&$Q$3+5) -> 3 | I2: =INDIRECT($B2&"!"&$Q$9&$Q$3+5) -> 3 | J2: =INDIRECT($B2&"!"&$Q$10&$Q$3+5) -> 1番3番への感想 | L2: =SUMIF(D2:F2,">=0") -> 9 | M2: =SUMIF(G2:I2,">=0") -> 9 | N2: =SUMIF(D2:I2,">=0") -> 18 | S2: 番号 | T2: 平均 | U2: 順位 | W2: 番号 | X2: 平均 | Y2: 順位 | AA2: 番号 | AB2: 平均 | AC2: 順位
A3: 2 | B3: 1102 | C3: =INDIRECT($B3&"!I2") -> 情報次郎 | D3: =INDIRECT($B3&"!"&$Q$4&$Q$3+5) -> 2 | E3: =INDIRECT($B3&"!"&$Q$5&$Q$3+5) -> 1 | F3: =INDIRECT($B3&"!"&$Q$6&$Q$3+5) -> 2 | G3: =INDIRECT($B3&"!"&$Q$7&$Q$3+5) -> 1 | H3: =INDIRECT($B3&"!"&$Q$8&$Q$3+5) -> 2 | I3: =INDIRECT($B3&"!"&$Q$9&$Q$3+5) -> 2 | J3: =INDIRECT($B3&"!"&$Q$10&$Q$3+5) -> 2番3番への感想 | L3: 5 | M3: 5 | N3: 10 | P3: No | Q3: 3 | S3: 1 | T3: =INDIRECT($S3&"s!L47") -> 3 | U3: =_xlfn.RANK.EQ(T3,$T$3:$T$47) -> 45 | W3: 1 | X3: =INDIRECT($S3&"s!M47") -> 3 | Y3: =_xlfn.RANK.EQ(X3,$X$3:$X$47) -> 45 | AA3: 1 | AB3: =INDIRECT($S3&"s!N47") -> 6 | AC3: =_xlfn.RANK.EQ(AB3,$AB$3:$AB$47) -> 45
A4: 3 | B4: 1103 | C4: 情報三郎 | D4: =INDIRECT($B4&"!"&$Q$4&$Q$3+5) -> 3 | E4: 3 | F4: 3 | G4: 3 | H4: 3 | I4: 3 | J4: 3番3番への感想 | L4: 9 | M4: 9 | N4: 18 | P4: 列２ | Q4: C | S4: 2 | T4: =INDIRECT($S4&"s!L47") -> 6.2 | U4: =_xlfn.RANK.EQ(T4,$T$3:$T$47) -> 10 | W4: 2 | X4: =INDIRECT($S4&"s!M47") -> 6 | Y4: =_xlfn.RANK.EQ(X4,$X$3:$X$47) -> 18 | AA4: 2 | AB4: =INDIRECT($S4&"s!N47") -> 12.2 | AC4: =_xlfn.RANK.EQ(AB4,$AB$3:$AB$47) -> 16
A5: 4 | B5: 1104 | C5: 情報四郎 | D5: =INDIRECT($B5&"!"&$Q$4&$Q$3+5) -> 1 | E5: 1 | F5: 1 | G5: 1 | H5: 2 | I5: 2 | J5: 4番3番への感想 | L5: 3 | M5: 5 | N5: 8 | P5: 列３ | Q5: D | S5: 3 | T5: 6 | U5: 18 | W5: 3 | X5: 6.2 | Y5: 14 | AA5: 3 | AB5: 12.2 | AC5: 16
A6: 5 | B6: 1105 | C6: 情報五郎 | D6: =INDIRECT($B6&"!"&$Q$4&$Q$3+5) -> 1 | E6: 1 | F6: 2 | G6: 1 | H6: 1 | I6: 1 | J6: 5番3番への感想 | L6: 4 | M6: 3 | N6: 7 | P6: 列４ | Q6: E | S6: 4 | T6: 4 | U6: 44 | W6: 4 | X6: 8 | Y6: 1 | AA6: 4 | AB6: 12 | AC6: 21
A7: 6 | B7: 1106 | C7: =INDIRECT($B7&"!H1") ->  | L7: 0 | M7: 0 | N7: 0 | P7: 列５ | Q7: F | S7: 5 | T7: 6 | U7: 18 | W7: 5 | X7: 6 | Y7: 18 | AA7: 5 | AB7: 12 | AC7: 21
A8: 7 | B8: 1107 | L8: 0 | M8: 0 | N8: 0 | P8: 列６ | Q8: G | S8: 6 | T8: 6.8 | U8: 1 | W8: 6 | X8: 5.8 | Y8: 26 | AA8: 6 | AB8: 12.6 | AC8: 10
A9: 8 | B9: 1108 | L9: 0 | M9: 0 | N9: 0 | P9: 列７ | Q9: H | S9: 7 | T9: 5 | U9: 40 | W9: 7 | X9: 5.8 | Y9: 26 | AA9: 7 | AB9: 10.8 | AC9: 38
A10: 9 | B10: 1109 | L10: 0 | M10: 0 | N10: 0 | P10: 列８ | Q10: I | S10: 8 | T10: 6.2 | U10: 10 | W10: 8 | X10: 6.4 | Y10: 10 | AA10: 8 | AB10: 12.6 | AC10: 10
A11: 10 | B11: 1110 | L11: 0 | M11: 0 | N11: 0 | S11: 9 | T11: 5.6 | U11: 30 | W11: 9 | X11: 6 | Y11: 18 | AA11: 9 | AB11: 11.6 | AC11: 27
A12: 11 | B12: 1111 | L12: 0 | M12: 0 | N12: 0 | S12: 10 | T12: 6.6 | U12: 7 | W12: 10 | X12: 6.6 | Y12: 7 | AA12: 10 | AB12: 13.2 | AC12: 3
A13: 12 | B13: 1112 | L13: 0 | M13: 0 | N13: 0 | S13: 11 | T13: 6 | U13: 18 | W13: 11 | X13: 5.6 | Y13: 33 | AA13: 11 | AB13: 11.6 | AC13: 27
A14: 13 | B14: 1113 | L14: 0 | M14: 0 | N14: 0 | S14: 12 | T14: 5.2 | U14: 37 | W14: 12 | X14: 5.2 | Y14: 38 | AA14: 12 | AB14: 10.4 | AC14: 42
A15: 14 | B15: 1114 | L15: 0 | M15: 0 | N15: 0 | S15: 13 | T15: 6.8 | U15: 1 | W15: 13 | X15: 6.4 | Y15: 10 | AA15: 13 | AB15: 13.2 | AC15: 3
A16: 15 | B16: 1115 | L16: 0 | M16: 0 | N16: 0 | S16: 14 | T16: 5 | U16: 40 | W16: 14 | X16: 5 | Y16: 42 | AA16: 14 | AB16: 10 | AC16: 43
A17: 16 | B17: 1116 | L17: 0 | M17: 0 | N17: 0 | S17: 15 | T17: 5.6 | U17: 30 | W17: 15 | X17: 7.6 | Y17: 2 | AA17: 15 | AB17: 13.2 | AC17: 3
A18: 17 | B18: 1117 | L18: 0 | M18: 0 | N18: 0 | S18: 16 | T18: 6.2 | U18: 10 | W18: 16 | X18: 6.2 | Y18: 14 | AA18: 16 | AB18: 12.4 | AC18: 12
A19: 18 | B19: 1118 | L19: 0 | M19: 0 | N19: 0 | S19: 17 | T19: 6.2 | U19: 10 | W19: 17 | X19: 5.8 | Y19: 26 | AA19: 17 | AB19: 12 | AC19: 21
A20: 19 | B20: 1119 | L20: 0 | M20: 0 | N20: 0 | S20: 18 | T20: 6.2 | U20: 10 | W20: 18 | X20: 5.8 | Y20: 26 | AA20: 18 | AB20: 12 | AC20: 21
A21: 20 | B21: 1120 | L21: 0 | M21: 0 | N21: 0 | S21: 19 | T21: 5.8 | U21: 25 | W21: 19 | X21: 6.2 | Y21: 14 | AA21: 19 | AB21: 12 | AC21: 21
A22: 21 | B22: 1121 | L22: 0 | M22: 0 | N22: 0 | S22: 20 | T22: 4.6 | U22: 43 | W22: 20 | X22: 5.2 | Y22: 38 | AA22: 20 | AB22: 9.8 | AC22: 44
A23: 22 | B23: 1122 | L23: 0 | M23: 0 | N23: 0 | S23: 21 | T23: 6.8 | U23: 1 | W23: 21 | X23: 6.4 | Y23: 10 | AA23: 21 | AB23: 13.2 | AC23: 3
A24: 23 | B24: 1123 | L24: 0 | M24: 0 | N24: 0 | S24: 22 | T24: 6.4 | U24: 8 | W24: 22 | X24: 6.8 | Y24: 5 | AA24: 22 | AB24: 13.2 | AC24: 3
A25: 24 | B25: 1124 | L25: 0 | M25: 0 | N25: 0 | S25: 23 | T25: 6 | U25: 18 | W25: 23 | X25: 6.4 | Y25: 10 | AA25: 23 | AB25: 12.4 | AC25: 12
A26: 25 | B26: 1125 | L26: 0 | M26: 0 | N26: 0 | S26: 24 | T26: 6.4 | U26: 8 | W26: 24 | X26: 6 | Y26: 18 | AA26: 24 | AB26: 12.4 | AC26: 12
A27: 26 | B27: 1126 | L27: 0 | M27: 0 | N27: 0 | S27: 25 | T27: 5.6 | U27: 30 | W27: 25 | X27: 5.8 | Y27: 26 | AA27: 25 | AB27: 11.4 | AC27: 31
A28: 27 | B28: 1127 | L28: 0 | M28: 0 | N28: 0 | S28: 26 | T28: 6.8 | U28: 1 | W28: 26 | X28: 5.6 | Y28: 33 | AA28: 26 | AB28: 12.4 | AC28: 12
A29: 28 | B29: 1128 | L29: 0 | M29: 0 | N29: 0 | S29: 27 | T29: 5.8 | U29: 25 | W29: 27 | X29: 6 | Y29: 18 | AA29: 27 | AB29: 11.8 | AC29: 26
A30: 29 | B30: 1129 | L30: 0 | M30: 0 | N30: 0 | S30: 28 | T30: 5.8 | U30: 25 | W30: 28 | X30: 5.8 | Y30: 26 | AA30: 28 | AB30: 11.6 | AC30: 27
A31: 30 | B31: 1130 | L31: 0 | M31: 0 | N31: 0 | S31: 29 | T31: 5.8 | U31: 25 | W31: 29 | X31: 7.2 | Y31: 3 | AA31: 29 | AB31: 13 | AC31: 8
A32: 31 | B32: 1131 | L32: 0 | M32: 0 | N32: 0 | S32: 30 | T32: 6 | U32: 18 | W32: 30 | X32: 6.2 | Y32: 14 | AA32: 30 | AB32: 12.2 | AC32: 16
A33: 32 | B33: 1132 | L33: 0 | M33: 0 | N33: 0 | S33: 31 | T33: 6.2 | U33: 10 | W33: 31 | X33: 5.2 | Y33: 38 | AA33: 31 | AB33: 11.4 | AC33: 31
A34: 33 | B34: 1133 | L34: 0 | M34: 0 | N34: 0 | S34: 32 | T34: 5.6 | U34: 30 | W34: 32 | X34: 5.2 | Y34: 38 | AA34: 32 | AB34: 10.8 | AC34: 38
A35: 34 | B35: 1134 | L35: 0 | M35: 0 | N35: 0 | S35: 33 | T35: 6.2 | U35: 10 | W35: 33 | X35: 6 | Y35: 18 | AA35: 33 | AB35: 12.2 | AC35: 16
A36: 35 | B36: 1135 | L36: 0 | M36: 0 | N36: 0 | S36: 34 | T36: 5.6 | U36: 30 | W36: 34 | X36: 6.6 | Y36: 7 | AA36: 34 | AB36: 12.2 | AC36: 16
A37: 36 | B37: 1136 | L37: 0 | M37: 0 | N37: 0 | S37: 35 | T37: 4.8 | U37: 42 | W37: 35 | X37: 6 | Y37: 18 | AA37: 35 | AB37: 10.8 | AC37: 38
A38: 37 | B38: 1137 | L38: 0 | M38: 0 | N38: 0 | S38: 36 | T38: 5.2 | U38: 37 | W38: 36 | X38: 6 | Y38: 18 | AA38: 36 | AB38: 11.2 | AC38: 33
A39: 38 | B39: 1138 | L39: 0 | M39: 0 | N39: 0 | S39: 37 | T39: 6.8 | U39: 1 | W39: 37 | X39: 7.2 | Y39: 3 | AA39: 37 | AB39: 14 | AC39: 1
A40: 39 | B40: 1139 | L40: 0 | M40: 0 | N40: 0 | S40: 38 | T40: 6.2 | U40: 10 | W40: 38 | X40: 6.8 | Y40: 5 | AA40: 38 | AB40: 13 | AC40: 8
A41: 40 | B41: 1140 | L41: 0 | M41: 0 | N41: 0 | S41: 39 | T41: 5.6 | U41: 30 | W41: 39 | X41: 5 | Y41: 42 | AA41: 39 | AB41: 10.6 | AC41: 41
A42: 41 | B42: 1141 | L42: 0 | M42: 0 | N42: 0 | S42: 40 | T42: 5.2 | U42: 37 | W42: 40 | X42: 5.8 | Y42: 26 | AA42: 40 | AB42: 11 | AC42: 36
A43: 42 | B43: 1142 | L43: 0 | M43: 0 | N43: 0 | S43: 41 | T43: 6 | U43: 18 | W43: 41 | X43: 5.6 | Y43: 33 | AA43: 41 | AB43: 11.6 | AC43: 27
A44: 43 | B44: 1143 | L44: 0 | M44: 0 | N44: 0 | S44: 42 | T44: 6.8 | U44: 1 | W44: 42 | X44: 6.6 | Y44: 7 | AA44: 42 | AB44: 13.4 | AC44: 2
A45: 44 | B45: 1144 | L45: 0 | M45: 0 | N45: 0 | S45: 43 | T45: 5.6 | U45: 30 | W45: 43 | X45: 5.6 | Y45: 33 | AA45: 43 | AB45: 11.2 | AC45: 33
A46: 45 | B46: 1145 | L46: 0 | M46: 0 | N46: 0 | S46: 44 | T46: 5.8 | U46: 25 | W46: 44 | X46: 5.4 | Y46: 37 | AA46: 44 | AB46: 11.2 | AC46: 33
K47: 平均 | L47: =IF(SUM(L2:L46)=0,0,AVERAGEIF(L2:L46,">0")) -> 6 | M47: =IF(SUM(M2:M46)=0,0,AVERAGEIF(M2:M46,">0")) -> 6.2 | N47: =IF(SUM(N2:N46)=0,0,AVERAGEIF(N2:N46,">0")) -> 12.2 | S47: 45 | T47: 6 | U47: 18 | W47: 45 | X47: 5 | Y47: 42 | AA47: 45 | AB47: 11 | AC47: =_xlfn.RANK.EQ(AB47,$AB$3:$AB$47) -> 36

Sheet 4s
A1: 連番 | B1: HRNO | C1: 名前 | D1: 列１ | E1: 列２ | F1: 列３ | G1: 列４ | H1: 列５ | I1: 列６ | J1: 感想 | L1: 発表 | M1: 制作 | N1: 総計 | P1: class | Q1: =集計!Q1 -> 11 | S1: 発表 | W1: 制作物 | AA1: 総合
A2: 1 | B2: =$Q$1*100+A2 -> 1101 | C2: =INDIRECT($B2&"!I2") -> 情報太郎 | D2: =INDIRECT($B2&"!"&$Q$4&$Q$3+5) -> 1 | E2: =INDIRECT($B2&"!"&$Q$5&$Q$3+5) -> 1 | F2: =INDIRECT($B2&"!"&$Q$6&$Q$3+5) -> 2 | G2: =INDIRECT($B2&"!"&$Q$7&$Q$3+5) -> 2 | H2: =INDIRECT($B2&"!"&$Q$8&$Q$3+5) -> 3 | I2: =INDIRECT($B2&"!"&$Q$9&$Q$3+5) -> 3 | J2: =INDIRECT($B2&"!"&$Q$10&$Q$3+5) -> 1番4番への感想 | L2: =SUMIF(D2:F2,">=0") -> 4 | M2: =SUMIF(G2:I2,">=0") -> 8 | N2: =SUMIF(D2:I2,">=0") -> 12 | S2: 番号 | T2: 平均 | U2: 順位 | W2: 番号 | X2: 平均 | Y2: 順位 | AA2: 番号 | AB2: 平均 | AC2: 順位
A3: 2 | B3: 1102 | C3: =INDIRECT($B3&"!I2") -> 情報次郎 | D3: =INDIRECT($B3&"!"&$Q$4&$Q$3+5) -> 1 | E3: =INDIRECT($B3&"!"&$Q$5&$Q$3+5) -> 1 | F3: =INDIRECT($B3&"!"&$Q$6&$Q$3+5) -> 2 | G3: =INDIRECT($B3&"!"&$Q$7&$Q$3+5) -> 2 | H3: =INDIRECT($B3&"!"&$Q$8&$Q$3+5) -> 3 | I3: =INDIRECT($B3&"!"&$Q$9&$Q$3+5) -> 3 | J3: =INDIRECT($B3&"!"&$Q$10&$Q$3+5) -> 2番4番への感想 | L3: 4 | M3: 8 | N3: 12 | P3: No | Q3: 4 | S3: 1 | T3: =INDIRECT($S3&"s!L47") -> 3 | U3: =_xlfn.RANK.EQ(T3,$T$3:$T$47) -> 45 | W3: 1 | X3: =INDIRECT($S3&"s!M47") -> 3 | Y3: =_xlfn.RANK.EQ(X3,$X$3:$X$47) -> 45 | AA3: 1 | AB3: =INDIRECT($S3&"s!N47") -> 6 | AC3: =_xlfn.RANK.EQ(AB3,$AB$3:$AB$47) -> 45
A4: 3 | B4: 1103 | C4: 情報三郎 | D4: =INDIRECT($B4&"!"&$Q$4&$Q$3+5) -> 1 | E4: 1 | F4: 2 | G4: 2 | H4: 3 | I4: 3 | J4: 3番4番への感想 | L4: 4 | M4: 8 | N4: 12 | P4: 列２ | Q4: C | S4: 2 | T4: =INDIRECT($S4&"s!L47") -> 6.2 | U4: =_xlfn.RANK.EQ(T4,$T$3:$T$47) -> 10 | W4: 2 | X4: =INDIRECT($S4&"s!M47") -> 6 | Y4: =_xlfn.RANK.EQ(X4,$X$3:$X$47) -> 18 | AA4: 2 | AB4: =INDIRECT($S4&"s!N47") -> 12.2 | AC4: =_xlfn.RANK.EQ(AB4,$AB$3:$AB$47) -> 16
A5: 4 | B5: 1104 | C5: 情報四郎 | D5: =INDIRECT($B5&"!"&$Q$4&$Q$3+5) -> 1 | E5: 1 | F5: 2 | G5: 2 | H5: 3 | I5: 3 | J5: 4番4番への感想 | L5: 4 | M5: 8 | N5: 12 | P5: 列３ | Q5: D | S5: 3 | T5: 6 | U5: 18 | W5: 3 | X5: 6.2 | Y5: 14 | AA5: 3 | AB5: 12.2 | AC5: 16
A6: 5 | B6: 1105 | C6: 情報五郎 | D6: =INDIRECT($B6&"!"&$Q$4&$Q$3+5) -> 1 | E6: 1 | F6: 2 | G6: 2 | H6: 3 | I6: 3 | J6: 5番4番への感想 | L6: 4 | M6: 8 | N6: 12 | P6: 列４ | Q6: E | S6: 4 | T6: 4 | U6: 44 | W6: 4 | X6: 8 | Y6: 1 | AA6: 4 | AB6: 12 | AC6: 21
A7: 6 | B7: 1106 | C7: =INDIRECT($B7&"!H1") ->  | L7: 0 | M7: 0 | N7: 0 | P7: 列５ | Q7: F | S7: 5 | T7: 6 | U7: 18 | W7: 5 | X7: 6 | Y7: 18 | AA7: 5 | AB7: 12 | AC7: 21
A8: 7 | B8: 1107 | L8: 0 | M8: 0 | N8: 0 | P8: 列６ | Q8: G | S8: 6 | T8: 6.8 | U8: 1 | W8: 6 | X8: 5.8 | Y8: 26 | AA8: 6 | AB8: 12.6 | AC8: 10
A9: 8 | B9: 1108 | L9: 0 | M9: 0 | N9: 0 | P9: 列７ | Q9: H | S9: 7 | T9: 5 | U9: 40 | W9: 7 | X9: 5.8 | Y9: 26 | AA9: 7 | AB9: 10.8 | AC9: 38
A10: 9 | B10: 1109 | L10: 0 | M10: 0 | N10: 0 | P10: 列８ | Q10: I | S10: 8 | T10: 6.2 | U10: 10 | W10: 8 | X10: 6.4 | Y10: 10 | AA10: 8 | AB10: 12.6 | AC10: 10
A11: 10 | B11: 1110 | L11: 0 | M11: 0 | N11: 0 | S11: 9 | T11: 5.6 | U11: 30 | W11: 9 | X11: 6 | Y11: 18 | AA11: 9 | AB11: 11.6 | AC11: 27
A12: 11 | B12: 1111 | L12: 0 | M12: 0 | N12: 0 | S12: 10 | T12: 6.6 | U12: 7 | W12: 10 | X12: 6.6 | Y12: 7 | AA12: 10 | AB12: 13.2 | AC12: 3
A13: 12 | B13: 1112 | L13: 0 | M13: 0 | N13: 0 | S13: 11 | T13: 6 | U13: 18 | W13: 11 | X13: 5.6 | Y13: 33 | AA13: 11 | AB13: 11.6 | AC13: 27
A14: 13 | B14: 1113 | L14: 0 | M14: 0 | N14: 0 | S14: 12 | T14: 5.2 | U14: 37 | W14: 12 | X14: 5.2 | Y14: 38 | AA14: 12 | AB14: 10.4 | AC14: 42
A15: 14 | B15: 1114 | L15: 0 | M15: 0 | N15: 0 | S15: 13 | T15: 6.8 | U15: 1 | W15: 13 | X15: 6.4 | Y15: 10 | AA15: 13 | AB15: 13.2 | AC15: 3
A16: 15 | B16: 1115 | L16: 0 | M16: 0 | N16: 0 | S16: 14 | T16: 5 | U16: 40 | W16: 14 | X16: 5 | Y16: 42 | AA16: 14 | AB16: 10 | AC16: 43
A17: 16 | B17: 1116 | L17: 0 | M17: 0 | N17: 0 | S17: 15 | T17: 5.6 | U17: 30 | W17: 15 | X17: 7.6 | Y17: 2 | AA17: 15 | AB17: 13.2 | AC17: 3
A18: 17 | B18: 1117 | L18: 0 | M18: 0 | N18: 0 | S18: 16 | T18: 6.2 | U18: 10 | W18: 16 | X18: 6.2 | Y18: 14 | AA18: 16 | AB18: 12.4 | AC18: 12
A19: 18 | B19: 1118 | L19: 0 | M19: 0 | N19: 0 | S19: 17 | T19: 6.2 | U19: 10 | W19: 17 | X19: 5.8 | Y19: 26 | AA19: 17 | AB19: 12 | AC19: 21
A20: 19 | B20: 1119 | L20: 0 | M20: 0 | N20: 0 | S20: 18 | T20: 6.2 | U20: 10 | W20: 18 | X20: 5.8 | Y20: 26 | AA20: 18 | AB20: 12 | AC20: 21
A21: 20 | B21: 1120 | L21: 0 | M21: 0 | N21: 0 | S21: 19 | T21: 5.8 | U21: 25 | W21: 19 | X21: 6.2 | Y21: 14 | AA21: 19 | AB21: 12 | AC21: 21
A22: 21 | B22: 1121 | L22: 0 | M22: 0 | N22: 0 | S22: 20 | T22: 4.6 | U22: 43 | W22: 20 | X22: 5.2 | Y22: 38 | AA22: 20 | AB22: 9.8 | AC22: 44
A23: 22 | B23: 1122 | L23: 0 | M23: 0 | N23: 0 | S23: 21 | T23: 6.8 | U23: 1 | W23: 21 | X23: 6.4 | Y23: 10 | AA23: 21 | AB23: 13.2 | AC23: 3
A24: 23 | B24: 1123 | L24: 0 | M24: 0 | N24: 0 | S24: 22 | T24: 6.4 | U24: 8 | W24: 22 | X24: 6.8 | Y24: 5 | AA24: 22 | AB24: 13.2 | AC24: 3
A25: 24 | B25: 1124 | L25: 0 | M25: 0 | N25: 0 | S25: 23 | T25: 6 | U25: 18 | W25: 23 | X25: 6.4 | Y25: 10 | AA25: 23 | AB25: 12.4 | AC25: 12
A26: 25 | B26: 1125 | L26: 0 | M26: 0 | N26: 0 | S26: 24 | T26: 6.4 | U26: 8 | W26: 24 | X26: 6 | Y26: 18 | AA26: 24 | AB26: 12.4 | AC26: 12
A27: 26 | B27: 1126 | L27: 0 | M27: 0 | N27: 0 | S27: 25 | T27: 5.6 | U27: 30 | W27: 25 | X27: 5.8 | Y27: 26 | AA27: 25 | AB27: 11.4 | AC27: 31
A28: 27 | B28: 1127 | L28: 0 | M28: 0 | N28: 0 | S28: 26 | T28: 6.8 | U28: 1 | W28: 26 | X28: 5.6 | Y28: 33 | AA28: 26 | AB28: 12.4 | AC28: 12
A29: 28 | B29: 1128 | L29: 0 | M29: 0 | N29: 0 | S29: 27 | T29: 5.8 | U29: 25 | W29: 27 | X29: 6 | Y29: 18 | AA29: 27 | AB29: 11.8 | AC29: 26
A30: 29 | B30: 1129 | L30: 0 | M30: 0 | N30: 0 | S30: 28 | T30: 5.8 | U30: 25 | W30: 28 | X30: 5.8 | Y30: 26 | AA30: 28 | AB30: 11.6 | AC30: 27
A31: 30 | B31: 1130 | L31: 0 | M31: 0 | N31: 0 | S31: 29 | T31: 5.8 | U31: 25 | W31: 29 | X31: 7.2 | Y31: 3 | AA31: 29 | AB31: 13 | AC31: 8
A32: 31 | B32: 1131 | L32: 0 | M32: 0 | N32: 0 | S32: 30 | T32: 6 | U32: 18 | W32: 30 | X32: 6.2 | Y32: 14 | AA32: 30 | AB32: 12.2 | AC32: 16
A33: 32 | B33: 1132 | L33: 0 | M33: 0 | N33: 0 | S33: 31 | T33: 6.2 | U33: 10 | W33: 31 | X33: 5.2 | Y33: 38 | AA33: 31 | AB33: 11.4 | AC33: 31
A34: 33 | B34: 1133 | L34: 0 | M34: 0 | N34: 0 | S34: 32 | T34: 5.6 | U34: 30 | W34: 32 | X34: 5.2 | Y34: 38 | AA34: 32 | AB34: 10.8 | AC34: 38
A35: 34 | B35: 1134 | L35: 0 | M35: 0 | N35: 0 | S35: 33 | T35: 6.2 | U35: 10 | W35: 33 | X35: 6 | Y35: 18 | AA35: 33 | AB35: 12.2 | AC35: 16
A36: 35 | B36: 1135 | L36: 0 | M36: 0 | N36: 0 | S36: 34 | T36: 5.6 | U36: 30 | W36: 34 | X36: 6.6 | Y36: 7 | AA36: 34 | AB36: 12.2 | AC36: 16
A37: 36 | B37: 1136 | L37: 0 | M37: 0 | N37: 0 | S37: 35 | T37: 4.8 | U37: 42 | W37: 35 | X37: 6 | Y37: 18 | AA37: 35 | AB37: 10.8 | AC37: 38
A38: 37 | B38: 1137 | L38: 0 | M38: 0 | N38: 0 | S38: 36 | T38: 5.2 | U38: 37 | W38: 36 | X38: 6 | Y38: 18 | AA38: 36 | AB38: 11.2 | AC38: 33
A39: 38 | B39: 1138 | L39: 0 | M39: 0 | N39: 0 | S39: 37 | T39: 6.8 | U39: 1 | W39: 37 | X39: 7.2 | Y39: 3 | AA39: 37 | AB39: 14 | AC39: 1
A40: 39 | B40: 1139 | L40: 0 | M40: 0 | N40: 0 | S40: 38 | T40: 6.2 | U40: 10 | W40: 38 | X40: 6.8 | Y40: 5 | AA40: 38 | AB40: 13 | AC40: 8
A41: 40 | B41: 1140 | L41: 0 | M41: 0 | N41: 0 | S41: 39 | T41: 5.6 | U41: 30 | W41: 39 | X41: 5 | Y41: 42 | AA41: 39 | AB41: 10.6 | AC41: 41
A42: 41 | B42: 1141 | L42: 0 | M42: 0 | N42: 0 | S42: 40 | T42: 5.2 | U42: 37 | W42: 40 | X42: 5.8 | Y42: 26 | AA42: 40 | AB42: 11 | AC42: 36
A43: 42 | B43: 1142 | L43: 0 | M43: 0 | N43: 0 | S43: 41 | T43: 6 | U43: 18 | W43: 41 | X43: 5.6 | Y43: 33 | AA43: 41 | AB43: 11.6 | AC43: 27
A44: 43 | B44: 1143 | L44: 0 | M44: 0 | N44: 0 | S44: 42 | T44: 6.8 | U44: 1 | W44: 42 | X44: 6.6 | Y44: 7 | AA44: 42 | AB44: 13.4 | AC44: 2
A45: 44 | B45: 1144 | L45: 0 | M45: 0 | N45: 0 | S45: 43 | T45: 5.6 | U45: 30 | W45: 43 | X45: 5.6 | Y45: 33 | AA45: 43 | AB45: 11.2 | AC45: 33
A46: 45 | B46: 1145 | L46: 0 | M46: 0 | N46: 0 | S46: 44 | T46: 5.8 | U46: 25 | W46: 44 | X46: 5.4 | Y46: 37 | AA46: 44 | AB46: 11.2 | AC46: 33
K47: 平均 | L47: =IF(SUM(L2:L46)=0,0,AVERAGEIF(L2:L46,">0")) -> 4 | M47: =IF(SUM(M2:M46)=0,0,AVERAGEIF(M2:M46,">0")) -> 8 | N47: =IF(SUM(N2:N46)=0,0,AVERAGEIF(N2:N46,">0")) -> 12 | S47: 45 | T47: 6 | U47: 18 | W47: 45 | X47: 5 | Y47: 42 | AA47: 45 | AB47: 11 | AC47: =_xlfn.RANK.EQ(AB47,$AB$3:$AB$47) -> 36

Sheet 5s
A1: 連番 | B1: HRNO | C1: 名前 | D1: 列１ | E1: 列２ | F1: 列３ | G1: 列４ | H1: 列５ | I1: 列６ | J1: 感想 | L1: 発表 | M1: 制作 | N1: 総計 | P1: class | Q1: =集計!Q1 -> 11 | S1: 発表 | W1: 制作物 | AA1: 総合
A2: 1 | B2: =$Q$1*100+A2 -> 1101 | C2: =INDIRECT($B2&"!I2") -> 情報太郎 | D2: =INDIRECT($B2&"!"&$Q$4&$Q$3+5) -> 3 | E2: =INDIRECT($B2&"!"&$Q$5&$Q$3+5) -> 2 | F2: =INDIRECT($B2&"!"&$Q$6&$Q$3+5) -> 1 | G2: =INDIRECT($B2&"!"&$Q$7&$Q$3+5) -> 3 | H2: =INDIRECT($B2&"!"&$Q$8&$Q$3+5) -> 2 | I2: =INDIRECT($B2&"!"&$Q$9&$Q$3+5) -> 1 | J2: =INDIRECT($B2&"!"&$Q$10&$Q$3+5) -> 1番5番への感想 | L2: =SUMIF(D2:F2,">=0") -> 6 | M2: =SUMIF(G2:I2,">=0") -> 6 | N2: =SUMIF(D2:I2,">=0") -> 12 | S2: 番号 | T2: 平均 | U2: 順位 | W2: 番号 | X2: 平均 | Y2: 順位 | AA2: 番号 | AB2: 平均 | AC2: 順位
A3: 2 | B3: 1102 | C3: =INDIRECT($B3&"!I2") -> 情報次郎 | D3: =INDIRECT($B3&"!"&$Q$4&$Q$3+5) -> 3 | E3: =INDIRECT($B3&"!"&$Q$5&$Q$3+5) -> 2 | F3: =INDIRECT($B3&"!"&$Q$6&$Q$3+5) -> 1 | G3: =INDIRECT($B3&"!"&$Q$7&$Q$3+5) -> 3 | H3: =INDIRECT($B3&"!"&$Q$8&$Q$3+5) -> 2 | I3: =INDIRECT($B3&"!"&$Q$9&$Q$3+5) -> 1 | J3: =INDIRECT($B3&"!"&$Q$10&$Q$3+5) -> 2番5番への感想 | L3: 6 | M3: 6 | N3: 12 | P3: No | Q3: 5 | S3: 1 | T3: =INDIRECT($S3&"s!L47") -> 3 | U3: =_xlfn.RANK.EQ(T3,$T$3:$T$47) -> 45 | W3: 1 | X3: =INDIRECT($S3&"s!M47") -> 3 | Y3: =_xlfn.RANK.EQ(X3,$X$3:$X$47) -> 45 | AA3: 1 | AB3: =INDIRECT($S3&"s!N47") -> 6 | AC3: =_xlfn.RANK.EQ(AB3,$AB$3:$AB$47) -> 45
A4: 3 | B4: 1103 | C4: 情報三郎 | D4: =INDIRECT($B4&"!"&$Q$4&$Q$3+5) -> 3 | E4: 2 | F4: 1 | G4: 3 | H4: 2 | I4: 1 | J4: 3番5番への感想 | L4: 6 | M4: 6 | N4: 12 | P4: 列２ | Q4: C | S4: 2 | T4: =INDIRECT($S4&"s!L47") -> 6.2 | U4: =_xlfn.RANK.EQ(T4,$T$3:$T$47) -> 10 | W4: 2 | X4: =INDIRECT($S4&"s!M47") -> 6 | Y4: =_xlfn.RANK.EQ(X4,$X$3:$X$47) -> 18 | AA4: 2 | AB4: =INDIRECT($S4&"s!N47") -> 12.2 | AC4: =_xlfn.RANK.EQ(AB4,$AB$3:$AB$47) -> 16
A5: 4 | B5: 1104 | C5: 情報四郎 | D5: =INDIRECT($B5&"!"&$Q$4&$Q$3+5) -> 3 | E5: 2 | F5: 1 | G5: 3 | H5: 2 | I5: 1 | J5: 4番5番への感想 | L5: 6 | M5: 6 | N5: 12 | P5: 列３ | Q5: D | S5: 3 | T5: 6 | U5: 18 | W5: 3 | X5: 6.2 | Y5: 14 | AA5: 3 | AB5: 12.2 | AC5: 16
A6: 5 | B6: 1105 | C6: 情報五郎 | D6: =INDIRECT($B6&"!"&$Q$4&$Q$3+5) -> 3 | E6: 2 | F6: 1 | G6: 3 | H6: 2 | I6: 1 | J6: 5番5番への感想 | L6: 6 | M6: 6 | N6: 12 | P6: 列４ | Q6: E | S6: 4 | T6: 4 | U6: 44 | W6: 4 | X6: 8 | Y6: 1 | AA6: 4 | AB6: 12 | AC6: 21
A7: 6 | B7: 1106 | C7: =INDIRECT($B7&"!H1") ->  | L7: 0 | M7: 0 | N7: 0 | P7: 列５ | Q7: F | S7: 5 | T7: 6 | U7: 18 | W7: 5 | X7: 6 | Y7: 18 | AA7: 5 | AB7: 12 | AC7: 21
A8: 7 | B8: 1107 | L8: 0 | M8: 0 | N8: 0 | P8: 列６ | Q8: G | S8: 6 | T8: 6.8 | U8: 1 | W8: 6 | X8: 5.8 | Y8: 26 | AA8: 6 | AB8: 12.6 | AC8: 10
A9: 8 | B9: 1108 | L9: 0 | M9: 0 | N9: 0 | P9: 列７ | Q9: H | S9: 7 | T9: 5 | U9: 40 | W9: 7 | X9: 5.8 | Y9: 26 | AA9: 7 | AB9: 10.8 | AC9: 38
A10: 9 | B10: 1109 | L10: 0 | M10: 0 | N10: 0 | P10: 列８ | Q10: I | S10: 8 | T10: 6.2 | U10: 10 | W10: 8 | X10: 6.4 | Y10: 10 | AA10: 8 | AB10: 12.6 | AC10: 10
A11: 10 | B11: 1110 | L11: 0 | M11: 0 | N11: 0 | S11: 9 | T11: 5.6 | U11: 30 | W11: 9 | X11: 6 | Y11: 18 | AA11: 9 | AB11: 11.6 | AC11: 27
A12: 11 | B12: 1111 | L12: 0 | M12: 0 | N12: 0 | S12: 10 | T12: 6.6 | U12: 7 | W12: 10 | X12: 6.6 | Y12: 7 | AA12: 10 | AB12: 13.2 | AC12: 3
A13: 12 | B13: 1112 | L13: 0 | M13: 0 | N13: 0 | S13: 11 | T13: 6 | U13: 18 | W13: 11 | X13: 5.6 | Y13: 33 | AA13: 11 | AB13: 11.6 | AC13: 27
A14: 13 | B14: 1113 | L14: 0 | M14: 0 | N14: 0 | S14: 12 | T14: 5.2 | U14: 37 | W14: 12 | X14: 5.2 | Y14: 38 | AA14: 12 | AB14: 10.4 | AC14: 42
A15: 14 | B15: 1114 | L15: 0 | M15: 0 | N15: 0 | S15: 13 | T15: 6.8 | U15: 1 | W15: 13 | X15: 6.4 | Y15: 10 | AA15: 13 | AB15: 13.2 | AC15: 3
A16: 15 | B16: 1115 | L16: 0 | M16: 0 | N16: 0 | S16: 14 | T16: 5 | U16: 40 | W16: 14 | X16: 5 | Y16: 42 | AA16: 14 | AB16: 10 | AC16: 43
A17: 16 | B17: 1116 | L17: 0 | M17: 0 | N17: 0 | S17: 15 | T17: 5.6 | U17: 30 | W17: 15 | X17: 7.6 | Y17: 2 | AA17: 15 | AB17: 13.2 | AC17: 3
A18: 17 | B18: 1117 | L18: 0 | M18: 0 | N18: 0 | S18: 16 | T18: 6.2 | U18: 10 | W18: 16 | X18: 6.2 | Y18: 14 | AA18: 16 | AB18: 12.4 | AC18: 12
A19: 18 | B19: 1118 | L19: 0 | M19: 0 | N19: 0 | S19: 17 | T19: 6.2 | U19: 10 | W19: 17 | X19: 5.8 | Y19: 26 | AA19: 17 | AB19: 12 | AC19: 21
A20: 19 | B20: 1119 | L20: 0 | M20: 0 | N20: 0 | S20: 18 | T20: 6.2 | U20: 10 | W20: 18 | X20: 5.8 | Y20: 26 | AA20: 18 | AB20: 12 | AC20: 21
A21: 20 | B21: 1120 | L21: 0 | M21: 0 | N21: 0 | S21: 19 | T21: 5.8 | U21: 25 | W21: 19 | X21: 6.2 | Y21: 14 | AA21: 19 | AB21: 12 | AC21: 21
A22: 21 | B22: 1121 | L22: 0 | M22: 0 | N22: 0 | S22: 20 | T22: 4.6 | U22: 43 | W22: 20 | X22: 5.2 | Y22: 38 | AA22: 20 | AB22: 9.8 | AC22: 44
A23: 22 | B23: 1122 | L23: 0 | M23: 0 | N23: 0 | S23: 21 | T23: 6.8 | U23: 1 | W23: 21 | X23: 6.4 | Y23: 10 | AA23: 21 | AB23: 13.2 | AC23: 3
A24: 23 | B24: 1123 | L24: 0 | M24: 0 | N24: 0 | S24: 22 | T24: 6.4 | U24: 8 | W24: 22 | X24: 6.8 | Y24: 5 | AA24: 22 | AB24: 13.2 | AC24: 3
A25: 24 | B25: 1124 | L25: 0 | M25: 0 | N25: 0 | S25: 23 | T25: 6 | U25: 18 | W25: 23 | X25: 6.4 | Y25: 10 | AA25: 23 | AB25: 12.4 | AC25: 12
A26: 25 | B26: 1125 | L26: 0 | M26: 0 | N26: 0 | S26: 24 | T26: 6.4 | U26: 8 | W26: 24 | X26: 6 | Y26: 18 | AA26: 24 | AB26: 12.4 | AC26: 12
A27: 26 | B27: 1126 | L27: 0 | M27: 0 | N27: 0 | S27: 25 | T27: 5.6 | U27: 30 | W27: 25 | X27: 5.8 | Y27: 26 | AA27: 25 | AB27: 11.4 | AC27: 31
A28: 27 | B28: 1127 | L28: 0 | M28: 0 | N28: 0 | S28: 26 | T28: 6.8 | U28: 1 | W28: 26 | X28: 5.6 | Y28: 33 | AA28: 26 | AB28: 12.4 | AC28: 12
A29: 28 | B29: 1128 | L29: 0 | M29: 0 | N29: 0 | S29: 27 | T29: 5.8 | U29: 25 | W29: 27 | X29: 6 | Y29: 18 | AA29: 27 | AB29: 11.8 | AC29: 26
A30: 29 | B30: 1129 | L30: 0 | M30: 0 | N30: 0 | S30: 28 | T30: 5.8 | U30: 25 | W30: 28 | X30: 5.8 | Y30: 26 | AA30: 28 | AB30: 11.6 | AC30: 27
A31: 30 | B31: 1130 | L31: 0 | M31: 0 | N31: 0 | S31: 29 | T31: 5.8 | U31: 25 | W31: 29 | X31: 7.2 | Y31: 3 | AA31: 29 | AB31: 13 | AC31: 8
A32: 31 | B32: 1131 | L32: 0 | M32: 0 | N32: 0 | S32: 30 | T32: 6 | U32: 18 | W32: 30 | X32: 6.2 | Y32: 14 | AA32: 30 | AB32: 12.2 | AC32: 16
A33: 32 | B33: 1132 | L33: 0 | M33: 0 | N33: 0 | S33: 31 | T33: 6.2 | U33: 10 | W33: 31 | X33: 5.2 | Y33: 38 | AA33: 31 | AB33: 11.4 | AC33: 31
A34: 33 | B34: 1133 | L34: 0 | M34: 0 | N34: 0 | S34: 32 | T34: 5.6 | U34: 30 | W34: 32 | X34: 5.2 | Y34: 38 | AA34: 32 | AB34: 10.8 | AC34: 38
A35: 34 | B35: 1134 | L35: 0 | M35: 0 | N35: 0 | S35: 33 | T35: 6.2 | U35: 10 | W35: 33 | X35: 6 | Y35: 18 | AA35: 33 | AB35: 12.2 | AC35: 16
A36: 35 | B36: 1135 | L36: 0 | M36: 0 | N36: 0 | S36: 34 | T36: 5.6 | U36: 30 | W36: 34 | X36: 6.6 | Y36: 7 | AA36: 34 | AB36: 12.2 | AC36: 16
A37: 36 | B37: 1136 | L37: 0 | M37: 0 | N37: 0 | S37: 35 | T37: 4.8 | U37: 42 | W37: 35 | X37: 6 | Y37: 18 | AA37: 35 | AB37: 10.8 | AC37: 38
A38: 37 | B38: 1137 | L38: 0 | M38: 0 | N38: 0 | S38: 36 | T38: 5.2 | U38: 37 | W38: 36 | X38: 6 | Y38: 18 | AA38: 36 | AB38: 11.2 | AC38: 33
A39: 38 | B39: 1138 | L39: 0 | M39: 0 | N39: 0 | S39: 37 | T39: 6.8 | U39: 1 | W39: 37 | X39: 7.2 | Y39: 3 | AA39: 37 | AB39: 14 | AC39: 1
A40: 39 | B40: 1139 | L40: 0 | M40: 0 | N40: 0 | S40: 38 | T40: 6.2 | U40: 10 | W40: 38 | X40: 6.8 | Y40: 5 | AA40: 38 | AB40: 13 | AC40: 8
A41: 40 | B41: 1140 | L41: 0 | M41: 0 | N41: 0 | S41: 39 | T41: 5.6 | U41: 30 | W41: 39 | X41: 5 | Y41: 42 | AA41: 39 | AB41: 10.6 | AC41: 41
A42: 41 | B42: 1141 | L42: 0 | M42: 0 | N42: 0 | S42: 40 | T42: 5.2 | U42: 37 | W42: 40 | X42: 5.8 | Y42: 26 | AA42: 40 | AB42: 11 | AC42: 36
A43: 42 | B43: 1142 | L43: 0 | M43: 0 | N43: 0 | S43: 41 | T43: 6 | U43: 18 | W43: 41 | X43: 5.6 | Y43: 33 | AA43: 41 | AB43: 11.6 | AC43: 27
A44: 43 | B44: 1143 | L44: 0 | M44: 0 | N44: 0 | S44: 42 | T44: 6.8 | U44: 1 | W44: 42 | X44: 6.6 | Y44: 7 | AA44: 42 | AB44: 13.4 | AC44: 2
A45: 44 | B45: 1144 | L45: 0 | M45: 0 | N45: 0 | S45: 43 | T45: 5.6 | U45: 30 | W45: 43 | X45: 5.6 | Y45: 33 | AA45: 43 | AB45: 11.2 | AC45: 33
A46: 45 | B46: 1145 | L46: 0 | M46: 0 | N46: 0 | S46: 44 | T46: 5.8 | U46: 25 | W46: 44 | X46: 5.4 | Y46: 37 | AA46: 44 | AB46: 11.2 | AC46: 33
K47: 平均 | L47: =IF(SUM(L2:L46)=0,0,AVERAGEIF(L2:L46,">0")) -> 6 | M47: =IF(SUM(M2:M46)=0,0,AVERAGEIF(M2:M46,">0")) -> 6 | N47: =IF(SUM(N2:N46)=0,0,AVERAGEIF(N2:N46,">0")) -> 12 | S47: 45 | T47: 6 | U47: 18 | W47: 45 | X47: 5 | Y47: 42 | AA47: 45 | AB47: 11 | AC47: =_xlfn.RANK.EQ(AB47,$AB$3:$AB$47) -> 36

Sheet 6s
A1: 連番 | B1: HRNO | C1: 名前 | D1: 列１ | E1: 列２ | F1: 列３ | G1: 列４ | H1: 列５ | I1: 列６ | J1: 感想 | L1: 発表 | M1: 制作 | N1: 総計 | P1: class | Q1: =集計!Q1 -> 11 | S1: 発表 | W1: 制作物 | AA1: 総合
A2: 1 | B2: =$Q$1*100+A2 -> 1101 | C2: =INDIRECT($B2&"!I2") -> 情報太郎 | D2: =INDIRECT($B2&"!"&$Q$4&$Q$3+5) -> 1 | E2: =INDIRECT($B2&"!"&$Q$5&$Q$3+5) -> 1 | F2: =INDIRECT($B2&"!"&$Q$6&$Q$3+5) -> 1 | G2: =INDIRECT($B2&"!"&$Q$7&$Q$3+5) -> 1 | H2: =INDIRECT($B2&"!"&$Q$8&$Q$3+5) -> 2 | I2: =INDIRECT($B2&"!"&$Q$9&$Q$3+5) -> 2 | J2: =INDIRECT($B2&"!"&$Q$10&$Q$3+5) -> 1番6番への感想 | L2: =SUMIF(D2:F2,">=0") -> 3 | M2: =SUMIF(G2:I2,">=0") -> 5 | N2: =SUMIF(D2:I2,">=0") -> 8 | S2: 番号 | T2: 平均 | U2: 順位 | W2: 番号 | X2: 平均 | Y2: 順位 | AA2: 番号 | AB2: 平均 | AC2: 順位
A3: 2 | B3: 1102 | C3: =INDIRECT($B3&"!I2") -> 情報次郎 | D3: =INDIRECT($B3&"!"&$Q$4&$Q$3+5) -> 1 | E3: =INDIRECT($B3&"!"&$Q$5&$Q$3+5) -> 2 | F3: =INDIRECT($B3&"!"&$Q$6&$Q$3+5) -> 2 | G3: =INDIRECT($B3&"!"&$Q$7&$Q$3+5) -> 1 | H3: =INDIRECT($B3&"!"&$Q$8&$Q$3+5) -> 2 | I3: =INDIRECT($B3&"!"&$Q$9&$Q$3+5) -> 2 | J3: =INDIRECT($B3&"!"&$Q$10&$Q$3+5) -> 2番6番への感想 | L3: 5 | M3: 5 | N3: 10 | P3: No | Q3: 6 | S3: 1 | T3: =INDIRECT($S3&"s!L47") -> 3 | U3: =_xlfn.RANK.EQ(T3,$T$3:$T$47) -> 45 | W3: 1 | X3: =INDIRECT($S3&"s!M47") -> 3 | Y3: =_xlfn.RANK.EQ(X3,$X$3:$X$47) -> 45 | AA3: 1 | AB3: =INDIRECT($S3&"s!N47") -> 6 | AC3: =_xlfn.RANK.EQ(AB3,$AB$3:$AB$47) -> 45
A4: 3 | B4: 1103 | C4: 情報三郎 | D4: =INDIRECT($B4&"!"&$Q$4&$Q$3+5) -> 3 | E4: 3 | F4: 3 | G4: 3 | H4: 2 | I4: 1 | J4: 3番6番への感想 | L4: 9 | M4: 6 | N4: 15 | P4: 列２ | Q4: C | S4: 2 | T4: =INDIRECT($S4&"s!L47") -> 6.2 | U4: =_xlfn.RANK.EQ(T4,$T$3:$T$47) -> 10 | W4: 2 | X4: =INDIRECT($S4&"s!M47") -> 6 | Y4: =_xlfn.RANK.EQ(X4,$X$3:$X$47) -> 18 | AA4: 2 | AB4: =INDIRECT($S4&"s!N47") -> 12.2 | AC4: =_xlfn.RANK.EQ(AB4,$AB$3:$AB$47) -> 16
A5: 4 | B5: 1104 | C5: 情報四郎 | D5: =INDIRECT($B5&"!"&$Q$4&$Q$3+5) -> 3 | E5: 3 | F5: 3 | G5: 2 | H5: 3 | I5: 3 | J5: 4番6番への感想 | L5: 9 | M5: 8 | N5: 17 | P5: 列３ | Q5: D | S5: 3 | T5: 6 | U5: 18 | W5: 3 | X5: 6.2 | Y5: 14 | AA5: 3 | AB5: 12.2 | AC5: 16
A6: 5 | B6: 1105 | C6: 情報五郎 | D6: =INDIRECT($B6&"!"&$Q$4&$Q$3+5) -> 2 | E6: 3 | F6: 3 | G6: 1 | H6: 1 | I6: 3 | J6: 5番6番への感想 | L6: 8 | M6: 5 | N6: 13 | P6: 列４ | Q6: E | S6: 4 | T6: 4 | U6: 44 | W6: 4 | X6: 8 | Y6: 1 | AA6: 4 | AB6: 12 | AC6: 21
A7: 6 | B7: 1106 | C7: =INDIRECT($B7&"!H1") ->  | L7: 0 | M7: 0 | N7: 0 | P7: 列５ | Q7: F | S7: 5 | T7: 6 | U7: 18 | W7: 5 | X7: 6 | Y7: 18 | AA7: 5 | AB7: 12 | AC7: 21
A8: 7 | B8: 1107 | L8: 0 | M8: 0 | N8: 0 | P8: 列６ | Q8: G | S8: 6 | T8: 6.8 | U8: 1 | W8: 6 | X8: 5.8 | Y8: 26 | AA8: 6 | AB8: 12.6 | AC8: 10
A9: 8 | B9: 1108 | L9: 0 | M9: 0 | N9: 0 | P9: 列７ | Q9: H | S9: 7 | T9: 5 | U9: 40 | W9: 7 | X9: 5.8 | Y9: 26 | AA9: 7 | AB9: 10.8 | AC9: 38
A10: 9 | B10: 1109 | L10: 0 | M10: 0 | N10: 0 | P10: 列８ | Q10: I | S10: 8 | T10: 6.2 | U10: 10 | W10: 8 | X10: 6.4 | Y10: 10 | AA10: 8 | AB10: 12.6 | AC10: 10
A11: 10 | B11: 1110 | L11: 0 | M11: 0 | N11: 0 | S11: 9 | T11: 5.6 | U11: 30 | W11: 9 | X11: 6 | Y11: 18 | AA11: 9 | AB11: 11.6 | AC11: 27
A12: 11 | B12: 1111 | L12: 0 | M12: 0 | N12: 0 | S12: 10 | T12: 6.6 | U12: 7 | W12: 10 | X12: 6.6 | Y12: 7 | AA12: 10 | AB12: 13.2 | AC12: 3
A13: 12 | B13: 1112 | L13: 0 | M13: 0 | N13: 0 | S13: 11 | T13: 6 | U13: 18 | W13: 11 | X13: 5.6 | Y13: 33 | AA13: 11 | AB13: 11.6 | AC13: 27
A14: 13 | B14: 1113 | L14: 0 | M14: 0 | N14: 0 | S14: 12 | T14: 5.2 | U14: 37 | W14: 12 | X14: 5.2 | Y14: 38 | AA14: 12 | AB14: 10.4 | AC14: 42
A15: 14 | B15: 1114 | L15: 0 | M15: 0 | N15: 0 | S15: 13 | T15: 6.8 | U15: 1 | W15: 13 | X15: 6.4 | Y15: 10 | AA15: 13 | AB15: 13.2 | AC15: 3
A16: 15 | B16: 1115 | L16: 0 | M16: 0 | N16: 0 | S16: 14 | T16: 5 | U16: 40 | W16: 14 | X16: 5 | Y16: 42 | AA16: 14 | AB16: 10 | AC16: 43
A17: 16 | B17: 1116 | L17: 0 | M17: 0 | N17: 0 | S17: 15 | T17: 5.6 | U17: 30 | W17: 15 | X17: 7.6 | Y17: 2 | AA17: 15 | AB17: 13.2 | AC17: 3
A18: 17 | B18: 1117 | L18: 0 | M18: 0 | N18: 0 | S18: 16 | T18: 6.2 | U18: 10 | W18: 16 | X18: 6.2 | Y18: 14 | AA18: 16 | AB18: 12.4 | AC18: 12
A19: 18 | B19: 1118 | L19: 0 | M19: 0 | N19: 0 | S19: 17 | T19: 6.2 | U19: 10 | W19: 17 | X19: 5.8 | Y19: 26 | AA19: 17 | AB19: 12 | AC19: 21
A20: 19 | B20: 1119 | L20: 0 | M20: 0 | N20: 0 | S20: 18 | T20: 6.2 | U20: 10 | W20: 18 | X20: 5.8 | Y20: 26 | AA20: 18 | AB20: 12 | AC20: 21
A21: 20 | B21: 1120 | L21: 0 | M21: 0 | N21: 0 | S21: 19 | T21: 5.8 | U21: 25 | W21: 19 | X21: 6.2 | Y21: 14 | AA21: 19 | AB21: 12 | AC21: 21
A22: 21 | B22: 1121 | L22: 0 | M22: 0 | N22: 0 | S22: 20 | T22: 4.6 | U22: 43 | W22: 20 | X22: 5.2 | Y22: 38 | AA22: 20 | AB22: 9.8 | AC22: 44
A23: 22 | B23: 1122 | L23: 0 | M23: 0 | N23: 0 | S23: 21 | T23: 6.8 | U23: 1 | W23: 21 | X23: 6.4 | Y23: 10 | AA23: 21 | AB23: 13.2 | AC23: 3
A24: 23 | B24: 1123 | L24: 0 | M24: 0 | N24: 0 | S24: 22 | T24: 6.4 | U24: 8 | W24: 22 | X24: 6.8 | Y24: 5 | AA24: 22 | AB24: 13.2 | AC24: 3
A25: 24 | B25: 1124 | L25: 0 | M25: 0 | N25: 0 | S25: 23 | T25: 6 | U25: 18 | W25: 23 | X25: 6.4 | Y25: 10 | AA25: 23 | AB25: 12.4 | AC25: 12
A26: 25 | B26: 1125 | L26: 0 | M26: 0 | N26: 0 | S26: 24 | T26: 6.4 | U26: 8 | W26: 24 | X26: 6 | Y26: 18 | AA26: 24 | AB26: 12.4 | AC26: 12
A27: 26 | B27: 1126 | L27: 0 | M27: 0 | N27: 0 | S27: 25 | T27: 5.6 | U27: 30 | W27: 25 | X27: 5.8 | Y27: 26 | AA27: 25 | AB27: 11.4 | AC27: 31
A28: 27 | B28: 1127 | L28: 0 | M28: 0 | N28: 0 | S28: 26 | T28: 6.8 | U28: 1 | W28: 26 | X28: 5.6 | Y28: 33 | AA28: 26 | AB28: 12.4 | AC28: 12
A29: 28 | B29: 1128 | L29: 0 | M29: 0 | N29: 0 | S29: 27 | T29: 5.8 | U29: 25 | W29: 27 | X29: 6 | Y29: 18 | AA29: 27 | AB29: 11.8 | AC29: 26
A30: 29 | B30: 1129 | L30: 0 | M30: 0 | N30: 0 | S30: 28 | T30: 5.8 | U30: 25 | W30: 28 | X30: 5.8 | Y30: 26 | AA30: 28 | AB30: 11.6 | AC30: 27
A31: 30 | B31: 1130 | L31: 0 | M31: 0 | N31: 0 | S31: 29 | T31: 5.8 | U31: 25 | W31: 29 | X31: 7.2 | Y31: 3 | AA31: 29 | AB31: 13 | AC31: 8
A32: 31 | B32: 1131 | L32: 0 | M32: 0 | N32: 0 | S32: 30 | T32: 6 | U32: 18 | W32: 30 | X32: 6.2 | Y32: 14 | AA32: 30 | AB32: 12.2 | AC32: 16
A33: 32 | B33: 1132 | L33: 0 | M33: 0 | N33: 0 | S33: 31 | T33: 6.2 | U33: 10 | W33: 31 | X33: 5.2 | Y33: 38 | AA33: 31 | AB33: 11.4 | AC33: 31
A34: 33 | B34: 1133 | L34: 0 | M34: 0 | N34: 0 | S34: 32 | T34: 5.6 | U34: 30 | W34: 32 | X34: 5.2 | Y34: 38 | AA34: 32 | AB34: 10.8 | AC34: 38
A35: 34 | B35: 1134 | L35: 0 | M35: 0 | N35: 0 | S35: 33 | T35: 6.2 | U35: 10 | W35: 33 | X35: 6 | Y35: 18 | AA35: 33 | AB35: 12.2 | AC35: 16
A36: 35 | B36: 1135 | L36: 0 | M36: 0 | N36: 0 | S36: 34 | T36: 5.6 | U36: 30 | W36: 34 | X36: 6.6 | Y36: 7 | AA36: 34 | AB36: 12.2 | AC36: 16
A37: 36 | B37: 1136 | L37: 0 | M37: 0 | N37: 0 | S37: 35 | T37: 4.8 | U37: 42 | W37: 35 | X37: 6 | Y37: 18 | AA37: 35 | AB37: 10.8 | AC37: 38
A38: 37 | B38: 1137 | L38: 0 | M38: 0 | N38: 0 | S38: 36 | T38: 5.2 | U38: 37 | W38: 36 | X38: 6 | Y38: 18 | AA38: 36 | AB38: 11.2 | AC38: 33
A39: 38 | B39: 1138 | L39: 0 | M39: 0 | N39: 0 | S39: 37 | T39: 6.8 | U39: 1 | W39: 37 | X39: 7.2 | Y39: 3 | AA39: 37 | AB39: 14 | AC39: 1
A40: 39 | B40: 1139 | L40: 0 | M40: 0 | N40: 0 | S40: 38 | T40: 6.2 | U40: 10 | W40: 38 | X40: 6.8 | Y40: 5 | AA40: 38 | AB40: 13 | AC40: 8
A41: 40 | B41: 1140 | L41: 0 | M41: 0 | N41: 0 | S41: 39 | T41: 5.6 | U41: 30 | W41: 39 | X41: 5 | Y41: 42 | AA41: 39 | AB41: 10.6 | AC41: 41
A42: 41 | B42: 1141 | L42: 0 | M42: 0 | N42: 0 | S42: 40 | T42: 5.2 | U42: 37 | W42: 40 | X42: 5.8 | Y42: 26 | AA42: 40 | AB42: 11 | AC42: 36
A43: 42 | B43: 1142 | L43: 0 | M43: 0 | N43: 0 | S43: 41 | T43: 6 | U43: 18 | W43: 41 | X43: 5.6 | Y43: 33 | AA43: 41 | AB43: 11.6 | AC43: 27
A44: 43 | B44: 1143 | L44: 0 | M44: 0 | N44: 0 | S44: 42 | T44: 6.8 | U44: 1 | W44: 42 | X44: 6.6 | Y44: 7 | AA44: 42 | AB44: 13.4 | AC44: 2
A45: 44 | B45: 1144 | L45: 0 | M45: 0 | N45: 0 | S45: 43 | T45: 5.6 | U45: 30 | W45: 43 | X45: 5.6 | Y45: 33 | AA45: 43 | AB45: 11.2 | AC45: 33
A46: 45 | B46: 1145 | L46: 0 | M46: 0 | N46: 0 | S46: 44 | T46: 5.8 | U46: 25 | W46: 44 | X46: 5.4 | Y46: 37 | AA46: 44 | AB46: 11.2 | AC46: 33
K47: 平均 | L47: =IF(SUM(L2:L46)=0,0,AVERAGEIF(L2:L46,">0")) -> 6.8 | M47: =IF(SUM(M2:M46)=0,0,AVERAGEIF(M2:M46,">0")) -> 5.8 | N47: =IF(SUM(N2:N46)=0,0,AVERAGEIF(N2:N46,">0")) -> 12.6 | S47: 45 | T47: 6 | U47: 18 | W47: 45 | X47: 5 | Y47: 42 | AA47: 45 | AB47: 11 | AC47: =_xlfn.RANK.EQ(AB47,$AB$3:$AB$47) -> 36

Sheet 7s
A1: 連番 | B1: HRNO | C1: 名前 | D1: 列１ | E1: 列２ | F1: 列３ | G1: 列４ | H1: 列５ | I1: 列６ | J1: 感想 | L1: 発表 | M1: 制作 | N1: 総計 | P1: class | Q1: =集計!Q1 -> 11 | S1: 発表 | W1: 制作物 | AA1: 総合
A2: 1 | B2: =$Q$1*100+A2 -> 1101 | C2: =INDIRECT($B2&"!I2") -> 情報太郎 | D2: =INDIRECT($B2&"!"&$Q$4&$Q$3+5) -> 1 | E2: =INDIRECT($B2&"!"&$Q$5&$Q$3+5) -> 2 | F2: =INDIRECT($B2&"!"&$Q$6&$Q$3+5) -> 1 | G2: =INDIRECT($B2&"!"&$Q$7&$Q$3+5) -> 3 | H2: =INDIRECT($B2&"!"&$Q$8&$Q$3+5) -> 1 | I2: =INDIRECT($B2&"!"&$Q$9&$Q$3+5) -> 1 | J2: =INDIRECT($B2&"!"&$Q$10&$Q$3+5) -> 1番7番への感想 | L2: =SUMIF(D2:F2,">=0") -> 4 | M2: =SUMIF(G2:I2,">=0") -> 5 | N2: =SUMIF(D2:I2,">=0") -> 9 | S2: 番号 | T2: 平均 | U2: 順位 | W2: 番号 | X2: 平均 | Y2: 順位 | AA2: 番号 | AB2: 平均 | AC2: 順位
A3: 2 | B3: 1102 | C3: =INDIRECT($B3&"!I2") -> 情報次郎 | D3: =INDIRECT($B3&"!"&$Q$4&$Q$3+5) -> 2 | E3: =INDIRECT($B3&"!"&$Q$5&$Q$3+5) -> 2 | F3: =INDIRECT($B3&"!"&$Q$6&$Q$3+5) -> 3 | G3: =INDIRECT($B3&"!"&$Q$7&$Q$3+5) -> 2 | H3: =INDIRECT($B3&"!"&$Q$8&$Q$3+5) -> 3 | I3: =INDIRECT($B3&"!"&$Q$9&$Q$3+5) -> 2 | J3: =INDIRECT($B3&"!"&$Q$10&$Q$3+5) -> 2番7番への感想 | L3: 7 | M3: 7 | N3: 14 | P3: No | Q3: 7 | S3: 1 | T3: =INDIRECT($S3&"s!L47") -> 3 | U3: =_xlfn.RANK.EQ(T3,$T$3:$T$47) -> 45 | W3: 1 | X3: =INDIRECT($S3&"s!M47") -> 3 | Y3: =_xlfn.RANK.EQ(X3,$X$3:$X$47) -> 45 | AA3: 1 | AB3: =INDIRECT($S3&"s!N47") -> 6 | AC3: =_xlfn.RANK.EQ(AB3,$AB$3:$AB$47) -> 45
A4: 3 | B4: 1103 | C4: 情報三郎 | D4: =INDIRECT($B4&"!"&$Q$4&$Q$3+5) -> 1 | E4: 2 | F4: 3 | G4: 1 | H4: 1 | I4: 2 | J4: 3番7番への感想 | L4: 6 | M4: 4 | N4: 10 | P4: 列２ | Q4: C | S4: 2 | T4: =INDIRECT($S4&"s!L47") -> 6.2 | U4: =_xlfn.RANK.EQ(T4,$T$3:$T$47) -> 10 | W4: 2 | X4: =INDIRECT($S4&"s!M47") -> 6 | Y4: =_xlfn.RANK.EQ(X4,$X$3:$X$47) -> 18 | AA4: 2 | AB4: =INDIRECT($S4&"s!N47") -> 12.2 | AC4: =_xlfn.RANK.EQ(AB4,$AB$3:$AB$47) -> 16
A5: 4 | B5: 1104 | C5: 情報四郎 | D5: =INDIRECT($B5&"!"&$Q$4&$Q$3+5) -> 1 | E5: 1 | F5: 2 | G5: 2 | H5: 2 | I5: 3 | J5: 4番7番への感想 | L5: 4 | M5: 7 | N5: 11 | P5: 列３ | Q5: D | S5: 3 | T5: 6 | U5: 18 | W5: 3 | X5: 6.2 | Y5: 14 | AA5: 3 | AB5: 12.2 | AC5: 16
A6: 5 | B6: 1105 | C6: 情報五郎 | D6: =INDIRECT($B6&"!"&$Q$4&$Q$3+5) -> 2 | E6: 1 | F6: 1 | G6: 3 | H6: 2 | I6: 1 | J6: 5番7番への感想 | L6: 4 | M6: 6 | N6: 10 | P6: 列４ | Q6: E | S6: 4 | T6: 4 | U6: 44 | W6: 4 | X6: 8 | Y6: 1 | AA6: 4 | AB6: 12 | AC6: 21
A7: 6 | B7: 1106 | C7: =INDIRECT($B7&"!H1") ->  | L7: 0 | M7: 0 | N7: 0 | P7: 列５ | Q7: F | S7: 5 | T7: 6 | U7: 18 | W7: 5 | X7: 6 | Y7: 18 | AA7: 5 | AB7: 12 | AC7: 21
A8: 7 | B8: 1107 | L8: 0 | M8: 0 | N8: 0 | P8: 列６ | Q8: G | S8: 6 | T8: 6.8 | U8: 1 | W8: 6 | X8: 5.8 | Y8: 26 | AA8: 6 | AB8: 12.6 | AC8: 10
A9: 8 | B9: 1108 | L9: 0 | M9: 0 | N9: 0 | P9: 列７ | Q9: H | S9: 7 | T9: 5 | U9: 40 | W9: 7 | X9: 5.8 | Y9: 26 | AA9: 7 | AB9: 10.8 | AC9: 38
A10: 9 | B10: 1109 | L10: 0 | M10: 0 | N10: 0 | P10: 列８ | Q10: I | S10: 8 | T10: 6.2 | U10: 10 | W10: 8 | X10: 6.4 | Y10: 10 | AA10: 8 | AB10: 12.6 | AC10: 10
A11: 10 | B11: 1110 | L11: 0 | M11: 0 | N11: 0 | S11: 9 | T11: 5.6 | U11: 30 | W11: 9 | X11: 6 | Y11: 18 | AA11: 9 | AB11: 11.6 | AC11: 27
A12: 11 | B12: 1111 | L12: 0 | M12: 0 | N12: 0 | S12: 10 | T12: 6.6 | U12: 7 | W12: 10 | X12: 6.6 | Y12: 7 | AA12: 10 | AB12: 13.2 | AC12: 3
A13: 12 | B13: 1112 | L13: 0 | M13: 0 | N13: 0 | S13: 11 | T13: 6 | U13: 18 | W13: 11 | X13: 5.6 | Y13: 33 | AA13: 11 | AB13: 11.6 | AC13: 27
A14: 13 | B14: 1113 | L14: 0 | M14: 0 | N14: 0 | S14: 12 | T14: 5.2 | U14: 37 | W14: 12 | X14: 5.2 | Y14: 38 | AA14: 12 | AB14: 10.4 | AC14: 42
A15: 14 | B15: 1114 | L15: 0 | M15: 0 | N15: 0 | S15: 13 | T15: 6.8 | U15: 1 | W15: 13 | X15: 6.4 | Y15: 10 | AA15: 13 | AB15: 13.2 | AC15: 3
A16: 15 | B16: 1115 | L16: 0 | M16: 0 | N16: 0 | S16: 14 | T16: 5 | U16: 40 | W16: 14 | X16: 5 | Y16: 42 | AA16: 14 | AB16: 10 | AC16: 43
A17: 16 | B17: 1116 | L17: 0 | M17: 0 | N17: 0 | S17: 15 | T17: 5.6 | U17: 30 | W17: 15 | X17: 7.6 | Y17: 2 | AA17: 15 | AB17: 13.2 | AC17: 3
A18: 17 | B18: 1117 | L18: 0 | M18: 0 | N18: 0 | S18: 16 | T18: 6.2 | U18: 10 | W18: 16 | X18: 6.2 | Y18: 14 | AA18: 16 | AB18: 12.4 | AC18: 12
A19: 18 | B19: 1118 | L19: 0 | M19: 0 | N19: 0 | S19: 17 | T19: 6.2 | U19: 10 | W19: 17 | X19: 5.8 | Y19: 26 | AA19: 17 | AB19: 12 | AC19: 21
A20: 19 | B20: 1119 | L20: 0 | M20: 0 | N20: 0 | S20: 18 | T20: 6.2 | U20: 10 | W20: 18 | X20: 5.8 | Y20: 26 | AA20: 18 | AB20: 12 | AC20: 21
A21: 20 | B21: 1120 | L21: 0 | M21: 0 | N21: 0 | S21: 19 | T21: 5.8 | U21: 25 | W21: 19 | X21: 6.2 | Y21: 14 | AA21: 19 | AB21: 12 | AC21: 21
A22: 21 | B22: 1121 | L22: 0 | M22: 0 | N22: 0 | S22: 20 | T22: 4.6 | U22: 43 | W22: 20 | X22: 5.2 | Y22: 38 | AA22: 20 | AB22: 9.8 | AC22: 44
A23: 22 | B23: 1122 | L23: 0 | M23: 0 | N23: 0 | S23: 21 | T23: 6.8 | U23: 1 | W23: 21 | X23: 6.4 | Y23: 10 | AA23: 21 | AB23: 13.2 | AC23: 3
A24: 23 | B24: 1123 | L24: 0 | M24: 0 | N24: 0 | S24: 22 | T24: 6.4 | U24: 8 | W24: 22 | X24: 6.8 | Y24: 5 | AA24: 22 | AB24: 13.2 | AC24: 3
A25: 24 | B25: 1124 | L25: 0 | M25: 0 | N25: 0 | S25: 23 | T25: 6 | U25: 18 | W25: 23 | X25: 6.4 | Y25: 10 | AA25: 23 | AB25: 12.4 | AC25: 12
A26: 25 | B26: 1125 | L26: 0 | M26: 0 | N26: 0 | S26: 24 | T26: 6.4 | U26: 8 | W26: 24 | X26: 6 | Y26: 18 | AA26: 24 | AB26: 12.4 | AC26: 12
A27: 26 | B27: 1126 | L27: 0 | M27: 0 | N27: 0 | S27: 25 | T27: 5.6 | U27: 30 | W27: 25 | X27: 5.8 | Y27: 26 | AA27: 25 | AB27: 11.4 | AC27: 31
A28: 27 | B28: 1127 | L28: 0 | M28: 0 | N28: 0 | S28: 26 | T28: 6.8 | U28: 1 | W28: 26 | X28: 5.6 | Y28: 33 | AA28: 26 | AB28: 12.4 | AC28: 12
A29: 28 | B29: 1128 | L29: 0 | M29: 0 | N29: 0 | S29: 27 | T29: 5.8 | U29: 25 | W29: 27 | X29: 6 | Y29: 18 | AA29: 27 | AB29: 11.8 | AC29: 26
A30: 29 | B30: 1129 | L30: 0 | M30: 0 | N30: 0 | S30: 28 | T30: 5.8 | U30: 25 | W30: 28 | X30: 5.8 | Y30: 26 | AA30: 28 | AB30: 11.6 | AC30: 27
A31: 30 | B31: 1130 | L31: 0 | M31: 0 | N31: 0 | S31: 29 | T31: 5.8 | U31: 25 | W31: 29 | X31: 7.2 | Y31: 3 | AA31: 29 | AB31: 13 | AC31: 8
A32: 31 | B32: 1131 | L32: 0 | M32: 0 | N32: 0 | S32: 30 | T32: 6 | U32: 18 | W32: 30 | X32: 6.2 | Y32: 14 | AA32: 30 | AB32: 12.2 | AC32: 16
A33: 32 | B33: 1132 | L33: 0 | M33: 0 | N33: 0 | S33: 31 | T33: 6.2 | U33: 10 | W33: 31 | X33: 5.2 | Y33: 38 | AA33: 31 | AB33: 11.4 | AC33: 31
A34: 33 | B34: 1133 | L34: 0 | M34: 0 | N34: 0 | S34: 32 | T34: 5.6 | U34: 30 | W34: 32 | X34: 5.2 | Y34: 38 | AA34: 32 | AB34: 10.8 | AC34: 38
A35: 34 | B35: 1134 | L35: 0 | M35: 0 | N35: 0 | S35: 33 | T35: 6.2 | U35: 10 | W35: 33 | X35: 6 | Y35: 18 | AA35: 33 | AB35: 12.2 | AC35: 16
A36: 35 | B36: 1135 | L36: 0 | M36: 0 | N36: 0 | S36: 34 | T36: 5.6 | U36: 30 | W36: 34 | X36: 6.6 | Y36: 7 | AA36: 34 | AB36: 12.2 | AC36: 16
A37: 36 | B37: 1136 | L37: 0 | M37: 0 | N37: 0 | S37: 35 | T37: 4.8 | U37: 42 | W37: 35 | X37: 6 | Y37: 18 | AA37: 35 | AB37: 10.8 | AC37: 38
A38: 37 | B38: 1137 | L38: 0 | M38: 0 | N38: 0 | S38: 36 | T38: 5.2 | U38: 37 | W38: 36 | X38: 6 | Y38: 18 | AA38: 36 | AB38: 11.2 | AC38: 33
A39: 38 | B39: 1138 | L39: 0 | M39: 0 | N39: 0 | S39: 37 | T39: 6.8 | U39: 1 | W39: 37 | X39: 7.2 | Y39: 3 | AA39: 37 | AB39: 14 | AC39: 1
A40: 39 | B40: 1139 | L40: 0 | M40: 0 | N40: 0 | S40: 38 | T40: 6.2 | U40: 10 | W40: 38 | X40: 6.8 | Y40: 5 | AA40: 38 | AB40: 13 | AC40: 8
A41: 40 | B41: 1140 | L41: 0 | M41: 0 | N41: 0 | S41: 39 | T41: 5.6 | U41: 30 | W41: 39 | X41: 5 | Y41: 42 | AA41: 39 | AB41: 10.6 | AC41: 41
A42: 41 | B42: 1141 | L42: 0 | M42: 0 | N42: 0 | S42: 40 | T42: 5.2 | U42: 37 | W42: 40 | X42: 5.8 | Y42: 26 | AA42: 40 | AB42: 11 | AC42: 36
A43: 42 | B43: 1142 | L43: 0 | M43: 0 | N43: 0 | S43: 41 | T43: 6 | U43: 18 | W43: 41 | X43: 5.6 | Y43: 33 | AA43: 41 | AB43: 11.6 | AC43: 27
A44: 43 | B44: 1143 | L44: 0 | M44: 0 | N44: 0 | S44: 42 | T44: 6.8 | U44: 1 | W44: 42 | X44: 6.6 | Y44: 7 | AA44: 42 | AB44: 13.4 | AC44: 2
A45: 44 | B45: 1144 | L45: 0 | M45: 0 | N45: 0 | S45: 43 | T45: 5.6 | U45: 30 | W45: 43 | X45: 5.6 | Y45: 33 | AA45: 43 | AB45: 11.2 | AC45: 33
A46: 45 | B46: 1145 | L46: 0 | M46: 0 | N46: 0 | S46: 44 | T46: 5.8 | U46: 25 | W46: 44 | X46: 5.4 | Y46: 37 | AA46: 44 | AB46: 11.2 | AC46: 33
K47: 平均 | L47: =IF(SUM(L2:L46)=0,0,AVERAGEIF(L2:L46,">0")) -> 5 | M47: =IF(SUM(M2:M46)=0,0,AVERAGEIF(M2:M46,">0")) -> 5.8 | N47: =IF(SUM(N2:N46)=0,0,AVERAGEIF(N2:N46,">0")) -> 10.8 | S47: 45 | T47: 6 | U47: 18 | W47: 45 | X47: 5 | Y47: 42 | AA47: 45 | AB47: 11 | AC47: =_xlfn.RANK.EQ(AB47,$AB$3:$AB$47) -> 36

Sheet 8s
A1: 連番 | B1: HRNO | C1: 名前 | D1: 列１ | E1: 列２ | F1: 列３ | G1: 列４ | H1: 列５ | I1: 列６ | J1: 感想 | L1: 発表 | M1: 制作 | N1: 総計 | P1: class | Q1: =集計!Q1 -> 11 | S1: 発表 | W1: 制作物 | AA1: 総合
A2: 1 | B2: =$Q$1*100+A2 -> 1101 | C2: =INDIRECT($B2&"!I2") -> 情報太郎 | D2: =INDIRECT($B2&"!"&$Q$4&$Q$3+5) -> 1 | E2: =INDIRECT($B2&"!"&$Q$5&$Q$3+5) -> 2 | F2: =INDIRECT($B2&"!"&$Q$6&$Q$3+5) -> 3 | G2: =INDIRECT($B2&"!"&$Q$7&$Q$3+5) -> 3 | H2: =INDIRECT($B2&"!"&$Q$8&$Q$3+5) -> 1 | I2: =INDIRECT($B2&"!"&$Q$9&$Q$3+5) -> 3 | J2: =INDIRECT($B2&"!"&$Q$10&$Q$3+5) -> 1番8番への感想 | L2: =SUMIF(D2:F2,">=0") -> 6 | M2: =SUMIF(G2:I2,">=0") -> 7 | N2: =SUMIF(D2:I2,">=0") -> 13 | S2: 番号 | T2: 平均 | U2: 順位 | W2: 番号 | X2: 平均 | Y2: 順位 | AA2: 番号 | AB2: 平均 | AC2: 順位
A3: 2 | B3: 1102 | C3: =INDIRECT($B3&"!I2") -> 情報次郎 | D3: =INDIRECT($B3&"!"&$Q$4&$Q$3+5) -> 3 | E3: =INDIRECT($B3&"!"&$Q$5&$Q$3+5) -> 2 | F3: =INDIRECT($B3&"!"&$Q$6&$Q$3+5) -> 1 | G3: =INDIRECT($B3&"!"&$Q$7&$Q$3+5) -> 1 | H3: =INDIRECT($B3&"!"&$Q$8&$Q$3+5) -> 3 | I3: =INDIRECT($B3&"!"&$Q$9&$Q$3+5) -> 1 | J3: =INDIRECT($B3&"!"&$Q$10&$Q$3+5) -> 2番8番への感想 | L3: 6 | M3: 5 | N3: 11 | P3: No | Q3: 8 | S3: 1 | T3: =INDIRECT($S3&"s!L47") -> 3 | U3: =_xlfn.RANK.EQ(T3,$T$3:$T$47) -> 45 | W3: 1 | X3: =INDIRECT($S3&"s!M47") -> 3 | Y3: =_xlfn.RANK.EQ(X3,$X$3:$X$47) -> 45 | AA3: 1 | AB3: =INDIRECT($S3&"s!N47") -> 6 | AC3: =_xlfn.RANK.EQ(AB3,$AB$3:$AB$47) -> 45
A4: 3 | B4: 1103 | C4: 情報三郎 | D4: =INDIRECT($B4&"!"&$Q$4&$Q$3+5) -> 3 | E4: 3 | F4: 3 | G4: 1 | H4: 1 | I4: 3 | J4: 3番8番への感想 | L4: 9 | M4: 5 | N4: 14 | P4: 列２ | Q4: C | S4: 2 | T4: =INDIRECT($S4&"s!L47") -> 6.2 | U4: =_xlfn.RANK.EQ(T4,$T$3:$T$47) -> 10 | W4: 2 | X4: =INDIRECT($S4&"s!M47") -> 6 | Y4: =_xlfn.RANK.EQ(X4,$X$3:$X$47) -> 18 | AA4: 2 | AB4: =INDIRECT($S4&"s!N47") -> 12.2 | AC4: =_xlfn.RANK.EQ(AB4,$AB$3:$AB$47) -> 16
A5: 4 | B5: 1104 | C5: 情報四郎 | D5: =INDIRECT($B5&"!"&$Q$4&$Q$3+5) -> 3 | E5: 2 | F5: 1 | G5: 3 | H5: 1 | I5: 3 | J5: 4番8番への感想 | L5: 6 | M5: 7 | N5: 13 | P5: 列３ | Q5: D | S5: 3 | T5: 6 | U5: 18 | W5: 3 | X5: 6.2 | Y5: 14 | AA5: 3 | AB5: 12.2 | AC5: 16
A6: 5 | B6: 1105 | C6: 情報五郎 | D6: =INDIRECT($B6&"!"&$Q$4&$Q$3+5) -> 1 | E6: 2 | F6: 1 | G6: 2 | H6: 3 | I6: 3 | J6: 5番8番への感想 | L6: 4 | M6: 8 | N6: 12 | P6: 列４ | Q6: E | S6: 4 | T6: 4 | U6: 44 | W6: 4 | X6: 8 | Y6: 1 | AA6: 4 | AB6: 12 | AC6: 21
A7: 6 | B7: 1106 | C7: =INDIRECT($B7&"!H1") ->  | L7: 0 | M7: 0 | N7: 0 | P7: 列５ | Q7: F | S7: 5 | T7: 6 | U7: 18 | W7: 5 | X7: 6 | Y7: 18 | AA7: 5 | AB7: 12 | AC7: 21
A8: 7 | B8: 1107 | L8: 0 | M8: 0 | N8: 0 | P8: 列６ | Q8: G | S8: 6 | T8: 6.8 | U8: 1 | W8: 6 | X8: 5.8 | Y8: 26 | AA8: 6 | AB8: 12.6 | AC8: 10
A9: 8 | B9: 1108 | L9: 0 | M9: 0 | N9: 0 | P9: 列７ | Q9: H | S9: 7 | T9: 5 | U9: 40 | W9: 7 | X9: 5.8 | Y9: 26 | AA9: 7 | AB9: 10.8 | AC9: 38
A10: 9 | B10: 1109 | L10: 0 | M10: 0 | N10: 0 | P10: 列８ | Q10: I | S10: 8 | T10: 6.2 | U10: 10 | W10: 8 | X10: 6.4 | Y10: 10 | AA10: 8 | AB10: 12.6 | AC10: 10
A11: 10 | B11: 1110 | L11: 0 | M11: 0 | N11: 0 | S11: 9 | T11: 5.6 | U11: 30 | W11: 9 | X11: 6 | Y11: 18 | AA11: 9 | AB11: 11.6 | AC11: 27
A12: 11 | B12: 1111 | L12: 0 | M12: 0 | N12: 0 | S12: 10 | T12: 6.6 | U12: 7 | W12: 10 | X12: 6.6 | Y12: 7 | AA12: 10 | AB12: 13.2 | AC12: 3
A13: 12 | B13: 1112 | L13: 0 | M13: 0 | N13: 0 | S13: 11 | T13: 6 | U13: 18 | W13: 11 | X13: 5.6 | Y13: 33 | AA13: 11 | AB13: 11.6 | AC13: 27
A14: 13 | B14: 1113 | L14: 0 | M14: 0 | N14: 0 | S14: 12 | T14: 5.2 | U14: 37 | W14: 12 | X14: 5.2 | Y14: 38 | AA14: 12 | AB14: 10.4 | AC14: 42
A15: 14 | B15: 1114 | L15: 0 | M15: 0 | N15: 0 | S15: 13 | T15: 6.8 | U15: 1 | W15: 13 | X15: 6.4 | Y15: 10 | AA15: 13 | AB15: 13.2 | AC15: 3
A16: 15 | B16: 1115 | L16: 0 | M16: 0 | N16: 0 | S16: 14 | T16: 5 | U16: 40 | W16: 14 | X16: 5 | Y16: 42 | AA16: 14 | AB16: 10 | AC16: 43
A17: 16 | B17: 1116 | L17: 0 | M17: 0 | N17: 0 | S17: 15 | T17: 5.6 | U17: 30 | W17: 15 | X17: 7.6 | Y17: 2 | AA17: 15 | AB17: 13.2 | AC17: 3
A18: 17 | B18: 1117 | L18: 0 | M18: 0 | N18: 0 | S18: 16 | T18: 6.2 | U18: 10 | W18: 16 | X18: 6.2 | Y18: 14 | AA18: 16 | AB18: 12.4 | AC18: 12
A19: 18 | B19: 1118 | L19: 0 | M19: 0 | N19: 0 | S19: 17 | T19: 6.2 | U19: 10 | W19: 17 | X19: 5.8 | Y19: 26 | AA19: 17 | AB19: 12 | AC19: 21
A20: 19 | B20: 1119 | L20: 0 | M20: 0 | N20: 0 | S20: 18 | T20: 6.2 | U20: 10 | W20: 18 | X20: 5.8 | Y20: 26 | AA20: 18 | AB20: 12 | AC20: 21
A21: 20 | B21: 1120 | L21: 0 | M21: 0 | N21: 0 | S21: 19 | T21: 5.8 | U21: 25 | W21: 19 | X21: 6.2 | Y21: 14 | AA21: 19 | AB21: 12 | AC21: 21
A22: 21 | B22: 1121 | L22: 0 | M22: 0 | N22: 0 | S22: 20 | T22: 4.6 | U22: 43 | W22: 20 | X22: 5.2 | Y22: 38 | AA22: 20 | AB22: 9.8 | AC22: 44
A23: 22 | B23: 1122 | L23: 0 | M23: 0 | N23: 0 | S23: 21 | T23: 6.8 | U23: 1 | W23: 21 | X23: 6.4 | Y23: 10 | AA23: 21 | AB23: 13.2 | AC23: 3
A24: 23 | B24: 1123 | L24: 0 | M24: 0 | N24: 0 | S24: 22 | T24: 6.4 | U24: 8 | W24: 22 | X24: 6.8 | Y24: 5 | AA24: 22 | AB24: 13.2 | AC24: 3
A25: 24 | B25: 1124 | L25: 0 | M25: 0 | N25: 0 | S25: 23 | T25: 6 | U25: 18 | W25: 23 | X25: 6.4 | Y25: 10 | AA25: 23 | AB25: 12.4 | AC25: 12
A26: 25 | B26: 1125 | L26: 0 | M26: 0 | N26: 0 | S26: 24 | T26: 6.4 | U26: 8 | W26: 24 | X26: 6 | Y26: 18 | AA26: 24 | AB26: 12.4 | AC26: 12
A27: 26 | B27: 1126 | L27: 0 | M27: 0 | N27: 0 | S27: 25 | T27: 5.6 | U27: 30 | W27: 25 | X27: 5.8 | Y27: 26 | AA27: 25 | AB27: 11.4 | AC27: 31
A28: 27 | B28: 1127 | L28: 0 | M28: 0 | N28: 0 | S28: 26 | T28: 6.8 | U28: 1 | W28: 26 | X28: 5.6 | Y28: 33 | AA28: 26 | AB28: 12.4 | AC28: 12
A29: 28 | B29: 1128 | L29: 0 | M29: 0 | N29: 0 | S29: 27 | T29: 5.8 | U29: 25 | W29: 27 | X29: 6 | Y29: 18 | AA29: 27 | AB29: 11.8 | AC29: 26
A30: 29 | B30: 1129 | L30: 0 | M30: 0 | N30: 0 | S30: 28 | T30: 5.8 | U30: 25 | W30: 28 | X30: 5.8 | Y30: 26 | AA30: 28 | AB30: 11.6 | AC30: 27
A31: 30 | B31: 1130 | L31: 0 | M31: 0 | N31: 0 | S31: 29 | T31: 5.8 | U31: 25 | W31: 29 | X31: 7.2 | Y31: 3 | AA31: 29 | AB31: 13 | AC31: 8
A32: 31 | B32: 1131 | L32: 0 | M32: 0 | N32: 0 | S32: 30 | T32: 6 | U32: 18 | W32: 30 | X32: 6.2 | Y32: 14 | AA32: 30 | AB32: 12.2 | AC32: 16
A33: 32 | B33: 1132 | L33: 0 | M33: 0 | N33: 0 | S33: 31 | T33: 6.2 | U33: 10 | W33: 31 | X33: 5.2 | Y33: 38 | AA33: 31 | AB33: 11.4 | AC33: 31
A34: 33 | B34: 1133 | L34: 0 | M34: 0 | N34: 0 | S34: 32 | T34: 5.6 | U34: 30 | W34: 32 | X34: 5.2 | Y34: 38 | AA34: 32 | AB34: 10.8 | AC34: 38
A35: 34 | B35: 1134 | L35: 0 | M35: 0 | N35: 0 | S35: 33 | T35: 6.2 | U35: 10 | W35: 33 | X35: 6 | Y35: 18 | AA35: 33 | AB35: 12.2 | AC35: 16
A36: 35 | B36: 1135 | L36: 0 | M36: 0 | N36: 0 | S36: 34 | T36: 5.6 | U36: 30 | W36: 34 | X36: 6.6 | Y36: 7 | AA36: 34 | AB36: 12.2 | AC36: 16
A37: 36 | B37: 1136 | L37: 0 | M37: 0 | N37: 0 | S37: 35 | T37: 4.8 | U37: 42 | W37: 35 | X37: 6 | Y37: 18 | AA37: 35 | AB37: 10.8 | AC37: 38
A38: 37 | B38: 1137 | L38: 0 | M38: 0 | N38: 0 | S38: 36 | T38: 5.2 | U38: 37 | W38: 36 | X38: 6 | Y38: 18 | AA38: 36 | AB38: 11.2 | AC38: 33
A39: 38 | B39: 1138 | L39: 0 | M39: 0 | N39: 0 | S39: 37 | T39: 6.8 | U39: 1 | W39: 37 | X39: 7.2 | Y39: 3 | AA39: 37 | AB39: 14 | AC39: 1
A40: 39 | B40: 1139 | L40: 0 | M40: 0 | N40: 0 | S40: 38 | T40: 6.2 | U40: 10 | W40: 38 | X40: 6.8 | Y40: 5 | AA40: 38 | AB40: 13 | AC40: 8
A41: 40 | B41: 1140 | L41: 0 | M41: 0 | N41: 0 | S41: 39 | T41: 5.6 | U41: 30 | W41: 39 | X41: 5 | Y41: 42 | AA41: 39 | AB41: 10.6 | AC41: 41
A42: 41 | B42: 1141 | L42: 0 | M42: 0 | N42: 0 | S42: 40 | T42: 5.2 | U42: 37 | W42: 40 | X42: 5.8 | Y42: 26 | AA42: 40 | AB42: 11 | AC42: 36
A43: 42 | B43: 1142 | L43: 0 | M43: 0 | N43: 0 | S43: 41 | T43: 6 | U43: 18 | W43: 41 | X43: 5.6 | Y43: 33 | AA43: 41 | AB43: 11.6 | AC43: 27
A44: 43 | B44: 1143 | L44: 0 | M44: 0 | N44: 0 | S44: 42 | T44: 6.8 | U44: 1 | W44: 42 | X44: 6.6 | Y44: 7 | AA44: 42 | AB44: 13.4 | AC44: 2
A45: 44 | B45: 1144 | L45: 0 | M45: 0 | N45: 0 | S45: 43 | T45: 5.6 | U45: 30 | W45: 43 | X45: 5.6 | Y45: 33 | AA45: 43 | AB45: 11.2 | AC45: 33
A46: 45 | B46: 1145 | L46: 0 | M46: 0 | N46: 0 | S46: 44 | T46: 5.8 | U46: 25 | W46: 44 | X46: 5.4 | Y46: 37 | AA46: 44 | AB46: 11.2 | AC46: 33
K47: 平均 | L47: =IF(SUM(L2:L46)=0,0,AVERAGEIF(L2:L46,">0")) -> 6.2 | M47: =IF(SUM(M2:M46)=0,0,AVERAGEIF(M2:M46,">0")) -> 6.4 | N47: =IF(SUM(N2:N46)=0,0,AVERAGEIF(N2:N46,">0")) -> 12.6 | S47: 45 | T47: 6 | U47: 18 | W47: 45 | X47: 5 | Y47: 42 | AA47: 45 | AB47: 11 | AC47: =_xlfn.RANK.EQ(AB47,$AB$3:$AB$47) -> 36

Sheet 9s
A1: 連番 | B1: HRNO | C1: 名前 | D1: 列１ | E1: 列２ | F1: 列３ | G1: 列４ | H1: 列５ | I1: 列６ | J1: 感想 | L1: 発表 | M1: 制作 | N1: 総計 | P1: class | Q1: =集計!Q1 -> 11 | S1: 発表 | W1: 制作物 | AA1: 総合
A2: 1 | B2: =$Q$1*100+A2 -> 1101 | C2: =INDIRECT($B2&"!I2") -> 情報太郎 | D2: =INDIRECT($B2&"!"&$Q$4&$Q$3+5) -> 1 | E2: =INDIRECT($B2&"!"&$Q$5&$Q$3+5) -> 3 | F2: =INDIRECT($B2&"!"&$Q$6&$Q$3+5) -> 3 | G2: =INDIRECT($B2&"!"&$Q$7&$Q$3+5) -> 2 | H2: =INDIRECT($B2&"!"&$Q$8&$Q$3+5) -> 3 | I2: =INDIRECT($B2&"!"&$Q$9&$Q$3+5) -> 3 | J2: =INDIRECT($B2&"!"&$Q$10&$Q$3+5) -> 1番9番への感想 | L2: =SUMIF(D2:F2,">=0") -> 7 | M2: =SUMIF(G2:I2,">=0") -> 8 | N2: =SUMIF(D2:I2,">=0") -> 15 | S2: 番号 | T2: 平均 | U2: 順位 | W2: 番号 | X2: 平均 | Y2: 順位 | AA2: 番号 | AB2: 平均 | AC2: 順位
A3: 2 | B3: 1102 | C3: =INDIRECT($B3&"!I2") -> 情報次郎 | D3: =INDIRECT($B3&"!"&$Q$4&$Q$3+5) -> 1 | E3: =INDIRECT($B3&"!"&$Q$5&$Q$3+5) -> 2 | F3: =INDIRECT($B3&"!"&$Q$6&$Q$3+5) -> 2 | G3: =INDIRECT($B3&"!"&$Q$7&$Q$3+5) -> 1 | H3: =INDIRECT($B3&"!"&$Q$8&$Q$3+5) -> 2 | I3: =INDIRECT($B3&"!"&$Q$9&$Q$3+5) -> 1 | J3: =INDIRECT($B3&"!"&$Q$10&$Q$3+5) -> 2番9番への感想 | L3: 5 | M3: 4 | N3: 9 | P3: No | Q3: 9 | S3: 1 | T3: =INDIRECT($S3&"s!L47") -> 3 | U3: =_xlfn.RANK.EQ(T3,$T$3:$T$47) -> 45 | W3: 1 | X3: =INDIRECT($S3&"s!M47") -> 3 | Y3: =_xlfn.RANK.EQ(X3,$X$3:$X$47) -> 45 | AA3: 1 | AB3: =INDIRECT($S3&"s!N47") -> 6 | AC3: =_xlfn.RANK.EQ(AB3,$AB$3:$AB$47) -> 45
A4: 3 | B4: 1103 | C4: 情報三郎 | D4: =INDIRECT($B4&"!"&$Q$4&$Q$3+5) -> 3 | E4: 1 | F4: 3 | G4: 3 | H4: 1 | I4: 2 | J4: 3番9番への感想 | L4: 7 | M4: 6 | N4: 13 | P4: 列２ | Q4: C | S4: 2 | T4: =INDIRECT($S4&"s!L47") -> 6.2 | U4: =_xlfn.RANK.EQ(T4,$T$3:$T$47) -> 10 | W4: 2 | X4: =INDIRECT($S4&"s!M47") -> 6 | Y4: =_xlfn.RANK.EQ(X4,$X$3:$X$47) -> 18 | AA4: 2 | AB4: =INDIRECT($S4&"s!N47") -> 12.2 | AC4: =_xlfn.RANK.EQ(AB4,$AB$3:$AB$47) -> 16
A5: 4 | B5: 1104 | C5: 情報四郎 | D5: =INDIRECT($B5&"!"&$Q$4&$Q$3+5) -> 1 | E5: 1 | F5: 1 | G5: 2 | H5: 1 | I5: 2 | J5: 4番9番への感想 | L5: 3 | M5: 5 | N5: 8 | P5: 列３ | Q5: D | S5: 3 | T5: 6 | U5: 18 | W5: 3 | X5: 6.2 | Y5: 14 | AA5: 3 | AB5: 12.2 | AC5: 16
A6: 5 | B6: 1105 | C6: 情報五郎 | D6: =INDIRECT($B6&"!"&$Q$4&$Q$3+5) -> 3 | E6: 1 | F6: 2 | G6: 1 | H6: 3 | I6: 3 | J6: 5番9番への感想 | L6: 6 | M6: 7 | N6: 13 | P6: 列４ | Q6: E | S6: 4 | T6: 4 | U6: 44 | W6: 4 | X6: 8 | Y6: 1 | AA6: 4 | AB6: 12 | AC6: 21
A7: 6 | B7: 1106 | C7: =INDIRECT($B7&"!H1") ->  | L7: 0 | M7: 0 | N7: 0 | P7: 列５ | Q7: F | S7: 5 | T7: 6 | U7: 18 | W7: 5 | X7: 6 | Y7: 18 | AA7: 5 | AB7: 12 | AC7: 21
A8: 7 | B8: 1107 | L8: 0 | M8: 0 | N8: 0 | P8: 列６ | Q8: G | S8: 6 | T8: 6.8 | U8: 1 | W8: 6 | X8: 5.8 | Y8: 26 | AA8: 6 | AB8: 12.6 | AC8: 10
A9: 8 | B9: 1108 | L9: 0 | M9: 0 | N9: 0 | P9: 列７ | Q9: H | S9: 7 | T9: 5 | U9: 40 | W9: 7 | X9: 5.8 | Y9: 26 | AA9: 7 | AB9: 10.8 | AC9: 38
A10: 9 | B10: 1109 | L10: 0 | M10: 0 | N10: 0 | P10: 列８ | Q10: I | S10: 8 | T10: 6.2 | U10: 10 | W10: 8 | X10: 6.4 | Y10: 10 | AA10: 8 | AB10: 12.6 | AC10: 10
A11: 10 | B11: 1110 | L11: 0 | M11: 0 | N11: 0 | S11: 9 | T11: 5.6 | U11: 30 | W11: 9 | X11: 6 | Y11: 18 | AA11: 9 | AB11: 11.6 | AC11: 27
A12: 11 | B12: 1111 | L12: 0 | M12: 0 | N12: 0 | S12: 10 | T12: 6.6 | U12: 7 | W12: 10 | X12: 6.6 | Y12: 7 | AA12: 10 | AB12: 13.2 | AC12: 3
A13: 12 | B13: 1112 | L13: 0 | M13: 0 | N13: 0 | S13: 11 | T13: 6 | U13: 18 | W13: 11 | X13: 5.6 | Y13: 33 | AA13: 11 | AB13: 11.6 | AC13: 27
A14: 13 | B14: 1113 | L14: 0 | M14: 0 | N14: 0 | S14: 12 | T14: 5.2 | U14: 37 | W14: 12 | X14: 5.2 | Y14: 38 | AA14: 12 | AB14: 10.4 | AC14: 42
A15: 14 | B15: 1114 | L15: 0 | M15: 0 | N15: 0 | S15: 13 | T15: 6.8 | U15: 1 | W15: 13 | X15: 6.4 | Y15: 10 | AA15: 13 | AB15: 13.2 | AC15: 3
A16: 15 | B16: 1115 | L16: 0 | M16: 0 | N16: 0 | S16: 14 | T16: 5 | U16: 40 | W16: 14 | X16: 5 | Y16: 42 | AA16: 14 | AB16: 10 | AC16: 43
A17: 16 | B17: 1116 | L17: 0 | M17: 0 | N17: 0 | S17: 15 | T17: 5.6 | U17: 30 | W17: 15 | X17: 7.6 | Y17: 2 | AA17: 15 | AB17: 13.2 | AC17: 3
A18: 17 | B18: 1117 | L18: 0 | M18: 0 | N18: 0 | S18: 16 | T18: 6.2 | U18: 10 | W18: 16 | X18: 6.2 | Y18: 14 | AA18: 16 | AB18: 12.4 | AC18: 12
A19: 18 | B19: 1118 | L19: 0 | M19: 0 | N19: 0 | S19: 17 | T19: 6.2 | U19: 10 | W19: 17 | X19: 5.8 | Y19: 26 | AA19: 17 | AB19: 12 | AC19: 21
A20: 19 | B20: 1119 | L20: 0 | M20: 0 | N20: 0 | S20: 18 | T20: 6.2 | U20: 10 | W20: 18 | X20: 5.8 | Y20: 26 | AA20: 18 | AB20: 12 | AC20: 21
A21: 20 | B21: 1120 | L21: 0 | M21: 0 | N21: 0 | S21: 19 | T21: 5.8 | U21: 25 | W21: 19 | X21: 6.2 | Y21: 14 | AA21: 19 | AB21: 12 | AC21: 21
A22: 21 | B22: 1121 | L22: 0 | M22: 0 | N22: 0 | S22: 20 | T22: 4.6 | U22: 43 | W22: 20 | X22: 5.2 | Y22: 38 | AA22: 20 | AB22: 9.8 | AC22: 44
A23: 22 | B23: 1122 | L23: 0 | M23: 0 | N23: 0 | S23: 21 | T23: 6.8 | U23: 1 | W23: 21 | X23: 6.4 | Y23: 10 | AA23: 21 | AB23: 13.2 | AC23: 3
A24: 23 | B24: 1123 | L24: 0 | M24: 0 | N24: 0 | S24: 22 | T24: 6.4 | U24: 8 | W24: 22 | X24: 6.8 | Y24: 5 | AA24: 22 | AB24: 13.2 | AC24: 3
A25: 24 | B25: 1124 | L25: 0 | M25: 0 | N25: 0 | S25: 23 | T25: 6 | U25: 18 | W25: 23 | X25: 6.4 | Y25: 10 | AA25: 23 | AB25: 12.4 | AC25: 12
A26: 25 | B26: 1125 | L26: 0 | M26: 0 | N26: 0 | S26: 24 | T26: 6.4 | U26: 8 | W26: 24 | X26: 6 | Y26: 18 | AA26: 24 | AB26: 12.4 | AC26: 12
A27: 26 | B27: 1126 | L27: 0 | M27: 0 | N27: 0 | S27: 25 | T27: 5.6 | U27: 30 | W27: 25 | X27: 5.8 | Y27: 26 | AA27: 25 | AB27: 11.4 | AC27: 31
A28: 27 | B28: 1127 | L28: 0 | M28: 0 | N28: 0 | S28: 26 | T28: 6.8 | U28: 1 | W28: 26 | X28: 5.6 | Y28: 33 | AA28: 26 | AB28: 12.4 | AC28: 12
A29: 28 | B29: 1128 | L29: 0 | M29: 0 | N29: 0 | S29: 27 | T29: 5.8 | U29: 25 | W29: 27 | X29: 6 | Y29: 18 | AA29: 27 | AB29: 11.8 | AC29: 26
A30: 29 | B30: 1129 | L30: 0 | M30: 0 | N30: 0 | S30: 28 | T30: 5.8 | U30: 25 | W30: 28 | X30: 5.8 | Y30: 26 | AA30: 28 | AB30: 11.6 | AC30: 27
A31: 30 | B31: 1130 | L31: 0 | M31: 0 | N31: 0 | S31: 29 | T31: 5.8 | U31: 25 | W31: 29 | X31: 7.2 | Y31: 3 | AA31: 29 | AB31: 13 | AC31: 8
A32: 31 | B32: 1131 | L32: 0 | M32: 0 | N32: 0 | S32: 30 | T32: 6 | U32: 18 | W32: 30 | X32: 6.2 | Y32: 14 | AA32: 30 | AB32: 12.2 | AC32: 16
A33: 32 | B33: 1132 | L33: 0 | M33: 0 | N33: 0 | S33: 31 | T33: 6.2 | U33: 10 | W33: 31 | X33: 5.2 | Y33: 38 | AA33: 31 | AB33: 11.4 | AC33: 31
A34: 33 | B34: 1133 | L34: 0 | M34: 0 | N34: 0 | S34: 32 | T34: 5.6 | U34: 30 | W34: 32 | X34: 5.2 | Y34: 38 | AA34: 32 | AB34: 10.8 | AC34: 38
A35: 34 | B35: 1134 | L35: 0 | M35: 0 | N35: 0 | S35: 33 | T35: 6.2 | U35: 10 | W35: 33 | X35: 6 | Y35: 18 | AA35: 33 | AB35: 12.2 | AC35: 16
A36: 35 | B36: 1135 | L36: 0 | M36: 0 | N36: 0 | S36: 34 | T36: 5.6 | U36: 30 | W36: 34 | X36: 6.6 | Y36: 7 | AA36: 34 | AB36: 12.2 | AC36: 16
A37: 36 | B37: 1136 | L37: 0 | M37: 0 | N37: 0 | S37: 35 | T37: 4.8 | U37: 42 | W37: 35 | X37: 6 | Y37: 18 | AA37: 35 | AB37: 10.8 | AC37: 38
A38: 37 | B38: 1137 | L38: 0 | M38: 0 | N38: 0 | S38: 36 | T38: 5.2 | U38: 37 | W38: 36 | X38: 6 | Y38: 18 | AA38: 36 | AB38: 11.2 | AC38: 33
A39: 38 | B39: 1138 | L39: 0 | M39: 0 | N39: 0 | S39: 37 | T39: 6.8 | U39: 1 | W39: 37 | X39: 7.2 | Y39: 3 | AA39: 37 | AB39: 14 | AC39: 1
A40: 39 | B40: 1139 | L40: 0 | M40: 0 | N40: 0 | S40: 38 | T40: 6.2 | U40: 10 | W40: 38 | X40: 6.8 | Y40: 5 | AA40: 38 | AB40: 13 | AC40: 8
A41: 40 | B41: 1140 | L41: 0 | M41: 0 | N41: 0 | S41: 39 | T41: 5.6 | U41: 30 | W41: 39 | X41: 5 | Y41: 42 | AA41: 39 | AB41: 10.6 | AC41: 41
A42: 41 | B42: 1141 | L42: 0 | M42: 0 | N42: 0 | S42: 40 | T42: 5.2 | U42: 37 | W42: 40 | X42: 5.8 | Y42: 26 | AA42: 40 | AB42: 11 | AC42: 36
A43: 42 | B43: 1142 | L43: 0 | M43: 0 | N43: 0 | S43: 41 | T43: 6 | U43: 18 | W43: 41 | X43: 5.6 | Y43: 33 | AA43: 41 | AB43: 11.6 | AC43: 27
A44: 43 | B44: 1143 | L44: 0 | M44: 0 | N44: 0 | S44: 42 | T44: 6.8 | U44: 1 | W44: 42 | X44: 6.6 | Y44: 7 | AA44: 42 | AB44: 13.4 | AC44: 2
A45: 44 | B45: 1144 | L45: 0 | M45: 0 | N45: 0 | S45: 43 | T45: 5.6 | U45: 30 | W45: 43 | X45: 5.6 | Y45: 33 | AA45: 43 | AB45: 11.2 | AC45: 33
A46: 45 | B46: 1145 | L46: 0 | M46: 0 | N46: 0 | S46: 44 | T46: 5.8 | U46: 25 | W46: 44 | X46: 5.4 | Y46: 37 | AA46: 44 | AB46: 11.2 | AC46: 33
K47: 平均 | L47: =IF(SUM(L2:L46)=0,0,AVERAGEIF(L2:L46,">0")) -> 5.6 | M47: =IF(SUM(M2:M46)=0,0,AVERAGEIF(M2:M46,">0")) -> 6 | N47: =IF(SUM(N2:N46)=0,0,AVERAGEIF(N2:N46,">0")) -> 11.6 | S47: 45 | T47: 6 | U47: 18 | W47: 45 | X47: 5 | Y47: 42 | AA47: 45 | AB47: 11 | AC47: =_xlfn.RANK.EQ(AB47,$AB$3:$AB$47) -> 36

Sheet 10s
A1: 連番 | B1: HRNO | C1: 名前 | D1: 列１ | E1: 列２ | F1: 列３ | G1: 列４ | H1: 列５ | I1: 列６ | J1: 感想 | L1: 発表 | M1: 制作 | N1: 総計 | P1: class | Q1: =集計!Q1 -> 11 | S1: 発表 | W1: 制作物 | AA1: 総合
A2: 1 | B2: =$Q$1*100+A2 -> 1101 | C2: =INDIRECT($B2&"!I2") -> 情報太郎 | D2: =INDIRECT($B2&"!"&$Q$4&$Q$3+5) -> 1 | E2: =INDIRECT($B2&"!"&$Q$5&$Q$3+5) -> 3 | F2: =INDIRECT($B2&"!"&$Q$6&$Q$3+5) -> 1 | G2: =INDIRECT($B2&"!"&$Q$7&$Q$3+5) -> 3 | H2: =INDIRECT($B2&"!"&$Q$8&$Q$3+5) -> 1 | I2: =INDIRECT($B2&"!"&$Q$9&$Q$3+5) -> 3 | J2: =INDIRECT($B2&"!"&$Q$10&$Q$3+5) -> 1番10番への感想 | L2: =SUMIF(D2:F2,">=0") -> 5 | M2: =SUMIF(G2:I2,">=0") -> 7 | N2: =SUMIF(D2:I2,">=0") -> 12 | S2: 番号 | T2: 平均 | U2: 順位 | W2: 番号 | X2: 平均 | Y2: 順位 | AA2: 番号 | AB2: 平均 | AC2: 順位
A3: 2 | B3: 1102 | C3: =INDIRECT($B3&"!I2") -> 情報次郎 | D3: =INDIRECT($B3&"!"&$Q$4&$Q$3+5) -> 3 | E3: =INDIRECT($B3&"!"&$Q$5&$Q$3+5) -> 2 | F3: =INDIRECT($B3&"!"&$Q$6&$Q$3+5) -> 2 | G3: =INDIRECT($B3&"!"&$Q$7&$Q$3+5) -> 2 | H3: =INDIRECT($B3&"!"&$Q$8&$Q$3+5) -> 3 | I3: =INDIRECT($B3&"!"&$Q$9&$Q$3+5) -> 1 | J3: =INDIRECT($B3&"!"&$Q$10&$Q$3+5) -> 2番10番への感想 | L3: 7 | M3: 6 | N3: 13 | P3: No | Q3: 10 | S3: 1 | T3: =INDIRECT($S3&"s!L47") -> 3 | U3: =_xlfn.RANK.EQ(T3,$T$3:$T$47) -> 45 | W3: 1 | X3: =INDIRECT($S3&"s!M47") -> 3 | Y3: =_xlfn.RANK.EQ(X3,$X$3:$X$47) -> 45 | AA3: 1 | AB3: =INDIRECT($S3&"s!N47") -> 6 | AC3: =_xlfn.RANK.EQ(AB3,$AB$3:$AB$47) -> 45
A4: 3 | B4: 1103 | C4: 情報三郎 | D4: =INDIRECT($B4&"!"&$Q$4&$Q$3+5) -> 2 | E4: 2 | F4: 3 | G4: 2 | H4: 3 | I4: 3 | J4: 3番10番への感想 | L4: 7 | M4: 8 | N4: 15 | P4: 列２ | Q4: C | S4: 2 | T4: =INDIRECT($S4&"s!L47") -> 6.2 | U4: =_xlfn.RANK.EQ(T4,$T$3:$T$47) -> 10 | W4: 2 | X4: =INDIRECT($S4&"s!M47") -> 6 | Y4: =_xlfn.RANK.EQ(X4,$X$3:$X$47) -> 18 | AA4: 2 | AB4: =INDIRECT($S4&"s!N47") -> 12.2 | AC4: =_xlfn.RANK.EQ(AB4,$AB$3:$AB$47) -> 16
A5: 4 | B5: 1104 | C5: 情報四郎 | D5: =INDIRECT($B5&"!"&$Q$4&$Q$3+5) -> 3 | E5: 2 | F5: 2 | G5: 3 | H5: 1 | I5: 1 | J5: 4番10番への感想 | L5: 7 | M5: 5 | N5: 12 | P5: 列３ | Q5: D | S5: 3 | T5: 6 | U5: 18 | W5: 3 | X5: 6.2 | Y5: 14 | AA5: 3 | AB5: 12.2 | AC5: 16
A6: 5 | B6: 1105 | C6: 情報五郎 | D6: =INDIRECT($B6&"!"&$Q$4&$Q$3+5) -> 3 | E6: 1 | F6: 3 | G6: 3 | H6: 2 | I6: 2 | J6: 5番10番への感想 | L6: 7 | M6: 7 | N6: 14 | P6: 列４ | Q6: E | S6: 4 | T6: 4 | U6: 44 | W6: 4 | X6: 8 | Y6: 1 | AA6: 4 | AB6: 12 | AC6: 21
A7: 6 | B7: 1106 | C7: =INDIRECT($B7&"!H1") ->  | L7: 0 | M7: 0 | N7: 0 | P7: 列５ | Q7: F | S7: 5 | T7: 6 | U7: 18 | W7: 5 | X7: 6 | Y7: 18 | AA7: 5 | AB7: 12 | AC7: 21
A8: 7 | B8: 1107 | L8: 0 | M8: 0 | N8: 0 | P8: 列６ | Q8: G | S8: 6 | T8: 6.8 | U8: 1 | W8: 6 | X8: 5.8 | Y8: 26 | AA8: 6 | AB8: 12.6 | AC8: 10
A9: 8 | B9: 1108 | L9: 0 | M9: 0 | N9: 0 | P9: 列７ | Q9: H | S9: 7 | T9: 5 | U9: 40 | W9: 7 | X9: 5.8 | Y9: 26 | AA9: 7 | AB9: 10.8 | AC9: 38
A10: 9 | B10: 1109 | L10: 0 | M10: 0 | N10: 0 | P10: 列８ | Q10: I | S10: 8 | T10: 6.2 | U10: 10 | W10: 8 | X10: 6.4 | Y10: 10 | AA10: 8 | AB10: 12.6 | AC10: 10
A11: 10 | B11: 1110 | L11: 0 | M11: 0 | N11: 0 | S11: 9 | T11: 5.6 | U11: 30 | W11: 9 | X11: 6 | Y11: 18 | AA11: 9 | AB11: 11.6 | AC11: 27
A12: 11 | B12: 1111 | L12: 0 | M12: 0 | N12: 0 | S12: 10 | T12: 6.6 | U12: 7 | W12: 10 | X12: 6.6 | Y12: 7 | AA12: 10 | AB12: 13.2 | AC12: 3
A13: 12 | B13: 1112 | L13: 0 | M13: 0 | N13: 0 | S13: 11 | T13: 6 | U13: 18 | W13: 11 | X13: 5.6 | Y13: 33 | AA13: 11 | AB13: 11.6 | AC13: 27
A14: 13 | B14: 1113 | L14: 0 | M14: 0 | N14: 0 | S14: 12 | T14: 5.2 | U14: 37 | W14: 12 | X14: 5.2 | Y14: 38 | AA14: 12 | AB14: 10.4 | AC14: 42
A15: 14 | B15: 1114 | L15: 0 | M15: 0 | N15: 0 | S15: 13 | T15: 6.8 | U15: 1 | W15: 13 | X15: 6.4 | Y15: 10 | AA15: 13 | AB15: 13.2 | AC15: 3
A16: 15 | B16: 1115 | L16: 0 | M16: 0 | N16: 0 | S16: 14 | T16: 5 | U16: 40 | W16: 14 | X16: 5 | Y16: 42 | AA16: 14 | AB16: 10 | AC16: 43
A17: 16 | B17: 1116 | L17: 0 | M17: 0 | N17: 0 | S17: 15 | T17: 5.6 | U17: 30 | W17: 15 | X17: 7.6 | Y17: 2 | AA17: 15 | AB17: 13.2 | AC17: 3
A18: 17 | B18: 1117 | L18: 0 | M18: 0 | N18: 0 | S18: 16 | T18: 6.2 | U18: 10 | W18: 16 | X18: 6.2 | Y18: 14 | AA18: 16 | AB18: 12.4 | AC18: 12
A19: 18 | B19: 1118 | L19: 0 | M19: 0 | N19: 0 | S19: 17 | T19: 6.2 | U19: 10 | W19: 17 | X19: 5.8 | Y19: 26 | AA19: 17 | AB19: 12 | AC19: 21
A20: 19 | B20: 1119 | L20: 0 | M20: 0 | N20: 0 | S20: 18 | T20: 6.2 | U20: 10 | W20: 18 | X20: 5.8 | Y20: 26 | AA20: 18 | AB20: 12 | AC20: 21
A21: 20 | B21: 1120 | L21: 0 | M21: 0 | N21: 0 | S21: 19 | T21: 5.8 | U21: 25 | W21: 19 | X21: 6.2 | Y21: 14 | AA21: 19 | AB21: 12 | AC21: 21
A22: 21 | B22: 1121 | L22: 0 | M22: 0 | N22: 0 | S22: 20 | T22: 4.6 | U22: 43 | W22: 20 | X22: 5.2 | Y22: 38 | AA22: 20 | AB22: 9.8 | AC22: 44
A23: 22 | B23: 1122 | L23: 0 | M23: 0 | N23: 0 | S23: 21 | T23: 6.8 | U23: 1 | W23: 21 | X23: 6.4 | Y23: 10 | AA23: 21 | AB23: 13.2 | AC23: 3
A24: 23 | B24: 1123 | L24: 0 | M24: 0 | N24: 0 | S24: 22 | T24: 6.4 | U24: 8 | W24: 22 | X24: 6.8 | Y24: 5 | AA24: 22 | AB24: 13.2 | AC24: 3
A25: 24 | B25: 1124 | L25: 0 | M25: 0 | N25: 0 | S25: 23 | T25: 6 | U25: 18 | W25: 23 | X25: 6.4 | Y25: 10 | AA25: 23 | AB25: 12.4 | AC25: 12
A26: 25 | B26: 1125 | L26: 0 | M26: 0 | N26: 0 | S26: 24 | T26: 6.4 | U26: 8 | W26: 24 | X26: 6 | Y26: 18 | AA26: 24 | AB26: 12.4 | AC26: 12
A27: 26 | B27: 1126 | L27: 0 | M27: 0 | N27: 0 | S27: 25 | T27: 5.6 | U27: 30 | W27: 25 | X27: 5.8 | Y27: 26 | AA27: 25 | AB27: 11.4 | AC27: 31
A28: 27 | B28: 1127 | L28: 0 | M28: 0 | N28: 0 | S28: 26 | T28: 6.8 | U28: 1 | W28: 26 | X28: 5.6 | Y28: 33 | AA28: 26 | AB28: 12.4 | AC28: 12
A29: 28 | B29: 1128 | L29: 0 | M29: 0 | N29: 0 | S29: 27 | T29: 5.8 | U29: 25 | W29: 27 | X29: 6 | Y29: 18 | AA29: 27 | AB29: 11.8 | AC29: 26
A30: 29 | B30: 1129 | L30: 0 | M30: 0 | N30: 0 | S30: 28 | T30: 5.8 | U30: 25 | W30: 28 | X30: 5.8 | Y30: 26 | AA30: 28 | AB30: 11.6 | AC30: 27
A31: 30 | B31: 1130 | L31: 0 | M31: 0 | N31: 0 | S31: 29 | T31: 5.8 | U31: 25 | W31: 29 | X31: 7.2 | Y31: 3 | AA31: 29 | AB31: 13 | AC31: 8
A32: 31 | B32: 1131 | L32: 0 | M32: 0 | N32: 0 | S32: 30 | T32: 6 | U32: 18 | W32: 30 | X32: 6.2 | Y32: 14 | AA32: 30 | AB32: 12.2 | AC32: 16
A33: 32 | B33: 1132 | L33: 0 | M33: 0 | N33: 0 | S33: 31 | T33: 6.2 | U33: 10 | W33: 31 | X33: 5.2 | Y33: 38 | AA33: 31 | AB33: 11.4 | AC33: 31
A34: 33 | B34: 1133 | L34: 0 | M34: 0 | N34: 0 | S34: 32 | T34: 5.6 | U34: 30 | W34: 32 | X34: 5.2 | Y34: 38 | AA34: 32 | AB34: 10.8 | AC34: 38
A35: 34 | B35: 1134 | L35: 0 | M35: 0 | N35: 0 | S35: 33 | T35: 6.2 | U35: 10 | W35: 33 | X35: 6 | Y35: 18 | AA35: 33 | AB35: 12.2 | AC35: 16
A36: 35 | B36: 1135 | L36: 0 | M36: 0 | N36: 0 | S36: 34 | T36: 5.6 | U36: 30 | W36: 34 | X36: 6.6 | Y36: 7 | AA36: 34 | AB36: 12.2 | AC36: 16
A37: 36 | B37: 1136 | L37: 0 | M37: 0 | N37: 0 | S37: 35 | T37: 4.8 | U37: 42 | W37: 35 | X37: 6 | Y37: 18 | AA37: 35 | AB37: 10.8 | AC37: 38
A38: 37 | B38: 1137 | L38: 0 | M38: 0 | N38: 0 | S38: 36 | T38: 5.2 | U38: 37 | W38: 36 | X38: 6 | Y38: 18 | AA38: 36 | AB38: 11.2 | AC38: 33
A39: 38 | B39: 1138 | L39: 0 | M39: 0 | N39: 0 | S39: 37 | T39: 6.8 | U39: 1 | W39: 37 | X39: 7.2 | Y39: 3 | AA39: 37 | AB39: 14 | AC39: 1
A40: 39 | B40: 1139 | L40: 0 | M40: 0 | N40: 0 | S40: 38 | T40: 6.2 | U40: 10 | W40: 38 | X40: 6.8 | Y40: 5 | AA40: 38 | AB40: 13 | AC40: 8
A41: 40 | B41: 1140 | L41: 0 | M41: 0 | N41: 0 | S41: 39 | T41: 5.6 | U41: 30 | W41: 39 | X41: 5 | Y41: 42 | AA41: 39 | AB41: 10.6 | AC41: 41
A42: 41 | B42: 1141 | L42: 0 | M42: 0 | N42: 0 | S42: 40 | T42: 5.2 | U42: 37 | W42: 40 | X42: 5.8 | Y42: 26 | AA42: 40 | AB42: 11 | AC42: 36
A43: 42 | B43: 1142 | L43: 0 | M43: 0 | N43: 0 | S43: 41 | T43: 6 | U43: 18 | W43: 41 | X43: 5.6 | Y43: 33 | AA43: 41 | AB43: 11.6 | AC43: 27
A44: 43 | B44: 1143 | L44: 0 | M44: 0 | N44: 0 | S44: 42 | T44: 6.8 | U44: 1 | W44: 42 | X44: 6.6 | Y44: 7 | AA44: 42 | AB44: 13.4 | AC44: 2
A45: 44 | B45: 1144 | L45: 0 | M45: 0 | N45: 0 | S45: 43 | T45: 5.6 | U45: 30 | W45: 43 | X45: 5.6 | Y45: 33 | AA45: 43 | AB45: 11.2 | AC45: 33
A46: 45 | B46: 1145 | L46: 0 | M46: 0 | N46: 0 | S46: 44 | T46: 5.8 | U46: 25 | W46: 44 | X46: 5.4 | Y46: 37 | AA46: 44 | AB46: 11.2 | AC46: 33
K47: 平均 | L47: =IF(SUM(L2:L46)=0,0,AVERAGEIF(L2:L46,">0")) -> 6.6 | M47: =IF(SUM(M2:M46)=0,0,AVERAGEIF(M2:M46,">0")) -> 6.6 | N47: =IF(SUM(N2:N46)=0,0,AVERAGEIF(N2:N46,">0")) -> 13.2 | S47: 45 | T47: 6 | U47: 18 | W47: 45 | X47: 5 | Y47: 42 | AA47: 45 | AB47: 11 | AC47: =_xlfn.RANK.EQ(AB47,$AB$3:$AB$47) -> 36

Sheet 11s
A1: 連番 | B1: HRNO | C1: 名前 | D1: 列１ | E1: 列２ | F1: 列３ | G1: 列４ | H1: 列５ | I1: 列６ | J1: 感想 | L1: 発表 | M1: 制作 | N1: 総計 | P1: class | Q1: =集計!Q1 -> 11 | S1: 発表 | W1: 制作物 | AA1: 総合
A2: 1 | B2: =$Q$1*100+A2 -> 1101 | C2: =INDIRECT($B2&"!I2") -> 情報太郎 | D2: =INDIRECT($B2&"!"&$Q$4&$Q$3+5) -> 1 | E2: =INDIRECT($B2&"!"&$Q$5&$Q$3+5) -> 2 | F2: =INDIRECT($B2&"!"&$Q$6&$Q$3+5) -> 3 | G2: =INDIRECT($B2&"!"&$Q$7&$Q$3+5) -> 3 | H2: =INDIRECT($B2&"!"&$Q$8&$Q$3+5) -> 1 | I2: =INDIRECT($B2&"!"&$Q$9&$Q$3+5) -> 2 | J2: =INDIRECT($B2&"!"&$Q$10&$Q$3+5) -> 1番11番への感想 | L2: =SUMIF(D2:F2,">=0") -> 6 | M2: =SUMIF(G2:I2,">=0") -> 6 | N2: =SUMIF(D2:I2,">=0") -> 12 | S2: 番号 | T2: 平均 | U2: 順位 | W2: 番号 | X2: 平均 | Y2: 順位 | AA2: 番号 | AB2: 平均 | AC2: 順位
A3: 2 | B3: 1102 | C3: =INDIRECT($B3&"!I2") -> 情報次郎 | D3: =INDIRECT($B3&"!"&$Q$4&$Q$3+5) -> 2 | E3: =INDIRECT($B3&"!"&$Q$5&$Q$3+5) -> 2 | F3: =INDIRECT($B3&"!"&$Q$6&$Q$3+5) -> 2 | G3: =INDIRECT($B3&"!"&$Q$7&$Q$3+5) -> 1 | H3: =INDIRECT($B3&"!"&$Q$8&$Q$3+5) -> 1 | I3: =INDIRECT($B3&"!"&$Q$9&$Q$3+5) -> 2 | J3: =INDIRECT($B3&"!"&$Q$10&$Q$3+5) -> 2番11番への感想 | L3: 6 | M3: 4 | N3: 10 | P3: No | Q3: 11 | S3: 1 | T3: =INDIRECT($S3&"s!L47") -> 3 | U3: =_xlfn.RANK.EQ(T3,$T$3:$T$47) -> 45 | W3: 1 | X3: =INDIRECT($S3&"s!M47") -> 3 | Y3: =_xlfn.RANK.EQ(X3,$X$3:$X$47) -> 45 | AA3: 1 | AB3: =INDIRECT($S3&"s!N47") -> 6 | AC3: =_xlfn.RANK.EQ(AB3,$AB$3:$AB$47) -> 45
A4: 3 | B4: 1103 | C4: 情報三郎 | D4: =INDIRECT($B4&"!"&$Q$4&$Q$3+5) -> 1 | E4: 2 | F4: 3 | G4: 1 | H4: 3 | I4: 2 | J4: 3番11番への感想 | L4: 6 | M4: 6 | N4: 12 | P4: 列２ | Q4: C | S4: 2 | T4: =INDIRECT($S4&"s!L47") -> 6.2 | U4: =_xlfn.RANK.EQ(T4,$T$3:$T$47) -> 10 | W4: 2 | X4: =INDIRECT($S4&"s!M47") -> 6 | Y4: =_xlfn.RANK.EQ(X4,$X$3:$X$47) -> 18 | AA4: 2 | AB4: =INDIRECT($S4&"s!N47") -> 12.2 | AC4: =_xlfn.RANK.EQ(AB4,$AB$3:$AB$47) -> 16
A5: 4 | B5: 1104 | C5: 情報四郎 | D5: =INDIRECT($B5&"!"&$Q$4&$Q$3+5) -> 2 | E5: 3 | F5: 1 | G5: 1 | H5: 1 | I5: 3 | J5: 4番11番への感想 | L5: 6 | M5: 5 | N5: 11 | P5: 列３ | Q5: D | S5: 3 | T5: 6 | U5: 18 | W5: 3 | X5: 6.2 | Y5: 14 | AA5: 3 | AB5: 12.2 | AC5: 16
A6: 5 | B6: 1105 | C6: 情報五郎 | D6: =INDIRECT($B6&"!"&$Q$4&$Q$3+5) -> 1 | E6: 2 | F6: 3 | G6: 3 | H6: 3 | I6: 1 | J6: 5番11番への感想 | L6: 6 | M6: 7 | N6: 13 | P6: 列４ | Q6: E | S6: 4 | T6: 4 | U6: 44 | W6: 4 | X6: 8 | Y6: 1 | AA6: 4 | AB6: 12 | AC6: 21
A7: 6 | B7: 1106 | C7: =INDIRECT($B7&"!H1") ->  | L7: 0 | M7: 0 | N7: 0 | P7: 列５ | Q7: F | S7: 5 | T7: 6 | U7: 18 | W7: 5 | X7: 6 | Y7: 18 | AA7: 5 | AB7: 12 | AC7: 21
A8: 7 | B8: 1107 | L8: 0 | M8: 0 | N8: 0 | P8: 列６ | Q8: G | S8: 6 | T8: 6.8 | U8: 1 | W8: 6 | X8: 5.8 | Y8: 26 | AA8: 6 | AB8: 12.6 | AC8: 10
A9: 8 | B9: 1108 | L9: 0 | M9: 0 | N9: 0 | P9: 列７ | Q9: H | S9: 7 | T9: 5 | U9: 40 | W9: 7 | X9: 5.8 | Y9: 26 | AA9: 7 | AB9: 10.8 | AC9: 38
A10: 9 | B10: 1109 | L10: 0 | M10: 0 | N10: 0 | P10: 列８ | Q10: I | S10: 8 | T10: 6.2 | U10: 10 | W10: 8 | X10: 6.4 | Y10: 10 | AA10: 8 | AB10: 12.6 | AC10: 10
A11: 10 | B11: 1110 | L11: 0 | M11: 0 | N11: 0 | S11: 9 | T11: 5.6 | U11: 30 | W11: 9 | X11: 6 | Y11: 18 | AA11: 9 | AB11: 11.6 | AC11: 27
A12: 11 | B12: 1111 | L12: 0 | M12: 0 | N12: 0 | S12: 10 | T12: 6.6 | U12: 7 | W12: 10 | X12: 6.6 | Y12: 7 | AA12: 10 | AB12: 13.2 | AC12: 3
A13: 12 | B13: 1112 | L13: 0 | M13: 0 | N13: 0 | S13: 11 | T13: 6 | U13: 18 | W13: 11 | X13: 5.6 | Y13: 33 | AA13: 11 | AB13: 11.6 | AC13: 27
A14: 13 | B14: 1113 | L14: 0 | M14: 0 | N14: 0 | S14: 12 | T14: 5.2 | U14: 37 | W14: 12 | X14: 5.2 | Y14: 38 | AA14: 12 | AB14: 10.4 | AC14: 42
A15: 14 | B15: 1114 | L15: 0 | M15: 0 | N15: 0 | S15: 13 | T15: 6.8 | U15: 1 | W15: 13 | X15: 6.4 | Y15: 10 | AA15: 13 | AB15: 13.2 | AC15: 3
A16: 15 | B16: 1115 | L16: 0 | M16: 0 | N16: 0 | S16: 14 | T16: 5 | U16: 40 | W16: 14 | X16: 5 | Y16: 42 | AA16: 14 | AB16: 10 | AC16: 43
A17: 16 | B17: 1116 | L17: 0 | M17: 0 | N17: 0 | S17: 15 | T17: 5.6 | U17: 30 | W17: 15 | X17: 7.6 | Y17: 2 | AA17: 15 | AB17: 13.2 | AC17: 3
A18: 17 | B18: 1117 | L18: 0 | M18: 0 | N18: 0 | S18: 16 | T18: 6.2 | U18: 10 | W18: 16 | X18: 6.2 | Y18: 14 | AA18: 16 | AB18: 12.4 | AC18: 12
A19: 18 | B19: 1118 | L19: 0 | M19: 0 | N19: 0 | S19: 17 | T19: 6.2 | U19: 10 | W19: 17 | X19: 5.8 | Y19: 26 | AA19: 17 | AB19: 12 | AC19: 21
A20: 19 | B20: 1119 | L20: 0 | M20: 0 | N20: 0 | S20: 18 | T20: 6.2 | U20: 10 | W20: 18 | X20: 5.8 | Y20: 26 | AA20: 18 | AB20: 12 | AC20: 21
A21: 20 | B21: 1120 | L21: 0 | M21: 0 | N21: 0 | S21: 19 | T21: 5.8 | U21: 25 | W21: 19 | X21: 6.2 | Y21: 14 | AA21: 19 | AB21: 12 | AC21: 21
A22: 21 | B22: 1121 | L22: 0 | M22: 0 | N22: 0 | S22: 20 | T22: 4.6 | U22: 43 | W22: 20 | X22: 5.2 | Y22: 38 | AA22: 20 | AB22: 9.8 | AC22: 44
A23: 22 | B23: 1122 | L23: 0 | M23: 0 | N23: 0 | S23: 21 | T23: 6.8 | U23: 1 | W23: 21 | X23: 6.4 | Y23: 10 | AA23: 21 | AB23: 13.2 | AC23: 3
A24: 23 | B24: 1123 | L24: 0 | M24: 0 | N24: 0 | S24: 22 | T24: 6.4 | U24: 8 | W24: 22 | X24: 6.8 | Y24: 5 | AA24: 22 | AB24: 13.2 | AC24: 3
A25: 24 | B25: 1124 | L25: 0 | M25: 0 | N25: 0 | S25: 23 | T25: 6 | U25: 18 | W25: 23 | X25: 6.4 | Y25: 10 | AA25: 23 | AB25: 12.4 | AC25: 12
A26: 25 | B26: 1125 | L26: 0 | M26: 0 | N26: 0 | S26: 24 | T26: 6.4 | U26: 8 | W26: 24 | X26: 6 | Y26: 18 | AA26: 24 | AB26: 12.4 | AC26: 12
A27: 26 | B27: 1126 | L27: 0 | M27: 0 | N27: 0 | S27: 25 | T27: 5.6 | U27: 30 | W27: 25 | X27: 5.8 | Y27: 26 | AA27: 25 | AB27: 11.4 | AC27: 31
A28: 27 | B28: 1127 | L28: 0 | M28: 0 | N28: 0 | S28: 26 | T28: 6.8 | U28: 1 | W28: 26 | X28: 5.6 | Y28: 33 | AA28: 26 | AB28: 12.4 | AC28: 12
A29: 28 | B29: 1128 | L29: 0 | M29: 0 | N29: 0 | S29: 27 | T29: 5.8 | U29: 25 | W29: 27 | X29: 6 | Y29: 18 | AA29: 27 | AB29: 11.8 | AC29: 26
A30: 29 | B30: 1129 | L30: 0 | M30: 0 | N30: 0 | S30: 28 | T30: 5.8 | U30: 25 | W30: 28 | X30: 5.8 | Y30: 26 | AA30: 28 | AB30: 11.6 | AC30: 27
A31: 30 | B31: 1130 | L31: 0 | M31: 0 | N31: 0 | S31: 29 | T31: 5.8 | U31: 25 | W31: 29 | X31: 7.2 | Y31: 3 | AA31: 29 | AB31: 13 | AC31: 8
A32: 31 | B32: 1131 | L32: 0 | M32: 0 | N32: 0 | S32: 30 | T32: 6 | U32: 18 | W32: 30 | X32: 6.2 | Y32: 14 | AA32: 30 | AB32: 12.2 | AC32: 16
A33: 32 | B33: 1132 | L33: 0 | M33: 0 | N33: 0 | S33: 31 | T33: 6.2 | U33: 10 | W33: 31 | X33: 5.2 | Y33: 38 | AA33: 31 | AB33: 11.4 | AC33: 31
A34: 33 | B34: 1133 | L34: 0 | M34: 0 | N34: 0 | S34: 32 | T34: 5.6 | U34: 30 | W34: 32 | X34: 5.2 | Y34: 38 | AA34: 32 | AB34: 10.8 | AC34: 38
A35: 34 | B35: 1134 | L35: 0 | M35: 0 | N35: 0 | S35: 33 | T35: 6.2 | U35: 10 | W35: 33 | X35: 6 | Y35: 18 | AA35: 33 | AB35: 12.2 | AC35: 16
A36: 35 | B36: 1135 | L36: 0 | M36: 0 | N36: 0 | S36: 34 | T36: 5.6 | U36: 30 | W36: 34 | X36: 6.6 | Y36: 7 | AA36: 34 | AB36: 12.2 | AC36: 16
A37: 36 | B37: 1136 | L37: 0 | M37: 0 | N37: 0 | S37: 35 | T37: 4.8 | U37: 42 | W37: 35 | X37: 6 | Y37: 18 | AA37: 35 | AB37: 10.8 | AC37: 38
A38: 37 | B38: 1137 | L38: 0 | M38: 0 | N38: 0 | S38: 36 | T38: 5.2 | U38: 37 | W38: 36 | X38: 6 | Y38: 18 | AA38: 36 | AB38: 11.2 | AC38: 33
A39: 38 | B39: 1138 | L39: 0 | M39: 0 | N39: 0 | S39: 37 | T39: 6.8 | U39: 1 | W39: 37 | X39: 7.2 | Y39: 3 | AA39: 37 | AB39: 14 | AC39: 1
A40: 39 | B40: 1139 | L40: 0 | M40: 0 | N40: 0 | S40: 38 | T40: 6.2 | U40: 10 | W40: 38 | X40: 6.8 | Y40: 5 | AA40: 38 | AB40: 13 | AC40: 8
A41: 40 | B41: 1140 | L41: 0 | M41: 0 | N41: 0 | S41: 39 | T41: 5.6 | U41: 30 | W41: 39 | X41: 5 | Y41: 42 | AA41: 39 | AB41: 10.6 | AC41: 41
A42: 41 | B42: 1141 | L42: 0 | M42: 0 | N42: 0 | S42: 40 | T42: 5.2 | U42: 37 | W42: 40 | X42: 5.8 | Y42: 26 | AA42: 40 | AB42: 11 | AC42: 36
A43: 42 | B43: 1142 | L43: 0 | M43: 0 | N43: 0 | S43: 41 | T43: 6 | U43: 18 | W43: 41 | X43: 5.6 | Y43: 33 | AA43: 41 | AB43: 11.6 | AC43: 27
A44: 43 | B44: 1143 | L44: 0 | M44: 0 | N44: 0 | S44: 42 | T44: 6.8 | U44: 1 | W44: 42 | X44: 6.6 | Y44: 7 | AA44: 42 | AB44: 13.4 | AC44: 2
A45: 44 | B45: 1144 | L45: 0 | M45: 0 | N45: 0 | S45: 43 | T45: 5.6 | U45: 30 | W45: 43 | X45: 5.6 | Y45: 33 | AA45: 43 | AB45: 11.2 | AC45: 33
A46: 45 | B46: 1145 | L46: 0 | M46: 0 | N46: 0 | S46: 44 | T46: 5.8 | U46: 25 | W46: 44 | X46: 5.4 | Y46: 37 | AA46: 44 | AB46: 11.2 | AC46: 33
K47: 平均 | L47: =IF(SUM(L2:L46)=0,0,AVERAGEIF(L2:L46,">0")) -> 6 | M47: =IF(SUM(M2:M46)=0,0,AVERAGEIF(M2:M46,">0")) -> 5.6 | N47: =IF(SUM(N2:N46)=0,0,AVERAGEIF(N2:N46,">0")) -> 11.6 | S47: 45 | T47: 6 | U47: 18 | W47: 45 | X47: 5 | Y47: 42 | AA47: 45 | AB47: 11 | AC47: =_xlfn.RANK.EQ(AB47,$AB$3:$AB$47) -> 36

Sheet 12s
A1: 連番 | B1: HRNO | C1: 名前 | D1: 列１ | E1: 列２ | F1: 列３ | G1: 列４ | H1: 列５ | I1: 列６ | J1: 感想 | L1: 発表 | M1: 制作 | N1: 総計 | P1: class | Q1: =集計!Q1 -> 11 | S1: 発表 | W1: 制作物 | AA1: 総合
A2: 1 | B2: =$Q$1*100+A2 -> 1101 | C2: =INDIRECT($B2&"!I2") -> 情報太郎 | D2: =INDIRECT($B2&"!"&$Q$4&$Q$3+5) -> 1 | E2: =INDIRECT($B2&"!"&$Q$5&$Q$3+5) -> 2 | F2: =INDIRECT($B2&"!"&$Q$6&$Q$3+5) -> 1 | G2: =INDIRECT($B2&"!"&$Q$7&$Q$3+5) -> 2 | H2: =INDIRECT($B2&"!"&$Q$8&$Q$3+5) -> 1 | I2: =INDIRECT($B2&"!"&$Q$9&$Q$3+5) -> 1 | J2: =INDIRECT($B2&"!"&$Q$10&$Q$3+5) -> 1番12番への感想 | L2: =SUMIF(D2:F2,">=0") -> 4 | M2: =SUMIF(G2:I2,">=0") -> 4 | N2: =SUMIF(D2:I2,">=0") -> 8 | S2: 番号 | T2: 平均 | U2: 順位 | W2: 番号 | X2: 平均 | Y2: 順位 | AA2: 番号 | AB2: 平均 | AC2: 順位
A3: 2 | B3: 1102 | C3: =INDIRECT($B3&"!I2") -> 情報次郎 | D3: =INDIRECT($B3&"!"&$Q$4&$Q$3+5) -> 1 | E3: =INDIRECT($B3&"!"&$Q$5&$Q$3+5) -> 2 | F3: =INDIRECT($B3&"!"&$Q$6&$Q$3+5) -> 3 | G3: =INDIRECT($B3&"!"&$Q$7&$Q$3+5) -> 2 | H3: =INDIRECT($B3&"!"&$Q$8&$Q$3+5) -> 1 | I3: =INDIRECT($B3&"!"&$Q$9&$Q$3+5) -> 2 | J3: =INDIRECT($B3&"!"&$Q$10&$Q$3+5) -> 2番12番への感想 | L3: 6 | M3: 5 | N3: 11 | P3: No | Q3: 12 | S3: 1 | T3: =INDIRECT($S3&"s!L47") -> 3 | U3: =_xlfn.RANK.EQ(T3,$T$3:$T$47) -> 45 | W3: 1 | X3: =INDIRECT($S3&"s!M47") -> 3 | Y3: =_xlfn.RANK.EQ(X3,$X$3:$X$47) -> 45 | AA3: 1 | AB3: =INDIRECT($S3&"s!N47") -> 6 | AC3: =_xlfn.RANK.EQ(AB3,$AB$3:$AB$47) -> 45
A4: 3 | B4: 1103 | C4: 情報三郎 | D4: =INDIRECT($B4&"!"&$Q$4&$Q$3+5) -> 1 | E4: 3 | F4: 3 | G4: 1 | H4: 2 | I4: 3 | J4: 3番12番への感想 | L4: 7 | M4: 6 | N4: 13 | P4: 列２ | Q4: C | S4: 2 | T4: =INDIRECT($S4&"s!L47") -> 6.2 | U4: =_xlfn.RANK.EQ(T4,$T$3:$T$47) -> 10 | W4: 2 | X4: =INDIRECT($S4&"s!M47") -> 6 | Y4: =_xlfn.RANK.EQ(X4,$X$3:$X$47) -> 18 | AA4: 2 | AB4: =INDIRECT($S4&"s!N47") -> 12.2 | AC4: =_xlfn.RANK.EQ(AB4,$AB$3:$AB$47) -> 16
A5: 4 | B5: 1104 | C5: 情報四郎 | D5: =INDIRECT($B5&"!"&$Q$4&$Q$3+5) -> 1 | E5: 2 | F5: 1 | G5: 2 | H5: 2 | I5: 2 | J5: 4番12番への感想 | L5: 4 | M5: 6 | N5: 10 | P5: 列３ | Q5: D | S5: 3 | T5: 6 | U5: 18 | W5: 3 | X5: 6.2 | Y5: 14 | AA5: 3 | AB5: 12.2 | AC5: 16
A6: 5 | B6: 1105 | C6: 情報五郎 | D6: =INDIRECT($B6&"!"&$Q$4&$Q$3+5) -> 2 | E6: 2 | F6: 1 | G6: 1 | H6: 1 | I6: 3 | J6: 5番12番への感想 | L6: 5 | M6: 5 | N6: 10 | P6: 列４ | Q6: E | S6: 4 | T6: 4 | U6: 44 | W6: 4 | X6: 8 | Y6: 1 | AA6: 4 | AB6: 12 | AC6: 21
A7: 6 | B7: 1106 | C7: =INDIRECT($B7&"!H1") ->  | L7: 0 | M7: 0 | N7: 0 | P7: 列５ | Q7: F | S7: 5 | T7: 6 | U7: 18 | W7: 5 | X7: 6 | Y7: 18 | AA7: 5 | AB7: 12 | AC7: 21
A8: 7 | B8: 1107 | L8: 0 | M8: 0 | N8: 0 | P8: 列６ | Q8: G | S8: 6 | T8: 6.8 | U8: 1 | W8: 6 | X8: 5.8 | Y8: 26 | AA8: 6 | AB8: 12.6 | AC8: 10
A9: 8 | B9: 1108 | L9: 0 | M9: 0 | N9: 0 | P9: 列７ | Q9: H | S9: 7 | T9: 5 | U9: 40 | W9: 7 | X9: 5.8 | Y9: 26 | AA9: 7 | AB9: 10.8 | AC9: 38
A10: 9 | B10: 1109 | L10: 0 | M10: 0 | N10: 0 | P10: 列８ | Q10: I | S10: 8 | T10: 6.2 | U10: 10 | W10: 8 | X10: 6.4 | Y10: 10 | AA10: 8 | AB10: 12.6 | AC10: 10
A11: 10 | B11: 1110 | L11: 0 | M11: 0 | N11: 0 | S11: 9 | T11: 5.6 | U11: 30 | W11: 9 | X11: 6 | Y11: 18 | AA11: 9 | AB11: 11.6 | AC11: 27
A12: 11 | B12: 1111 | L12: 0 | M12: 0 | N12: 0 | S12: 10 | T12: 6.6 | U12: 7 | W12: 10 | X12: 6.6 | Y12: 7 | AA12: 10 | AB12: 13.2 | AC12: 3
A13: 12 | B13: 1112 | L13: 0 | M13: 0 | N13: 0 | S13: 11 | T13: 6 | U13: 18 | W13: 11 | X13: 5.6 | Y13: 33 | AA13: 11 | AB13: 11.6 | AC13: 27
A14: 13 | B14: 1113 | L14: 0 | M14: 0 | N14: 0 | S14: 12 | T14: 5.2 | U14: 37 | W14: 12 | X14: 5.2 | Y14: 38 | AA14: 12 | AB14: 10.4 | AC14: 42
A15: 14 | B15: 1114 | L15: 0 | M15: 0 | N15: 0 | S15: 13 | T15: 6.8 | U15: 1 | W15: 13 | X15: 6.4 | Y15: 10 | AA15: 13 | AB15: 13.2 | AC15: 3
A16: 15 | B16: 1115 | L16: 0 | M16: 0 | N16: 0 | S16: 14 | T16: 5 | U16: 40 | W16: 14 | X16: 5 | Y16: 42 | AA16: 14 | AB16: 10 | AC16: 43
A17: 16 | B17: 1116 | L17: 0 | M17: 0 | N17: 0 | S17: 15 | T17: 5.6 | U17: 30 | W17: 15 | X17: 7.6 | Y17: 2 | AA17: 15 | AB17: 13.2 | AC17: 3
A18: 17 | B18: 1117 | L18: 0 | M18: 0 | N18: 0 | S18: 16 | T18: 6.2 | U18: 10 | W18: 16 | X18: 6.2 | Y18: 14 | AA18: 16 | AB18: 12.4 | AC18: 12
A19: 18 | B19: 1118 | L19: 0 | M19: 0 | N19: 0 | S19: 17 | T19: 6.2 | U19: 10 | W19: 17 | X19: 5.8 | Y19: 26 | AA19: 17 | AB19: 12 | AC19: 21
A20: 19 | B20: 1119 | L20: 0 | M20: 0 | N20: 0 | S20: 18 | T20: 6.2 | U20: 10 | W20: 18 | X20: 5.8 | Y20: 26 | AA20: 18 | AB20: 12 | AC20: 21
A21: 20 | B21: 1120 | L21: 0 | M21: 0 | N21: 0 | S21: 19 | T21: 5.8 | U21: 25 | W21: 19 | X21: 6.2 | Y21: 14 | AA21: 19 | AB21: 12 | AC21: 21
A22: 21 | B22: 1121 | L22: 0 | M22: 0 | N22: 0 | S22: 20 | T22: 4.6 | U22: 43 | W22: 20 | X22: 5.2 | Y22: 38 | AA22: 20 | AB22: 9.8 | AC22: 44
A23: 22 | B23: 1122 | L23: 0 | M23: 0 | N23: 0 | S23: 21 | T23: 6.8 | U23: 1 | W23: 21 | X23: 6.4 | Y23: 10 | AA23: 21 | AB23: 13.2 | AC23: 3
A24: 23 | B24: 1123 | L24: 0 | M24: 0 | N24: 0 | S24: 22 | T24: 6.4 | U24: 8 | W24: 22 | X24: 6.8 | Y24: 5 | AA24: 22 | AB24: 13.2 | AC24: 3
A25: 24 | B25: 1124 | L25: 0 | M25: 0 | N25: 0 | S25: 23 | T25: 6 | U25: 18 | W25: 23 | X25: 6.4 | Y25: 10 | AA25: 23 | AB25: 12.4 | AC25: 12
A26: 25 | B26: 1125 | L26: 0 | M26: 0 | N26: 0 | S26: 24 | T26: 6.4 | U26: 8 | W26: 24 | X26: 6 | Y26: 18 | AA26: 24 | AB26: 12.4 | AC26: 12
A27: 26 | B27: 1126 | L27: 0 | M27: 0 | N27: 0 | S27: 25 | T27: 5.6 | U27: 30 | W27: 25 | X27: 5.8 | Y27: 26 | AA27: 25 | AB27: 11.4 | AC27: 31
A28: 27 | B28: 1127 | L28: 0 | M28: 0 | N28: 0 | S28: 26 | T28: 6.8 | U28: 1 | W28: 26 | X28: 5.6 | Y28: 33 | AA28: 26 | AB28: 12.4 | AC28: 12
A29: 28 | B29: 1128 | L29: 0 | M29: 0 | N29: 0 | S29: 27 | T29: 5.8 | U29: 25 | W29: 27 | X29: 6 | Y29: 18 | AA29: 27 | AB29: 11.8 | AC29: 26
A30: 29 | B30: 1129 | L30: 0 | M30: 0 | N30: 0 | S30: 28 | T30: 5.8 | U30: 25 | W30: 28 | X30: 5.8 | Y30: 26 | AA30: 28 | AB30: 11.6 | AC30: 27
A31: 30 | B31: 1130 | L31: 0 | M31: 0 | N31: 0 | S31: 29 | T31: 5.8 | U31: 25 | W31: 29 | X31: 7.2 | Y31: 3 | AA31: 29 | AB31: 13 | AC31: 8
A32: 31 | B32: 1131 | L32: 0 | M32: 0 | N32: 0 | S32: 30 | T32: 6 | U32: 18 | W32: 30 | X32: 6.2 | Y32: 14 | AA32: 30 | AB32: 12.2 | AC32: 16
A33: 32 | B33: 1132 | L33: 0 | M33: 0 | N33: 0 | S33: 31 | T33: 6.2 | U33: 10 | W33: 31 | X33: 5.2 | Y33: 38 | AA33: 31 | AB33: 11.4 | AC33: 31
A34: 33 | B34: 1133 | L34: 0 | M34: 0 | N34: 0 | S34: 32 | T34: 5.6 | U34: 30 | W34: 32 | X34: 5.2 | Y34: 38 | AA34: 32 | AB34: 10.8 | AC34: 38
A35: 34 | B35: 1134 | L35: 0 | M35: 0 | N35: 0 | S35: 33 | T35: 6.2 | U35: 10 | W35: 33 | X35: 6 | Y35: 18 | AA35: 33 | AB35: 12.2 | AC35: 16
A36: 35 | B36: 1135 | L36: 0 | M36: 0 | N36: 0 | S36: 34 | T36: 5.6 | U36: 30 | W36: 34 | X36: 6.6 | Y36: 7 | AA36: 34 | AB36: 12.2 | AC36: 16
A37: 36 | B37: 1136 | L37: 0 | M37: 0 | N37: 0 | S37: 35 | T37: 4.8 | U37: 42 | W37: 35 | X37: 6 | Y37: 18 | AA37: 35 | AB37: 10.8 | AC37: 38
A38: 37 | B38: 1137 | L38: 0 | M38: 0 | N38: 0 | S38: 36 | T38: 5.2 | U38: 37 | W38: 36 | X38: 6 | Y38: 18 | AA38: 36 | AB38: 11.2 | AC38: 33
A39: 38 | B39: 1138 | L39: 0 | M39: 0 | N39: 0 | S39: 37 | T39: 6.8 | U39: 1 | W39: 37 | X39: 7.2 | Y39: 3 | AA39: 37 | AB39: 14 | AC39: 1
A40: 39 | B40: 1139 | L40: 0 | M40: 0 | N40: 0 | S40: 38 | T40: 6.2 | U40: 10 | W40: 38 | X40: 6.8 | Y40: 5 | AA40: 38 | AB40: 13 | AC40: 8
A41: 40 | B41: 1140 | L41: 0 | M41: 0 | N41: 0 | S41: 39 | T41: 5.6 | U41: 30 | W41: 39 | X41: 5 | Y41: 42 | AA41: 39 | AB41: 10.6 | AC41: 41
A42: 41 | B42: 1141 | L42: 0 | M42: 0 | N42: 0 | S42: 40 | T42: 5.2 | U42: 37 | W42: 40 | X42: 5.8 | Y42: 26 | AA42: 40 | AB42: 11 | AC42: 36
A43: 42 | B43: 1142 | L43: 0 | M43: 0 | N43: 0 | S43: 41 | T43: 6 | U43: 18 | W43: 41 | X43: 5.6 | Y43: 33 | AA43: 41 | AB43: 11.6 | AC43: 27
A44: 43 | B44: 1143 | L44: 0 | M44: 0 | N44: 0 | S44: 42 | T44: 6.8 | U44: 1 | W44: 42 | X44: 6.6 | Y44: 7 | AA44: 42 | AB44: 13.4 | AC44: 2
A45: 44 | B45: 1144 | L45: 0 | M45: 0 | N45: 0 | S45: 43 | T45: 5.6 | U45: 30 | W45: 43 | X45: 5.6 | Y45: 33 | AA45: 43 | AB45: 11.2 | AC45: 33
A46: 45 | B46: 1145 | L46: 0 | M46: 0 | N46: 0 | S46: 44 | T46: 5.8 | U46: 25 | W46: 44 | X46: 5.4 | Y46: 37 | AA46: 44 | AB46: 11.2 | AC46: 33
K47: 平均 | L47: =IF(SUM(L2:L46)=0,0,AVERAGEIF(L2:L46,">0")) -> 5.2 | M47: =IF(SUM(M2:M46)=0,0,AVERAGEIF(M2:M46,">0")) -> 5.2 | N47: =IF(SUM(N2:N46)=0,0,AVERAGEIF(N2:N46,">0")) -> 10.4 | S47: 45 | T47: 6 | U47: 18 | W47: 45 | X47: 5 | Y47: 42 | AA47: 45 | AB47: 11 | AC47: =_xlfn.RANK.EQ(AB47,$AB$3:$AB$47) -> 36

Sheet 13s
A1: 連番 | B1: HRNO | C1: 名前 | D1: 列１ | E1: 列２ | F1: 列３ | G1: 列４ | H1: 列５ | I1: 列６ | J1: 感想 | L1: 発表 | M1: 制作 | N1: 総計 | P1: class | Q1: =集計!Q1 -> 11 | S1: 発表 | W1: 制作物 | AA1: 総合
A2: 1 | B2: =$Q$1*100+A2 -> 1101 | C2: =INDIRECT($B2&"!I2") -> 情報太郎 | D2: =INDIRECT($B2&"!"&$Q$4&$Q$3+5) -> 1 | E2: =INDIRECT($B2&"!"&$Q$5&$Q$3+5) -> 2 | F2: =INDIRECT($B2&"!"&$Q$6&$Q$3+5) -> 3 | G2: =INDIRECT($B2&"!"&$Q$7&$Q$3+5) -> 3 | H2: =INDIRECT($B2&"!"&$Q$8&$Q$3+5) -> 1 | I2: =INDIRECT($B2&"!"&$Q$9&$Q$3+5) -> 1 | J2: =INDIRECT($B2&"!"&$Q$10&$Q$3+5) -> 1番13番への感想 | L2: =SUMIF(D2:F2,">=0") -> 6 | M2: =SUMIF(G2:I2,">=0") -> 5 | N2: =SUMIF(D2:I2,">=0") -> 11 | S2: 番号 | T2: 平均 | U2: 順位 | W2: 番号 | X2: 平均 | Y2: 順位 | AA2: 番号 | AB2: 平均 | AC2: 順位
A3: 2 | B3: 1102 | C3: =INDIRECT($B3&"!I2") -> 情報次郎 | D3: =INDIRECT($B3&"!"&$Q$4&$Q$3+5) -> 3 | E3: =INDIRECT($B3&"!"&$Q$5&$Q$3+5) -> 2 | F3: =INDIRECT($B3&"!"&$Q$6&$Q$3+5) -> 2 | G3: =INDIRECT($B3&"!"&$Q$7&$Q$3+5) -> 3 | H3: =INDIRECT($B3&"!"&$Q$8&$Q$3+5) -> 3 | I3: =INDIRECT($B3&"!"&$Q$9&$Q$3+5) -> 1 | J3: =INDIRECT($B3&"!"&$Q$10&$Q$3+5) -> 2番13番への感想 | L3: 7 | M3: 7 | N3: 14 | P3: No | Q3: 13 | S3: 1 | T3: =INDIRECT($S3&"s!L47") -> 3 | U3: =_xlfn.RANK.EQ(T3,$T$3:$T$47) -> 45 | W3: 1 | X3: =INDIRECT($S3&"s!M47") -> 3 | Y3: =_xlfn.RANK.EQ(X3,$X$3:$X$47) -> 45 | AA3: 1 | AB3: =INDIRECT($S3&"s!N47") -> 6 | AC3: =_xlfn.RANK.EQ(AB3,$AB$3:$AB$47) -> 45
A4: 3 | B4: 1103 | C4: 情報三郎 | D4: =INDIRECT($B4&"!"&$Q$4&$Q$3+5) -> 2 | E4: 3 | F4: 3 | G4: 2 | H4: 1 | I4: 3 | J4: 3番13番への感想 | L4: 8 | M4: 6 | N4: 14 | P4: 列２ | Q4: C | S4: 2 | T4: =INDIRECT($S4&"s!L47") -> 6.2 | U4: =_xlfn.RANK.EQ(T4,$T$3:$T$47) -> 10 | W4: 2 | X4: =INDIRECT($S4&"s!M47") -> 6 | Y4: =_xlfn.RANK.EQ(X4,$X$3:$X$47) -> 18 | AA4: 2 | AB4: =INDIRECT($S4&"s!N47") -> 12.2 | AC4: =_xlfn.RANK.EQ(AB4,$AB$3:$AB$47) -> 16
A5: 4 | B5: 1104 | C5: 情報四郎 | D5: =INDIRECT($B5&"!"&$Q$4&$Q$3+5) -> 3 | E5: 1 | F5: 3 | G5: 3 | H5: 2 | I5: 3 | J5: 4番13番への感想 | L5: 7 | M5: 8 | N5: 15 | P5: 列３ | Q5: D | S5: 3 | T5: 6 | U5: 18 | W5: 3 | X5: 6.2 | Y5: 14 | AA5: 3 | AB5: 12.2 | AC5: 16
A6: 5 | B6: 1105 | C6: 情報五郎 | D6: =INDIRECT($B6&"!"&$Q$4&$Q$3+5) -> 1 | E6: 2 | F6: 3 | G6: 2 | H6: 3 | I6: 1 | J6: 5番13番への感想 | L6: 6 | M6: 6 | N6: 12 | P6: 列４ | Q6: E | S6: 4 | T6: 4 | U6: 44 | W6: 4 | X6: 8 | Y6: 1 | AA6: 4 | AB6: 12 | AC6: 21
A7: 6 | B7: 1106 | C7: =INDIRECT($B7&"!H1") ->  | L7: 0 | M7: 0 | N7: 0 | P7: 列５ | Q7: F | S7: 5 | T7: 6 | U7: 18 | W7: 5 | X7: 6 | Y7: 18 | AA7: 5 | AB7: 12 | AC7: 21
A8: 7 | B8: 1107 | L8: 0 | M8: 0 | N8: 0 | P8: 列６ | Q8: G | S8: 6 | T8: 6.8 | U8: 1 | W8: 6 | X8: 5.8 | Y8: 26 | AA8: 6 | AB8: 12.6 | AC8: 10
A9: 8 | B9: 1108 | L9: 0 | M9: 0 | N9: 0 | P9: 列７ | Q9: H | S9: 7 | T9: 5 | U9: 40 | W9: 7 | X9: 5.8 | Y9: 26 | AA9: 7 | AB9: 10.8 | AC9: 38
A10: 9 | B10: 1109 | L10: 0 | M10: 0 | N10: 0 | P10: 列８ | Q10: I | S10: 8 | T10: 6.2 | U10: 10 | W10: 8 | X10: 6.4 | Y10: 10 | AA10: 8 | AB10: 12.6 | AC10: 10
A11: 10 | B11: 1110 | L11: 0 | M11: 0 | N11: 0 | S11: 9 | T11: 5.6 | U11: 30 | W11: 9 | X11: 6 | Y11: 18 | AA11: 9 | AB11: 11.6 | AC11: 27
A12: 11 | B12: 1111 | L12: 0 | M12: 0 | N12: 0 | S12: 10 | T12: 6.6 | U12: 7 | W12: 10 | X12: 6.6 | Y12: 7 | AA12: 10 | AB12: 13.2 | AC12: 3
A13: 12 | B13: 1112 | L13: 0 | M13: 0 | N13: 0 | S13: 11 | T13: 6 | U13: 18 | W13: 11 | X13: 5.6 | Y13: 33 | AA13: 11 | AB13: 11.6 | AC13: 27
A14: 13 | B14: 1113 | L14: 0 | M14: 0 | N14: 0 | S14: 12 | T14: 5.2 | U14: 37 | W14: 12 | X14: 5.2 | Y14: 38 | AA14: 12 | AB14: 10.4 | AC14: 42
A15: 14 | B15: 1114 | L15: 0 | M15: 0 | N15: 0 | S15: 13 | T15: 6.8 | U15: 1 | W15: 13 | X15: 6.4 | Y15: 10 | AA15: 13 | AB15: 13.2 | AC15: 3
A16: 15 | B16: 1115 | L16: 0 | M16: 0 | N16: 0 | S16: 14 | T16: 5 | U16: 40 | W16: 14 | X16: 5 | Y16: 42 | AA16: 14 | AB16: 10 | AC16: 43
A17: 16 | B17: 1116 | L17: 0 | M17: 0 | N17: 0 | S17: 15 | T17: 5.6 | U17: 30 | W17: 15 | X17: 7.6 | Y17: 2 | AA17: 15 | AB17: 13.2 | AC17: 3
A18: 17 | B18: 1117 | L18: 0 | M18: 0 | N18: 0 | S18: 16 | T18: 6.2 | U18: 10 | W18: 16 | X18: 6.2 | Y18: 14 | AA18: 16 | AB18: 12.4 | AC18: 12
A19: 18 | B19: 1118 | L19: 0 | M19: 0 | N19: 0 | S19: 17 | T19: 6.2 | U19: 10 | W19: 17 | X19: 5.8 | Y19: 26 | AA19: 17 | AB19: 12 | AC19: 21
A20: 19 | B20: 1119 | L20: 0 | M20: 0 | N20: 0 | S20: 18 | T20: 6.2 | U20: 10 | W20: 18 | X20: 5.8 | Y20: 26 | AA20: 18 | AB20: 12 | AC20: 21
A21: 20 | B21: 1120 | L21: 0 | M21: 0 | N21: 0 | S21: 19 | T21: 5.8 | U21: 25 | W21: 19 | X21: 6.2 | Y21: 14 | AA21: 19 | AB21: 12 | AC21: 21
A22: 21 | B22: 1121 | L22: 0 | M22: 0 | N22: 0 | S22: 20 | T22: 4.6 | U22: 43 | W22: 20 | X22: 5.2 | Y22: 38 | AA22: 20 | AB22: 9.8 | AC22: 44
A23: 22 | B23: 1122 | L23: 0 | M23: 0 | N23: 0 | S23: 21 | T23: 6.8 | U23: 1 | W23: 21 | X23: 6.4 | Y23: 10 | AA23: 21 | AB23: 13.2 | AC23: 3
A24: 23 | B24: 1123 | L24: 0 | M24: 0 | N24: 0 | S24: 22 | T24: 6.4 | U24: 8 | W24: 22 | X24: 6.8 | Y24: 5 | AA24: 22 | AB24: 13.2 | AC24: 3
A25: 24 | B25: 1124 | L25: 0 | M25: 0 | N25: 0 | S25: 23 | T25: 6 | U25: 18 | W25: 23 | X25: 6.4 | Y25: 10 | AA25: 23 | AB25: 12.4 | AC25: 12
A26: 25 | B26: 1125 | L26: 0 | M26: 0 | N26: 0 | S26: 24 | T26: 6.4 | U26: 8 | W26: 24 | X26: 6 | Y26: 18 | AA26: 24 | AB26: 12.4 | AC26: 12
A27: 26 | B27: 1126 | L27: 0 | M27: 0 | N27: 0 | S27: 25 | T27: 5.6 | U27: 30 | W27: 25 | X27: 5.8 | Y27: 26 | AA27: 25 | AB27: 11.4 | AC27: 31
A28: 27 | B28: 1127 | L28: 0 | M28: 0 | N28: 0 | S28: 26 | T28: 6.8 | U28: 1 | W28: 26 | X28: 5.6 | Y28: 33 | AA28: 26 | AB28: 12.4 | AC28: 12
A29: 28 | B29: 1128 | L29: 0 | M29: 0 | N29: 0 | S29: 27 | T29: 5.8 | U29: 25 | W29: 27 | X29: 6 | Y29: 18 | AA29: 27 | AB29: 11.8 | AC29: 26
A30: 29 | B30: 1129 | L30: 0 | M30: 0 | N30: 0 | S30: 28 | T30: 5.8 | U30: 25 | W30: 28 | X30: 5.8 | Y30: 26 | AA30: 28 | AB30: 11.6 | AC30: 27
A31: 30 | B31: 1130 | L31: 0 | M31: 0 | N31: 0 | S31: 29 | T31: 5.8 | U31: 25 | W31: 29 | X31: 7.2 | Y31: 3 | AA31: 29 | AB31: 13 | AC31: 8
A32: 31 | B32: 1131 | L32: 0 | M32: 0 | N32: 0 | S32: 30 | T32: 6 | U32: 18 | W32: 30 | X32: 6.2 | Y32: 14 | AA32: 30 | AB32: 12.2 | AC32: 16
A33: 32 | B33: 1132 | L33: 0 | M33: 0 | N33: 0 | S33: 31 | T33: 6.2 | U33: 10 | W33: 31 | X33: 5.2 | Y33: 38 | AA33: 31 | AB33: 11.4 | AC33: 31
A34: 33 | B34: 1133 | L34: 0 | M34: 0 | N34: 0 | S34: 32 | T34: 5.6 | U34: 30 | W34: 32 | X34: 5.2 | Y34: 38 | AA34: 32 | AB34: 10.8 | AC34: 38
A35: 34 | B35: 1134 | L35: 0 | M35: 0 | N35: 0 | S35: 33 | T35: 6.2 | U35: 10 | W35: 33 | X35: 6 | Y35: 18 | AA35: 33 | AB35: 12.2 | AC35: 16
A36: 35 | B36: 1135 | L36: 0 | M36: 0 | N36: 0 | S36: 34 | T36: 5.6 | U36: 30 | W36: 34 | X36: 6.6 | Y36: 7 | AA36: 34 | AB36: 12.2 | AC36: 16
A37: 36 | B37: 1136 | L37: 0 | M37: 0 | N37: 0 | S37: 35 | T37: 4.8 | U37: 42 | W37: 35 | X37: 6 | Y37: 18 | AA37: 35 | AB37: 10.8 | AC37: 38
A38: 37 | B38: 1137 | L38: 0 | M38: 0 | N38: 0 | S38: 36 | T38: 5.2 | U38: 37 | W38: 36 | X38: 6 | Y38: 18 | AA38: 36 | AB38: 11.2 | AC38: 33
A39: 38 | B39: 1138 | L39: 0 | M39: 0 | N39: 0 | S39: 37 | T39: 6.8 | U39: 1 | W39: 37 | X39: 7.2 | Y39: 3 | AA39: 37 | AB39: 14 | AC39: 1
A40: 39 | B40: 1139 | L40: 0 | M40: 0 | N40: 0 | S40: 38 | T40: 6.2 | U40: 10 | W40: 38 | X40: 6.8 | Y40: 5 | AA40: 38 | AB40: 13 | AC40: 8
A41: 40 | B41: 1140 | L41: 0 | M41: 0 | N41: 0 | S41: 39 | T41: 5.6 | U41: 30 | W41: 39 | X41: 5 | Y41: 42 | AA41: 39 | AB41: 10.6 | AC41: 41
A42: 41 | B42: 1141 | L42: 0 | M42: 0 | N42: 0 | S42: 40 | T42: 5.2 | U42: 37 | W42: 40 | X42: 5.8 | Y42: 26 | AA42: 40 | AB42: 11 | AC42: 36
A43: 42 | B43: 1142 | L43: 0 | M43: 0 | N43: 0 | S43: 41 | T43: 6 | U43: 18 | W43: 41 | X43: 5.6 | Y43: 33 | AA43: 41 | AB43: 11.6 | AC43: 27
A44: 43 | B44: 1143 | L44: 0 | M44: 0 | N44: 0 | S44: 42 | T44: 6.8 | U44: 1 | W44: 42 | X44: 6.6 | Y44: 7 | AA44: 42 | AB44: 13.4 | AC44: 2
A45: 44 | B45: 1144 | L45: 0 | M45: 0 | N45: 0 | S45: 43 | T45: 5.6 | U45: 30 | W45: 43 | X45: 5.6 | Y45: 33 | AA45: 43 | AB45: 11.2 | AC45: 33
A46: 45 | B46: 1145 | L46: 0 | M46: 0 | N46: 0 | S46: 44 | T46: 5.8 | U46: 25 | W46: 44 | X46: 5.4 | Y46: 37 | AA46: 44 | AB46: 11.2 | AC46: 33
K47: 平均 | L47: =IF(SUM(L2:L46)=0,0,AVERAGEIF(L2:L46,">0")) -> 6.8 | M47: =IF(SUM(M2:M46)=0,0,AVERAGEIF(M2:M46,">0")) -> 6.4 | N47: =IF(SUM(N2:N46)=0,0,AVERAGEIF(N2:N46,">0")) -> 13.2 | S47: 45 | T47: 6 | U47: 18 | W47: 45 | X47: 5 | Y47: 42 | AA47: 45 | AB47: 11 | AC47: =_xlfn.RANK.EQ(AB47,$AB$3:$AB$47) -> 36

Sheet 14s
A1: 連番 | B1: HRNO | C1: 名前 | D1: 列１ | E1: 列２ | F1: 列３ | G1: 列４ | H1: 列５ | I1: 列６ | J1: 感想 | L1: 発表 | M1: 制作 | N1: 総計 | P1: class | Q1: =集計!Q1 -> 11 | S1: 発表 | W1: 制作物 | AA1: 総合
A2: 1 | B2: =$Q$1*100+A2 -> 1101 | C2: =INDIRECT($B2&"!I2") -> 情報太郎 | D2: =INDIRECT($B2&"!"&$Q$4&$Q$3+5) -> 1 | E2: =INDIRECT($B2&"!"&$Q$5&$Q$3+5) -> 3 | F2: =INDIRECT($B2&"!"&$Q$6&$Q$3+5) -> 2 | G2: =INDIRECT($B2&"!"&$Q$7&$Q$3+5) -> 3 | H2: =INDIRECT($B2&"!"&$Q$8&$Q$3+5) -> 2 | I2: =INDIRECT($B2&"!"&$Q$9&$Q$3+5) -> 1 | J2: =INDIRECT($B2&"!"&$Q$10&$Q$3+5) -> 1番14番への感想 | L2: =SUMIF(D2:F2,">=0") -> 6 | M2: =SUMIF(G2:I2,">=0") -> 6 | N2: =SUMIF(D2:I2,">=0") -> 12 | S2: 番号 | T2: 平均 | U2: 順位 | W2: 番号 | X2: 平均 | Y2: 順位 | AA2: 番号 | AB2: 平均 | AC2: 順位
A3: 2 | B3: 1102 | C3: =INDIRECT($B3&"!I2") -> 情報次郎 | D3: =INDIRECT($B3&"!"&$Q$4&$Q$3+5) -> 1 | E3: =INDIRECT($B3&"!"&$Q$5&$Q$3+5) -> 2 | F3: =INDIRECT($B3&"!"&$Q$6&$Q$3+5) -> 1 | G3: =INDIRECT($B3&"!"&$Q$7&$Q$3+5) -> 1 | H3: =INDIRECT($B3&"!"&$Q$8&$Q$3+5) -> 1 | I3: =INDIRECT($B3&"!"&$Q$9&$Q$3+5) -> 1 | J3: =INDIRECT($B3&"!"&$Q$10&$Q$3+5) -> 2番14番への感想 | L3: 4 | M3: 3 | N3: 7 | P3: No | Q3: 14 | S3: 1 | T3: =INDIRECT($S3&"s!L47") -> 3 | U3: =_xlfn.RANK.EQ(T3,$T$3:$T$47) -> 45 | W3: 1 | X3: =INDIRECT($S3&"s!M47") -> 3 | Y3: =_xlfn.RANK.EQ(X3,$X$3:$X$47) -> 45 | AA3: 1 | AB3: =INDIRECT($S3&"s!N47") -> 6 | AC3: =_xlfn.RANK.EQ(AB3,$AB$3:$AB$47) -> 45
A4: 3 | B4: 1103 | C4: 情報三郎 | D4: =INDIRECT($B4&"!"&$Q$4&$Q$3+5) -> 2 | E4: 3 | F4: 3 | G4: 1 | H4: 1 | I4: 3 | J4: 3番14番への感想 | L4: 8 | M4: 5 | N4: 13 | P4: 列２ | Q4: C | S4: 2 | T4: =INDIRECT($S4&"s!L47") -> 6.2 | U4: =_xlfn.RANK.EQ(T4,$T$3:$T$47) -> 10 | W4: 2 | X4: =INDIRECT($S4&"s!M47") -> 6 | Y4: =_xlfn.RANK.EQ(X4,$X$3:$X$47) -> 18 | AA4: 2 | AB4: =INDIRECT($S4&"s!N47") -> 12.2 | AC4: =_xlfn.RANK.EQ(AB4,$AB$3:$AB$47) -> 16
A5: 4 | B5: 1104 | C5: 情報四郎 | D5: =INDIRECT($B5&"!"&$Q$4&$Q$3+5) -> 1 | E5: 1 | F5: 1 | G5: 3 | H5: 2 | I5: 2 | J5: 4番14番への感想 | L5: 3 | M5: 7 | N5: 10 | P5: 列３ | Q5: D | S5: 3 | T5: 6 | U5: 18 | W5: 3 | X5: 6.2 | Y5: 14 | AA5: 3 | AB5: 12.2 | AC5: 16
A6: 5 | B6: 1105 | C6: 情報五郎 | D6: =INDIRECT($B6&"!"&$Q$4&$Q$3+5) -> 2 | E6: 1 | F6: 1 | G6: 2 | H6: 1 | I6: 1 | J6: 5番14番への感想 | L6: 4 | M6: 4 | N6: 8 | P6: 列４ | Q6: E | S6: 4 | T6: 4 | U6: 44 | W6: 4 | X6: 8 | Y6: 1 | AA6: 4 | AB6: 12 | AC6: 21
A7: 6 | B7: 1106 | C7: =INDIRECT($B7&"!H1") ->  | L7: 0 | M7: 0 | N7: 0 | P7: 列５ | Q7: F | S7: 5 | T7: 6 | U7: 18 | W7: 5 | X7: 6 | Y7: 18 | AA7: 5 | AB7: 12 | AC7: 21
A8: 7 | B8: 1107 | L8: 0 | M8: 0 | N8: 0 | P8: 列６ | Q8: G | S8: 6 | T8: 6.8 | U8: 1 | W8: 6 | X8: 5.8 | Y8: 26 | AA8: 6 | AB8: 12.6 | AC8: 10
A9: 8 | B9: 1108 | L9: 0 | M9: 0 | N9: 0 | P9: 列７ | Q9: H | S9: 7 | T9: 5 | U9: 40 | W9: 7 | X9: 5.8 | Y9: 26 | AA9: 7 | AB9: 10.8 | AC9: 38
A10: 9 | B10: 1109 | L10: 0 | M10: 0 | N10: 0 | P10: 列８ | Q10: I | S10: 8 | T10: 6.2 | U10: 10 | W10: 8 | X10: 6.4 | Y10: 10 | AA10: 8 | AB10: 12.6 | AC10: 10
A11: 10 | B11: 1110 | L11: 0 | M11: 0 | N11: 0 | S11: 9 | T11: 5.6 | U11: 30 | W11: 9 | X11: 6 | Y11: 18 | AA11: 9 | AB11: 11.6 | AC11: 27
A12: 11 | B12: 1111 | L12: 0 | M12: 0 | N12: 0 | S12: 10 | T12: 6.6 | U12: 7 | W12: 10 | X12: 6.6 | Y12: 7 | AA12: 10 | AB12: 13.2 | AC12: 3
A13: 12 | B13: 1112 | L13: 0 | M13: 0 | N13: 0 | S13: 11 | T13: 6 | U13: 18 | W13: 11 | X13: 5.6 | Y13: 33 | AA13: 11 | AB13: 11.6 | AC13: 27
A14: 13 | B14: 1113 | L14: 0 | M14: 0 | N14: 0 | S14: 12 | T14: 5.2 | U14: 37 | W14: 12 | X14: 5.2 | Y14: 38 | AA14: 12 | AB14: 10.4 | AC14: 42
A15: 14 | B15: 1114 | L15: 0 | M15: 0 | N15: 0 | S15: 13 | T15: 6.8 | U15: 1 | W15: 13 | X15: 6.4 | Y15: 10 | AA15: 13 | AB15: 13.2 | AC15: 3
A16: 15 | B16: 1115 | L16: 0 | M16: 0 | N16: 0 | S16: 14 | T16: 5 | U16: 40 | W16: 14 | X16: 5 | Y16: 42 | AA16: 14 | AB16: 10 | AC16: 43
A17: 16 | B17: 1116 | L17: 0 | M17: 0 | N17: 0 | S17: 15 | T17: 5.6 | U17: 30 | W17: 15 | X17: 7.6 | Y17: 2 | AA17: 15 | AB17: 13.2 | AC17: 3
A18: 17 | B18: 1117 | L18: 0 | M18: 0 | N18: 0 | S18: 16 | T18: 6.2 | U18: 10 | W18: 16 | X18: 6.2 | Y18: 14 | AA18: 16 | AB18: 12.4 | AC18: 12
A19: 18 | B19: 1118 | L19: 0 | M19: 0 | N19: 0 | S19: 17 | T19: 6.2 | U19: 10 | W19: 17 | X19: 5.8 | Y19: 26 | AA19: 17 | AB19: 12 | AC19: 21
A20: 19 | B20: 1119 | L20: 0 | M20: 0 | N20: 0 | S20: 18 | T20: 6.2 | U20: 10 | W20: 18 | X20: 5.8 | Y20: 26 | AA20: 18 | AB20: 12 | AC20: 21
A21: 20 | B21: 1120 | L21: 0 | M21: 0 | N21: 0 | S21: 19 | T21: 5.8 | U21: 25 | W21: 19 | X21: 6.2 | Y21: 14 | AA21: 19 | AB21: 12 | AC21: 21
A22: 21 | B22: 1121 | L22: 0 | M22: 0 | N22: 0 | S22: 20 | T22: 4.6 | U22: 43 | W22: 20 | X22: 5.2 | Y22: 38 | AA22: 20 | AB22: 9.8 | AC22: 44
A23: 22 | B23: 1122 | L23: 0 | M23: 0 | N23: 0 | S23: 21 | T23: 6.8 | U23: 1 | W23: 21 | X23: 6.4 | Y23: 10 | AA23: 21 | AB23: 13.2 | AC23: 3
A24: 23 | B24: 1123 | L24: 0 | M24: 0 | N24: 0 | S24: 22 | T24: 6.4 | U24: 8 | W24: 22 | X24: 6.8 | Y24: 5 | AA24: 22 | AB24: 13.2 | AC24: 3
A25: 24 | B25: 1124 | L25: 0 | M25: 0 | N25: 0 | S25: 23 | T25: 6 | U25: 18 | W25: 23 | X25: 6.4 | Y25: 10 | AA25: 23 | AB25: 12.4 | AC25: 12
A26: 25 | B26: 1125 | L26: 0 | M26: 0 | N26: 0 | S26: 24 | T26: 6.4 | U26: 8 | W26: 24 | X26: 6 | Y26: 18 | AA26: 24 | AB26: 12.4 | AC26: 12
A27: 26 | B27: 1126 | L27: 0 | M27: 0 | N27: 0 | S27: 25 | T27: 5.6 | U27: 30 | W27: 25 | X27: 5.8 | Y27: 26 | AA27: 25 | AB27: 11.4 | AC27: 31
A28: 27 | B28: 1127 | L28: 0 | M28: 0 | N28: 0 | S28: 26 | T28: 6.8 | U28: 1 | W28: 26 | X28: 5.6 | Y28: 33 | AA28: 26 | AB28: 12.4 | AC28: 12
A29: 28 | B29: 1128 | L29: 0 | M29: 0 | N29: 0 | S29: 27 | T29: 5.8 | U29: 25 | W29: 27 | X29: 6 | Y29: 18 | AA29: 27 | AB29: 11.8 | AC29: 26
A30: 29 | B30: 1129 | L30: 0 | M30: 0 | N30: 0 | S30: 28 | T30: 5.8 | U30: 25 | W30: 28 | X30: 5.8 | Y30: 26 | AA30: 28 | AB30: 11.6 | AC30: 27
A31: 30 | B31: 1130 | L31: 0 | M31: 0 | N31: 0 | S31: 29 | T31: 5.8 | U31: 25 | W31: 29 | X31: 7.2 | Y31: 3 | AA31: 29 | AB31: 13 | AC31: 8
A32: 31 | B32: 1131 | L32: 0 | M32: 0 | N32: 0 | S32: 30 | T32: 6 | U32: 18 | W32: 30 | X32: 6.2 | Y32: 14 | AA32: 30 | AB32: 12.2 | AC32: 16
A33: 32 | B33: 1132 | L33: 0 | M33: 0 | N33: 0 | S33: 31 | T33: 6.2 | U33: 10 | W33: 31 | X33: 5.2 | Y33: 38 | AA33: 31 | AB33: 11.4 | AC33: 31
A34: 33 | B34: 1133 | L34: 0 | M34: 0 | N34: 0 | S34: 32 | T34: 5.6 | U34: 30 | W34: 32 | X34: 5.2 | Y34: 38 | AA34: 32 | AB34: 10.8 | AC34: 38
A35: 34 | B35: 1134 | L35: 0 | M35: 0 | N35: 0 | S35: 33 | T35: 6.2 | U35: 10 | W35: 33 | X35: 6 | Y35: 18 | AA35: 33 | AB35: 12.2 | AC35: 16
A36: 35 | B36: 1135 | L36: 0 | M36: 0 | N36: 0 | S36: 34 | T36: 5.6 | U36: 30 | W36: 34 | X36: 6.6 | Y36: 7 | AA36: 34 | AB36: 12.2 | AC36: 16
A37: 36 | B37: 1136 | L37: 0 | M37: 0 | N37: 0 | S37: 35 | T37: 4.8 | U37: 42 | W37: 35 | X37: 6 | Y37: 18 | AA37: 35 | AB37: 10.8 | AC37: 38
A38: 37 | B38: 1137 | L38: 0 | M38: 0 | N38: 0 | S38: 36 | T38: 5.2 | U38: 37 | W38: 36 | X38: 6 | Y38: 18 | AA38: 36 | AB38: 11.2 | AC38: 33
A39: 38 | B39: 1138 | L39: 0 | M39: 0 | N39: 0 | S39: 37 | T39: 6.8 | U39: 1 | W39: 37 | X39: 7.2 | Y39: 3 | AA39: 37 | AB39: 14 | AC39: 1
A40: 39 | B40: 1139 | L40: 0 | M40: 0 | N40: 0 | S40: 38 | T40: 6.2 | U40: 10 | W40: 38 | X40: 6.8 | Y40: 5 | AA40: 38 | AB40: 13 | AC40: 8
A41: 40 | B41: 1140 | L41: 0 | M41: 0 | N41: 0 | S41: 39 | T41: 5.6 | U41: 30 | W41: 39 | X41: 5 | Y41: 42 | AA41: 39 | AB41: 10.6 | AC41: 41
A42: 41 | B42: 1141 | L42: 0 | M42: 0 | N42: 0 | S42: 40 | T42: 5.2 | U42: 37 | W42: 40 | X42: 5.8 | Y42: 26 | AA42: 40 | AB42: 11 | AC42: 36
A43: 42 | B43: 1142 | L43: 0 | M43: 0 | N43: 0 | S43: 41 | T43: 6 | U43: 18 | W43: 41 | X43: 5.6 | Y43: 33 | AA43: 41 | AB43: 11.6 | AC43: 27
A44: 43 | B44: 1143 | L44: 0 | M44: 0 | N44: 0 | S44: 42 | T44: 6.8 | U44: 1 | W44: 42 | X44: 6.6 | Y44: 7 | AA44: 42 | AB44: 13.4 | AC44: 2
A45: 44 | B45: 1144 | L45: 0 | M45: 0 | N45: 0 | S45: 43 | T45: 5.6 | U45: 30 | W45: 43 | X45: 5.6 | Y45: 33 | AA45: 43 | AB45: 11.2 | AC45: 33
A46: 45 | B46: 1145 | L46: 0 | M46: 0 | N46: 0 | S46: 44 | T46: 5.8 | U46: 25 | W46: 44 | X46: 5.4 | Y46: 37 | AA46: 44 | AB46: 11.2 | AC46: 33
K47: 平均 | L47: =IF(SUM(L2:L46)=0,0,AVERAGEIF(L2:L46,">0")) -> 5 | M47: =IF(SUM(M2:M46)=0,0,AVERAGEIF(M2:M46,">0")) -> 5 | N47: =IF(SUM(N2:N46)=0,0,AVERAGEIF(N2:N46,">0")) -> 10 | S47: 45 | T47: 6 | U47: 18 | W47: 45 | X47: 5 | Y47: 42 | AA47: 45 | AB47: 11 | AC47: =_xlfn.RANK.EQ(AB47,$AB$3:$AB$47) -> 36

Sheet 15s
A1: 連番 | B1: HRNO | C1: 名前 | D1: 列１ | E1: 列２ | F1: 列３ | G1: 列４ | H1: 列５ | I1: 列６ | J1: 感想 | L1: 発表 | M1: 制作 | N1: 総計 | P1: class | Q1: =集計!Q1 -> 11 | S1: 発表 | W1: 制作物 | AA1: 総合
A2: 1 | B2: =$Q$1*100+A2 -> 1101 | C2: =INDIRECT($B2&"!I2") -> 情報太郎 | D2: =INDIRECT($B2&"!"&$Q$4&$Q$3+5) -> 1 | E2: =INDIRECT($B2&"!"&$Q$5&$Q$3+5) -> 1 | F2: =INDIRECT($B2&"!"&$Q$6&$Q$3+5) -> 2 | G2: =INDIRECT($B2&"!"&$Q$7&$Q$3+5) -> 2 | H2: =INDIRECT($B2&"!"&$Q$8&$Q$3+5) -> 1 | I2: =INDIRECT($B2&"!"&$Q$9&$Q$3+5) -> 1 | J2: =INDIRECT($B2&"!"&$Q$10&$Q$3+5) -> 1番15番への感想 | L2: =SUMIF(D2:F2,">=0") -> 4 | M2: =SUMIF(G2:I2,">=0") -> 4 | N2: =SUMIF(D2:I2,">=0") -> 8 | S2: 番号 | T2: 平均 | U2: 順位 | W2: 番号 | X2: 平均 | Y2: 順位 | AA2: 番号 | AB2: 平均 | AC2: 順位
A3: 2 | B3: 1102 | C3: =INDIRECT($B3&"!I2") -> 情報次郎 | D3: =INDIRECT($B3&"!"&$Q$4&$Q$3+5) -> 2 | E3: =INDIRECT($B3&"!"&$Q$5&$Q$3+5) -> 2 | F3: =INDIRECT($B3&"!"&$Q$6&$Q$3+5) -> 1 | G3: =INDIRECT($B3&"!"&$Q$7&$Q$3+5) -> 3 | H3: =INDIRECT($B3&"!"&$Q$8&$Q$3+5) -> 3 | I3: =INDIRECT($B3&"!"&$Q$9&$Q$3+5) -> 3 | J3: =INDIRECT($B3&"!"&$Q$10&$Q$3+5) -> 2番15番への感想 | L3: 5 | M3: 9 | N3: 14 | P3: No | Q3: 15 | S3: 1 | T3: =INDIRECT($S3&"s!L47") -> 3 | U3: =_xlfn.RANK.EQ(T3,$T$3:$T$47) -> 45 | W3: 1 | X3: =INDIRECT($S3&"s!M47") -> 3 | Y3: =_xlfn.RANK.EQ(X3,$X$3:$X$47) -> 45 | AA3: 1 | AB3: =INDIRECT($S3&"s!N47") -> 6 | AC3: =_xlfn.RANK.EQ(AB3,$AB$3:$AB$47) -> 45
A4: 3 | B4: 1103 | C4: 情報三郎 | D4: =INDIRECT($B4&"!"&$Q$4&$Q$3+5) -> 2 | E4: 3 | F4: 3 | G4: 2 | H4: 3 | I4: 3 | J4: 3番15番への感想 | L4: 8 | M4: 8 | N4: 16 | P4: 列２ | Q4: C | S4: 2 | T4: =INDIRECT($S4&"s!L47") -> 6.2 | U4: =_xlfn.RANK.EQ(T4,$T$3:$T$47) -> 10 | W4: 2 | X4: =INDIRECT($S4&"s!M47") -> 6 | Y4: =_xlfn.RANK.EQ(X4,$X$3:$X$47) -> 18 | AA4: 2 | AB4: =INDIRECT($S4&"s!N47") -> 12.2 | AC4: =_xlfn.RANK.EQ(AB4,$AB$3:$AB$47) -> 16
A5: 4 | B5: 1104 | C5: 情報四郎 | D5: =INDIRECT($B5&"!"&$Q$4&$Q$3+5) -> 3 | E5: 2 | F5: 1 | G5: 2 | H5: 3 | I5: 3 | J5: 4番15番への感想 | L5: 6 | M5: 8 | N5: 14 | P5: 列３ | Q5: D | S5: 3 | T5: 6 | U5: 18 | W5: 3 | X5: 6.2 | Y5: 14 | AA5: 3 | AB5: 12.2 | AC5: 16
A6: 5 | B6: 1105 | C6: 情報五郎 | D6: =INDIRECT($B6&"!"&$Q$4&$Q$3+5) -> 1 | E6: 2 | F6: 2 | G6: 3 | H6: 3 | I6: 3 | J6: 5番15番への感想 | L6: 5 | M6: 9 | N6: 14 | P6: 列４ | Q6: E | S6: 4 | T6: 4 | U6: 44 | W6: 4 | X6: 8 | Y6: 1 | AA6: 4 | AB6: 12 | AC6: 21
A7: 6 | B7: 1106 | C7: =INDIRECT($B7&"!H1") ->  | L7: 0 | M7: 0 | N7: 0 | P7: 列５ | Q7: F | S7: 5 | T7: 6 | U7: 18 | W7: 5 | X7: 6 | Y7: 18 | AA7: 5 | AB7: 12 | AC7: 21
A8: 7 | B8: 1107 | L8: 0 | M8: 0 | N8: 0 | P8: 列６ | Q8: G | S8: 6 | T8: 6.8 | U8: 1 | W8: 6 | X8: 5.8 | Y8: 26 | AA8: 6 | AB8: 12.6 | AC8: 10
A9: 8 | B9: 1108 | L9: 0 | M9: 0 | N9: 0 | P9: 列７ | Q9: H | S9: 7 | T9: 5 | U9: 40 | W9: 7 | X9: 5.8 | Y9: 26 | AA9: 7 | AB9: 10.8 | AC9: 38
A10: 9 | B10: 1109 | L10: 0 | M10: 0 | N10: 0 | P10: 列８ | Q10: I | S10: 8 | T10: 6.2 | U10: 10 | W10: 8 | X10: 6.4 | Y10: 10 | AA10: 8 | AB10: 12.6 | AC10: 10
A11: 10 | B11: 1110 | L11: 0 | M11: 0 | N11: 0 | S11: 9 | T11: 5.6 | U11: 30 | W11: 9 | X11: 6 | Y11: 18 | AA11: 9 | AB11: 11.6 | AC11: 27
A12: 11 | B12: 1111 | L12: 0 | M12: 0 | N12: 0 | S12: 10 | T12: 6.6 | U12: 7 | W12: 10 | X12: 6.6 | Y12: 7 | AA12: 10 | AB12: 13.2 | AC12: 3
A13: 12 | B13: 1112 | L13: 0 | M13: 0 | N13: 0 | S13: 11 | T13: 6 | U13: 18 | W13: 11 | X13: 5.6 | Y13: 33 | AA13: 11 | AB13: 11.6 | AC13: 27
A14: 13 | B14: 1113 | L14: 0 | M14: 0 | N14: 0 | S14: 12 | T14: 5.2 | U14: 37 | W14: 12 | X14: 5.2 | Y14: 38 | AA14: 12 | AB14: 10.4 | AC14: 42
A15: 14 | B15: 1114 | L15: 0 | M15: 0 | N15: 0 | S15: 13 | T15: 6.8 | U15: 1 | W15: 13 | X15: 6.4 | Y15: 10 | AA15: 13 | AB15: 13.2 | AC15: 3
A16: 15 | B16: 1115 | L16: 0 | M16: 0 | N16: 0 | S16: 14 | T16: 5 | U16: 40 | W16: 14 | X16: 5 | Y16: 42 | AA16: 14 | AB16: 10 | AC16: 43
A17: 16 | B17: 1116 | L17: 0 | M17: 0 | N17: 0 | S17: 15 | T17: 5.6 | U17: 30 | W17: 15 | X17: 7.6 | Y17: 2 | AA17: 15 | AB17: 13.2 | AC17: 3
A18: 17 | B18: 1117 | L18: 0 | M18: 0 | N18: 0 | S18: 16 | T18: 6.2 | U18: 10 | W18: 16 | X18: 6.2 | Y18: 14 | AA18: 16 | AB18: 12.4 | AC18: 12
A19: 18 | B19: 1118 | L19: 0 | M19: 0 | N19: 0 | S19: 17 | T19: 6.2 | U19: 10 | W19: 17 | X19: 5.8 | Y19: 26 | AA19: 17 | AB19: 12 | AC19: 21
A20: 19 | B20: 1119 | L20: 0 | M20: 0 | N20: 0 | S20: 18 | T20: 6.2 | U20: 10 | W20: 18 | X20: 5.8 | Y20: 26 | AA20: 18 | AB20: 12 | AC20: 21
A21: 20 | B21: 1120 | L21: 0 | M21: 0 | N21: 0 | S21: 19 | T21: 5.8 | U21: 25 | W21: 19 | X21: 6.2 | Y21: 14 | AA21: 19 | AB21: 12 | AC21: 21
A22: 21 | B22: 1121 | L22: 0 | M22: 0 | N22: 0 | S22: 20 | T22: 4.6 | U22: 43 | W22: 20 | X22: 5.2 | Y22: 38 | AA22: 20 | AB22: 9.8 | AC22: 44
A23: 22 | B23: 1122 | L23: 0 | M23: 0 | N23: 0 | S23: 21 | T23: 6.8 | U23: 1 | W23: 21 | X23: 6.4 | Y23: 10 | AA23: 21 | AB23: 13.2 | AC23: 3
A24: 23 | B24: 1123 | L24: 0 | M24: 0 | N24: 0 | S24: 22 | T24: 6.4 | U24: 8 | W24: 22 | X24: 6.8 | Y24: 5 | AA24: 22 | AB24: 13.2 | AC24: 3
A25: 24 | B25: 1124 | L25: 0 | M25: 0 | N25: 0 | S25: 23 | T25: 6 | U25: 18 | W25: 23 | X25: 6.4 | Y25: 10 | AA25: 23 | AB25: 12.4 | AC25: 12
A26: 25 | B26: 1125 | L26: 0 | M26: 0 | N26: 0 | S26: 24 | T26: 6.4 | U26: 8 | W26: 24 | X26: 6 | Y26: 18 | AA26: 24 | AB26: 12.4 | AC26: 12
A27: 26 | B27: 1126 | L27: 0 | M27: 0 | N27: 0 | S27: 25 | T27: 5.6 | U27: 30 | W27: 25 | X27: 5.8 | Y27: 26 | AA27: 25 | AB27: 11.4 | AC27: 31
A28: 27 | B28: 1127 | L28: 0 | M28: 0 | N28: 0 | S28: 26 | T28: 6.8 | U28: 1 | W28: 26 | X28: 5.6 | Y28: 33 | AA28: 26 | AB28: 12.4 | AC28: 12
A29: 28 | B29: 1128 | L29: 0 | M29: 0 | N29: 0 | S29: 27 | T29: 5.8 | U29: 25 | W29: 27 | X29: 6 | Y29: 18 | AA29: 27 | AB29: 11.8 | AC29: 26
A30: 29 | B30: 1129 | L30: 0 | M30: 0 | N30: 0 | S30: 28 | T30: 5.8 | U30: 25 | W30: 28 | X30: 5.8 | Y30: 26 | AA30: 28 | AB30: 11.6 | AC30: 27
A31: 30 | B31: 1130 | L31: 0 | M31: 0 | N31: 0 | S31: 29 | T31: 5.8 | U31: 25 | W31: 29 | X31: 7.2 | Y31: 3 | AA31: 29 | AB31: 13 | AC31: 8
A32: 31 | B32: 1131 | L32: 0 | M32: 0 | N32: 0 | S32: 30 | T32: 6 | U32: 18 | W32: 30 | X32: 6.2 | Y32: 14 | AA32: 30 | AB32: 12.2 | AC32: 16
A33: 32 | B33: 1132 | L33: 0 | M33: 0 | N33: 0 | S33: 31 | T33: 6.2 | U33: 10 | W33: 31 | X33: 5.2 | Y33: 38 | AA33: 31 | AB33: 11.4 | AC33: 31
A34: 33 | B34: 1133 | L34: 0 | M34: 0 | N34: 0 | S34: 32 | T34: 5.6 | U34: 30 | W34: 32 | X34: 5.2 | Y34: 38 | AA34: 32 | AB34: 10.8 | AC34: 38
A35: 34 | B35: 1134 | L35: 0 | M35: 0 | N35: 0 | S35: 33 | T35: 6.2 | U35: 10 | W35: 33 | X35: 6 | Y35: 18 | AA35: 33 | AB35: 12.2 | AC35: 16
A36: 35 | B36: 1135 | L36: 0 | M36: 0 | N36: 0 | S36: 34 | T36: 5.6 | U36: 30 | W36: 34 | X36: 6.6 | Y36: 7 | AA36: 34 | AB36: 12.2 | AC36: 16
A37: 36 | B37: 1136 | L37: 0 | M37: 0 | N37: 0 | S37: 35 | T37: 4.8 | U37: 42 | W37: 35 | X37: 6 | Y37: 18 | AA37: 35 | AB37: 10.8 | AC37: 38
A38: 37 | B38: 1137 | L38: 0 | M38: 0 | N38: 0 | S38: 36 | T38: 5.2 | U38: 37 | W38: 36 | X38: 6 | Y38: 18 | AA38: 36 | AB38: 11.2 | AC38: 33
A39: 38 | B39: 1138 | L39: 0 | M39: 0 | N39: 0 | S39: 37 | T39: 6.8 | U39: 1 | W39: 37 | X39: 7.2 | Y39: 3 | AA39: 37 | AB39: 14 | AC39: 1
A40: 39 | B40: 1139 | L40: 0 | M40: 0 | N40: 0 | S40: 38 | T40: 6.2 | U40: 10 | W40: 38 | X40: 6.8 | Y40: 5 | AA40: 38 | AB40: 13 | AC40: 8
A41: 40 | B41: 1140 | L41: 0 | M41: 0 | N41: 0 | S41: 39 | T41: 5.6 | U41: 30 | W41: 39 | X41: 5 | Y41: 42 | AA41: 39 | AB41: 10.6 | AC41: 41
A42: 41 | B42: 1141 | L42: 0 | M42: 0 | N42: 0 | S42: 40 | T42: 5.2 | U42: 37 | W42: 40 | X42: 5.8 | Y42: 26 | AA42: 40 | AB42: 11 | AC42: 36
A43: 42 | B43: 1142 | L43: 0 | M43: 0 | N43: 0 | S43: 41 | T43: 6 | U43: 18 | W43: 41 | X43: 5.6 | Y43: 33 | AA43: 41 | AB43: 11.6 | AC43: 27
A44: 43 | B44: 1143 | L44: 0 | M44: 0 | N44: 0 | S44: 42 | T44: 6.8 | U44: 1 | W44: 42 | X44: 6.6 | Y44: 7 | AA44: 42 | AB44: 13.4 | AC44: 2
A45: 44 | B45: 1144 | L45: 0 | M45: 0 | N45: 0 | S45: 43 | T45: 5.6 | U45: 30 | W45: 43 | X45: 5.6 | Y45: 33 | AA45: 43 | AB45: 11.2 | AC45: 33
A46: 45 | B46: 1145 | L46: 0 | M46: 0 | N46: 0 | S46: 44 | T46: 5.8 | U46: 25 | W46: 44 | X46: 5.4 | Y46: 37 | AA46: 44 | AB46: 11.2 | AC46: 33
K47: 平均 | L47: =IF(SUM(L2:L46)=0,0,AVERAGEIF(L2:L46,">0")) -> 5.6 | M47: =IF(SUM(M2:M46)=0,0,AVERAGEIF(M2:M46,">0")) -> 7.6 | N47: =IF(SUM(N2:N46)=0,0,AVERAGEIF(N2:N46,">0")) -> 13.2 | S47: 45 | T47: 6 | U47: 18 | W47: 45 | X47: 5 | Y47: 42 | AA47: 45 | AB47: 11 | AC47: =_xlfn.RANK.EQ(AB47,$AB$3:$AB$47) -> 36

Sheet 16s
A1: 連番 | B1: HRNO | C1: 名前 | D1: 列１ | E1: 列２ | F1: 列３ | G1: 列４ | H1: 列５ | I1: 列６ | J1: 感想 | L1: 発表 | M1: 制作 | N1: 総計 | P1: class | Q1: =集計!Q1 -> 11 | S1: 発表 | W1: 制作物 | AA1: 総合
A2: 1 | B2: =$Q$1*100+A2 -> 1101 | C2: =INDIRECT($B2&"!I2") -> 情報太郎 | D2: =INDIRECT($B2&"!"&$Q$4&$Q$3+5) -> 1 | E2: =INDIRECT($B2&"!"&$Q$5&$Q$3+5) -> 2 | F2: =INDIRECT($B2&"!"&$Q$6&$Q$3+5) -> 3 | G2: =INDIRECT($B2&"!"&$Q$7&$Q$3+5) -> 3 | H2: =INDIRECT($B2&"!"&$Q$8&$Q$3+5) -> 2 | I2: =INDIRECT($B2&"!"&$Q$9&$Q$3+5) -> 1 | J2: =INDIRECT($B2&"!"&$Q$10&$Q$3+5) -> 1番16番への感想 | L2: =SUMIF(D2:F2,">=0") -> 6 | M2: =SUMIF(G2:I2,">=0") -> 6 | N2: =SUMIF(D2:I2,">=0") -> 12 | S2: 番号 | T2: 平均 | U2: 順位 | W2: 番号 | X2: 平均 | Y2: 順位 | AA2: 番号 | AB2: 平均 | AC2: 順位
A3: 2 | B3: 1102 | C3: =INDIRECT($B3&"!I2") -> 情報次郎 | D3: =INDIRECT($B3&"!"&$Q$4&$Q$3+5) -> 1 | E3: =INDIRECT($B3&"!"&$Q$5&$Q$3+5) -> 2 | F3: =INDIRECT($B3&"!"&$Q$6&$Q$3+5) -> 2 | G3: =INDIRECT($B3&"!"&$Q$7&$Q$3+5) -> 2 | H3: =INDIRECT($B3&"!"&$Q$8&$Q$3+5) -> 3 | I3: =INDIRECT($B3&"!"&$Q$9&$Q$3+5) -> 3 | J3: =INDIRECT($B3&"!"&$Q$10&$Q$3+5) -> 2番16番への感想 | L3: 5 | M3: 8 | N3: 13 | P3: No | Q3: 16 | S3: 1 | T3: =INDIRECT($S3&"s!L47") -> 3 | U3: =_xlfn.RANK.EQ(T3,$T$3:$T$47) -> 45 | W3: 1 | X3: =INDIRECT($S3&"s!M47") -> 3 | Y3: =_xlfn.RANK.EQ(X3,$X$3:$X$47) -> 45 | AA3: 1 | AB3: =INDIRECT($S3&"s!N47") -> 6 | AC3: =_xlfn.RANK.EQ(AB3,$AB$3:$AB$47) -> 45
A4: 3 | B4: 1103 | C4: 情報三郎 | D4: =INDIRECT($B4&"!"&$Q$4&$Q$3+5) -> 3 | E4: 2 | F4: 3 | G4: 1 | H4: 3 | I4: 1 | J4: 3番16番への感想 | L4: 8 | M4: 5 | N4: 13 | P4: 列２ | Q4: C | S4: 2 | T4: =INDIRECT($S4&"s!L47") -> 6.2 | U4: =_xlfn.RANK.EQ(T4,$T$3:$T$47) -> 10 | W4: 2 | X4: =INDIRECT($S4&"s!M47") -> 6 | Y4: =_xlfn.RANK.EQ(X4,$X$3:$X$47) -> 18 | AA4: 2 | AB4: =INDIRECT($S4&"s!N47") -> 12.2 | AC4: =_xlfn.RANK.EQ(AB4,$AB$3:$AB$47) -> 16
A5: 4 | B5: 1104 | C5: 情報四郎 | D5: =INDIRECT($B5&"!"&$Q$4&$Q$3+5) -> 3 | E5: 2 | F5: 2 | G5: 2 | H5: 2 | I5: 2 | J5: 4番16番への感想 | L5: 7 | M5: 6 | N5: 13 | P5: 列３ | Q5: D | S5: 3 | T5: 6 | U5: 18 | W5: 3 | X5: 6.2 | Y5: 14 | AA5: 3 | AB5: 12.2 | AC5: 16
A6: 5 | B6: 1105 | C6: 情報五郎 | D6: =INDIRECT($B6&"!"&$Q$4&$Q$3+5) -> 1 | E6: 1 | F6: 3 | G6: 2 | H6: 1 | I6: 3 | J6: 5番16番への感想 | L6: 5 | M6: 6 | N6: 11 | P6: 列４ | Q6: E | S6: 4 | T6: 4 | U6: 44 | W6: 4 | X6: 8 | Y6: 1 | AA6: 4 | AB6: 12 | AC6: 21
A7: 6 | B7: 1106 | C7: =INDIRECT($B7&"!H1") ->  | L7: 0 | M7: 0 | N7: 0 | P7: 列５ | Q7: F | S7: 5 | T7: 6 | U7: 18 | W7: 5 | X7: 6 | Y7: 18 | AA7: 5 | AB7: 12 | AC7: 21
A8: 7 | B8: 1107 | L8: 0 | M8: 0 | N8: 0 | P8: 列６ | Q8: G | S8: 6 | T8: 6.8 | U8: 1 | W8: 6 | X8: 5.8 | Y8: 26 | AA8: 6 | AB8: 12.6 | AC8: 10
A9: 8 | B9: 1108 | L9: 0 | M9: 0 | N9: 0 | P9: 列７ | Q9: H | S9: 7 | T9: 5 | U9: 40 | W9: 7 | X9: 5.8 | Y9: 26 | AA9: 7 | AB9: 10.8 | AC9: 38
A10: 9 | B10: 1109 | L10: 0 | M10: 0 | N10: 0 | P10: 列８ | Q10: I | S10: 8 | T10: 6.2 | U10: 10 | W10: 8 | X10: 6.4 | Y10: 10 | AA10: 8 | AB10: 12.6 | AC10: 10
A11: 10 | B11: 1110 | L11: 0 | M11: 0 | N11: 0 | S11: 9 | T11: 5.6 | U11: 30 | W11: 9 | X11: 6 | Y11: 18 | AA11: 9 | AB11: 11.6 | AC11: 27
A12: 11 | B12: 1111 | L12: 0 | M12: 0 | N12: 0 | S12: 10 | T12: 6.6 | U12: 7 | W12: 10 | X12: 6.6 | Y12: 7 | AA12: 10 | AB12: 13.2 | AC12: 3
A13: 12 | B13: 1112 | L13: 0 | M13: 0 | N13: 0 | S13: 11 | T13: 6 | U13: 18 | W13: 11 | X13: 5.6 | Y13: 33 | AA13: 11 | AB13: 11.6 | AC13: 27
A14: 13 | B14: 1113 | L14: 0 | M14: 0 | N14: 0 | S14: 12 | T14: 5.2 | U14: 37 | W14: 12 | X14: 5.2 | Y14: 38 | AA14: 12 | AB14: 10.4 | AC14: 42
A15: 14 | B15: 1114 | L15: 0 | M15: 0 | N15: 0 | S15: 13 | T15: 6.8 | U15: 1 | W15: 13 | X15: 6.4 | Y15: 10 | AA15: 13 | AB15: 13.2 | AC15: 3
A16: 15 | B16: 1115 | L16: 0 | M16: 0 | N16: 0 | S16: 14 | T16: 5 | U16: 40 | W16: 14 | X16: 5 | Y16: 42 | AA16: 14 | AB16: 10 | AC16: 43
A17: 16 | B17: 1116 | L17: 0 | M17: 0 | N17: 0 | S17: 15 | T17: 5.6 | U17: 30 | W17: 15 | X17: 7.6 | Y17: 2 | AA17: 15 | AB17: 13.2 | AC17: 3
A18: 17 | B18: 1117 | L18: 0 | M18: 0 | N18: 0 | S18: 16 | T18: 6.2 | U18: 10 | W18: 16 | X18: 6.2 | Y18: 14 | AA18: 16 | AB18: 12.4 | AC18: 12
A19: 18 | B19: 1118 | L19: 0 | M19: 0 | N19: 0 | S19: 17 | T19: 6.2 | U19: 10 | W19: 17 | X19: 5.8 | Y19: 26 | AA19: 17 | AB19: 12 | AC19: 21
A20: 19 | B20: 1119 | L20: 0 | M20: 0 | N20: 0 | S20: 18 | T20: 6.2 | U20: 10 | W20: 18 | X20: 5.8 | Y20: 26 | AA20: 18 | AB20: 12 | AC20: 21
A21: 20 | B21: 1120 | L21: 0 | M21: 0 | N21: 0 | S21: 19 | T21: 5.8 | U21: 25 | W21: 19 | X21: 6.2 | Y21: 14 | AA21: 19 | AB21: 12 | AC21: 21
A22: 21 | B22: 1121 | L22: 0 | M22: 0 | N22: 0 | S22: 20 | T22: 4.6 | U22: 43 | W22: 20 | X22: 5.2 | Y22: 38 | AA22: 20 | AB22: 9.8 | AC22: 44
A23: 22 | B23: 1122 | L23: 0 | M23: 0 | N23: 0 | S23: 21 | T23: 6.8 | U23: 1 | W23: 21 | X23: 6.4 | Y23: 10 | AA23: 21 | AB23: 13.2 | AC23: 3
A24: 23 | B24: 1123 | L24: 0 | M24: 0 | N24: 0 | S24: 22 | T24: 6.4 | U24: 8 | W24: 22 | X24: 6.8 | Y24: 5 | AA24: 22 | AB24: 13.2 | AC24: 3
A25: 24 | B25: 1124 | L25: 0 | M25: 0 | N25: 0 | S25: 23 | T25: 6 | U25: 18 | W25: 23 | X25: 6.4 | Y25: 10 | AA25: 23 | AB25: 12.4 | AC25: 12
A26: 25 | B26: 1125 | L26: 0 | M26: 0 | N26: 0 | S26: 24 | T26: 6.4 | U26: 8 | W26: 24 | X26: 6 | Y26: 18 | AA26: 24 | AB26: 12.4 | AC26: 12
A27: 26 | B27: 1126 | L27: 0 | M27: 0 | N27: 0 | S27: 25 | T27: 5.6 | U27: 30 | W27: 25 | X27: 5.8 | Y27: 26 | AA27: 25 | AB27: 11.4 | AC27: 31
A28: 27 | B28: 1127 | L28: 0 | M28: 0 | N28: 0 | S28: 26 | T28: 6.8 | U28: 1 | W28: 26 | X28: 5.6 | Y28: 33 | AA28: 26 | AB28: 12.4 | AC28: 12
A29: 28 | B29: 1128 | L29: 0 | M29: 0 | N29: 0 | S29: 27 | T29: 5.8 | U29: 25 | W29: 27 | X29: 6 | Y29: 18 | AA29: 27 | AB29: 11.8 | AC29: 26
A30: 29 | B30: 1129 | L30: 0 | M30: 0 | N30: 0 | S30: 28 | T30: 5.8 | U30: 25 | W30: 28 | X30: 5.8 | Y30: 26 | AA30: 28 | AB30: 11.6 | AC30: 27
A31: 30 | B31: 1130 | L31: 0 | M31: 0 | N31: 0 | S31: 29 | T31: 5.8 | U31: 25 | W31: 29 | X31: 7.2 | Y31: 3 | AA31: 29 | AB31: 13 | AC31: 8
A32: 31 | B32: 1131 | L32: 0 | M32: 0 | N32: 0 | S32: 30 | T32: 6 | U32: 18 | W32: 30 | X32: 6.2 | Y32: 14 | AA32: 30 | AB32: 12.2 | AC32: 16
A33: 32 | B33: 1132 | L33: 0 | M33: 0 | N33: 0 | S33: 31 | T33: 6.2 | U33: 10 | W33: 31 | X33: 5.2 | Y33: 38 | AA33: 31 | AB33: 11.4 | AC33: 31
A34: 33 | B34: 1133 | L34: 0 | M34: 0 | N34: 0 | S34: 32 | T34: 5.6 | U34: 30 | W34: 32 | X34: 5.2 | Y34: 38 | AA34: 32 | AB34: 10.8 | AC34: 38
A35: 34 | B35: 1134 | L35: 0 | M35: 0 | N35: 0 | S35: 33 | T35: 6.2 | U35: 10 | W35: 33 | X35: 6 | Y35: 18 | AA35: 33 | AB35: 12.2 | AC35: 16
A36: 35 | B36: 1135 | L36: 0 | M36: 0 | N36: 0 | S36: 34 | T36: 5.6 | U36: 30 | W36: 34 | X36: 6.6 | Y36: 7 | AA36: 34 | AB36: 12.2 | AC36: 16
A37: 36 | B37: 1136 | L37: 0 | M37: 0 | N37: 0 | S37: 35 | T37: 4.8 | U37: 42 | W37: 35 | X37: 6 | Y37: 18 | AA37: 35 | AB37: 10.8 | AC37: 38
A38: 37 | B38: 1137 | L38: 0 | M38: 0 | N38: 0 | S38: 36 | T38: 5.2 | U38: 37 | W38: 36 | X38: 6 | Y38: 18 | AA38: 36 | AB38: 11.2 | AC38: 33
A39: 38 | B39: 1138 | L39: 0 | M39: 0 | N39: 0 | S39: 37 | T39: 6.8 | U39: 1 | W39: 37 | X39: 7.2 | Y39: 3 | AA39: 37 | AB39: 14 | AC39: 1
A40: 39 | B40: 1139 | L40: 0 | M40: 0 | N40: 0 | S40: 38 | T40: 6.2 | U40: 10 | W40: 38 | X40: 6.8 | Y40: 5 | AA40: 38 | AB40: 13 | AC40: 8
A41: 40 | B41: 1140 | L41: 0 | M41: 0 | N41: 0 | S41: 39 | T41: 5.6 | U41: 30 | W41: 39 | X41: 5 | Y41: 42 | AA41: 39 | AB41: 10.6 | AC41: 41
A42: 41 | B42: 1141 | L42: 0 | M42: 0 | N42: 0 | S42: 40 | T42: 5.2 | U42: 37 | W42: 40 | X42: 5.8 | Y42: 26 | AA42: 40 | AB42: 11 | AC42: 36
A43: 42 | B43: 1142 | L43: 0 | M43: 0 | N43: 0 | S43: 41 | T43: 6 | U43: 18 | W43: 41 | X43: 5.6 | Y43: 33 | AA43: 41 | AB43: 11.6 | AC43: 27
A44: 43 | B44: 1143 | L44: 0 | M44: 0 | N44: 0 | S44: 42 | T44: 6.8 | U44: 1 | W44: 42 | X44: 6.6 | Y44: 7 | AA44: 42 | AB44: 13.4 | AC44: 2
A45: 44 | B45: 1144 | L45: 0 | M45: 0 | N45: 0 | S45: 43 | T45: 5.6 | U45: 30 | W45: 43 | X45: 5.6 | Y45: 33 | AA45: 43 | AB45: 11.2 | AC45: 33
A46: 45 | B46: 1145 | L46: 0 | M46: 0 | N46: 0 | S46: 44 | T46: 5.8 | U46: 25 | W46: 44 | X46: 5.4 | Y46: 37 | AA46: 44 | AB46: 11.2 | AC46: 33
K47: 平均 | L47: =IF(SUM(L2:L46)=0,0,AVERAGEIF(L2:L46,">0")) -> 6.2 | M47: =IF(SUM(M2:M46)=0,0,AVERAGEIF(M2:M46,">0")) -> 6.2 | N47: =IF(SUM(N2:N46)=0,0,AVERAGEIF(N2:N46,">0")) -> 12.4 | S47: 45 | T47: 6 | U47: 18 | W47: 45 | X47: 5 | Y47: 42 | AA47: 45 | AB47: 11 | AC47: =_xlfn.RANK.EQ(AB47,$AB$3:$AB$47) -> 36

Sheet 17s
A1: 連番 | B1: HRNO | C1: 名前 | D1: 列１ | E1: 列２ | F1: 列３ | G1: 列４ | H1: 列５ | I1: 列６ | J1: 感想 | L1: 発表 | M1: 制作 | N1: 総計 | P1: class | Q1: =集計!Q1 -> 11 | S1: 発表 | W1: 制作物 | AA1: 総合
A2: 1 | B2: =$Q$1*100+A2 -> 1101 | C2: =INDIRECT($B2&"!I2") -> 情報太郎 | D2: =INDIRECT($B2&"!"&$Q$4&$Q$3+5) -> 1 | E2: =INDIRECT($B2&"!"&$Q$5&$Q$3+5) -> 2 | F2: =INDIRECT($B2&"!"&$Q$6&$Q$3+5) -> 1 | G2: =INDIRECT($B2&"!"&$Q$7&$Q$3+5) -> 2 | H2: =INDIRECT($B2&"!"&$Q$8&$Q$3+5) -> 2 | I2: =INDIRECT($B2&"!"&$Q$9&$Q$3+5) -> 1 | J2: =INDIRECT($B2&"!"&$Q$10&$Q$3+5) -> 1番17番への感想 | L2: =SUMIF(D2:F2,">=0") -> 4 | M2: =SUMIF(G2:I2,">=0") -> 5 | N2: =SUMIF(D2:I2,">=0") -> 9 | S2: 番号 | T2: 平均 | U2: 順位 | W2: 番号 | X2: 平均 | Y2: 順位 | AA2: 番号 | AB2: 平均 | AC2: 順位
A3: 2 | B3: 1102 | C3: =INDIRECT($B3&"!I2") -> 情報次郎 | D3: =INDIRECT($B3&"!"&$Q$4&$Q$3+5) -> 3 | E3: =INDIRECT($B3&"!"&$Q$5&$Q$3+5) -> 2 | F3: =INDIRECT($B3&"!"&$Q$6&$Q$3+5) -> 3 | G3: =INDIRECT($B3&"!"&$Q$7&$Q$3+5) -> 2 | H3: =INDIRECT($B3&"!"&$Q$8&$Q$3+5) -> 1 | I3: =INDIRECT($B3&"!"&$Q$9&$Q$3+5) -> 2 | J3: =INDIRECT($B3&"!"&$Q$10&$Q$3+5) -> 2番17番への感想 | L3: 8 | M3: 5 | N3: 13 | P3: No | Q3: 17 | S3: 1 | T3: =INDIRECT($S3&"s!L47") -> 3 | U3: =_xlfn.RANK.EQ(T3,$T$3:$T$47) -> 45 | W3: 1 | X3: =INDIRECT($S3&"s!M47") -> 3 | Y3: =_xlfn.RANK.EQ(X3,$X$3:$X$47) -> 45 | AA3: 1 | AB3: =INDIRECT($S3&"s!N47") -> 6 | AC3: =_xlfn.RANK.EQ(AB3,$AB$3:$AB$47) -> 45
A4: 3 | B4: 1103 | C4: 情報三郎 | D4: =INDIRECT($B4&"!"&$Q$4&$Q$3+5) -> 1 | E4: 3 | F4: 3 | G4: 2 | H4: 2 | I4: 1 | J4: 3番17番への感想 | L4: 7 | M4: 5 | N4: 12 | P4: 列２ | Q4: C | S4: 2 | T4: =INDIRECT($S4&"s!L47") -> 6.2 | U4: =_xlfn.RANK.EQ(T4,$T$3:$T$47) -> 10 | W4: 2 | X4: =INDIRECT($S4&"s!M47") -> 6 | Y4: =_xlfn.RANK.EQ(X4,$X$3:$X$47) -> 18 | AA4: 2 | AB4: =INDIRECT($S4&"s!N47") -> 12.2 | AC4: =_xlfn.RANK.EQ(AB4,$AB$3:$AB$47) -> 16
A5: 4 | B5: 1104 | C5: 情報四郎 | D5: =INDIRECT($B5&"!"&$Q$4&$Q$3+5) -> 3 | E5: 2 | F5: 3 | G5: 3 | H5: 2 | I5: 3 | J5: 4番17番への感想 | L5: 8 | M5: 8 | N5: 16 | P5: 列３ | Q5: D | S5: 3 | T5: 6 | U5: 18 | W5: 3 | X5: 6.2 | Y5: 14 | AA5: 3 | AB5: 12.2 | AC5: 16
A6: 5 | B6: 1105 | C6: 情報五郎 | D6: =INDIRECT($B6&"!"&$Q$4&$Q$3+5) -> 2 | E6: 1 | F6: 1 | G6: 3 | H6: 2 | I6: 1 | J6: 5番17番への感想 | L6: 4 | M6: 6 | N6: 10 | P6: 列４ | Q6: E | S6: 4 | T6: 4 | U6: 44 | W6: 4 | X6: 8 | Y6: 1 | AA6: 4 | AB6: 12 | AC6: 21
A7: 6 | B7: 1106 | C7: =INDIRECT($B7&"!H1") ->  | L7: 0 | M7: 0 | N7: 0 | P7: 列５ | Q7: F | S7: 5 | T7: 6 | U7: 18 | W7: 5 | X7: 6 | Y7: 18 | AA7: 5 | AB7: 12 | AC7: 21
A8: 7 | B8: 1107 | L8: 0 | M8: 0 | N8: 0 | P8: 列６ | Q8: G | S8: 6 | T8: 6.8 | U8: 1 | W8: 6 | X8: 5.8 | Y8: 26 | AA8: 6 | AB8: 12.6 | AC8: 10
A9: 8 | B9: 1108 | L9: 0 | M9: 0 | N9: 0 | P9: 列７ | Q9: H | S9: 7 | T9: 5 | U9: 40 | W9: 7 | X9: 5.8 | Y9: 26 | AA9: 7 | AB9: 10.8 | AC9: 38
A10: 9 | B10: 1109 | L10: 0 | M10: 0 | N10: 0 | P10: 列８ | Q10: I | S10: 8 | T10: 6.2 | U10: 10 | W10: 8 | X10: 6.4 | Y10: 10 | AA10: 8 | AB10: 12.6 | AC10: 10
A11: 10 | B11: 1110 | L11: 0 | M11: 0 | N11: 0 | S11: 9 | T11: 5.6 | U11: 30 | W11: 9 | X11: 6 | Y11: 18 | AA11: 9 | AB11: 11.6 | AC11: 27
A12: 11 | B12: 1111 | L12: 0 | M12: 0 | N12: 0 | S12: 10 | T12: 6.6 | U12: 7 | W12: 10 | X12: 6.6 | Y12: 7 | AA12: 10 | AB12: 13.2 | AC12: 3
A13: 12 | B13: 1112 | L13: 0 | M13: 0 | N13: 0 | S13: 11 | T13: 6 | U13: 18 | W13: 11 | X13: 5.6 | Y13: 33 | AA13: 11 | AB13: 11.6 | AC13: 27
A14: 13 | B14: 1113 | L14: 0 | M14: 0 | N14: 0 | S14: 12 | T14: 5.2 | U14: 37 | W14: 12 | X14: 5.2 | Y14: 38 | AA14: 12 | AB14: 10.4 | AC14: 42
A15: 14 | B15: 1114 | L15: 0 | M15: 0 | N15: 0 | S15: 13 | T15: 6.8 | U15: 1 | W15: 13 | X15: 6.4 | Y15: 10 | AA15: 13 | AB15: 13.2 | AC15: 3
A16: 15 | B16: 1115 | L16: 0 | M16: 0 | N16: 0 | S16: 14 | T16: 5 | U16: 40 | W16: 14 | X16: 5 | Y16: 42 | AA16: 14 | AB16: 10 | AC16: 43
A17: 16 | B17: 1116 | L17: 0 | M17: 0 | N17: 0 | S17: 15 | T17: 5.6 | U17: 30 | W17: 15 | X17: 7.6 | Y17: 2 | AA17: 15 | AB17: 13.2 | AC17: 3
A18: 17 | B18: 1117 | L18: 0 | M18: 0 | N18: 0 | S18: 16 | T18: 6.2 | U18: 10 | W18: 16 | X18: 6.2 | Y18: 14 | AA18: 16 | AB18: 12.4 | AC18: 12
A19: 18 | B19: 1118 | L19: 0 | M19: 0 | N19: 0 | S19: 17 | T19: 6.2 | U19: 10 | W19: 17 | X19: 5.8 | Y19: 26 | AA19: 17 | AB19: 12 | AC19: 21
A20: 19 | B20: 1119 | L20: 0 | M20: 0 | N20: 0 | S20: 18 | T20: 6.2 | U20: 10 | W20: 18 | X20: 5.8 | Y20: 26 | AA20: 18 | AB20: 12 | AC20: 21
A21: 20 | B21: 1120 | L21: 0 | M21: 0 | N21: 0 | S21: 19 | T21: 5.8 | U21: 25 | W21: 19 | X21: 6.2 | Y21: 14 | AA21: 19 | AB21: 12 | AC21: 21
A22: 21 | B22: 1121 | L22: 0 | M22: 0 | N22: 0 | S22: 20 | T22: 4.6 | U22: 43 | W22: 20 | X22: 5.2 | Y22: 38 | AA22: 20 | AB22: 9.8 | AC22: 44
A23: 22 | B23: 1122 | L23: 0 | M23: 0 | N23: 0 | S23: 21 | T23: 6.8 | U23: 1 | W23: 21 | X23: 6.4 | Y23: 10 | AA23: 21 | AB23: 13.2 | AC23: 3
A24: 23 | B24: 1123 | L24: 0 | M24: 0 | N24: 0 | S24: 22 | T24: 6.4 | U24: 8 | W24: 22 | X24: 6.8 | Y24: 5 | AA24: 22 | AB24: 13.2 | AC24: 3
A25: 24 | B25: 1124 | L25: 0 | M25: 0 | N25: 0 | S25: 23 | T25: 6 | U25: 18 | W25: 23 | X25: 6.4 | Y25: 10 | AA25: 23 | AB25: 12.4 | AC25: 12
A26: 25 | B26: 1125 | L26: 0 | M26: 0 | N26: 0 | S26: 24 | T26: 6.4 | U26: 8 | W26: 24 | X26: 6 | Y26: 18 | AA26: 24 | AB26: 12.4 | AC26: 12
A27: 26 | B27: 1126 | L27: 0 | M27: 0 | N27: 0 | S27: 25 | T27: 5.6 | U27: 30 | W27: 25 | X27: 5.8 | Y27: 26 | AA27: 25 | AB27: 11.4 | AC27: 31
A28: 27 | B28: 1127 | L28: 0 | M28: 0 | N28: 0 | S28: 26 | T28: 6.8 | U28: 1 | W28: 26 | X28: 5.6 | Y28: 33 | AA28: 26 | AB28: 12.4 | AC28: 12
A29: 28 | B29: 1128 | L29: 0 | M29: 0 | N29: 0 | S29: 27 | T29: 5.8 | U29: 25 | W29: 27 | X29: 6 | Y29: 18 | AA29: 27 | AB29: 11.8 | AC29: 26
A30: 29 | B30: 1129 | L30: 0 | M30: 0 | N30: 0 | S30: 28 | T30: 5.8 | U30: 25 | W30: 28 | X30: 5.8 | Y30: 26 | AA30: 28 | AB30: 11.6 | AC30: 27
A31: 30 | B31: 1130 | L31: 0 | M31: 0 | N31: 0 | S31: 29 | T31: 5.8 | U31: 25 | W31: 29 | X31: 7.2 | Y31: 3 | AA31: 29 | AB31: 13 | AC31: 8
A32: 31 | B32: 1131 | L32: 0 | M32: 0 | N32: 0 | S32: 30 | T32: 6 | U32: 18 | W32: 30 | X32: 6.2 | Y32: 14 | AA32: 30 | AB32: 12.2 | AC32: 16
A33: 32 | B33: 1132 | L33: 0 | M33: 0 | N33: 0 | S33: 31 | T33: 6.2 | U33: 10 | W33: 31 | X33: 5.2 | Y33: 38 | AA33: 31 | AB33: 11.4 | AC33: 31
A34: 33 | B34: 1133 | L34: 0 | M34: 0 | N34: 0 | S34: 32 | T34: 5.6 | U34: 30 | W34: 32 | X34: 5.2 | Y34: 38 | AA34: 32 | AB34: 10.8 | AC34: 38
A35: 34 | B35: 1134 | L35: 0 | M35: 0 | N35: 0 | S35: 33 | T35: 6.2 | U35: 10 | W35: 33 | X35: 6 | Y35: 18 | AA35: 33 | AB35: 12.2 | AC35: 16
A36: 35 | B36: 1135 | L36: 0 | M36: 0 | N36: 0 | S36: 34 | T36: 5.6 | U36: 30 | W36: 34 | X36: 6.6 | Y36: 7 | AA36: 34 | AB36: 12.2 | AC36: 16
A37: 36 | B37: 1136 | L37: 0 | M37: 0 | N37: 0 | S37: 35 | T37: 4.8 | U37: 42 | W37: 35 | X37: 6 | Y37: 18 | AA37: 35 | AB37: 10.8 | AC37: 38
A38: 37 | B38: 1137 | L38: 0 | M38: 0 | N38: 0 | S38: 36 | T38: 5.2 | U38: 37 | W38: 36 | X38: 6 | Y38: 18 | AA38: 36 | AB38: 11.2 | AC38: 33
A39: 38 | B39: 1138 | L39: 0 | M39: 0 | N39: 0 | S39: 37 | T39: 6.8 | U39: 1 | W39: 37 | X39: 7.2 | Y39: 3 | AA39: 37 | AB39: 14 | AC39: 1
A40: 39 | B40: 1139 | L40: 0 | M40: 0 | N40: 0 | S40: 38 | T40: 6.2 | U40: 10 | W40: 38 | X40: 6.8 | Y40: 5 | AA40: 38 | AB40: 13 | AC40: 8
A41: 40 | B41: 1140 | L41: 0 | M41: 0 | N41: 0 | S41: 39 | T41: 5.6 | U41: 30 | W41: 39 | X41: 5 | Y41: 42 | AA41: 39 | AB41: 10.6 | AC41: 41
A42: 41 | B42: 1141 | L42: 0 | M42: 0 | N42: 0 | S42: 40 | T42: 5.2 | U42: 37 | W42: 40 | X42: 5.8 | Y42: 26 | AA42: 40 | AB42: 11 | AC42: 36
A43: 42 | B43: 1142 | L43: 0 | M43: 0 | N43: 0 | S43: 41 | T43: 6 | U43: 18 | W43: 41 | X43: 5.6 | Y43: 33 | AA43: 41 | AB43: 11.6 | AC43: 27
A44: 43 | B44: 1143 | L44: 0 | M44: 0 | N44: 0 | S44: 42 | T44: 6.8 | U44: 1 | W44: 42 | X44: 6.6 | Y44: 7 | AA44: 42 | AB44: 13.4 | AC44: 2
A45: 44 | B45: 1144 | L45: 0 | M45: 0 | N45: 0 | S45: 43 | T45: 5.6 | U45: 30 | W45: 43 | X45: 5.6 | Y45: 33 | AA45: 43 | AB45: 11.2 | AC45: 33
A46: 45 | B46: 1145 | L46: 0 | M46: 0 | N46: 0 | S46: 44 | T46: 5.8 | U46: 25 | W46: 44 | X46: 5.4 | Y46: 37 | AA46: 44 | AB46: 11.2 | AC46: 33
K47: 平均 | L47: =IF(SUM(L2:L46)=0,0,AVERAGEIF(L2:L46,">0")) -> 6.2 | M47: =IF(SUM(M2:M46)=0,0,AVERAGEIF(M2:M46,">0")) -> 5.8 | N47: =IF(SUM(N2:N46)=0,0,AVERAGEIF(N2:N46,">0")) -> 12 | S47: 45 | T47: 6 | U47: 18 | W47: 45 | X47: 5 | Y47: 42 | AA47: 45 | AB47: 11 | AC47: =_xlfn.RANK.EQ(AB47,$AB$3:$AB$47) -> 36

Sheet 18s
A1: 連番 | B1: HRNO | C1: 名前 | D1: 列１ | E1: 列２ | F1: 列３ | G1: 列４ | H1: 列５ | I1: 列６ | J1: 感想 | L1: 発表 | M1: 制作 | N1: 総計 | P1: class | Q1: =集計!Q1 -> 11 | S1: 発表 | W1: 制作物 | AA1: 総合
A2: 1 | B2: =$Q$1*100+A2 -> 1101 | C2: =INDIRECT($B2&"!I2") -> 情報太郎 | D2: =INDIRECT($B2&"!"&$Q$4&$Q$3+5) -> 1 | E2: =INDIRECT($B2&"!"&$Q$5&$Q$3+5) -> 3 | F2: =INDIRECT($B2&"!"&$Q$6&$Q$3+5) -> 1 | G2: =INDIRECT($B2&"!"&$Q$7&$Q$3+5) -> 2 | H2: =INDIRECT($B2&"!"&$Q$8&$Q$3+5) -> 3 | I2: =INDIRECT($B2&"!"&$Q$9&$Q$3+5) -> 2 | J2: =INDIRECT($B2&"!"&$Q$10&$Q$3+5) -> 1番18番への感想 | L2: =SUMIF(D2:F2,">=0") -> 5 | M2: =SUMIF(G2:I2,">=0") -> 7 | N2: =SUMIF(D2:I2,">=0") -> 12 | S2: 番号 | T2: 平均 | U2: 順位 | W2: 番号 | X2: 平均 | Y2: 順位 | AA2: 番号 | AB2: 平均 | AC2: 順位
A3: 2 | B3: 1102 | C3: =INDIRECT($B3&"!I2") -> 情報次郎 | D3: =INDIRECT($B3&"!"&$Q$4&$Q$3+5) -> 1 | E3: =INDIRECT($B3&"!"&$Q$5&$Q$3+5) -> 2 | F3: =INDIRECT($B3&"!"&$Q$6&$Q$3+5) -> 3 | G3: =INDIRECT($B3&"!"&$Q$7&$Q$3+5) -> 2 | H3: =INDIRECT($B3&"!"&$Q$8&$Q$3+5) -> 1 | I3: =INDIRECT($B3&"!"&$Q$9&$Q$3+5) -> 3 | J3: =INDIRECT($B3&"!"&$Q$10&$Q$3+5) -> 2番18番への感想 | L3: 6 | M3: 6 | N3: 12 | P3: No | Q3: 18 | S3: 1 | T3: =INDIRECT($S3&"s!L47") -> 3 | U3: =_xlfn.RANK.EQ(T3,$T$3:$T$47) -> 45 | W3: 1 | X3: =INDIRECT($S3&"s!M47") -> 3 | Y3: =_xlfn.RANK.EQ(X3,$X$3:$X$47) -> 45 | AA3: 1 | AB3: =INDIRECT($S3&"s!N47") -> 6 | AC3: =_xlfn.RANK.EQ(AB3,$AB$3:$AB$47) -> 45
A4: 3 | B4: 1103 | C4: 情報三郎 | D4: =INDIRECT($B4&"!"&$Q$4&$Q$3+5) -> 2 | E4: 2 | F4: 3 | G4: 2 | H4: 1 | I4: 2 | J4: 3番18番への感想 | L4: 7 | M4: 5 | N4: 12 | P4: 列２ | Q4: C | S4: 2 | T4: =INDIRECT($S4&"s!L47") -> 6.2 | U4: =_xlfn.RANK.EQ(T4,$T$3:$T$47) -> 10 | W4: 2 | X4: =INDIRECT($S4&"s!M47") -> 6 | Y4: =_xlfn.RANK.EQ(X4,$X$3:$X$47) -> 18 | AA4: 2 | AB4: =INDIRECT($S4&"s!N47") -> 12.2 | AC4: =_xlfn.RANK.EQ(AB4,$AB$3:$AB$47) -> 16
A5: 4 | B5: 1104 | C5: 情報四郎 | D5: =INDIRECT($B5&"!"&$Q$4&$Q$3+5) -> 1 | E5: 3 | F5: 3 | G5: 3 | H5: 1 | I5: 1 | J5: 4番18番への感想 | L5: 7 | M5: 5 | N5: 12 | P5: 列３ | Q5: D | S5: 3 | T5: 6 | U5: 18 | W5: 3 | X5: 6.2 | Y5: 14 | AA5: 3 | AB5: 12.2 | AC5: 16
A6: 5 | B6: 1105 | C6: 情報五郎 | D6: =INDIRECT($B6&"!"&$Q$4&$Q$3+5) -> 1 | E6: 3 | F6: 2 | G6: 2 | H6: 1 | I6: 3 | J6: 5番18番への感想 | L6: 6 | M6: 6 | N6: 12 | P6: 列４ | Q6: E | S6: 4 | T6: 4 | U6: 44 | W6: 4 | X6: 8 | Y6: 1 | AA6: 4 | AB6: 12 | AC6: 21
A7: 6 | B7: 1106 | C7: =INDIRECT($B7&"!H1") ->  | L7: 0 | M7: 0 | N7: 0 | P7: 列５ | Q7: F | S7: 5 | T7: 6 | U7: 18 | W7: 5 | X7: 6 | Y7: 18 | AA7: 5 | AB7: 12 | AC7: 21
A8: 7 | B8: 1107 | L8: 0 | M8: 0 | N8: 0 | P8: 列６ | Q8: G | S8: 6 | T8: 6.8 | U8: 1 | W8: 6 | X8: 5.8 | Y8: 26 | AA8: 6 | AB8: 12.6 | AC8: 10
A9: 8 | B9: 1108 | L9: 0 | M9: 0 | N9: 0 | P9: 列７ | Q9: H | S9: 7 | T9: 5 | U9: 40 | W9: 7 | X9: 5.8 | Y9: 26 | AA9: 7 | AB9: 10.8 | AC9: 38
A10: 9 | B10: 1109 | L10: 0 | M10: 0 | N10: 0 | P10: 列８ | Q10: I | S10: 8 | T10: 6.2 | U10: 10 | W10: 8 | X10: 6.4 | Y10: 10 | AA10: 8 | AB10: 12.6 | AC10: 10
A11: 10 | B11: 1110 | L11: 0 | M11: 0 | N11: 0 | S11: 9 | T11: 5.6 | U11: 30 | W11: 9 | X11: 6 | Y11: 18 | AA11: 9 | AB11: 11.6 | AC11: 27
A12: 11 | B12: 1111 | L12: 0 | M12: 0 | N12: 0 | S12: 10 | T12: 6.6 | U12: 7 | W12: 10 | X12: 6.6 | Y12: 7 | AA12: 10 | AB12: 13.2 | AC12: 3
A13: 12 | B13: 1112 | L13: 0 | M13: 0 | N13: 0 | S13: 11 | T13: 6 | U13: 18 | W13: 11 | X13: 5.6 | Y13: 33 | AA13: 11 | AB13: 11.6 | AC13: 27
A14: 13 | B14: 1113 | L14: 0 | M14: 0 | N14: 0 | S14: 12 | T14: 5.2 | U14: 37 | W14: 12 | X14: 5.2 | Y14: 38 | AA14: 12 | AB14: 10.4 | AC14: 42
A15: 14 | B15: 1114 | L15: 0 | M15: 0 | N15: 0 | S15: 13 | T15: 6.8 | U15: 1 | W15: 13 | X15: 6.4 | Y15: 10 | AA15: 13 | AB15: 13.2 | AC15: 3
A16: 15 | B16: 1115 | L16: 0 | M16: 0 | N16: 0 | S16: 14 | T16: 5 | U16: 40 | W16: 14 | X16: 5 | Y16: 42 | AA16: 14 | AB16: 10 | AC16: 43
A17: 16 | B17: 1116 | L17: 0 | M17: 0 | N17: 0 | S17: 15 | T17: 5.6 | U17: 30 | W17: 15 | X17: 7.6 | Y17: 2 | AA17: 15 | AB17: 13.2 | AC17: 3
A18: 17 | B18: 1117 | L18: 0 | M18: 0 | N18: 0 | S18: 16 | T18: 6.2 | U18: 10 | W18: 16 | X18: 6.2 | Y18: 14 | AA18: 16 | AB18: 12.4 | AC18: 12
A19: 18 | B19: 1118 | L19: 0 | M19: 0 | N19: 0 | S19: 17 | T19: 6.2 | U19: 10 | W19: 17 | X19: 5.8 | Y19: 26 | AA19: 17 | AB19: 12 | AC19: 21
A20: 19 | B20: 1119 | L20: 0 | M20: 0 | N20: 0 | S20: 18 | T20: 6.2 | U20: 10 | W20: 18 | X20: 5.8 | Y20: 26 | AA20: 18 | AB20: 12 | AC20: 21
A21: 20 | B21: 1120 | L21: 0 | M21: 0 | N21: 0 | S21: 19 | T21: 5.8 | U21: 25 | W21: 19 | X21: 6.2 | Y21: 14 | AA21: 19 | AB21: 12 | AC21: 21
A22: 21 | B22: 1121 | L22: 0 | M22: 0 | N22: 0 | S22: 20 | T22: 4.6 | U22: 43 | W22: 20 | X22: 5.2 | Y22: 38 | AA22: 20 | AB22: 9.8 | AC22: 44
A23: 22 | B23: 1122 | L23: 0 | M23: 0 | N23: 0 | S23: 21 | T23: 6.8 | U23: 1 | W23: 21 | X23: 6.4 | Y23: 10 | AA23: 21 | AB23: 13.2 | AC23: 3
A24: 23 | B24: 1123 | L24: 0 | M24: 0 | N24: 0 | S24: 22 | T24: 6.4 | U24: 8 | W24: 22 | X24: 6.8 | Y24: 5 | AA24: 22 | AB24: 13.2 | AC24: 3
A25: 24 | B25: 1124 | L25: 0 | M25: 0 | N25: 0 | S25: 23 | T25: 6 | U25: 18 | W25: 23 | X25: 6.4 | Y25: 10 | AA25: 23 | AB25: 12.4 | AC25: 12
A26: 25 | B26: 1125 | L26: 0 | M26: 0 | N26: 0 | S26: 24 | T26: 6.4 | U26: 8 | W26: 24 | X26: 6 | Y26: 18 | AA26: 24 | AB26: 12.4 | AC26: 12
A27: 26 | B27: 1126 | L27: 0 | M27: 0 | N27: 0 | S27: 25 | T27: 5.6 | U27: 30 | W27: 25 | X27: 5.8 | Y27: 26 | AA27: 25 | AB27: 11.4 | AC27: 31
A28: 27 | B28: 1127 | L28: 0 | M28: 0 | N28: 0 | S28: 26 | T28: 6.8 | U28: 1 | W28: 26 | X28: 5.6 | Y28: 33 | AA28: 26 | AB28: 12.4 | AC28: 12
A29: 28 | B29: 1128 | L29: 0 | M29: 0 | N29: 0 | S29: 27 | T29: 5.8 | U29: 25 | W29: 27 | X29: 6 | Y29: 18 | AA29: 27 | AB29: 11.8 | AC29: 26
A30: 29 | B30: 1129 | L30: 0 | M30: 0 | N30: 0 | S30: 28 | T30: 5.8 | U30: 25 | W30: 28 | X30: 5.8 | Y30: 26 | AA30: 28 | AB30: 11.6 | AC30: 27
A31: 30 | B31: 1130 | L31: 0 | M31: 0 | N31: 0 | S31: 29 | T31: 5.8 | U31: 25 | W31: 29 | X31: 7.2 | Y31: 3 | AA31: 29 | AB31: 13 | AC31: 8
A32: 31 | B32: 1131 | L32: 0 | M32: 0 | N32: 0 | S32: 30 | T32: 6 | U32: 18 | W32: 30 | X32: 6.2 | Y32: 14 | AA32: 30 | AB32: 12.2 | AC32: 16
A33: 32 | B33: 1132 | L33: 0 | M33: 0 | N33: 0 | S33: 31 | T33: 6.2 | U33: 10 | W33: 31 | X33: 5.2 | Y33: 38 | AA33: 31 | AB33: 11.4 | AC33: 31
A34: 33 | B34: 1133 | L34: 0 | M34: 0 | N34: 0 | S34: 32 | T34: 5.6 | U34: 30 | W34: 32 | X34: 5.2 | Y34: 38 | AA34: 32 | AB34: 10.8 | AC34: 38
A35: 34 | B35: 1134 | L35: 0 | M35: 0 | N35: 0 | S35: 33 | T35: 6.2 | U35: 10 | W35: 33 | X35: 6 | Y35: 18 | AA35: 33 | AB35: 12.2 | AC35: 16
A36: 35 | B36: 1135 | L36: 0 | M36: 0 | N36: 0 | S36: 34 | T36: 5.6 | U36: 30 | W36: 34 | X36: 6.6 | Y36: 7 | AA36: 34 | AB36: 12.2 | AC36: 16
A37: 36 | B37: 1136 | L37: 0 | M37: 0 | N37: 0 | S37: 35 | T37: 4.8 | U37: 42 | W37: 35 | X37: 6 | Y37: 18 | AA37: 35 | AB37: 10.8 | AC37: 38
A38: 37 | B38: 1137 | L38: 0 | M38: 0 | N38: 0 | S38: 36 | T38: 5.2 | U38: 37 | W38: 36 | X38: 6 | Y38: 18 | AA38: 36 | AB38: 11.2 | AC38: 33
A39: 38 | B39: 1138 | L39: 0 | M39: 0 | N39: 0 | S39: 37 | T39: 6.8 | U39: 1 | W39: 37 | X39: 7.2 | Y39: 3 | AA39: 37 | AB39: 14 | AC39: 1
A40: 39 | B40: 1139 | L40: 0 | M40: 0 | N40: 0 | S40: 38 | T40: 6.2 | U40: 10 | W40: 38 | X40: 6.8 | Y40: 5 | AA40: 38 | AB40: 13 | AC40: 8
A41: 40 | B41: 1140 | L41: 0 | M41: 0 | N41: 0 | S41: 39 | T41: 5.6 | U41: 30 | W41: 39 | X41: 5 | Y41: 42 | AA41: 39 | AB41: 10.6 | AC41: 41
A42: 41 | B42: 1141 | L42: 0 | M42: 0 | N42: 0 | S42: 40 | T42: 5.2 | U42: 37 | W42: 40 | X42: 5.8 | Y42: 26 | AA42: 40 | AB42: 11 | AC42: 36
A43: 42 | B43: 1142 | L43: 0 | M43: 0 | N43: 0 | S43: 41 | T43: 6 | U43: 18 | W43: 41 | X43: 5.6 | Y43: 33 | AA43: 41 | AB43: 11.6 | AC43: 27
A44: 43 | B44: 1143 | L44: 0 | M44: 0 | N44: 0 | S44: 42 | T44: 6.8 | U44: 1 | W44: 42 | X44: 6.6 | Y44: 7 | AA44: 42 | AB44: 13.4 | AC44: 2
A45: 44 | B45: 1144 | L45: 0 | M45: 0 | N45: 0 | S45: 43 | T45: 5.6 | U45: 30 | W45: 43 | X45: 5.6 | Y45: 33 | AA45: 43 | AB45: 11.2 | AC45: 33
A46: 45 | B46: 1145 | L46: 0 | M46: 0 | N46: 0 | S46: 44 | T46: 5.8 | U46: 25 | W46: 44 | X46: 5.4 | Y46: 37 | AA46: 44 | AB46: 11.2 | AC46: 33
K47: 平均 | L47: =IF(SUM(L2:L46)=0,0,AVERAGEIF(L2:L46,">0")) -> 6.2 | M47: =IF(SUM(M2:M46)=0,0,AVERAGEIF(M2:M46,">0")) -> 5.8 | N47: =IF(SUM(N2:N46)=0,0,AVERAGEIF(N2:N46,">0")) -> 12 | S47: 45 | T47: 6 | U47: 18 | W47: 45 | X47: 5 | Y47: 42 | AA47: 45 | AB47: 11 | AC47: =_xlfn.RANK.EQ(AB47,$AB$3:$AB$47) -> 36
A49: 18

Sheet 19s
A1: 連番 | B1: HRNO | C1: 名前 | D1: 列１ | E1: 列２ | F1: 列３ | G1: 列４ | H1: 列５ | I1: 列６ | J1: 感想 | L1: 発表 | M1: 制作 | N1: 総計 | P1: class | Q1: =集計!Q1 -> 11 | S1: 発表 | W1: 制作物 | AA1: 総合
A2: 1 | B2: =$Q$1*100+A2 -> 1101 | C2: =INDIRECT($B2&"!I2") -> 情報太郎 | D2: =INDIRECT($B2&"!"&$Q$4&$Q$3+5) -> 1 | E2: =INDIRECT($B2&"!"&$Q$5&$Q$3+5) -> 1 | F2: =INDIRECT($B2&"!"&$Q$6&$Q$3+5) -> 2 | G2: =INDIRECT($B2&"!"&$Q$7&$Q$3+5) -> 2 | H2: =INDIRECT($B2&"!"&$Q$8&$Q$3+5) -> 3 | I2: =INDIRECT($B2&"!"&$Q$9&$Q$3+5) -> 3 | J2: =INDIRECT($B2&"!"&$Q$10&$Q$3+5) -> 1番19番への感想 | L2: =SUMIF(D2:F2,">=0") -> 4 | M2: =SUMIF(G2:I2,">=0") -> 8 | N2: =SUMIF(D2:I2,">=0") -> 12 | S2: 番号 | T2: 平均 | U2: 順位 | W2: 番号 | X2: 平均 | Y2: 順位 | AA2: 番号 | AB2: 平均 | AC2: 順位
A3: 2 | B3: 1102 | C3: =INDIRECT($B3&"!I2") -> 情報次郎 | D3: =INDIRECT($B3&"!"&$Q$4&$Q$3+5) -> 3 | E3: =INDIRECT($B3&"!"&$Q$5&$Q$3+5) -> 2 | F3: =INDIRECT($B3&"!"&$Q$6&$Q$3+5) -> 1 | G3: =INDIRECT($B3&"!"&$Q$7&$Q$3+5) -> 2 | H3: =INDIRECT($B3&"!"&$Q$8&$Q$3+5) -> 1 | I3: =INDIRECT($B3&"!"&$Q$9&$Q$3+5) -> 2 | J3: =INDIRECT($B3&"!"&$Q$10&$Q$3+5) -> 2番19番への感想 | L3: 6 | M3: 5 | N3: 11 | P3: No | Q3: 19 | S3: 1 | T3: =INDIRECT($S3&"s!L47") -> 3 | U3: =_xlfn.RANK.EQ(T3,$T$3:$T$47) -> 45 | W3: 1 | X3: =INDIRECT($S3&"s!M47") -> 3 | Y3: =_xlfn.RANK.EQ(X3,$X$3:$X$47) -> 45 | AA3: 1 | AB3: =INDIRECT($S3&"s!N47") -> 6 | AC3: =_xlfn.RANK.EQ(AB3,$AB$3:$AB$47) -> 45
A4: 3 | B4: 1103 | C4: 情報三郎 | D4: =INDIRECT($B4&"!"&$Q$4&$Q$3+5) -> 1 | E4: 2 | F4: 3 | G4: 1 | H4: 2 | I4: 3 | J4: 3番19番への感想 | L4: 6 | M4: 6 | N4: 12 | P4: 列２ | Q4: C | S4: 2 | T4: =INDIRECT($S4&"s!L47") -> 6.2 | U4: =_xlfn.RANK.EQ(T4,$T$3:$T$47) -> 10 | W4: 2 | X4: =INDIRECT($S4&"s!M47") -> 6 | Y4: =_xlfn.RANK.EQ(X4,$X$3:$X$47) -> 18 | AA4: 2 | AB4: =INDIRECT($S4&"s!N47") -> 12.2 | AC4: =_xlfn.RANK.EQ(AB4,$AB$3:$AB$47) -> 16
A5: 4 | B5: 1104 | C5: 情報四郎 | D5: =INDIRECT($B5&"!"&$Q$4&$Q$3+5) -> 3 | E5: 2 | F5: 1 | G5: 2 | H5: 3 | I5: 3 | J5: 4番19番への感想 | L5: 6 | M5: 8 | N5: 14 | P5: 列３ | Q5: D | S5: 3 | T5: 6 | U5: 18 | W5: 3 | X5: 6.2 | Y5: 14 | AA5: 3 | AB5: 12.2 | AC5: 16
A6: 5 | B6: 1105 | C6: 情報五郎 | D6: =INDIRECT($B6&"!"&$Q$4&$Q$3+5) -> 2 | E6: 3 | F6: 2 | G6: 1 | H6: 1 | I6: 2 | J6: 5番19番への感想 | L6: 7 | M6: 4 | N6: 11 | P6: 列４ | Q6: E | S6: 4 | T6: 4 | U6: 44 | W6: 4 | X6: 8 | Y6: 1 | AA6: 4 | AB6: 12 | AC6: 21
A7: 6 | B7: 1106 | C7: =INDIRECT($B7&"!H1") ->  | L7: 0 | M7: 0 | N7: 0 | P7: 列５ | Q7: F | S7: 5 | T7: 6 | U7: 18 | W7: 5 | X7: 6 | Y7: 18 | AA7: 5 | AB7: 12 | AC7: 21
A8: 7 | B8: 1107 | L8: 0 | M8: 0 | N8: 0 | P8: 列６ | Q8: G | S8: 6 | T8: 6.8 | U8: 1 | W8: 6 | X8: 5.8 | Y8: 26 | AA8: 6 | AB8: 12.6 | AC8: 10
A9: 8 | B9: 1108 | L9: 0 | M9: 0 | N9: 0 | P9: 列７ | Q9: H | S9: 7 | T9: 5 | U9: 40 | W9: 7 | X9: 5.8 | Y9: 26 | AA9: 7 | AB9: 10.8 | AC9: 38
A10: 9 | B10: 1109 | L10: 0 | M10: 0 | N10: 0 | P10: 列８ | Q10: I | S10: 8 | T10: 6.2 | U10: 10 | W10: 8 | X10: 6.4 | Y10: 10 | AA10: 8 | AB10: 12.6 | AC10: 10
A11: 10 | B11: 1110 | L11: 0 | M11: 0 | N11: 0 | S11: 9 | T11: 5.6 | U11: 30 | W11: 9 | X11: 6 | Y11: 18 | AA11: 9 | AB11: 11.6 | AC11: 27
A12: 11 | B12: 1111 | L12: 0 | M12: 0 | N12: 0 | S12: 10 | T12: 6.6 | U12: 7 | W12: 10 | X12: 6.6 | Y12: 7 | AA12: 10 | AB12: 13.2 | AC12: 3
A13: 12 | B13: 1112 | L13: 0 | M13: 0 | N13: 0 | S13: 11 | T13: 6 | U13: 18 | W13: 11 | X13: 5.6 | Y13: 33 | AA13: 11 | AB13: 11.6 | AC13: 27
A14: 13 | B14: 1113 | L14: 0 | M14: 0 | N14: 0 | S14: 12 | T14: 5.2 | U14: 37 | W14: 12 | X14: 5.2 | Y14: 38 | AA14: 12 | AB14: 10.4 | AC14: 42
A15: 14 | B15: 1114 | L15: 0 | M15: 0 | N15: 0 | S15: 13 | T15: 6.8 | U15: 1 | W15: 13 | X15: 6.4 | Y15: 10 | AA15: 13 | AB15: 13.2 | AC15: 3
A16: 15 | B16: 1115 | L16: 0 | M16: 0 | N16: 0 | S16: 14 | T16: 5 | U16: 40 | W16: 14 | X16: 5 | Y16: 42 | AA16: 14 | AB16: 10 | AC16: 43
A17: 16 | B17: 1116 | L17: 0 | M17: 0 | N17: 0 | S17: 15 | T17: 5.6 | U17: 30 | W17: 15 | X17: 7.6 | Y17: 2 | AA17: 15 | AB17: 13.2 | AC17: 3
A18: 17 | B18: 1117 | L18: 0 | M18: 0 | N18: 0 | S18: 16 | T18: 6.2 | U18: 10 | W18: 16 | X18: 6.2 | Y18: 14 | AA18: 16 | AB18: 12.4 | AC18: 12
A19: 18 | B19: 1118 | L19: 0 | M19: 0 | N19: 0 | S19: 17 | T19: 6.2 | U19: 10 | W19: 17 | X19: 5.8 | Y19: 26 | AA19: 17 | AB19: 12 | AC19: 21
A20: 19 | B20: 1119 | L20: 0 | M20: 0 | N20: 0 | S20: 18 | T20: 6.2 | U20: 10 | W20: 18 | X20: 5.8 | Y20: 26 | AA20: 18 | AB20: 12 | AC20: 21
A21: 20 | B21: 1120 | L21: 0 | M21: 0 | N21: 0 | S21: 19 | T21: 5.8 | U21: 25 | W21: 19 | X21: 6.2 | Y21: 14 | AA21: 19 | AB21: 12 | AC21: 21
A22: 21 | B22: 1121 | L22: 0 | M22: 0 | N22: 0 | S22: 20 | T22: 4.6 | U22: 43 | W22: 20 | X22: 5.2 | Y22: 38 | AA22: 20 | AB22: 9.8 | AC22: 44
A23: 22 | B23: 1122 | L23: 0 | M23: 0 | N23: 0 | S23: 21 | T23: 6.8 | U23: 1 | W23: 21 | X23: 6.4 | Y23: 10 | AA23: 21 | AB23: 13.2 | AC23: 3
A24: 23 | B24: 1123 | L24: 0 | M24: 0 | N24: 0 | S24: 22 | T24: 6.4 | U24: 8 | W24: 22 | X24: 6.8 | Y24: 5 | AA24: 22 | AB24: 13.2 | AC24: 3
A25: 24 | B25: 1124 | L25: 0 | M25: 0 | N25: 0 | S25: 23 | T25: 6 | U25: 18 | W25: 23 | X25: 6.4 | Y25: 10 | AA25: 23 | AB25: 12.4 | AC25: 12
A26: 25 | B26: 1125 | L26: 0 | M26: 0 | N26: 0 | S26: 24 | T26: 6.4 | U26: 8 | W26: 24 | X26: 6 | Y26: 18 | AA26: 24 | AB26: 12.4 | AC26: 12
A27: 26 | B27: 1126 | L27: 0 | M27: 0 | N27: 0 | S27: 25 | T27: 5.6 | U27: 30 | W27: 25 | X27: 5.8 | Y27: 26 | AA27: 25 | AB27: 11.4 | AC27: 31
A28: 27 | B28: 1127 | L28: 0 | M28: 0 | N28: 0 | S28: 26 | T28: 6.8 | U28: 1 | W28: 26 | X28: 5.6 | Y28: 33 | AA28: 26 | AB28: 12.4 | AC28: 12
A29: 28 | B29: 1128 | L29: 0 | M29: 0 | N29: 0 | S29: 27 | T29: 5.8 | U29: 25 | W29: 27 | X29: 6 | Y29: 18 | AA29: 27 | AB29: 11.8 | AC29: 26
A30: 29 | B30: 1129 | L30: 0 | M30: 0 | N30: 0 | S30: 28 | T30: 5.8 | U30: 25 | W30: 28 | X30: 5.8 | Y30: 26 | AA30: 28 | AB30: 11.6 | AC30: 27
A31: 30 | B31: 1130 | L31: 0 | M31: 0 | N31: 0 | S31: 29 | T31: 5.8 | U31: 25 | W31: 29 | X31: 7.2 | Y31: 3 | AA31: 29 | AB31: 13 | AC31: 8
A32: 31 | B32: 1131 | L32: 0 | M32: 0 | N32: 0 | S32: 30 | T32: 6 | U32: 18 | W32: 30 | X32: 6.2 | Y32: 14 | AA32: 30 | AB32: 12.2 | AC32: 16
A33: 32 | B33: 1132 | L33: 0 | M33: 0 | N33: 0 | S33: 31 | T33: 6.2 | U33: 10 | W33: 31 | X33: 5.2 | Y33: 38 | AA33: 31 | AB33: 11.4 | AC33: 31
A34: 33 | B34: 1133 | L34: 0 | M34: 0 | N34: 0 | S34: 32 | T34: 5.6 | U34: 30 | W34: 32 | X34: 5.2 | Y34: 38 | AA34: 32 | AB34: 10.8 | AC34: 38
A35: 34 | B35: 1134 | L35: 0 | M35: 0 | N35: 0 | S35: 33 | T35: 6.2 | U35: 10 | W35: 33 | X35: 6 | Y35: 18 | AA35: 33 | AB35: 12.2 | AC35: 16
A36: 35 | B36: 1135 | L36: 0 | M36: 0 | N36: 0 | S36: 34 | T36: 5.6 | U36: 30 | W36: 34 | X36: 6.6 | Y36: 7 | AA36: 34 | AB36: 12.2 | AC36: 16
A37: 36 | B37: 1136 | L37: 0 | M37: 0 | N37: 0 | S37: 35 | T37: 4.8 | U37: 42 | W37: 35 | X37: 6 | Y37: 18 | AA37: 35 | AB37: 10.8 | AC37: 38
A38: 37 | B38: 1137 | L38: 0 | M38: 0 | N38: 0 | S38: 36 | T38: 5.2 | U38: 37 | W38: 36 | X38: 6 | Y38: 18 | AA38: 36 | AB38: 11.2 | AC38: 33
A39: 38 | B39: 1138 | L39: 0 | M39: 0 | N39: 0 | S39: 37 | T39: 6.8 | U39: 1 | W39: 37 | X39: 7.2 | Y39: 3 | AA39: 37 | AB39: 14 | AC39: 1
A40: 39 | B40: 1139 | L40: 0 | M40: 0 | N40: 0 | S40: 38 | T40: 6.2 | U40: 10 | W40: 38 | X40: 6.8 | Y40: 5 | AA40: 38 | AB40: 13 | AC40: 8
A41: 40 | B41: 1140 | L41: 0 | M41: 0 | N41: 0 | S41: 39 | T41: 5.6 | U41: 30 | W41: 39 | X41: 5 | Y41: 42 | AA41: 39 | AB41: 10.6 | AC41: 41
A42: 41 | B42: 1141 | L42: 0 | M42: 0 | N42: 0 | S42: 40 | T42: 5.2 | U42: 37 | W42: 40 | X42: 5.8 | Y42: 26 | AA42: 40 | AB42: 11 | AC42: 36
A43: 42 | B43: 1142 | L43: 0 | M43: 0 | N43: 0 | S43: 41 | T43: 6 | U43: 18 | W43: 41 | X43: 5.6 | Y43: 33 | AA43: 41 | AB43: 11.6 | AC43: 27
A44: 43 | B44: 1143 | L44: 0 | M44: 0 | N44: 0 | S44: 42 | T44: 6.8 | U44: 1 | W44: 42 | X44: 6.6 | Y44: 7 | AA44: 42 | AB44: 13.4 | AC44: 2
A45: 44 | B45: 1144 | L45: 0 | M45: 0 | N45: 0 | S45: 43 | T45: 5.6 | U45: 30 | W45: 43 | X45: 5.6 | Y45: 33 | AA45: 43 | AB45: 11.2 | AC45: 33
A46: 45 | B46: 1145 | L46: 0 | M46: 0 | N46: 0 | S46: 44 | T46: 5.8 | U46: 25 | W46: 44 | X46: 5.4 | Y46: 37 | AA46: 44 | AB46: 11.2 | AC46: 33
K47: 平均 | L47: =IF(SUM(L2:L46)=0,0,AVERAGEIF(L2:L46,">0")) -> 5.8 | M47: =IF(SUM(M2:M46)=0,0,AVERAGEIF(M2:M46,">0")) -> 6.2 | N47: =IF(SUM(N2:N46)=0,0,AVERAGEIF(N2:N46,">0")) -> 12 | S47: 45 | T47: 6 | U47: 18 | W47: 45 | X47: 5 | Y47: 42 | AA47: 45 | AB47: 11 | AC47: =_xlfn.RANK.EQ(AB47,$AB$3:$AB$47) -> 36

Sheet 20s
A1: 連番 | B1: HRNO | C1: 名前 | D1: 列１ | E1: 列２ | F1: 列３ | G1: 列４ | H1: 列５ | I1: 列６ | J1: 感想 | L1: 発表 | M1: 制作 | N1: 総計 | P1: class | Q1: =集計!Q1 -> 11 | S1: 発表 | W1: 制作物 | AA1: 総合
A2: 1 | B2: =$Q$1*100+A2 -> 1101 | C2: =INDIRECT($B2&"!I2") -> 情報太郎 | D2: =INDIRECT($B2&"!"&$Q$4&$Q$3+5) -> 1 | E2: =INDIRECT($B2&"!"&$Q$5&$Q$3+5) -> 2 | F2: =INDIRECT($B2&"!"&$Q$6&$Q$3+5) -> 1 | G2: =INDIRECT($B2&"!"&$Q$7&$Q$3+5) -> 2 | H2: =INDIRECT($B2&"!"&$Q$8&$Q$3+5) -> 1 | I2: =INDIRECT($B2&"!"&$Q$9&$Q$3+5) -> 2 | J2: =INDIRECT($B2&"!"&$Q$10&$Q$3+5) -> 1番20番への感想 | L2: =SUMIF(D2:F2,">=0") -> 4 | M2: =SUMIF(G2:I2,">=0") -> 5 | N2: =SUMIF(D2:I2,">=0") -> 9 | S2: 番号 | T2: 平均 | U2: 順位 | W2: 番号 | X2: 平均 | Y2: 順位 | AA2: 番号 | AB2: 平均 | AC2: 順位
A3: 2 | B3: 1102 | C3: =INDIRECT($B3&"!I2") -> 情報次郎 | D3: =INDIRECT($B3&"!"&$Q$4&$Q$3+5) -> 1 | E3: =INDIRECT($B3&"!"&$Q$5&$Q$3+5) -> 2 | F3: =INDIRECT($B3&"!"&$Q$6&$Q$3+5) -> 1 | G3: =INDIRECT($B3&"!"&$Q$7&$Q$3+5) -> 3 | H3: =INDIRECT($B3&"!"&$Q$8&$Q$3+5) -> 2 | I3: =INDIRECT($B3&"!"&$Q$9&$Q$3+5) -> 1 | J3: =INDIRECT($B3&"!"&$Q$10&$Q$3+5) -> 2番20番への感想 | L3: 4 | M3: 6 | N3: 10 | P3: No | Q3: 20 | S3: 1 | T3: =INDIRECT($S3&"s!L47") -> 3 | U3: =_xlfn.RANK.EQ(T3,$T$3:$T$47) -> 45 | W3: 1 | X3: =INDIRECT($S3&"s!M47") -> 3 | Y3: =_xlfn.RANK.EQ(X3,$X$3:$X$47) -> 45 | AA3: 1 | AB3: =INDIRECT($S3&"s!N47") -> 6 | AC3: =_xlfn.RANK.EQ(AB3,$AB$3:$AB$47) -> 45
A4: 3 | B4: 1103 | C4: 情報三郎 | D4: =INDIRECT($B4&"!"&$Q$4&$Q$3+5) -> 2 | E4: 1 | F4: 3 | G4: 3 | H4: 1 | I4: 3 | J4: 3番20番への感想 | L4: 6 | M4: 7 | N4: 13 | P4: 列２ | Q4: C | S4: 2 | T4: =INDIRECT($S4&"s!L47") -> 6.2 | U4: =_xlfn.RANK.EQ(T4,$T$3:$T$47) -> 10 | W4: 2 | X4: =INDIRECT($S4&"s!M47") -> 6 | Y4: =_xlfn.RANK.EQ(X4,$X$3:$X$47) -> 18 | AA4: 2 | AB4: =INDIRECT($S4&"s!N47") -> 12.2 | AC4: =_xlfn.RANK.EQ(AB4,$AB$3:$AB$47) -> 16
A5: 4 | B5: 1104 | C5: 情報四郎 | D5: =INDIRECT($B5&"!"&$Q$4&$Q$3+5) -> 1 | E5: 1 | F5: 3 | G5: 1 | H5: 1 | I5: 1 | J5: 4番20番への感想 | L5: 5 | M5: 3 | N5: 8 | P5: 列３ | Q5: D | S5: 3 | T5: 6 | U5: 18 | W5: 3 | X5: 6.2 | Y5: 14 | AA5: 3 | AB5: 12.2 | AC5: 16
A6: 5 | B6: 1105 | C6: 情報五郎 | D6: =INDIRECT($B6&"!"&$Q$4&$Q$3+5) -> 2 | E6: 1 | F6: 1 | G6: 2 | H6: 2 | I6: 1 | J6: 5番20番への感想 | L6: 4 | M6: 5 | N6: 9 | P6: 列４ | Q6: E | S6: 4 | T6: 4 | U6: 44 | W6: 4 | X6: 8 | Y6: 1 | AA6: 4 | AB6: 12 | AC6: 21
A7: 6 | B7: 1106 | C7: =INDIRECT($B7&"!H1") ->  | L7: 0 | M7: 0 | N7: 0 | P7: 列５ | Q7: F | S7: 5 | T7: 6 | U7: 18 | W7: 5 | X7: 6 | Y7: 18 | AA7: 5 | AB7: 12 | AC7: 21
A8: 7 | B8: 1107 | L8: 0 | M8: 0 | N8: 0 | P8: 列６ | Q8: G | S8: 6 | T8: 6.8 | U8: 1 | W8: 6 | X8: 5.8 | Y8: 26 | AA8: 6 | AB8: 12.6 | AC8: 10
A9: 8 | B9: 1108 | L9: 0 | M9: 0 | N9: 0 | P9: 列７ | Q9: H | S9: 7 | T9: 5 | U9: 40 | W9: 7 | X9: 5.8 | Y9: 26 | AA9: 7 | AB9: 10.8 | AC9: 38
A10: 9 | B10: 1109 | L10: 0 | M10: 0 | N10: 0 | P10: 列８ | Q10: I | S10: 8 | T10: 6.2 | U10: 10 | W10: 8 | X10: 6.4 | Y10: 10 | AA10: 8 | AB10: 12.6 | AC10: 10
A11: 10 | B11: 1110 | L11: 0 | M11: 0 | N11: 0 | S11: 9 | T11: 5.6 | U11: 30 | W11: 9 | X11: 6 | Y11: 18 | AA11: 9 | AB11: 11.6 | AC11: 27
A12: 11 | B12: 1111 | L12: 0 | M12: 0 | N12: 0 | S12: 10 | T12: 6.6 | U12: 7 | W12: 10 | X12: 6.6 | Y12: 7 | AA12: 10 | AB12: 13.2 | AC12: 3
A13: 12 | B13: 1112 | L13: 0 | M13: 0 | N13: 0 | S13: 11 | T13: 6 | U13: 18 | W13: 11 | X13: 5.6 | Y13: 33 | AA13: 11 | AB13: 11.6 | AC13: 27
A14: 13 | B14: 1113 | L14: 0 | M14: 0 | N14: 0 | S14: 12 | T14: 5.2 | U14: 37 | W14: 12 | X14: 5.2 | Y14: 38 | AA14: 12 | AB14: 10.4 | AC14: 42
A15: 14 | B15: 1114 | L15: 0 | M15: 0 | N15: 0 | S15: 13 | T15: 6.8 | U15: 1 | W15: 13 | X15: 6.4 | Y15: 10 | AA15: 13 | AB15: 13.2 | AC15: 3
A16: 15 | B16: 1115 | L16: 0 | M16: 0 | N16: 0 | S16: 14 | T16: 5 | U16: 40 | W16: 14 | X16: 5 | Y16: 42 | AA16: 14 | AB16: 10 | AC16: 43
A17: 16 | B17: 1116 | L17: 0 | M17: 0 | N17: 0 | S17: 15 | T17: 5.6 | U17: 30 | W17: 15 | X17: 7.6 | Y17: 2 | AA17: 15 | AB17: 13.2 | AC17: 3
A18: 17 | B18: 1117 | L18: 0 | M18: 0 | N18: 0 | S18: 16 | T18: 6.2 | U18: 10 | W18: 16 | X18: 6.2 | Y18: 14 | AA18: 16 | AB18: 12.4 | AC18: 12
A19: 18 | B19: 1118 | L19: 0 | M19: 0 | N19: 0 | S19: 17 | T19: 6.2 | U19: 10 | W19: 17 | X19: 5.8 | Y19: 26 | AA19: 17 | AB19: 12 | AC19: 21
A20: 19 | B20: 1119 | L20: 0 | M20: 0 | N20: 0 | S20: 18 | T20: 6.2 | U20: 10 | W20: 18 | X20: 5.8 | Y20: 26 | AA20: 18 | AB20: 12 | AC20: 21
A21: 20 | B21: 1120 | L21: 0 | M21: 0 | N21: 0 | S21: 19 | T21: 5.8 | U21: 25 | W21: 19 | X21: 6.2 | Y21: 14 | AA21: 19 | AB21: 12 | AC21: 21
A22: 21 | B22: 1121 | L22: 0 | M22: 0 | N22: 0 | S22: 20 | T22: 4.6 | U22: 43 | W22: 20 | X22: 5.2 | Y22: 38 | AA22: 20 | AB22: 9.8 | AC22: 44
A23: 22 | B23: 1122 | L23: 0 | M23: 0 | N23: 0 | S23: 21 | T23: 6.8 | U23: 1 | W23: 21 | X23: 6.4 | Y23: 10 | AA23: 21 | AB23: 13.2 | AC23: 3
A24: 23 | B24: 1123 | L24: 0 | M24: 0 | N24: 0 | S24: 22 | T24: 6.4 | U24: 8 | W24: 22 | X24: 6.8 | Y24: 5 | AA24: 22 | AB24: 13.2 | AC24: 3
A25: 24 | B25: 1124 | L25: 0 | M25: 0 | N25: 0 | S25: 23 | T25: 6 | U25: 18 | W25: 23 | X25: 6.4 | Y25: 10 | AA25: 23 | AB25: 12.4 | AC25: 12
A26: 25 | B26: 1125 | L26: 0 | M26: 0 | N26: 0 | S26: 24 | T26: 6.4 | U26: 8 | W26: 24 | X26: 6 | Y26: 18 | AA26: 24 | AB26: 12.4 | AC26: 12
A27: 26 | B27: 1126 | L27: 0 | M27: 0 | N27: 0 | S27: 25 | T27: 5.6 | U27: 30 | W27: 25 | X27: 5.8 | Y27: 26 | AA27: 25 | AB27: 11.4 | AC27: 31
A28: 27 | B28: 1127 | L28: 0 | M28: 0 | N28: 0 | S28: 26 | T28: 6.8 | U28: 1 | W28: 26 | X28: 5.6 | Y28: 33 | AA28: 26 | AB28: 12.4 | AC28: 12
A29: 28 | B29: 1128 | L29: 0 | M29: 0 | N29: 0 | S29: 27 | T29: 5.8 | U29: 25 | W29: 27 | X29: 6 | Y29: 18 | AA29: 27 | AB29: 11.8 | AC29: 26
A30: 29 | B30: 1129 | L30: 0 | M30: 0 | N30: 0 | S30: 28 | T30: 5.8 | U30: 25 | W30: 28 | X30: 5.8 | Y30: 26 | AA30: 28 | AB30: 11.6 | AC30: 27
A31: 30 | B31: 1130 | L31: 0 | M31: 0 | N31: 0 | S31: 29 | T31: 5.8 | U31: 25 | W31: 29 | X31: 7.2 | Y31: 3 | AA31: 29 | AB31: 13 | AC31: 8
A32: 31 | B32: 1131 | L32: 0 | M32: 0 | N32: 0 | S32: 30 | T32: 6 | U32: 18 | W32: 30 | X32: 6.2 | Y32: 14 | AA32: 30 | AB32: 12.2 | AC32: 16
A33: 32 | B33: 1132 | L33: 0 | M33: 0 | N33: 0 | S33: 31 | T33: 6.2 | U33: 10 | W33: 31 | X33: 5.2 | Y33: 38 | AA33: 31 | AB33: 11.4 | AC33: 31
A34: 33 | B34: 1133 | L34: 0 | M34: 0 | N34: 0 | S34: 32 | T34: 5.6 | U34: 30 | W34: 32 | X34: 5.2 | Y34: 38 | AA34: 32 | AB34: 10.8 | AC34: 38
A35: 34 | B35: 1134 | L35: 0 | M35: 0 | N35: 0 | S35: 33 | T35: 6.2 | U35: 10 | W35: 33 | X35: 6 | Y35: 18 | AA35: 33 | AB35: 12.2 | AC35: 16
A36: 35 | B36: 1135 | L36: 0 | M36: 0 | N36: 0 | S36: 34 | T36: 5.6 | U36: 30 | W36: 34 | X36: 6.6 | Y36: 7 | AA36: 34 | AB36: 12.2 | AC36: 16
A37: 36 | B37: 1136 | L37: 0 | M37: 0 | N37: 0 | S37: 35 | T37: 4.8 | U37: 42 | W37: 35 | X37: 6 | Y37: 18 | AA37: 35 | AB37: 10.8 | AC37: 38
A38: 37 | B38: 1137 | L38: 0 | M38: 0 | N38: 0 | S38: 36 | T38: 5.2 | U38: 37 | W38: 36 | X38: 6 | Y38: 18 | AA38: 36 | AB38: 11.2 | AC38: 33
A39: 38 | B39: 1138 | L39: 0 | M39: 0 | N39: 0 | S39: 37 | T39: 6.8 | U39: 1 | W39: 37 | X39: 7.2 | Y39: 3 | AA39: 37 | AB39: 14 | AC39: 1
A40: 39 | B40: 1139 | L40: 0 | M40: 0 | N40: 0 | S40: 38 | T40: 6.2 | U40: 10 | W40: 38 | X40: 6.8 | Y40: 5 | AA40: 38 | AB40: 13 | AC40: 8
A41: 40 | B41: 1140 | L41: 0 | M41: 0 | N41: 0 | S41: 39 | T41: 5.6 | U41: 30 | W41: 39 | X41: 5 | Y41: 42 | AA41: 39 | AB41: 10.6 | AC41: 41
A42: 41 | B42: 1141 | L42: 0 | M42: 0 | N42: 0 | S42: 40 | T42: 5.2 | U42: 37 | W42: 40 | X42: 5.8 | Y42: 26 | AA42: 40 | AB42: 11 | AC42: 36
A43: 42 | B43: 1142 | L43: 0 | M43: 0 | N43: 0 | S43: 41 | T43: 6 | U43: 18 | W43: 41 | X43: 5.6 | Y43: 33 | AA43: 41 | AB43: 11.6 | AC43: 27
A44: 43 | B44: 1143 | L44: 0 | M44: 0 | N44: 0 | S44: 42 | T44: 6.8 | U44: 1 | W44: 42 | X44: 6.6 | Y44: 7 | AA44: 42 | AB44: 13.4 | AC44: 2
A45: 44 | B45: 1144 | L45: 0 | M45: 0 | N45: 0 | S45: 43 | T45: 5.6 | U45: 30 | W45: 43 | X45: 5.6 | Y45: 33 | AA45: 43 | AB45: 11.2 | AC45: 33
A46: 45 | B46: 1145 | L46: 0 | M46: 0 | N46: 0 | S46: 44 | T46: 5.8 | U46: 25 | W46: 44 | X46: 5.4 | Y46: 37 | AA46: 44 | AB46: 11.2 | AC46: 33
K47: 平均 | L47: =IF(SUM(L2:L46)=0,0,AVERAGEIF(L2:L46,">0")) -> 4.6 | M47: =IF(SUM(M2:M46)=0,0,AVERAGEIF(M2:M46,">0")) -> 5.2 | N47: =IF(SUM(N2:N46)=0,0,AVERAGEIF(N2:N46,">0")) -> 9.8 | S47: 45 | T47: 6 | U47: 18 | W47: 45 | X47: 5 | Y47: 42 | AA47: 45 | AB47: 11 | AC47: =_xlfn.RANK.EQ(AB47,$AB$3:$AB$47) -> 36

Sheet 21s
A1: 連番 | B1: HRNO | C1: 名前 | D1: 列１ | E1: 列２ | F1: 列３ | G1: 列４ | H1: 列５ | I1: 列６ | J1: 感想 | L1: 発表 | M1: 制作 | N1: 総計 | P1: class | Q1: =集計!Q1 -> 11 | S1: 発表 | W1: 制作物 | AA1: 総合
A2: 1 | B2: =$Q$1*100+A2 -> 1101 | C2: =INDIRECT($B2&"!I2") -> 情報太郎 | D2: =INDIRECT($B2&"!"&$Q$4&$Q$3+5) -> 1 | E2: =INDIRECT($B2&"!"&$Q$5&$Q$3+5) -> 2 | F2: =INDIRECT($B2&"!"&$Q$6&$Q$3+5) -> 2 | G2: =INDIRECT($B2&"!"&$Q$7&$Q$3+5) -> 3 | H2: =INDIRECT($B2&"!"&$Q$8&$Q$3+5) -> 1 | I2: =INDIRECT($B2&"!"&$Q$9&$Q$3+5) -> 1 | J2: =INDIRECT($B2&"!"&$Q$10&$Q$3+5) -> 1番21番への感想 | L2: =SUMIF(D2:F2,">=0") -> 5 | M2: =SUMIF(G2:I2,">=0") -> 5 | N2: =SUMIF(D2:I2,">=0") -> 10 | S2: 番号 | T2: 平均 | U2: 順位 | W2: 番号 | X2: 平均 | Y2: 順位 | AA2: 番号 | AB2: 平均 | AC2: 順位
A3: 2 | B3: 1102 | C3: =INDIRECT($B3&"!I2") -> 情報次郎 | D3: =INDIRECT($B3&"!"&$Q$4&$Q$3+5) -> 3 | E3: =INDIRECT($B3&"!"&$Q$5&$Q$3+5) -> 2 | F3: =INDIRECT($B3&"!"&$Q$6&$Q$3+5) -> 3 | G3: =INDIRECT($B3&"!"&$Q$7&$Q$3+5) -> 3 | H3: =INDIRECT($B3&"!"&$Q$8&$Q$3+5) -> 3 | I3: =INDIRECT($B3&"!"&$Q$9&$Q$3+5) -> 2 | J3: =INDIRECT($B3&"!"&$Q$10&$Q$3+5) -> 2番21番への感想 | L3: 8 | M3: 8 | N3: 16 | P3: No | Q3: 21 | S3: 1 | T3: =INDIRECT($S3&"s!L47") -> 3 | U3: =_xlfn.RANK.EQ(T3,$T$3:$T$47) -> 45 | W3: 1 | X3: =INDIRECT($S3&"s!M47") -> 3 | Y3: =_xlfn.RANK.EQ(X3,$X$3:$X$47) -> 45 | AA3: 1 | AB3: =INDIRECT($S3&"s!N47") -> 6 | AC3: =_xlfn.RANK.EQ(AB3,$AB$3:$AB$47) -> 45
A4: 3 | B4: 1103 | C4: 情報三郎 | D4: =INDIRECT($B4&"!"&$Q$4&$Q$3+5) -> 3 | E4: 2 | F4: 3 | G4: 2 | H4: 2 | I4: 2 | J4: 3番21番への感想 | L4: 8 | M4: 6 | N4: 14 | P4: 列２ | Q4: C | S4: 2 | T4: =INDIRECT($S4&"s!L47") -> 6.2 | U4: =_xlfn.RANK.EQ(T4,$T$3:$T$47) -> 10 | W4: 2 | X4: =INDIRECT($S4&"s!M47") -> 6 | Y4: =_xlfn.RANK.EQ(X4,$X$3:$X$47) -> 18 | AA4: 2 | AB4: =INDIRECT($S4&"s!N47") -> 12.2 | AC4: =_xlfn.RANK.EQ(AB4,$AB$3:$AB$47) -> 16
A5: 4 | B5: 1104 | C5: 情報四郎 | D5: =INDIRECT($B5&"!"&$Q$4&$Q$3+5) -> 3 | E5: 3 | F5: 2 | G5: 1 | H5: 3 | I5: 2 | J5: 4番21番への感想 | L5: 8 | M5: 6 | N5: 14 | P5: 列３ | Q5: D | S5: 3 | T5: 6 | U5: 18 | W5: 3 | X5: 6.2 | Y5: 14 | AA5: 3 | AB5: 12.2 | AC5: 16
A6: 5 | B6: 1105 | C6: 情報五郎 | D6: =INDIRECT($B6&"!"&$Q$4&$Q$3+5) -> 1 | E6: 2 | F6: 2 | G6: 3 | H6: 1 | I6: 3 | J6: 5番21番への感想 | L6: 5 | M6: 7 | N6: 12 | P6: 列４ | Q6: E | S6: 4 | T6: 4 | U6: 44 | W6: 4 | X6: 8 | Y6: 1 | AA6: 4 | AB6: 12 | AC6: 21
A7: 6 | B7: 1106 | C7: =INDIRECT($B7&"!H1") ->  | L7: 0 | M7: 0 | N7: 0 | P7: 列５ | Q7: F | S7: 5 | T7: 6 | U7: 18 | W7: 5 | X7: 6 | Y7: 18 | AA7: 5 | AB7: 12 | AC7: 21
A8: 7 | B8: 1107 | L8: 0 | M8: 0 | N8: 0 | P8: 列６ | Q8: G | S8: 6 | T8: 6.8 | U8: 1 | W8: 6 | X8: 5.8 | Y8: 26 | AA8: 6 | AB8: 12.6 | AC8: 10
A9: 8 | B9: 1108 | L9: 0 | M9: 0 | N9: 0 | P9: 列７ | Q9: H | S9: 7 | T9: 5 | U9: 40 | W9: 7 | X9: 5.8 | Y9: 26 | AA9: 7 | AB9: 10.8 | AC9: 38
A10: 9 | B10: 1109 | L10: 0 | M10: 0 | N10: 0 | P10: 列８ | Q10: I | S10: 8 | T10: 6.2 | U10: 10 | W10: 8 | X10: 6.4 | Y10: 10 | AA10: 8 | AB10: 12.6 | AC10: 10
A11: 10 | B11: 1110 | L11: 0 | M11: 0 | N11: 0 | S11: 9 | T11: 5.6 | U11: 30 | W11: 9 | X11: 6 | Y11: 18 | AA11: 9 | AB11: 11.6 | AC11: 27
A12: 11 | B12: 1111 | L12: 0 | M12: 0 | N12: 0 | S12: 10 | T12: 6.6 | U12: 7 | W12: 10 | X12: 6.6 | Y12: 7 | AA12: 10 | AB12: 13.2 | AC12: 3
A13: 12 | B13: 1112 | L13: 0 | M13: 0 | N13: 0 | S13: 11 | T13: 6 | U13: 18 | W13: 11 | X13: 5.6 | Y13: 33 | AA13: 11 | AB13: 11.6 | AC13: 27
A14: 13 | B14: 1113 | L14: 0 | M14: 0 | N14: 0 | S14: 12 | T14: 5.2 | U14: 37 | W14: 12 | X14: 5.2 | Y14: 38 | AA14: 12 | AB14: 10.4 | AC14: 42
A15: 14 | B15: 1114 | L15: 0 | M15: 0 | N15: 0 | S15: 13 | T15: 6.8 | U15: 1 | W15: 13 | X15: 6.4 | Y15: 10 | AA15: 13 | AB15: 13.2 | AC15: 3
A16: 15 | B16: 1115 | L16: 0 | M16: 0 | N16: 0 | S16: 14 | T16: 5 | U16: 40 | W16: 14 | X16: 5 | Y16: 42 | AA16: 14 | AB16: 10 | AC16: 43
A17: 16 | B17: 1116 | L17: 0 | M17: 0 | N17: 0 | S17: 15 | T17: 5.6 | U17: 30 | W17: 15 | X17: 7.6 | Y17: 2 | AA17: 15 | AB17: 13.2 | AC17: 3
A18: 17 | B18: 1117 | L18: 0 | M18: 0 | N18: 0 | S18: 16 | T18: 6.2 | U18: 10 | W18: 16 | X18: 6.2 | Y18: 14 | AA18: 16 | AB18: 12.4 | AC18: 12
A19: 18 | B19: 1118 | L19: 0 | M19: 0 | N19: 0 | S19: 17 | T19: 6.2 | U19: 10 | W19: 17 | X19: 5.8 | Y19: 26 | AA19: 17 | AB19: 12 | AC19: 21
A20: 19 | B20: 1119 | L20: 0 | M20: 0 | N20: 0 | S20: 18 | T20: 6.2 | U20: 10 | W20: 18 | X20: 5.8 | Y20: 26 | AA20: 18 | AB20: 12 | AC20: 21
A21: 20 | B21: 1120 | L21: 0 | M21: 0 | N21: 0 | S21: 19 | T21: 5.8 | U21: 25 | W21: 19 | X21: 6.2 | Y21: 14 | AA21: 19 | AB21: 12 | AC21: 21
A22: 21 | B22: 1121 | L22: 0 | M22: 0 | N22: 0 | S22: 20 | T22: 4.6 | U22: 43 | W22: 20 | X22: 5.2 | Y22: 38 | AA22: 20 | AB22: 9.8 | AC22: 44
A23: 22 | B23: 1122 | L23: 0 | M23: 0 | N23: 0 | S23: 21 | T23: 6.8 | U23: 1 | W23: 21 | X23: 6.4 | Y23: 10 | AA23: 21 | AB23: 13.2 | AC23: 3
A24: 23 | B24: 1123 | L24: 0 | M24: 0 | N24: 0 | S24: 22 | T24: 6.4 | U24: 8 | W24: 22 | X24: 6.8 | Y24: 5 | AA24: 22 | AB24: 13.2 | AC24: 3
A25: 24 | B25: 1124 | L25: 0 | M25: 0 | N25: 0 | S25: 23 | T25: 6 | U25: 18 | W25: 23 | X25: 6.4 | Y25: 10 | AA25: 23 | AB25: 12.4 | AC25: 12
A26: 25 | B26: 1125 | L26: 0 | M26: 0 | N26: 0 | S26: 24 | T26: 6.4 | U26: 8 | W26: 24 | X26: 6 | Y26: 18 | AA26: 24 | AB26: 12.4 | AC26: 12
A27: 26 | B27: 1126 | L27: 0 | M27: 0 | N27: 0 | S27: 25 | T27: 5.6 | U27: 30 | W27: 25 | X27: 5.8 | Y27: 26 | AA27: 25 | AB27: 11.4 | AC27: 31
A28: 27 | B28: 1127 | L28: 0 | M28: 0 | N28: 0 | S28: 26 | T28: 6.8 | U28: 1 | W28: 26 | X28: 5.6 | Y28: 33 | AA28: 26 | AB28: 12.4 | AC28: 12
A29: 28 | B29: 1128 | L29: 0 | M29: 0 | N29: 0 | S29: 27 | T29: 5.8 | U29: 25 | W29: 27 | X29: 6 | Y29: 18 | AA29: 27 | AB29: 11.8 | AC29: 26
A30: 29 | B30: 1129 | L30: 0 | M30: 0 | N30: 0 | S30: 28 | T30: 5.8 | U30: 25 | W30: 28 | X30: 5.8 | Y30: 26 | AA30: 28 | AB30: 11.6 | AC30: 27
A31: 30 | B31: 1130 | L31: 0 | M31: 0 | N31: 0 | S31: 29 | T31: 5.8 | U31: 25 | W31: 29 | X31: 7.2 | Y31: 3 | AA31: 29 | AB31: 13 | AC31: 8
A32: 31 | B32: 1131 | L32: 0 | M32: 0 | N32: 0 | S32: 30 | T32: 6 | U32: 18 | W32: 30 | X32: 6.2 | Y32: 14 | AA32: 30 | AB32: 12.2 | AC32: 16
A33: 32 | B33: 1132 | L33: 0 | M33: 0 | N33: 0 | S33: 31 | T33: 6.2 | U33: 10 | W33: 31 | X33: 5.2 | Y33: 38 | AA33: 31 | AB33: 11.4 | AC33: 31
A34: 33 | B34: 1133 | L34: 0 | M34: 0 | N34: 0 | S34: 32 | T34: 5.6 | U34: 30 | W34: 32 | X34: 5.2 | Y34: 38 | AA34: 32 | AB34: 10.8 | AC34: 38
A35: 34 | B35: 1134 | L35: 0 | M35: 0 | N35: 0 | S35: 33 | T35: 6.2 | U35: 10 | W35: 33 | X35: 6 | Y35: 18 | AA35: 33 | AB35: 12.2 | AC35: 16
A36: 35 | B36: 1135 | L36: 0 | M36: 0 | N36: 0 | S36: 34 | T36: 5.6 | U36: 30 | W36: 34 | X36: 6.6 | Y36: 7 | AA36: 34 | AB36: 12.2 | AC36: 16
A37: 36 | B37: 1136 | L37: 0 | M37: 0 | N37: 0 | S37: 35 | T37: 4.8 | U37: 42 | W37: 35 | X37: 6 | Y37: 18 | AA37: 35 | AB37: 10.8 | AC37: 38
A38: 37 | B38: 1137 | L38: 0 | M38: 0 | N38: 0 | S38: 36 | T38: 5.2 | U38: 37 | W38: 36 | X38: 6 | Y38: 18 | AA38: 36 | AB38: 11.2 | AC38: 33
A39: 38 | B39: 1138 | L39: 0 | M39: 0 | N39: 0 | S39: 37 | T39: 6.8 | U39: 1 | W39: 37 | X39: 7.2 | Y39: 3 | AA39: 37 | AB39: 14 | AC39: 1
A40: 39 | B40: 1139 | L40: 0 | M40: 0 | N40: 0 | S40: 38 | T40: 6.2 | U40: 10 | W40: 38 | X40: 6.8 | Y40: 5 | AA40: 38 | AB40: 13 | AC40: 8
A41: 40 | B41: 1140 | L41: 0 | M41: 0 | N41: 0 | S41: 39 | T41: 5.6 | U41: 30 | W41: 39 | X41: 5 | Y41: 42 | AA41: 39 | AB41: 10.6 | AC41: 41
A42: 41 | B42: 1141 | L42: 0 | M42: 0 | N42: 0 | S42: 40 | T42: 5.2 | U42: 37 | W42: 40 | X42: 5.8 | Y42: 26 | AA42: 40 | AB42: 11 | AC42: 36
A43: 42 | B43: 1142 | L43: 0 | M43: 0 | N43: 0 | S43: 41 | T43: 6 | U43: 18 | W43: 41 | X43: 5.6 | Y43: 33 | AA43: 41 | AB43: 11.6 | AC43: 27
A44: 43 | B44: 1143 | L44: 0 | M44: 0 | N44: 0 | S44: 42 | T44: 6.8 | U44: 1 | W44: 42 | X44: 6.6 | Y44: 7 | AA44: 42 | AB44: 13.4 | AC44: 2
A45: 44 | B45: 1144 | L45: 0 | M45: 0 | N45: 0 | S45: 43 | T45: 5.6 | U45: 30 | W45: 43 | X45: 5.6 | Y45: 33 | AA45: 43 | AB45: 11.2 | AC45: 33
A46: 45 | B46: 1145 | L46: 0 | M46: 0 | N46: 0 | S46: 44 | T46: 5.8 | U46: 25 | W46: 44 | X46: 5.4 | Y46: 37 | AA46: 44 | AB46: 11.2 | AC46: 33
K47: 平均 | L47: =IF(SUM(L2:L46)=0,0,AVERAGEIF(L2:L46,">0")) -> 6.8 | M47: =IF(SUM(M2:M46)=0,0,AVERAGEIF(M2:M46,">0")) -> 6.4 | N47: =IF(SUM(N2:N46)=0,0,AVERAGEIF(N2:N46,">0")) -> 13.2 | S47: 45 | T47: 6 | U47: 18 | W47: 45 | X47: 5 | Y47: 42 | AA47: 45 | AB47: 11 | AC47: =_xlfn.RANK.EQ(AB47,$AB$3:$AB$47) -> 36

Sheet 22s
A1: 連番 | B1: HRNO | C1: 名前 | D1: 列１ | E1: 列２ | F1: 列３ | G1: 列４ | H1: 列５ | I1: 列６ | J1: 感想 | L1: 発表 | M1: 制作 | N1: 総計 | P1: class | Q1: =集計!Q1 -> 11 | S1: 発表 | W1: 制作物 | AA1: 総合
A2: 1 | B2: =$Q$1*100+A2 -> 1101 | C2: =INDIRECT($B2&"!I2") -> 情報太郎 | D2: =INDIRECT($B2&"!"&$Q$4&$Q$3+5) -> 1 | E2: =INDIRECT($B2&"!"&$Q$5&$Q$3+5) -> 1 | F2: =INDIRECT($B2&"!"&$Q$6&$Q$3+5) -> 2 | G2: =INDIRECT($B2&"!"&$Q$7&$Q$3+5) -> 3 | H2: =INDIRECT($B2&"!"&$Q$8&$Q$3+5) -> 2 | I2: =INDIRECT($B2&"!"&$Q$9&$Q$3+5) -> 2 | J2: =INDIRECT($B2&"!"&$Q$10&$Q$3+5) -> 1番22番への感想 | L2: =SUMIF(D2:F2,">=0") -> 4 | M2: =SUMIF(G2:I2,">=0") -> 7 | N2: =SUMIF(D2:I2,">=0") -> 11 | S2: 番号 | T2: 平均 | U2: 順位 | W2: 番号 | X2: 平均 | Y2: 順位 | AA2: 番号 | AB2: 平均 | AC2: 順位
A3: 2 | B3: 1102 | C3: =INDIRECT($B3&"!I2") -> 情報次郎 | D3: =INDIRECT($B3&"!"&$Q$4&$Q$3+5) -> 1 | E3: =INDIRECT($B3&"!"&$Q$5&$Q$3+5) -> 2 | F3: =INDIRECT($B3&"!"&$Q$6&$Q$3+5) -> 3 | G3: =INDIRECT($B3&"!"&$Q$7&$Q$3+5) -> 3 | H3: =INDIRECT($B3&"!"&$Q$8&$Q$3+5) -> 1 | I3: =INDIRECT($B3&"!"&$Q$9&$Q$3+5) -> 3 | J3: =INDIRECT($B3&"!"&$Q$10&$Q$3+5) -> 2番22番への感想 | L3: 6 | M3: 7 | N3: 13 | P3: No | Q3: 22 | S3: 1 | T3: =INDIRECT($S3&"s!L47") -> 3 | U3: =_xlfn.RANK.EQ(T3,$T$3:$T$47) -> 45 | W3: 1 | X3: =INDIRECT($S3&"s!M47") -> 3 | Y3: =_xlfn.RANK.EQ(X3,$X$3:$X$47) -> 45 | AA3: 1 | AB3: =INDIRECT($S3&"s!N47") -> 6 | AC3: =_xlfn.RANK.EQ(AB3,$AB$3:$AB$47) -> 45
A4: 3 | B4: 1103 | C4: 情報三郎 | D4: =INDIRECT($B4&"!"&$Q$4&$Q$3+5) -> 3 | E4: 2 | F4: 3 | G4: 1 | H4: 2 | I4: 3 | J4: 3番22番への感想 | L4: 8 | M4: 6 | N4: 14 | P4: 列２ | Q4: C | S4: 2 | T4: =INDIRECT($S4&"s!L47") -> 6.2 | U4: =_xlfn.RANK.EQ(T4,$T$3:$T$47) -> 10 | W4: 2 | X4: =INDIRECT($S4&"s!M47") -> 6 | Y4: =_xlfn.RANK.EQ(X4,$X$3:$X$47) -> 18 | AA4: 2 | AB4: =INDIRECT($S4&"s!N47") -> 12.2 | AC4: =_xlfn.RANK.EQ(AB4,$AB$3:$AB$47) -> 16
A5: 4 | B5: 1104 | C5: 情報四郎 | D5: =INDIRECT($B5&"!"&$Q$4&$Q$3+5) -> 3 | E5: 1 | F5: 1 | G5: 1 | H5: 3 | I5: 2 | J5: 4番22番への感想 | L5: 5 | M5: 6 | N5: 11 | P5: 列３ | Q5: D | S5: 3 | T5: 6 | U5: 18 | W5: 3 | X5: 6.2 | Y5: 14 | AA5: 3 | AB5: 12.2 | AC5: 16
A6: 5 | B6: 1105 | C6: 情報五郎 | D6: =INDIRECT($B6&"!"&$Q$4&$Q$3+5) -> 3 | E6: 3 | F6: 3 | G6: 3 | H6: 2 | I6: 3 | J6: 5番22番への感想 | L6: 9 | M6: 8 | N6: 17 | P6: 列４ | Q6: E | S6: 4 | T6: 4 | U6: 44 | W6: 4 | X6: 8 | Y6: 1 | AA6: 4 | AB6: 12 | AC6: 21
A7: 6 | B7: 1106 | C7: =INDIRECT($B7&"!H1") ->  | L7: 0 | M7: 0 | N7: 0 | P7: 列５ | Q7: F | S7: 5 | T7: 6 | U7: 18 | W7: 5 | X7: 6 | Y7: 18 | AA7: 5 | AB7: 12 | AC7: 21
A8: 7 | B8: 1107 | L8: 0 | M8: 0 | N8: 0 | P8: 列６ | Q8: G | S8: 6 | T8: 6.8 | U8: 1 | W8: 6 | X8: 5.8 | Y8: 26 | AA8: 6 | AB8: 12.6 | AC8: 10
A9: 8 | B9: 1108 | L9: 0 | M9: 0 | N9: 0 | P9: 列７ | Q9: H | S9: 7 | T9: 5 | U9: 40 | W9: 7 | X9: 5.8 | Y9: 26 | AA9: 7 | AB9: 10.8 | AC9: 38
A10: 9 | B10: 1109 | L10: 0 | M10: 0 | N10: 0 | P10: 列８ | Q10: I | S10: 8 | T10: 6.2 | U10: 10 | W10: 8 | X10: 6.4 | Y10: 10 | AA10: 8 | AB10: 12.6 | AC10: 10
A11: 10 | B11: 1110 | L11: 0 | M11: 0 | N11: 0 | S11: 9 | T11: 5.6 | U11: 30 | W11: 9 | X11: 6 | Y11: 18 | AA11: 9 | AB11: 11.6 | AC11: 27
A12: 11 | B12: 1111 | L12: 0 | M12: 0 | N12: 0 | S12: 10 | T12: 6.6 | U12: 7 | W12: 10 | X12: 6.6 | Y12: 7 | AA12: 10 | AB12: 13.2 | AC12: 3
A13: 12 | B13: 1112 | L13: 0 | M13: 0 | N13: 0 | S13: 11 | T13: 6 | U13: 18 | W13: 11 | X13: 5.6 | Y13: 33 | AA13: 11 | AB13: 11.6 | AC13: 27
A14: 13 | B14: 1113 | L14: 0 | M14: 0 | N14: 0 | S14: 12 | T14: 5.2 | U14: 37 | W14: 12 | X14: 5.2 | Y14: 38 | AA14: 12 | AB14: 10.4 | AC14: 42
A15: 14 | B15: 1114 | L15: 0 | M15: 0 | N15: 0 | S15: 13 | T15: 6.8 | U15: 1 | W15: 13 | X15: 6.4 | Y15: 10 | AA15: 13 | AB15: 13.2 | AC15: 3
A16: 15 | B16: 1115 | L16: 0 | M16: 0 | N16: 0 | S16: 14 | T16: 5 | U16: 40 | W16: 14 | X16: 5 | Y16: 42 | AA16: 14 | AB16: 10 | AC16: 43
A17: 16 | B17: 1116 | L17: 0 | M17: 0 | N17: 0 | S17: 15 | T17: 5.6 | U17: 30 | W17: 15 | X17: 7.6 | Y17: 2 | AA17: 15 | AB17: 13.2 | AC17: 3
A18: 17 | B18: 1117 | L18: 0 | M18: 0 | N18: 0 | S18: 16 | T18: 6.2 | U18: 10 | W18: 16 | X18: 6.2 | Y18: 14 | AA18: 16 | AB18: 12.4 | AC18: 12
A19: 18 | B19: 1118 | L19: 0 | M19: 0 | N19: 0 | S19: 17 | T19: 6.2 | U19: 10 | W19: 17 | X19: 5.8 | Y19: 26 | AA19: 17 | AB19: 12 | AC19: 21
A20: 19 | B20: 1119 | L20: 0 | M20: 0 | N20: 0 | S20: 18 | T20: 6.2 | U20: 10 | W20: 18 | X20: 5.8 | Y20: 26 | AA20: 18 | AB20: 12 | AC20: 21
A21: 20 | B21: 1120 | L21: 0 | M21: 0 | N21: 0 | S21: 19 | T21: 5.8 | U21: 25 | W21: 19 | X21: 6.2 | Y21: 14 | AA21: 19 | AB21: 12 | AC21: 21
A22: 21 | B22: 1121 | L22: 0 | M22: 0 | N22: 0 | S22: 20 | T22: 4.6 | U22: 43 | W22: 20 | X22: 5.2 | Y22: 38 | AA22: 20 | AB22: 9.8 | AC22: 44
A23: 22 | B23: 1122 | L23: 0 | M23: 0 | N23: 0 | S23: 21 | T23: 6.8 | U23: 1 | W23: 21 | X23: 6.4 | Y23: 10 | AA23: 21 | AB23: 13.2 | AC23: 3
A24: 23 | B24: 1123 | L24: 0 | M24: 0 | N24: 0 | S24: 22 | T24: 6.4 | U24: 8 | W24: 22 | X24: 6.8 | Y24: 5 | AA24: 22 | AB24: 13.2 | AC24: 3
A25: 24 | B25: 1124 | L25: 0 | M25: 0 | N25: 0 | S25: 23 | T25: 6 | U25: 18 | W25: 23 | X25: 6.4 | Y25: 10 | AA25: 23 | AB25: 12.4 | AC25: 12
A26: 25 | B26: 1125 | L26: 0 | M26: 0 | N26: 0 | S26: 24 | T26: 6.4 | U26: 8 | W26: 24 | X26: 6 | Y26: 18 | AA26: 24 | AB26: 12.4 | AC26: 12
A27: 26 | B27: 1126 | L27: 0 | M27: 0 | N27: 0 | S27: 25 | T27: 5.6 | U27: 30 | W27: 25 | X27: 5.8 | Y27: 26 | AA27: 25 | AB27: 11.4 | AC27: 31
A28: 27 | B28: 1127 | L28: 0 | M28: 0 | N28: 0 | S28: 26 | T28: 6.8 | U28: 1 | W28: 26 | X28: 5.6 | Y28: 33 | AA28: 26 | AB28: 12.4 | AC28: 12
A29: 28 | B29: 1128 | L29: 0 | M29: 0 | N29: 0 | S29: 27 | T29: 5.8 | U29: 25 | W29: 27 | X29: 6 | Y29: 18 | AA29: 27 | AB29: 11.8 | AC29: 26
A30: 29 | B30: 1129 | L30: 0 | M30: 0 | N30: 0 | S30: 28 | T30: 5.8 | U30: 25 | W30: 28 | X30: 5.8 | Y30: 26 | AA30: 28 | AB30: 11.6 | AC30: 27
A31: 30 | B31: 1130 | L31: 0 | M31: 0 | N31: 0 | S31: 29 | T31: 5.8 | U31: 25 | W31: 29 | X31: 7.2 | Y31: 3 | AA31: 29 | AB31: 13 | AC31: 8
A32: 31 | B32: 1131 | L32: 0 | M32: 0 | N32: 0 | S32: 30 | T32: 6 | U32: 18 | W32: 30 | X32: 6.2 | Y32: 14 | AA32: 30 | AB32: 12.2 | AC32: 16
A33: 32 | B33: 1132 | L33: 0 | M33: 0 | N33: 0 | S33: 31 | T33: 6.2 | U33: 10 | W33: 31 | X33: 5.2 | Y33: 38 | AA33: 31 | AB33: 11.4 | AC33: 31
A34: 33 | B34: 1133 | L34: 0 | M34: 0 | N34: 0 | S34: 32 | T34: 5.6 | U34: 30 | W34: 32 | X34: 5.2 | Y34: 38 | AA34: 32 | AB34: 10.8 | AC34: 38
A35: 34 | B35: 1134 | L35: 0 | M35: 0 | N35: 0 | S35: 33 | T35: 6.2 | U35: 10 | W35: 33 | X35: 6 | Y35: 18 | AA35: 33 | AB35: 12.2 | AC35: 16
A36: 35 | B36: 1135 | L36: 0 | M36: 0 | N36: 0 | S36: 34 | T36: 5.6 | U36: 30 | W36: 34 | X36: 6.6 | Y36: 7 | AA36: 34 | AB36: 12.2 | AC36: 16
A37: 36 | B37: 1136 | L37: 0 | M37: 0 | N37: 0 | S37: 35 | T37: 4.8 | U37: 42 | W37: 35 | X37: 6 | Y37: 18 | AA37: 35 | AB37: 10.8 | AC37: 38
A38: 37 | B38: 1137 | L38: 0 | M38: 0 | N38: 0 | S38: 36 | T38: 5.2 | U38: 37 | W38: 36 | X38: 6 | Y38: 18 | AA38: 36 | AB38: 11.2 | AC38: 33
A39: 38 | B39: 1138 | L39: 0 | M39: 0 | N39: 0 | S39: 37 | T39: 6.8 | U39: 1 | W39: 37 | X39: 7.2 | Y39: 3 | AA39: 37 | AB39: 14 | AC39: 1
A40: 39 | B40: 1139 | L40: 0 | M40: 0 | N40: 0 | S40: 38 | T40: 6.2 | U40: 10 | W40: 38 | X40: 6.8 | Y40: 5 | AA40: 38 | AB40: 13 | AC40: 8
A41: 40 | B41: 1140 | L41: 0 | M41: 0 | N41: 0 | S41: 39 | T41: 5.6 | U41: 30 | W41: 39 | X41: 5 | Y41: 42 | AA41: 39 | AB41: 10.6 | AC41: 41
A42: 41 | B42: 1141 | L42: 0 | M42: 0 | N42: 0 | S42: 40 | T42: 5.2 | U42: 37 | W42: 40 | X42: 5.8 | Y42: 26 | AA42: 40 | AB42: 11 | AC42: 36
A43: 42 | B43: 1142 | L43: 0 | M43: 0 | N43: 0 | S43: 41 | T43: 6 | U43: 18 | W43: 41 | X43: 5.6 | Y43: 33 | AA43: 41 | AB43: 11.6 | AC43: 27
A44: 43 | B44: 1143 | L44: 0 | M44: 0 | N44: 0 | S44: 42 | T44: 6.8 | U44: 1 | W44: 42 | X44: 6.6 | Y44: 7 | AA44: 42 | AB44: 13.4 | AC44: 2
A45: 44 | B45: 1144 | L45: 0 | M45: 0 | N45: 0 | S45: 43 | T45: 5.6 | U45: 30 | W45: 43 | X45: 5.6 | Y45: 33 | AA45: 43 | AB45: 11.2 | AC45: 33
A46: 45 | B46: 1145 | L46: 0 | M46: 0 | N46: 0 | S46: 44 | T46: 5.8 | U46: 25 | W46: 44 | X46: 5.4 | Y46: 37 | AA46: 44 | AB46: 11.2 | AC46: 33
K47: 平均 | L47: =IF(SUM(L2:L46)=0,0,AVERAGEIF(L2:L46,">0")) -> 6.4 | M47: =IF(SUM(M2:M46)=0,0,AVERAGEIF(M2:M46,">0")) -> 6.8 | N47: =IF(SUM(N2:N46)=0,0,AVERAGEIF(N2:N46,">0")) -> 13.2 | S47: 45 | T47: 6 | U47: 18 | W47: 45 | X47: 5 | Y47: 42 | AA47: 45 | AB47: 11 | AC47: =_xlfn.RANK.EQ(AB47,$AB$3:$AB$47) -> 36

Sheet 23s
A1: 連番 | B1: HRNO | C1: 名前 | D1: 列１ | E1: 列２ | F1: 列３ | G1: 列４ | H1: 列５ | I1: 列６ | J1: 感想 | L1: 発表 | M1: 制作 | N1: 総計 | P1: class | Q1: =集計!Q1 -> 11 | S1: 発表 | W1: 制作物 | AA1: 総合
A2: 1 | B2: =$Q$1*100+A2 -> 1101 | C2: =INDIRECT($B2&"!I2") -> 情報太郎 | D2: =INDIRECT($B2&"!"&$Q$4&$Q$3+5) -> 1 | E2: =INDIRECT($B2&"!"&$Q$5&$Q$3+5) -> 3 | F2: =INDIRECT($B2&"!"&$Q$6&$Q$3+5) -> 2 | G2: =INDIRECT($B2&"!"&$Q$7&$Q$3+5) -> 2 | H2: =INDIRECT($B2&"!"&$Q$8&$Q$3+5) -> 3 | I2: =INDIRECT($B2&"!"&$Q$9&$Q$3+5) -> 3 | J2: =INDIRECT($B2&"!"&$Q$10&$Q$3+5) -> 1番23番への感想 | L2: =SUMIF(D2:F2,">=0") -> 6 | M2: =SUMIF(G2:I2,">=0") -> 8 | N2: =SUMIF(D2:I2,">=0") -> 14 | S2: 番号 | T2: 平均 | U2: 順位 | W2: 番号 | X2: 平均 | Y2: 順位 | AA2: 番号 | AB2: 平均 | AC2: 順位
A3: 2 | B3: 1102 | C3: =INDIRECT($B3&"!I2") -> 情報次郎 | D3: =INDIRECT($B3&"!"&$Q$4&$Q$3+5) -> 1 | E3: =INDIRECT($B3&"!"&$Q$5&$Q$3+5) -> 2 | F3: =INDIRECT($B3&"!"&$Q$6&$Q$3+5) -> 2 | G3: =INDIRECT($B3&"!"&$Q$7&$Q$3+5) -> 1 | H3: =INDIRECT($B3&"!"&$Q$8&$Q$3+5) -> 3 | I3: =INDIRECT($B3&"!"&$Q$9&$Q$3+5) -> 2 | J3: =INDIRECT($B3&"!"&$Q$10&$Q$3+5) -> 2番23番への感想 | L3: 5 | M3: 6 | N3: 11 | P3: No | Q3: 23 | S3: 1 | T3: =INDIRECT($S3&"s!L47") -> 3 | U3: =_xlfn.RANK.EQ(T3,$T$3:$T$47) -> 45 | W3: 1 | X3: =INDIRECT($S3&"s!M47") -> 3 | Y3: =_xlfn.RANK.EQ(X3,$X$3:$X$47) -> 45 | AA3: 1 | AB3: =INDIRECT($S3&"s!N47") -> 6 | AC3: =_xlfn.RANK.EQ(AB3,$AB$3:$AB$47) -> 45
A4: 3 | B4: 1103 | C4: 情報三郎 | D4: =INDIRECT($B4&"!"&$Q$4&$Q$3+5) -> 2 | E4: 1 | F4: 3 | G4: 1 | H4: 3 | I4: 3 | J4: 3番23番への感想 | L4: 6 | M4: 7 | N4: 13 | P4: 列２ | Q4: C | S4: 2 | T4: =INDIRECT($S4&"s!L47") -> 6.2 | U4: =_xlfn.RANK.EQ(T4,$T$3:$T$47) -> 10 | W4: 2 | X4: =INDIRECT($S4&"s!M47") -> 6 | Y4: =_xlfn.RANK.EQ(X4,$X$3:$X$47) -> 18 | AA4: 2 | AB4: =INDIRECT($S4&"s!N47") -> 12.2 | AC4: =_xlfn.RANK.EQ(AB4,$AB$3:$AB$47) -> 16
A5: 4 | B5: 1104 | C5: 情報四郎 | D5: =INDIRECT($B5&"!"&$Q$4&$Q$3+5) -> 1 | E5: 3 | F5: 2 | G5: 3 | H5: 2 | I5: 1 | J5: 4番23番への感想 | L5: 6 | M5: 6 | N5: 12 | P5: 列３ | Q5: D | S5: 3 | T5: 6 | U5: 18 | W5: 3 | X5: 6.2 | Y5: 14 | AA5: 3 | AB5: 12.2 | AC5: 16
A6: 5 | B6: 1105 | C6: 情報五郎 | D6: =INDIRECT($B6&"!"&$Q$4&$Q$3+5) -> 3 | E6: 3 | F6: 1 | G6: 3 | H6: 1 | I6: 1 | J6: 5番23番への感想 | L6: 7 | M6: 5 | N6: 12 | P6: 列４ | Q6: E | S6: 4 | T6: 4 | U6: 44 | W6: 4 | X6: 8 | Y6: 1 | AA6: 4 | AB6: 12 | AC6: 21
A7: 6 | B7: 1106 | C7: =INDIRECT($B7&"!H1") ->  | L7: 0 | M7: 0 | N7: 0 | P7: 列５ | Q7: F | S7: 5 | T7: 6 | U7: 18 | W7: 5 | X7: 6 | Y7: 18 | AA7: 5 | AB7: 12 | AC7: 21
A8: 7 | B8: 1107 | L8: 0 | M8: 0 | N8: 0 | P8: 列６ | Q8: G | S8: 6 | T8: 6.8 | U8: 1 | W8: 6 | X8: 5.8 | Y8: 26 | AA8: 6 | AB8: 12.6 | AC8: 10
A9: 8 | B9: 1108 | L9: 0 | M9: 0 | N9: 0 | P9: 列７ | Q9: H | S9: 7 | T9: 5 | U9: 40 | W9: 7 | X9: 5.8 | Y9: 26 | AA9: 7 | AB9: 10.8 | AC9: 38
A10: 9 | B10: 1109 | L10: 0 | M10: 0 | N10: 0 | P10: 列８ | Q10: I | S10: 8 | T10: 6.2 | U10: 10 | W10: 8 | X10: 6.4 | Y10: 10 | AA10: 8 | AB10: 12.6 | AC10: 10
A11: 10 | B11: 1110 | L11: 0 | M11: 0 | N11: 0 | S11: 9 | T11: 5.6 | U11: 30 | W11: 9 | X11: 6 | Y11: 18 | AA11: 9 | AB11: 11.6 | AC11: 27
A12: 11 | B12: 1111 | L12: 0 | M12: 0 | N12: 0 | S12: 10 | T12: 6.6 | U12: 7 | W12: 10 | X12: 6.6 | Y12: 7 | AA12: 10 | AB12: 13.2 | AC12: 3
A13: 12 | B13: 1112 | L13: 0 | M13: 0 | N13: 0 | S13: 11 | T13: 6 | U13: 18 | W13: 11 | X13: 5.6 | Y13: 33 | AA13: 11 | AB13: 11.6 | AC13: 27
A14: 13 | B14: 1113 | L14: 0 | M14: 0 | N14: 0 | S14: 12 | T14: 5.2 | U14: 37 | W14: 12 | X14: 5.2 | Y14: 38 | AA14: 12 | AB14: 10.4 | AC14: 42
A15: 14 | B15: 1114 | L15: 0 | M15: 0 | N15: 0 | S15: 13 | T15: 6.8 | U15: 1 | W15: 13 | X15: 6.4 | Y15: 10 | AA15: 13 | AB15: 13.2 | AC15: 3
A16: 15 | B16: 1115 | L16: 0 | M16: 0 | N16: 0 | S16: 14 | T16: 5 | U16: 40 | W16: 14 | X16: 5 | Y16: 42 | AA16: 14 | AB16: 10 | AC16: 43
A17: 16 | B17: 1116 | L17: 0 | M17: 0 | N17: 0 | S17: 15 | T17: 5.6 | U17: 30 | W17: 15 | X17: 7.6 | Y17: 2 | AA17: 15 | AB17: 13.2 | AC17: 3
A18: 17 | B18: 1117 | L18: 0 | M18: 0 | N18: 0 | S18: 16 | T18: 6.2 | U18: 10 | W18: 16 | X18: 6.2 | Y18: 14 | AA18: 16 | AB18: 12.4 | AC18: 12
A19: 18 | B19: 1118 | L19: 0 | M19: 0 | N19: 0 | S19: 17 | T19: 6.2 | U19: 10 | W19: 17 | X19: 5.8 | Y19: 26 | AA19: 17 | AB19: 12 | AC19: 21
A20: 19 | B20: 1119 | L20: 0 | M20: 0 | N20: 0 | S20: 18 | T20: 6.2 | U20: 10 | W20: 18 | X20: 5.8 | Y20: 26 | AA20: 18 | AB20: 12 | AC20: 21
A21: 20 | B21: 1120 | L21: 0 | M21: 0 | N21: 0 | S21: 19 | T21: 5.8 | U21: 25 | W21: 19 | X21: 6.2 | Y21: 14 | AA21: 19 | AB21: 12 | AC21: 21
A22: 21 | B22: 1121 | L22: 0 | M22: 0 | N22: 0 | S22: 20 | T22: 4.6 | U22: 43 | W22: 20 | X22: 5.2 | Y22: 38 | AA22: 20 | AB22: 9.8 | AC22: 44
A23: 22 | B23: 1122 | L23: 0 | M23: 0 | N23: 0 | S23: 21 | T23: 6.8 | U23: 1 | W23: 21 | X23: 6.4 | Y23: 10 | AA23: 21 | AB23: 13.2 | AC23: 3
A24: 23 | B24: 1123 | L24: 0 | M24: 0 | N24: 0 | S24: 22 | T24: 6.4 | U24: 8 | W24: 22 | X24: 6.8 | Y24: 5 | AA24: 22 | AB24: 13.2 | AC24: 3
A25: 24 | B25: 1124 | L25: 0 | M25: 0 | N25: 0 | S25: 23 | T25: 6 | U25: 18 | W25: 23 | X25: 6.4 | Y25: 10 | AA25: 23 | AB25: 12.4 | AC25: 12
A26: 25 | B26: 1125 | L26: 0 | M26: 0 | N26: 0 | S26: 24 | T26: 6.4 | U26: 8 | W26: 24 | X26: 6 | Y26: 18 | AA26: 24 | AB26: 12.4 | AC26: 12
A27: 26 | B27: 1126 | L27: 0 | M27: 0 | N27: 0 | S27: 25 | T27: 5.6 | U27: 30 | W27: 25 | X27: 5.8 | Y27: 26 | AA27: 25 | AB27: 11.4 | AC27: 31
A28: 27 | B28: 1127 | L28: 0 | M28: 0 | N28: 0 | S28: 26 | T28: 6.8 | U28: 1 | W28: 26 | X28: 5.6 | Y28: 33 | AA28: 26 | AB28: 12.4 | AC28: 12
A29: 28 | B29: 1128 | L29: 0 | M29: 0 | N29: 0 | S29: 27 | T29: 5.8 | U29: 25 | W29: 27 | X29: 6 | Y29: 18 | AA29: 27 | AB29: 11.8 | AC29: 26
A30: 29 | B30: 1129 | L30: 0 | M30: 0 | N30: 0 | S30: 28 | T30: 5.8 | U30: 25 | W30: 28 | X30: 5.8 | Y30: 26 | AA30: 28 | AB30: 11.6 | AC30: 27
A31: 30 | B31: 1130 | L31: 0 | M31: 0 | N31: 0 | S31: 29 | T31: 5.8 | U31: 25 | W31: 29 | X31: 7.2 | Y31: 3 | AA31: 29 | AB31: 13 | AC31: 8
A32: 31 | B32: 1131 | L32: 0 | M32: 0 | N32: 0 | S32: 30 | T32: 6 | U32: 18 | W32: 30 | X32: 6.2 | Y32: 14 | AA32: 30 | AB32: 12.2 | AC32: 16
A33: 32 | B33: 1132 | L33: 0 | M33: 0 | N33: 0 | S33: 31 | T33: 6.2 | U33: 10 | W33: 31 | X33: 5.2 | Y33: 38 | AA33: 31 | AB33: 11.4 | AC33: 31
A34: 33 | B34: 1133 | L34: 0 | M34: 0 | N34: 0 | S34: 32 | T34: 5.6 | U34: 30 | W34: 32 | X34: 5.2 | Y34: 38 | AA34: 32 | AB34: 10.8 | AC34: 38
A35: 34 | B35: 1134 | L35: 0 | M35: 0 | N35: 0 | S35: 33 | T35: 6.2 | U35: 10 | W35: 33 | X35: 6 | Y35: 18 | AA35: 33 | AB35: 12.2 | AC35: 16
A36: 35 | B36: 1135 | L36: 0 | M36: 0 | N36: 0 | S36: 34 | T36: 5.6 | U36: 30 | W36: 34 | X36: 6.6 | Y36: 7 | AA36: 34 | AB36: 12.2 | AC36: 16
A37: 36 | B37: 1136 | L37: 0 | M37: 0 | N37: 0 | S37: 35 | T37: 4.8 | U37: 42 | W37: 35 | X37: 6 | Y37: 18 | AA37: 35 | AB37: 10.8 | AC37: 38
A38: 37 | B38: 1137 | L38: 0 | M38: 0 | N38: 0 | S38: 36 | T38: 5.2 | U38: 37 | W38: 36 | X38: 6 | Y38: 18 | AA38: 36 | AB38: 11.2 | AC38: 33
A39: 38 | B39: 1138 | L39: 0 | M39: 0 | N39: 0 | S39: 37 | T39: 6.8 | U39: 1 | W39: 37 | X39: 7.2 | Y39: 3 | AA39: 37 | AB39: 14 | AC39: 1
A40: 39 | B40: 1139 | L40: 0 | M40: 0 | N40: 0 | S40: 38 | T40: 6.2 | U40: 10 | W40: 38 | X40: 6.8 | Y40: 5 | AA40: 38 | AB40: 13 | AC40: 8
A41: 40 | B41: 1140 | L41: 0 | M41: 0 | N41: 0 | S41: 39 | T41: 5.6 | U41: 30 | W41: 39 | X41: 5 | Y41: 42 | AA41: 39 | AB41: 10.6 | AC41: 41
A42: 41 | B42: 1141 | L42: 0 | M42: 0 | N42: 0 | S42: 40 | T42: 5.2 | U42: 37 | W42: 40 | X42: 5.8 | Y42: 26 | AA42: 40 | AB42: 11 | AC42: 36
A43: 42 | B43: 1142 | L43: 0 | M43: 0 | N43: 0 | S43: 41 | T43: 6 | U43: 18 | W43: 41 | X43: 5.6 | Y43: 33 | AA43: 41 | AB43: 11.6 | AC43: 27
A44: 43 | B44: 1143 | L44: 0 | M44: 0 | N44: 0 | S44: 42 | T44: 6.8 | U44: 1 | W44: 42 | X44: 6.6 | Y44: 7 | AA44: 42 | AB44: 13.4 | AC44: 2
A45: 44 | B45: 1144 | L45: 0 | M45: 0 | N45: 0 | S45: 43 | T45: 5.6 | U45: 30 | W45: 43 | X45: 5.6 | Y45: 33 | AA45: 43 | AB45: 11.2 | AC45: 33
A46: 45 | B46: 1145 | L46: 0 | M46: 0 | N46: 0 | S46: 44 | T46: 5.8 | U46: 25 | W46: 44 | X46: 5.4 | Y46: 37 | AA46: 44 | AB46: 11.2 | AC46: 33
K47: 平均 | L47: =IF(SUM(L2:L46)=0,0,AVERAGEIF(L2:L46,">0")) -> 6 | M47: =IF(SUM(M2:M46)=0,0,AVERAGEIF(M2:M46,">0")) -> 6.4 | N47: =IF(SUM(N2:N46)=0,0,AVERAGEIF(N2:N46,">0")) -> 12.4 | S47: 45 | T47: 6 | U47: 18 | W47: 45 | X47: 5 | Y47: 42 | AA47: 45 | AB47: 11 | AC47: =_xlfn.RANK.EQ(AB47,$AB$3:$AB$47) -> 36

Sheet 24s
A1: 連番 | B1: HRNO | C1: 名前 | D1: 列１ | E1: 列２ | F1: 列３ | G1: 列４ | H1: 列５ | I1: 列６ | J1: 感想 | L1: 発表 | M1: 制作 | N1: 総計 | P1: class | Q1: =集計!Q1 -> 11 | S1: 発表 | W1: 制作物 | AA1: 総合
A2: 1 | B2: =$Q$1*100+A2 -> 1101 | C2: =INDIRECT($B2&"!I2") -> 情報太郎 | D2: =INDIRECT($B2&"!"&$Q$4&$Q$3+5) -> 1 | E2: =INDIRECT($B2&"!"&$Q$5&$Q$3+5) -> 3 | F2: =INDIRECT($B2&"!"&$Q$6&$Q$3+5) -> 3 | G2: =INDIRECT($B2&"!"&$Q$7&$Q$3+5) -> 2 | H2: =INDIRECT($B2&"!"&$Q$8&$Q$3+5) -> 2 | I2: =INDIRECT($B2&"!"&$Q$9&$Q$3+5) -> 3 | J2: =INDIRECT($B2&"!"&$Q$10&$Q$3+5) -> 1番24番への感想 | L2: =SUMIF(D2:F2,">=0") -> 7 | M2: =SUMIF(G2:I2,">=0") -> 7 | N2: =SUMIF(D2:I2,">=0") -> 14 | S2: 番号 | T2: 平均 | U2: 順位 | W2: 番号 | X2: 平均 | Y2: 順位 | AA2: 番号 | AB2: 平均 | AC2: 順位
A3: 2 | B3: 1102 | C3: =INDIRECT($B3&"!I2") -> 情報次郎 | D3: =INDIRECT($B3&"!"&$Q$4&$Q$3+5) -> 3 | E3: =INDIRECT($B3&"!"&$Q$5&$Q$3+5) -> 2 | F3: =INDIRECT($B3&"!"&$Q$6&$Q$3+5) -> 3 | G3: =INDIRECT($B3&"!"&$Q$7&$Q$3+5) -> 1 | H3: =INDIRECT($B3&"!"&$Q$8&$Q$3+5) -> 3 | I3: =INDIRECT($B3&"!"&$Q$9&$Q$3+5) -> 1 | J3: =INDIRECT($B3&"!"&$Q$10&$Q$3+5) -> 2番24番への感想 | L3: 8 | M3: 5 | N3: 13 | P3: No | Q3: 24 | S3: 1 | T3: =INDIRECT($S3&"s!L47") -> 3 | U3: =_xlfn.RANK.EQ(T3,$T$3:$T$47) -> 45 | W3: 1 | X3: =INDIRECT($S3&"s!M47") -> 3 | Y3: =_xlfn.RANK.EQ(X3,$X$3:$X$47) -> 45 | AA3: 1 | AB3: =INDIRECT($S3&"s!N47") -> 6 | AC3: =_xlfn.RANK.EQ(AB3,$AB$3:$AB$47) -> 45
A4: 3 | B4: 1103 | C4: 情報三郎 | D4: =INDIRECT($B4&"!"&$Q$4&$Q$3+5) -> 3 | E4: 3 | F4: 3 | G4: 3 | H4: 2 | I4: 3 | J4: 3番24番への感想 | L4: 9 | M4: 8 | N4: 17 | P4: 列２ | Q4: C | S4: 2 | T4: =INDIRECT($S4&"s!L47") -> 6.2 | U4: =_xlfn.RANK.EQ(T4,$T$3:$T$47) -> 10 | W4: 2 | X4: =INDIRECT($S4&"s!M47") -> 6 | Y4: =_xlfn.RANK.EQ(X4,$X$3:$X$47) -> 18 | AA4: 2 | AB4: =INDIRECT($S4&"s!N47") -> 12.2 | AC4: =_xlfn.RANK.EQ(AB4,$AB$3:$AB$47) -> 16
A5: 4 | B5: 1104 | C5: 情報四郎 | D5: =INDIRECT($B5&"!"&$Q$4&$Q$3+5) -> 1 | E5: 2 | F5: 1 | G5: 2 | H5: 1 | I5: 3 | J5: 4番24番への感想 | L5: 4 | M5: 6 | N5: 10 | P5: 列３ | Q5: D | S5: 3 | T5: 6 | U5: 18 | W5: 3 | X5: 6.2 | Y5: 14 | AA5: 3 | AB5: 12.2 | AC5: 16
A6: 5 | B6: 1105 | C6: 情報五郎 | D6: =INDIRECT($B6&"!"&$Q$4&$Q$3+5) -> 1 | E6: 2 | F6: 1 | G6: 2 | H6: 1 | I6: 1 | J6: 5番24番への感想 | L6: 4 | M6: 4 | N6: 8 | P6: 列４ | Q6: E | S6: 4 | T6: 4 | U6: 44 | W6: 4 | X6: 8 | Y6: 1 | AA6: 4 | AB6: 12 | AC6: 21
A7: 6 | B7: 1106 | C7: =INDIRECT($B7&"!H1") ->  | L7: 0 | M7: 0 | N7: 0 | P7: 列５ | Q7: F | S7: 5 | T7: 6 | U7: 18 | W7: 5 | X7: 6 | Y7: 18 | AA7: 5 | AB7: 12 | AC7: 21
A8: 7 | B8: 1107 | L8: 0 | M8: 0 | N8: 0 | P8: 列６ | Q8: G | S8: 6 | T8: 6.8 | U8: 1 | W8: 6 | X8: 5.8 | Y8: 26 | AA8: 6 | AB8: 12.6 | AC8: 10
A9: 8 | B9: 1108 | L9: 0 | M9: 0 | N9: 0 | P9: 列７ | Q9: H | S9: 7 | T9: 5 | U9: 40 | W9: 7 | X9: 5.8 | Y9: 26 | AA9: 7 | AB9: 10.8 | AC9: 38
A10: 9 | B10: 1109 | L10: 0 | M10: 0 | N10: 0 | P10: 列８ | Q10: I | S10: 8 | T10: 6.2 | U10: 10 | W10: 8 | X10: 6.4 | Y10: 10 | AA10: 8 | AB10: 12.6 | AC10: 10
A11: 10 | B11: 1110 | L11: 0 | M11: 0 | N11: 0 | S11: 9 | T11: 5.6 | U11: 30 | W11: 9 | X11: 6 | Y11: 18 | AA11: 9 | AB11: 11.6 | AC11: 27
A12: 11 | B12: 1111 | L12: 0 | M12: 0 | N12: 0 | S12: 10 | T12: 6.6 | U12: 7 | W12: 10 | X12: 6.6 | Y12: 7 | AA12: 10 | AB12: 13.2 | AC12: 3
A13: 12 | B13: 1112 | L13: 0 | M13: 0 | N13: 0 | S13: 11 | T13: 6 | U13: 18 | W13: 11 | X13: 5.6 | Y13: 33 | AA13: 11 | AB13: 11.6 | AC13: 27
A14: 13 | B14: 1113 | L14: 0 | M14: 0 | N14: 0 | S14: 12 | T14: 5.2 | U14: 37 | W14: 12 | X14: 5.2 | Y14: 38 | AA14: 12 | AB14: 10.4 | AC14: 42
A15: 14 | B15: 1114 | L15: 0 | M15: 0 | N15: 0 | S15: 13 | T15: 6.8 | U15: 1 | W15: 13 | X15: 6.4 | Y15: 10 | AA15: 13 | AB15: 13.2 | AC15: 3
A16: 15 | B16: 1115 | L16: 0 | M16: 0 | N16: 0 | S16: 14 | T16: 5 | U16: 40 | W16: 14 | X16: 5 | Y16: 42 | AA16: 14 | AB16: 10 | AC16: 43
A17: 16 | B17: 1116 | L17: 0 | M17: 0 | N17: 0 | S17: 15 | T17: 5.6 | U17: 30 | W17: 15 | X17: 7.6 | Y17: 2 | AA17: 15 | AB17: 13.2 | AC17: 3
A18: 17 | B18: 1117 | L18: 0 | M18: 0 | N18: 0 | S18: 16 | T18: 6.2 | U18: 10 | W18: 16 | X18: 6.2 | Y18: 14 | AA18: 16 | AB18: 12.4 | AC18: 12
A19: 18 | B19: 1118 | L19: 0 | M19: 0 | N19: 0 | S19: 17 | T19: 6.2 | U19: 10 | W19: 17 | X19: 5.8 | Y19: 26 | AA19: 17 | AB19: 12 | AC19: 21
A20: 19 | B20: 1119 | L20: 0 | M20: 0 | N20: 0 | S20: 18 | T20: 6.2 | U20: 10 | W20: 18 | X20: 5.8 | Y20: 26 | AA20: 18 | AB20: 12 | AC20: 21
A21: 20 | B21: 1120 | L21: 0 | M21: 0 | N21: 0 | S21: 19 | T21: 5.8 | U21: 25 | W21: 19 | X21: 6.2 | Y21: 14 | AA21: 19 | AB21: 12 | AC21: 21
A22: 21 | B22: 1121 | L22: 0 | M22: 0 | N22: 0 | S22: 20 | T22: 4.6 | U22: 43 | W22: 20 | X22: 5.2 | Y22: 38 | AA22: 20 | AB22: 9.8 | AC22: 44
A23: 22 | B23: 1122 | L23: 0 | M23: 0 | N23: 0 | S23: 21 | T23: 6.8 | U23: 1 | W23: 21 | X23: 6.4 | Y23: 10 | AA23: 21 | AB23: 13.2 | AC23: 3
A24: 23 | B24: 1123 | L24: 0 | M24: 0 | N24: 0 | S24: 22 | T24: 6.4 | U24: 8 | W24: 22 | X24: 6.8 | Y24: 5 | AA24: 22 | AB24: 13.2 | AC24: 3
A25: 24 | B25: 1124 | L25: 0 | M25: 0 | N25: 0 | S25: 23 | T25: 6 | U25: 18 | W25: 23 | X25: 6.4 | Y25: 10 | AA25: 23 | AB25: 12.4 | AC25: 12
A26: 25 | B26: 1125 | L26: 0 | M26: 0 | N26: 0 | S26: 24 | T26: 6.4 | U26: 8 | W26: 24 | X26: 6 | Y26: 18 | AA26: 24 | AB26: 12.4 | AC26: 12
A27: 26 | B27: 1126 | L27: 0 | M27: 0 | N27: 0 | S27: 25 | T27: 5.6 | U27: 30 | W27: 25 | X27: 5.8 | Y27: 26 | AA27: 25 | AB27: 11.4 | AC27: 31
A28: 27 | B28: 1127 | L28: 0 | M28: 0 | N28: 0 | S28: 26 | T28: 6.8 | U28: 1 | W28: 26 | X28: 5.6 | Y28: 33 | AA28: 26 | AB28: 12.4 | AC28: 12
A29: 28 | B29: 1128 | L29: 0 | M29: 0 | N29: 0 | S29: 27 | T29: 5.8 | U29: 25 | W29: 27 | X29: 6 | Y29: 18 | AA29: 27 | AB29: 11.8 | AC29: 26
A30: 29 | B30: 1129 | L30: 0 | M30: 0 | N30: 0 | S30: 28 | T30: 5.8 | U30: 25 | W30: 28 | X30: 5.8 | Y30: 26 | AA30: 28 | AB30: 11.6 | AC30: 27
A31: 30 | B31: 1130 | L31: 0 | M31: 0 | N31: 0 | S31: 29 | T31: 5.8 | U31: 25 | W31: 29 | X31: 7.2 | Y31: 3 | AA31: 29 | AB31: 13 | AC31: 8
A32: 31 | B32: 1131 | L32: 0 | M32: 0 | N32: 0 | S32: 30 | T32: 6 | U32: 18 | W32: 30 | X32: 6.2 | Y32: 14 | AA32: 30 | AB32: 12.2 | AC32: 16
A33: 32 | B33: 1132 | L33: 0 | M33: 0 | N33: 0 | S33: 31 | T33: 6.2 | U33: 10 | W33: 31 | X33: 5.2 | Y33: 38 | AA33: 31 | AB33: 11.4 | AC33: 31
A34: 33 | B34: 1133 | L34: 0 | M34: 0 | N34: 0 | S34: 32 | T34: 5.6 | U34: 30 | W34: 32 | X34: 5.2 | Y34: 38 | AA34: 32 | AB34: 10.8 | AC34: 38
A35: 34 | B35: 1134 | L35: 0 | M35: 0 | N35: 0 | S35: 33 | T35: 6.2 | U35: 10 | W35: 33 | X35: 6 | Y35: 18 | AA35: 33 | AB35: 12.2 | AC35: 16
A36: 35 | B36: 1135 | L36: 0 | M36: 0 | N36: 0 | S36: 34 | T36: 5.6 | U36: 30 | W36: 34 | X36: 6.6 | Y36: 7 | AA36: 34 | AB36: 12.2 | AC36: 16
A37: 36 | B37: 1136 | L37: 0 | M37: 0 | N37: 0 | S37: 35 | T37: 4.8 | U37: 42 | W37: 35 | X37: 6 | Y37: 18 | AA37: 35 | AB37: 10.8 | AC37: 38
A38: 37 | B38: 1137 | L38: 0 | M38: 0 | N38: 0 | S38: 36 | T38: 5.2 | U38: 37 | W38: 36 | X38: 6 | Y38: 18 | AA38: 36 | AB38: 11.2 | AC38: 33
A39: 38 | B39: 1138 | L39: 0 | M39: 0 | N39: 0 | S39: 37 | T39: 6.8 | U39: 1 | W39: 37 | X39: 7.2 | Y39: 3 | AA39: 37 | AB39: 14 | AC39: 1
A40: 39 | B40: 1139 | L40: 0 | M40: 0 | N40: 0 | S40: 38 | T40: 6.2 | U40: 10 | W40: 38 | X40: 6.8 | Y40: 5 | AA40: 38 | AB40: 13 | AC40: 8
A41: 40 | B41: 1140 | L41: 0 | M41: 0 | N41: 0 | S41: 39 | T41: 5.6 | U41: 30 | W41: 39 | X41: 5 | Y41: 42 | AA41: 39 | AB41: 10.6 | AC41: 41
A42: 41 | B42: 1141 | L42: 0 | M42: 0 | N42: 0 | S42: 40 | T42: 5.2 | U42: 37 | W42: 40 | X42: 5.8 | Y42: 26 | AA42: 40 | AB42: 11 | AC42: 36
A43: 42 | B43: 1142 | L43: 0 | M43: 0 | N43: 0 | S43: 41 | T43: 6 | U43: 18 | W43: 41 | X43: 5.6 | Y43: 33 | AA43: 41 | AB43: 11.6 | AC43: 27
A44: 43 | B44: 1143 | L44: 0 | M44: 0 | N44: 0 | S44: 42 | T44: 6.8 | U44: 1 | W44: 42 | X44: 6.6 | Y44: 7 | AA44: 42 | AB44: 13.4 | AC44: 2
A45: 44 | B45: 1144 | L45: 0 | M45: 0 | N45: 0 | S45: 43 | T45: 5.6 | U45: 30 | W45: 43 | X45: 5.6 | Y45: 33 | AA45: 43 | AB45: 11.2 | AC45: 33
A46: 45 | B46: 1145 | L46: 0 | M46: 0 | N46: 0 | S46: 44 | T46: 5.8 | U46: 25 | W46: 44 | X46: 5.4 | Y46: 37 | AA46: 44 | AB46: 11.2 | AC46: 33
K47: 平均 | L47: =IF(SUM(L2:L46)=0,0,AVERAGEIF(L2:L46,">0")) -> 6.4 | M47: =IF(SUM(M2:M46)=0,0,AVERAGEIF(M2:M46,">0")) -> 6 | N47: =IF(SUM(N2:N46)=0,0,AVERAGEIF(N2:N46,">0")) -> 12.4 | S47: 45 | T47: 6 | U47: 18 | W47: 45 | X47: 5 | Y47: 42 | AA47: 45 | AB47: 11 | AC47: =_xlfn.RANK.EQ(AB47,$AB$3:$AB$47) -> 36

Sheet 25s
A1: 連番 | B1: HRNO | C1: 名前 | D1: 列１ | E1: 列２ | F1: 列３ | G1: 列４ | H1: 列５ | I1: 列６ | J1: 感想 | L1: 発表 | M1: 制作 | N1: 総計 | P1: class | Q1: =集計!Q1 -> 11 | S1: 発表 | W1: 制作物 | AA1: 総合
A2: 1 | B2: =$Q$1*100+A2 -> 1101 | C2: =INDIRECT($B2&"!I2") -> 情報太郎 | D2: =INDIRECT($B2&"!"&$Q$4&$Q$3+5) -> 1 | E2: =INDIRECT($B2&"!"&$Q$5&$Q$3+5) -> 3 | F2: =INDIRECT($B2&"!"&$Q$6&$Q$3+5) -> 2 | G2: =INDIRECT($B2&"!"&$Q$7&$Q$3+5) -> 1 | H2: =INDIRECT($B2&"!"&$Q$8&$Q$3+5) -> 3 | I2: =INDIRECT($B2&"!"&$Q$9&$Q$3+5) -> 1 | J2: =INDIRECT($B2&"!"&$Q$10&$Q$3+5) -> 1番25番への感想 | L2: =SUMIF(D2:F2,">=0") -> 6 | M2: =SUMIF(G2:I2,">=0") -> 5 | N2: =SUMIF(D2:I2,">=0") -> 11 | S2: 番号 | T2: 平均 | U2: 順位 | W2: 番号 | X2: 平均 | Y2: 順位 | AA2: 番号 | AB2: 平均 | AC2: 順位
A3: 2 | B3: 1102 | C3: =INDIRECT($B3&"!I2") -> 情報次郎 | D3: =INDIRECT($B3&"!"&$Q$4&$Q$3+5) -> 2 | E3: =INDIRECT($B3&"!"&$Q$5&$Q$3+5) -> 2 | F3: =INDIRECT($B3&"!"&$Q$6&$Q$3+5) -> 2 | G3: =INDIRECT($B3&"!"&$Q$7&$Q$3+5) -> 1 | H3: =INDIRECT($B3&"!"&$Q$8&$Q$3+5) -> 3 | I3: =INDIRECT($B3&"!"&$Q$9&$Q$3+5) -> 3 | J3: =INDIRECT($B3&"!"&$Q$10&$Q$3+5) -> 2番25番への感想 | L3: 6 | M3: 7 | N3: 13 | P3: No | Q3: 25 | S3: 1 | T3: =INDIRECT($S3&"s!L47") -> 3 | U3: =_xlfn.RANK.EQ(T3,$T$3:$T$47) -> 45 | W3: 1 | X3: =INDIRECT($S3&"s!M47") -> 3 | Y3: =_xlfn.RANK.EQ(X3,$X$3:$X$47) -> 45 | AA3: 1 | AB3: =INDIRECT($S3&"s!N47") -> 6 | AC3: =_xlfn.RANK.EQ(AB3,$AB$3:$AB$47) -> 45
A4: 3 | B4: 1103 | C4: 情報三郎 | D4: =INDIRECT($B4&"!"&$Q$4&$Q$3+5) -> 1 | E4: 1 | F4: 3 | G4: 2 | H4: 1 | I4: 3 | J4: 3番25番への感想 | L4: 5 | M4: 6 | N4: 11 | P4: 列２ | Q4: C | S4: 2 | T4: =INDIRECT($S4&"s!L47") -> 6.2 | U4: =_xlfn.RANK.EQ(T4,$T$3:$T$47) -> 10 | W4: 2 | X4: =INDIRECT($S4&"s!M47") -> 6 | Y4: =_xlfn.RANK.EQ(X4,$X$3:$X$47) -> 18 | AA4: 2 | AB4: =INDIRECT($S4&"s!N47") -> 12.2 | AC4: =_xlfn.RANK.EQ(AB4,$AB$3:$AB$47) -> 16
A5: 4 | B5: 1104 | C5: 情報四郎 | D5: =INDIRECT($B5&"!"&$Q$4&$Q$3+5) -> 3 | E5: 1 | F5: 1 | G5: 3 | H5: 1 | I5: 3 | J5: 4番25番への感想 | L5: 5 | M5: 7 | N5: 12 | P5: 列３ | Q5: D | S5: 3 | T5: 6 | U5: 18 | W5: 3 | X5: 6.2 | Y5: 14 | AA5: 3 | AB5: 12.2 | AC5: 16
A6: 5 | B6: 1105 | C6: 情報五郎 | D6: =INDIRECT($B6&"!"&$Q$4&$Q$3+5) -> 2 | E6: 1 | F6: 3 | G6: 2 | H6: 1 | I6: 1 | J6: 5番25番への感想 | L6: 6 | M6: 4 | N6: 10 | P6: 列４ | Q6: E | S6: 4 | T6: 4 | U6: 44 | W6: 4 | X6: 8 | Y6: 1 | AA6: 4 | AB6: 12 | AC6: 21
A7: 6 | B7: 1106 | C7: =INDIRECT($B7&"!H1") ->  | L7: 0 | M7: 0 | N7: 0 | P7: 列５ | Q7: F | S7: 5 | T7: 6 | U7: 18 | W7: 5 | X7: 6 | Y7: 18 | AA7: 5 | AB7: 12 | AC7: 21
A8: 7 | B8: 1107 | L8: 0 | M8: 0 | N8: 0 | P8: 列６ | Q8: G | S8: 6 | T8: 6.8 | U8: 1 | W8: 6 | X8: 5.8 | Y8: 26 | AA8: 6 | AB8: 12.6 | AC8: 10
A9: 8 | B9: 1108 | L9: 0 | M9: 0 | N9: 0 | P9: 列７ | Q9: H | S9: 7 | T9: 5 | U9: 40 | W9: 7 | X9: 5.8 | Y9: 26 | AA9: 7 | AB9: 10.8 | AC9: 38
A10: 9 | B10: 1109 | L10: 0 | M10: 0 | N10: 0 | P10: 列８ | Q10: I | S10: 8 | T10: 6.2 | U10: 10 | W10: 8 | X10: 6.4 | Y10: 10 | AA10: 8 | AB10: 12.6 | AC10: 10
A11: 10 | B11: 1110 | L11: 0 | M11: 0 | N11: 0 | S11: 9 | T11: 5.6 | U11: 30 | W11: 9 | X11: 6 | Y11: 18 | AA11: 9 | AB11: 11.6 | AC11: 27
A12: 11 | B12: 1111 | L12: 0 | M12: 0 | N12: 0 | S12: 10 | T12: 6.6 | U12: 7 | W12: 10 | X12: 6.6 | Y12: 7 | AA12: 10 | AB12: 13.2 | AC12: 3
A13: 12 | B13: 1112 | L13: 0 | M13: 0 | N13: 0 | S13: 11 | T13: 6 | U13: 18 | W13: 11 | X13: 5.6 | Y13: 33 | AA13: 11 | AB13: 11.6 | AC13: 27
A14: 13 | B14: 1113 | L14: 0 | M14: 0 | N14: 0 | S14: 12 | T14: 5.2 | U14: 37 | W14: 12 | X14: 5.2 | Y14: 38 | AA14: 12 | AB14: 10.4 | AC14: 42
A15: 14 | B15: 1114 | L15: 0 | M15: 0 | N15: 0 | S15: 13 | T15: 6.8 | U15: 1 | W15: 13 | X15: 6.4 | Y15: 10 | AA15: 13 | AB15: 13.2 | AC15: 3
A16: 15 | B16: 1115 | L16: 0 | M16: 0 | N16: 0 | S16: 14 | T16: 5 | U16: 40 | W16: 14 | X16: 5 | Y16: 42 | AA16: 14 | AB16: 10 | AC16: 43
A17: 16 | B17: 1116 | L17: 0 | M17: 0 | N17: 0 | S17: 15 | T17: 5.6 | U17: 30 | W17: 15 | X17: 7.6 | Y17: 2 | AA17: 15 | AB17: 13.2 | AC17: 3
A18: 17 | B18: 1117 | L18: 0 | M18: 0 | N18: 0 | S18: 16 | T18: 6.2 | U18: 10 | W18: 16 | X18: 6.2 | Y18: 14 | AA18: 16 | AB18: 12.4 | AC18: 12
A19: 18 | B19: 1118 | L19: 0 | M19: 0 | N19: 0 | S19: 17 | T19: 6.2 | U19: 10 | W19: 17 | X19: 5.8 | Y19: 26 | AA19: 17 | AB19: 12 | AC19: 21
A20: 19 | B20: 1119 | L20: 0 | M20: 0 | N20: 0 | S20: 18 | T20: 6.2 | U20: 10 | W20: 18 | X20: 5.8 | Y20: 26 | AA20: 18 | AB20: 12 | AC20: 21
A21: 20 | B21: 1120 | L21: 0 | M21: 0 | N21: 0 | S21: 19 | T21: 5.8 | U21: 25 | W21: 19 | X21: 6.2 | Y21: 14 | AA21: 19 | AB21: 12 | AC21: 21
A22: 21 | B22: 1121 | L22: 0 | M22: 0 | N22: 0 | S22: 20 | T22: 4.6 | U22: 43 | W22: 20 | X22: 5.2 | Y22: 38 | AA22: 20 | AB22: 9.8 | AC22: 44
A23: 22 | B23: 1122 | L23: 0 | M23: 0 | N23: 0 | S23: 21 | T23: 6.8 | U23: 1 | W23: 21 | X23: 6.4 | Y23: 10 | AA23: 21 | AB23: 13.2 | AC23: 3
A24: 23 | B24: 1123 | L24: 0 | M24: 0 | N24: 0 | S24: 22 | T24: 6.4 | U24: 8 | W24: 22 | X24: 6.8 | Y24: 5 | AA24: 22 | AB24: 13.2 | AC24: 3
A25: 24 | B25: 1124 | L25: 0 | M25: 0 | N25: 0 | S25: 23 | T25: 6 | U25: 18 | W25: 23 | X25: 6.4 | Y25: 10 | AA25: 23 | AB25: 12.4 | AC25: 12
A26: 25 | B26: 1125 | L26: 0 | M26: 0 | N26: 0 | S26: 24 | T26: 6.4 | U26: 8 | W26: 24 | X26: 6 | Y26: 18 | AA26: 24 | AB26: 12.4 | AC26: 12
A27: 26 | B27: 1126 | L27: 0 | M27: 0 | N27: 0 | S27: 25 | T27: 5.6 | U27: 30 | W27: 25 | X27: 5.8 | Y27: 26 | AA27: 25 | AB27: 11.4 | AC27: 31
A28: 27 | B28: 1127 | L28: 0 | M28: 0 | N28: 0 | S28: 26 | T28: 6.8 | U28: 1 | W28: 26 | X28: 5.6 | Y28: 33 | AA28: 26 | AB28: 12.4 | AC28: 12
A29: 28 | B29: 1128 | L29: 0 | M29: 0 | N29: 0 | S29: 27 | T29: 5.8 | U29: 25 | W29: 27 | X29: 6 | Y29: 18 | AA29: 27 | AB29: 11.8 | AC29: 26
A30: 29 | B30: 1129 | L30: 0 | M30: 0 | N30: 0 | S30: 28 | T30: 5.8 | U30: 25 | W30: 28 | X30: 5.8 | Y30: 26 | AA30: 28 | AB30: 11.6 | AC30: 27
A31: 30 | B31: 1130 | L31: 0 | M31: 0 | N31: 0 | S31: 29 | T31: 5.8 | U31: 25 | W31: 29 | X31: 7.2 | Y31: 3 | AA31: 29 | AB31: 13 | AC31: 8
A32: 31 | B32: 1131 | L32: 0 | M32: 0 | N32: 0 | S32: 30 | T32: 6 | U32: 18 | W32: 30 | X32: 6.2 | Y32: 14 | AA32: 30 | AB32: 12.2 | AC32: 16
A33: 32 | B33: 1132 | L33: 0 | M33: 0 | N33: 0 | S33: 31 | T33: 6.2 | U33: 10 | W33: 31 | X33: 5.2 | Y33: 38 | AA33: 31 | AB33: 11.4 | AC33: 31
A34: 33 | B34: 1133 | L34: 0 | M34: 0 | N34: 0 | S34: 32 | T34: 5.6 | U34: 30 | W34: 32 | X34: 5.2 | Y34: 38 | AA34: 32 | AB34: 10.8 | AC34: 38
A35: 34 | B35: 1134 | L35: 0 | M35: 0 | N35: 0 | S35: 33 | T35: 6.2 | U35: 10 | W35: 33 | X35: 6 | Y35: 18 | AA35: 33 | AB35: 12.2 | AC35: 16
A36: 35 | B36: 1135 | L36: 0 | M36: 0 | N36: 0 | S36: 34 | T36: 5.6 | U36: 30 | W36: 34 | X36: 6.6 | Y36: 7 | AA36: 34 | AB36: 12.2 | AC36: 16
A37: 36 | B37: 1136 | L37: 0 | M37: 0 | N37: 0 | S37: 35 | T37: 4.8 | U37: 42 | W37: 35 | X37: 6 | Y37: 18 | AA37: 35 | AB37: 10.8 | AC37: 38
A38: 37 | B38: 1137 | L38: 0 | M38: 0 | N38: 0 | S38: 36 | T38: 5.2 | U38: 37 | W38: 36 | X38: 6 | Y38: 18 | AA38: 36 | AB38: 11.2 | AC38: 33
A39: 38 | B39: 1138 | L39: 0 | M39: 0 | N39: 0 | S39: 37 | T39: 6.8 | U39: 1 | W39: 37 | X39: 7.2 | Y39: 3 | AA39: 37 | AB39: 14 | AC39: 1
A40: 39 | B40: 1139 | L40: 0 | M40: 0 | N40: 0 | S40: 38 | T40: 6.2 | U40: 10 | W40: 38 | X40: 6.8 | Y40: 5 | AA40: 38 | AB40: 13 | AC40: 8
A41: 40 | B41: 1140 | L41: 0 | M41: 0 | N41: 0 | S41: 39 | T41: 5.6 | U41: 30 | W41: 39 | X41: 5 | Y41: 42 | AA41: 39 | AB41: 10.6 | AC41: 41
A42: 41 | B42: 1141 | L42: 0 | M42: 0 | N42: 0 | S42: 40 | T42: 5.2 | U42: 37 | W42: 40 | X42: 5.8 | Y42: 26 | AA42: 40 | AB42: 11 | AC42: 36
A43: 42 | B43: 1142 | L43: 0 | M43: 0 | N43: 0 | S43: 41 | T43: 6 | U43: 18 | W43: 41 | X43: 5.6 | Y43: 33 | AA43: 41 | AB43: 11.6 | AC43: 27
A44: 43 | B44: 1143 | L44: 0 | M44: 0 | N44: 0 | S44: 42 | T44: 6.8 | U44: 1 | W44: 42 | X44: 6.6 | Y44: 7 | AA44: 42 | AB44: 13.4 | AC44: 2
A45: 44 | B45: 1144 | L45: 0 | M45: 0 | N45: 0 | S45: 43 | T45: 5.6 | U45: 30 | W45: 43 | X45: 5.6 | Y45: 33 | AA45: 43 | AB45: 11.2 | AC45: 33
A46: 45 | B46: 1145 | L46: 0 | M46: 0 | N46: 0 | S46: 44 | T46: 5.8 | U46: 25 | W46: 44 | X46: 5.4 | Y46: 37 | AA46: 44 | AB46: 11.2 | AC46: 33
K47: 平均 | L47: =IF(SUM(L2:L46)=0,0,AVERAGEIF(L2:L46,">0")) -> 5.6 | M47: =IF(SUM(M2:M46)=0,0,AVERAGEIF(M2:M46,">0")) -> 5.8 | N47: =IF(SUM(N2:N46)=0,0,AVERAGEIF(N2:N46,">0")) -> 11.4 | S47: 45 | T47: 6 | U47: 18 | W47: 45 | X47: 5 | Y47: 42 | AA47: 45 | AB47: 11 | AC47: =_xlfn.RANK.EQ(AB47,$AB$3:$AB$47) -> 36

Sheet 26s
A1: 連番 | B1: HRNO | C1: 名前 | D1: 列１ | E1: 列２ | F1: 列３ | G1: 列４ | H1: 列５ | I1: 列６ | J1: 感想 | L1: 発表 | M1: 制作 | N1: 総計 | P1: class | Q1: =集計!Q1 -> 11 | S1: 発表 | W1: 制作物 | AA1: 総合
A2: 1 | B2: =$Q$1*100+A2 -> 1101 | C2: =INDIRECT($B2&"!I2") -> 情報太郎 | D2: =INDIRECT($B2&"!"&$Q$4&$Q$3+5) -> 1 | E2: =INDIRECT($B2&"!"&$Q$5&$Q$3+5) -> 3 | F2: =INDIRECT($B2&"!"&$Q$6&$Q$3+5) -> 2 | G2: =INDIRECT($B2&"!"&$Q$7&$Q$3+5) -> 2 | H2: =INDIRECT($B2&"!"&$Q$8&$Q$3+5) -> 1 | I2: =INDIRECT($B2&"!"&$Q$9&$Q$3+5) -> 1 | J2: =INDIRECT($B2&"!"&$Q$10&$Q$3+5) -> 1番26番への感想 | L2: =SUMIF(D2:F2,">=0") -> 6 | M2: =SUMIF(G2:I2,">=0") -> 4 | N2: =SUMIF(D2:I2,">=0") -> 10 | S2: 番号 | T2: 平均 | U2: 順位 | W2: 番号 | X2: 平均 | Y2: 順位 | AA2: 番号 | AB2: 平均 | AC2: 順位
A3: 2 | B3: 1102 | C3: =INDIRECT($B3&"!I2") -> 情報次郎 | D3: =INDIRECT($B3&"!"&$Q$4&$Q$3+5) -> 1 | E3: =INDIRECT($B3&"!"&$Q$5&$Q$3+5) -> 2 | F3: =INDIRECT($B3&"!"&$Q$6&$Q$3+5) -> 2 | G3: =INDIRECT($B3&"!"&$Q$7&$Q$3+5) -> 1 | H3: =INDIRECT($B3&"!"&$Q$8&$Q$3+5) -> 2 | I3: =INDIRECT($B3&"!"&$Q$9&$Q$3+5) -> 3 | J3: =INDIRECT($B3&"!"&$Q$10&$Q$3+5) -> 2番26番への感想 | L3: 5 | M3: 6 | N3: 11 | P3: No | Q3: 26 | S3: 1 | T3: =INDIRECT($S3&"s!L47") -> 3 | U3: =_xlfn.RANK.EQ(T3,$T$3:$T$47) -> 45 | W3: 1 | X3: =INDIRECT($S3&"s!M47") -> 3 | Y3: =_xlfn.RANK.EQ(X3,$X$3:$X$47) -> 45 | AA3: 1 | AB3: =INDIRECT($S3&"s!N47") -> 6 | AC3: =_xlfn.RANK.EQ(AB3,$AB$3:$AB$47) -> 45
A4: 3 | B4: 1103 | C4: 情報三郎 | D4: =INDIRECT($B4&"!"&$Q$4&$Q$3+5) -> 2 | E4: 3 | F4: 3 | G4: 2 | H4: 2 | I4: 1 | J4: 3番26番への感想 | L4: 8 | M4: 5 | N4: 13 | P4: 列２ | Q4: C | S4: 2 | T4: =INDIRECT($S4&"s!L47") -> 6.2 | U4: =_xlfn.RANK.EQ(T4,$T$3:$T$47) -> 10 | W4: 2 | X4: =INDIRECT($S4&"s!M47") -> 6 | Y4: =_xlfn.RANK.EQ(X4,$X$3:$X$47) -> 18 | AA4: 2 | AB4: =INDIRECT($S4&"s!N47") -> 12.2 | AC4: =_xlfn.RANK.EQ(AB4,$AB$3:$AB$47) -> 16
A5: 4 | B5: 1104 | C5: 情報四郎 | D5: =INDIRECT($B5&"!"&$Q$4&$Q$3+5) -> 2 | E5: 3 | F5: 3 | G5: 2 | H5: 2 | I5: 2 | J5: 4番26番への感想 | L5: 8 | M5: 6 | N5: 14 | P5: 列３ | Q5: D | S5: 3 | T5: 6 | U5: 18 | W5: 3 | X5: 6.2 | Y5: 14 | AA5: 3 | AB5: 12.2 | AC5: 16
A6: 5 | B6: 1105 | C6: 情報五郎 | D6: =INDIRECT($B6&"!"&$Q$4&$Q$3+5) -> 3 | E6: 1 | F6: 3 | G6: 3 | H6: 2 | I6: 2 | J6: 5番26番への感想 | L6: 7 | M6: 7 | N6: 14 | P6: 列４ | Q6: E | S6: 4 | T6: 4 | U6: 44 | W6: 4 | X6: 8 | Y6: 1 | AA6: 4 | AB6: 12 | AC6: 21
A7: 6 | B7: 1106 | C7: =INDIRECT($B7&"!H1") ->  | L7: 0 | M7: 0 | N7: 0 | P7: 列５ | Q7: F | S7: 5 | T7: 6 | U7: 18 | W7: 5 | X7: 6 | Y7: 18 | AA7: 5 | AB7: 12 | AC7: 21
A8: 7 | B8: 1107 | L8: 0 | M8: 0 | N8: 0 | P8: 列６ | Q8: G | S8: 6 | T8: 6.8 | U8: 1 | W8: 6 | X8: 5.8 | Y8: 26 | AA8: 6 | AB8: 12.6 | AC8: 10
A9: 8 | B9: 1108 | L9: 0 | M9: 0 | N9: 0 | P9: 列７ | Q9: H | S9: 7 | T9: 5 | U9: 40 | W9: 7 | X9: 5.8 | Y9: 26 | AA9: 7 | AB9: 10.8 | AC9: 38
A10: 9 | B10: 1109 | L10: 0 | M10: 0 | N10: 0 | P10: 列８ | Q10: I | S10: 8 | T10: 6.2 | U10: 10 | W10: 8 | X10: 6.4 | Y10: 10 | AA10: 8 | AB10: 12.6 | AC10: 10
A11: 10 | B11: 1110 | L11: 0 | M11: 0 | N11: 0 | S11: 9 | T11: 5.6 | U11: 30 | W11: 9 | X11: 6 | Y11: 18 | AA11: 9 | AB11: 11.6 | AC11: 27
A12: 11 | B12: 1111 | L12: 0 | M12: 0 | N12: 0 | S12: 10 | T12: 6.6 | U12: 7 | W12: 10 | X12: 6.6 | Y12: 7 | AA12: 10 | AB12: 13.2 | AC12: 3
A13: 12 | B13: 1112 | L13: 0 | M13: 0 | N13: 0 | S13: 11 | T13: 6 | U13: 18 | W13: 11 | X13: 5.6 | Y13: 33 | AA13: 11 | AB13: 11.6 | AC13: 27
A14: 13 | B14: 1113 | L14: 0 | M14: 0 | N14: 0 | S14: 12 | T14: 5.2 | U14: 37 | W14: 12 | X14: 5.2 | Y14: 38 | AA14: 12 | AB14: 10.4 | AC14: 42
A15: 14 | B15: 1114 | L15: 0 | M15: 0 | N15: 0 | S15: 13 | T15: 6.8 | U15: 1 | W15: 13 | X15: 6.4 | Y15: 10 | AA15: 13 | AB15: 13.2 | AC15: 3
A16: 15 | B16: 1115 | L16: 0 | M16: 0 | N16: 0 | S16: 14 | T16: 5 | U16: 40 | W16: 14 | X16: 5 | Y16: 42 | AA16: 14 | AB16: 10 | AC16: 43
A17: 16 | B17: 1116 | L17: 0 | M17: 0 | N17: 0 | S17: 15 | T17: 5.6 | U17: 30 | W17: 15 | X17: 7.6 | Y17: 2 | AA17: 15 | AB17: 13.2 | AC17: 3
A18: 17 | B18: 1117 | L18: 0 | M18: 0 | N18: 0 | S18: 16 | T18: 6.2 | U18: 10 | W18: 16 | X18: 6.2 | Y18: 14 | AA18: 16 | AB18: 12.4 | AC18: 12
A19: 18 | B19: 1118 | L19: 0 | M19: 0 | N19: 0 | S19: 17 | T19: 6.2 | U19: 10 | W19: 17 | X19: 5.8 | Y19: 26 | AA19: 17 | AB19: 12 | AC19: 21
A20: 19 | B20: 1119 | L20: 0 | M20: 0 | N20: 0 | S20: 18 | T20: 6.2 | U20: 10 | W20: 18 | X20: 5.8 | Y20: 26 | AA20: 18 | AB20: 12 | AC20: 21
A21: 20 | B21: 1120 | L21: 0 | M21: 0 | N21: 0 | S21: 19 | T21: 5.8 | U21: 25 | W21: 19 | X21: 6.2 | Y21: 14 | AA21: 19 | AB21: 12 | AC21: 21
A22: 21 | B22: 1121 | L22: 0 | M22: 0 | N22: 0 | S22: 20 | T22: 4.6 | U22: 43 | W22: 20 | X22: 5.2 | Y22: 38 | AA22: 20 | AB22: 9.8 | AC22: 44
A23: 22 | B23: 1122 | L23: 0 | M23: 0 | N23: 0 | S23: 21 | T23: 6.8 | U23: 1 | W23: 21 | X23: 6.4 | Y23: 10 | AA23: 21 | AB23: 13.2 | AC23: 3
A24: 23 | B24: 1123 | L24: 0 | M24: 0 | N24: 0 | S24: 22 | T24: 6.4 | U24: 8 | W24: 22 | X24: 6.8 | Y24: 5 | AA24: 22 | AB24: 13.2 | AC24: 3
A25: 24 | B25: 1124 | L25: 0 | M25: 0 | N25: 0 | S25: 23 | T25: 6 | U25: 18 | W25: 23 | X25: 6.4 | Y25: 10 | AA25: 23 | AB25: 12.4 | AC25: 12
A26: 25 | B26: 1125 | L26: 0 | M26: 0 | N26: 0 | S26: 24 | T26: 6.4 | U26: 8 | W26: 24 | X26: 6 | Y26: 18 | AA26: 24 | AB26: 12.4 | AC26: 12
A27: 26 | B27: 1126 | L27: 0 | M27: 0 | N27: 0 | S27: 25 | T27: 5.6 | U27: 30 | W27: 25 | X27: 5.8 | Y27: 26 | AA27: 25 | AB27: 11.4 | AC27: 31
A28: 27 | B28: 1127 | L28: 0 | M28: 0 | N28: 0 | S28: 26 | T28: 6.8 | U28: 1 | W28: 26 | X28: 5.6 | Y28: 33 | AA28: 26 | AB28: 12.4 | AC28: 12
A29: 28 | B29: 1128 | L29: 0 | M29: 0 | N29: 0 | S29: 27 | T29: 5.8 | U29: 25 | W29: 27 | X29: 6 | Y29: 18 | AA29: 27 | AB29: 11.8 | AC29: 26
A30: 29 | B30: 1129 | L30: 0 | M30: 0 | N30: 0 | S30: 28 | T30: 5.8 | U30: 25 | W30: 28 | X30: 5.8 | Y30: 26 | AA30: 28 | AB30: 11.6 | AC30: 27
A31: 30 | B31: 1130 | L31: 0 | M31: 0 | N31: 0 | S31: 29 | T31: 5.8 | U31: 25 | W31: 29 | X31: 7.2 | Y31: 3 | AA31: 29 | AB31: 13 | AC31: 8
A32: 31 | B32: 1131 | L32: 0 | M32: 0 | N32: 0 | S32: 30 | T32: 6 | U32: 18 | W32: 30 | X32: 6.2 | Y32: 14 | AA32: 30 | AB32: 12.2 | AC32: 16
A33: 32 | B33: 1132 | L33: 0 | M33: 0 | N33: 0 | S33: 31 | T33: 6.2 | U33: 10 | W33: 31 | X33: 5.2 | Y33: 38 | AA33: 31 | AB33: 11.4 | AC33: 31
A34: 33 | B34: 1133 | L34: 0 | M34: 0 | N34: 0 | S34: 32 | T34: 5.6 | U34: 30 | W34: 32 | X34: 5.2 | Y34: 38 | AA34: 32 | AB34: 10.8 | AC34: 38
A35: 34 | B35: 1134 | L35: 0 | M35: 0 | N35: 0 | S35: 33 | T35: 6.2 | U35: 10 | W35: 33 | X35: 6 | Y35: 18 | AA35: 33 | AB35: 12.2 | AC35: 16
A36: 35 | B36: 1135 | L36: 0 | M36: 0 | N36: 0 | S36: 34 | T36: 5.6 | U36: 30 | W36: 34 | X36: 6.6 | Y36: 7 | AA36: 34 | AB36: 12.2 | AC36: 16
A37: 36 | B37: 1136 | L37: 0 | M37: 0 | N37: 0 | S37: 35 | T37: 4.8 | U37: 42 | W37: 35 | X37: 6 | Y37: 18 | AA37: 35 | AB37: 10.8 | AC37: 38
A38: 37 | B38: 1137 | L38: 0 | M38: 0 | N38: 0 | S38: 36 | T38: 5.2 | U38: 37 | W38: 36 | X38: 6 | Y38: 18 | AA38: 36 | AB38: 11.2 | AC38: 33
A39: 38 | B39: 1138 | L39: 0 | M39: 0 | N39: 0 | S39: 37 | T39: 6.8 | U39: 1 | W39: 37 | X39: 7.2 | Y39: 3 | AA39: 37 | AB39: 14 | AC39: 1
A40: 39 | B40: 1139 | L40: 0 | M40: 0 | N40: 0 | S40: 38 | T40: 6.2 | U40: 10 | W40: 38 | X40: 6.8 | Y40: 5 | AA40: 38 | AB40: 13 | AC40: 8
A41: 40 | B41: 1140 | L41: 0 | M41: 0 | N41: 0 | S41: 39 | T41: 5.6 | U41: 30 | W41: 39 | X41: 5 | Y41: 42 | AA41: 39 | AB41: 10.6 | AC41: 41
A42: 41 | B42: 1141 | L42: 0 | M42: 0 | N42: 0 | S42: 40 | T42: 5.2 | U42: 37 | W42: 40 | X42: 5.8 | Y42: 26 | AA42: 40 | AB42: 11 | AC42: 36
A43: 42 | B43: 1142 | L43: 0 | M43: 0 | N43: 0 | S43: 41 | T43: 6 | U43: 18 | W43: 41 | X43: 5.6 | Y43: 33 | AA43: 41 | AB43: 11.6 | AC43: 27
A44: 43 | B44: 1143 | L44: 0 | M44: 0 | N44: 0 | S44: 42 | T44: 6.8 | U44: 1 | W44: 42 | X44: 6.6 | Y44: 7 | AA44: 42 | AB44: 13.4 | AC44: 2
A45: 44 | B45: 1144 | L45: 0 | M45: 0 | N45: 0 | S45: 43 | T45: 5.6 | U45: 30 | W45: 43 | X45: 5.6 | Y45: 33 | AA45: 43 | AB45: 11.2 | AC45: 33
A46: 45 | B46: 1145 | L46: 0 | M46: 0 | N46: 0 | S46: 44 | T46: 5.8 | U46: 25 | W46: 44 | X46: 5.4 | Y46: 37 | AA46: 44 | AB46: 11.2 | AC46: 33
K47: 平均 | L47: =IF(SUM(L2:L46)=0,0,AVERAGEIF(L2:L46,">0")) -> 6.8 | M47: =IF(SUM(M2:M46)=0,0,AVERAGEIF(M2:M46,">0")) -> 5.6 | N47: =IF(SUM(N2:N46)=0,0,AVERAGEIF(N2:N46,">0")) -> 12.4 | S47: 45 | T47: 6 | U47: 18 | W47: 45 | X47: 5 | Y47: 42 | AA47: 45 | AB47: 11 | AC47: =_xlfn.RANK.EQ(AB47,$AB$3:$AB$47) -> 36

Sheet 27s
A1: 連番 | B1: HRNO | C1: 名前 | D1: 列１ | E1: 列２ | F1: 列３ | G1: 列４ | H1: 列５ | I1: 列６ | J1: 感想 | L1: 発表 | M1: 制作 | N1: 総計 | P1: class | Q1: =集計!Q1 -> 11 | S1: 発表 | W1: 制作物 | AA1: 総合
A2: 1 | B2: =$Q$1*100+A2 -> 1101 | C2: =INDIRECT($B2&"!I2") -> 情報太郎 | D2: =INDIRECT($B2&"!"&$Q$4&$Q$3+5) -> 1 | E2: =INDIRECT($B2&"!"&$Q$5&$Q$3+5) -> 2 | F2: =INDIRECT($B2&"!"&$Q$6&$Q$3+5) -> 2 | G2: =INDIRECT($B2&"!"&$Q$7&$Q$3+5) -> 1 | H2: =INDIRECT($B2&"!"&$Q$8&$Q$3+5) -> 1 | I2: =INDIRECT($B2&"!"&$Q$9&$Q$3+5) -> 2 | J2: =INDIRECT($B2&"!"&$Q$10&$Q$3+5) -> 1番27番への感想 | L2: =SUMIF(D2:F2,">=0") -> 5 | M2: =SUMIF(G2:I2,">=0") -> 4 | N2: =SUMIF(D2:I2,">=0") -> 9 | S2: 番号 | T2: 平均 | U2: 順位 | W2: 番号 | X2: 平均 | Y2: 順位 | AA2: 番号 | AB2: 平均 | AC2: 順位
A3: 2 | B3: 1102 | C3: =INDIRECT($B3&"!I2") -> 情報次郎 | D3: =INDIRECT($B3&"!"&$Q$4&$Q$3+5) -> 1 | E3: =INDIRECT($B3&"!"&$Q$5&$Q$3+5) -> 2 | F3: =INDIRECT($B3&"!"&$Q$6&$Q$3+5) -> 3 | G3: =INDIRECT($B3&"!"&$Q$7&$Q$3+5) -> 3 | H3: =INDIRECT($B3&"!"&$Q$8&$Q$3+5) -> 2 | I3: =INDIRECT($B3&"!"&$Q$9&$Q$3+5) -> 3 | J3: =INDIRECT($B3&"!"&$Q$10&$Q$3+5) -> 2番27番への感想 | L3: 6 | M3: 8 | N3: 14 | P3: No | Q3: 27 | S3: 1 | T3: =INDIRECT($S3&"s!L47") -> 3 | U3: =_xlfn.RANK.EQ(T3,$T$3:$T$47) -> 45 | W3: 1 | X3: =INDIRECT($S3&"s!M47") -> 3 | Y3: =_xlfn.RANK.EQ(X3,$X$3:$X$47) -> 45 | AA3: 1 | AB3: =INDIRECT($S3&"s!N47") -> 6 | AC3: =_xlfn.RANK.EQ(AB3,$AB$3:$AB$47) -> 45
A4: 3 | B4: 1103 | C4: 情報三郎 | D4: =INDIRECT($B4&"!"&$Q$4&$Q$3+5) -> 2 | E4: 1 | F4: 3 | G4: 2 | H4: 3 | I4: 2 | J4: 3番27番への感想 | L4: 6 | M4: 7 | N4: 13 | P4: 列２ | Q4: C | S4: 2 | T4: =INDIRECT($S4&"s!L47") -> 6.2 | U4: =_xlfn.RANK.EQ(T4,$T$3:$T$47) -> 10 | W4: 2 | X4: =INDIRECT($S4&"s!M47") -> 6 | Y4: =_xlfn.RANK.EQ(X4,$X$3:$X$47) -> 18 | AA4: 2 | AB4: =INDIRECT($S4&"s!N47") -> 12.2 | AC4: =_xlfn.RANK.EQ(AB4,$AB$3:$AB$47) -> 16
A5: 4 | B5: 1104 | C5: 情報四郎 | D5: =INDIRECT($B5&"!"&$Q$4&$Q$3+5) -> 3 | E5: 2 | F5: 3 | G5: 1 | H5: 3 | I5: 2 | J5: 4番27番への感想 | L5: 8 | M5: 6 | N5: 14 | P5: 列３ | Q5: D | S5: 3 | T5: 6 | U5: 18 | W5: 3 | X5: 6.2 | Y5: 14 | AA5: 3 | AB5: 12.2 | AC5: 16
A6: 5 | B6: 1105 | C6: 情報五郎 | D6: =INDIRECT($B6&"!"&$Q$4&$Q$3+5) -> 2 | E6: 1 | F6: 1 | G6: 2 | H6: 1 | I6: 2 | J6: 5番27番への感想 | L6: 4 | M6: 5 | N6: 9 | P6: 列４ | Q6: E | S6: 4 | T6: 4 | U6: 44 | W6: 4 | X6: 8 | Y6: 1 | AA6: 4 | AB6: 12 | AC6: 21
A7: 6 | B7: 1106 | C7: =INDIRECT($B7&"!H1") ->  | L7: 0 | M7: 0 | N7: 0 | P7: 列５ | Q7: F | S7: 5 | T7: 6 | U7: 18 | W7: 5 | X7: 6 | Y7: 18 | AA7: 5 | AB7: 12 | AC7: 21
A8: 7 | B8: 1107 | L8: 0 | M8: 0 | N8: 0 | P8: 列６ | Q8: G | S8: 6 | T8: 6.8 | U8: 1 | W8: 6 | X8: 5.8 | Y8: 26 | AA8: 6 | AB8: 12.6 | AC8: 10
A9: 8 | B9: 1108 | L9: 0 | M9: 0 | N9: 0 | P9: 列７ | Q9: H | S9: 7 | T9: 5 | U9: 40 | W9: 7 | X9: 5.8 | Y9: 26 | AA9: 7 | AB9: 10.8 | AC9: 38
A10: 9 | B10: 1109 | L10: 0 | M10: 0 | N10: 0 | P10: 列８ | Q10: I | S10: 8 | T10: 6.2 | U10: 10 | W10: 8 | X10: 6.4 | Y10: 10 | AA10: 8 | AB10: 12.6 | AC10: 10
A11: 10 | B11: 1110 | L11: 0 | M11: 0 | N11: 0 | S11: 9 | T11: 5.6 | U11: 30 | W11: 9 | X11: 6 | Y11: 18 | AA11: 9 | AB11: 11.6 | AC11: 27
A12: 11 | B12: 1111 | L12: 0 | M12: 0 | N12: 0 | S12: 10 | T12: 6.6 | U12: 7 | W12: 10 | X12: 6.6 | Y12: 7 | AA12: 10 | AB12: 13.2 | AC12: 3
A13: 12 | B13: 1112 | L13: 0 | M13: 0 | N13: 0 | S13: 11 | T13: 6 | U13: 18 | W13: 11 | X13: 5.6 | Y13: 33 | AA13: 11 | AB13: 11.6 | AC13: 27
A14: 13 | B14: 1113 | L14: 0 | M14: 0 | N14: 0 | S14: 12 | T14: 5.2 | U14: 37 | W14: 12 | X14: 5.2 | Y14: 38 | AA14: 12 | AB14: 10.4 | AC14: 42
A15: 14 | B15: 1114 | L15: 0 | M15: 0 | N15: 0 | S15: 13 | T15: 6.8 | U15: 1 | W15: 13 | X15: 6.4 | Y15: 10 | AA15: 13 | AB15: 13.2 | AC15: 3
A16: 15 | B16: 1115 | L16: 0 | M16: 0 | N16: 0 | S16: 14 | T16: 5 | U16: 40 | W16: 14 | X16: 5 | Y16: 42 | AA16: 14 | AB16: 10 | AC16: 43
A17: 16 | B17: 1116 | L17: 0 | M17: 0 | N17: 0 | S17: 15 | T17: 5.6 | U17: 30 | W17: 15 | X17: 7.6 | Y17: 2 | AA17: 15 | AB17: 13.2 | AC17: 3
A18: 17 | B18: 1117 | L18: 0 | M18: 0 | N18: 0 | S18: 16 | T18: 6.2 | U18: 10 | W18: 16 | X18: 6.2 | Y18: 14 | AA18: 16 | AB18: 12.4 | AC18: 12
A19: 18 | B19: 1118 | L19: 0 | M19: 0 | N19: 0 | S19: 17 | T19: 6.2 | U19: 10 | W19: 17 | X19: 5.8 | Y19: 26 | AA19: 17 | AB19: 12 | AC19: 21
A20: 19 | B20: 1119 | L20: 0 | M20: 0 | N20: 0 | S20: 18 | T20: 6.2 | U20: 10 | W20: 18 | X20: 5.8 | Y20: 26 | AA20: 18 | AB20: 12 | AC20: 21
A21: 20 | B21: 1120 | L21: 0 | M21: 0 | N21: 0 | S21: 19 | T21: 5.8 | U21: 25 | W21: 19 | X21: 6.2 | Y21: 14 | AA21: 19 | AB21: 12 | AC21: 21
A22: 21 | B22: 1121 | L22: 0 | M22: 0 | N22: 0 | S22: 20 | T22: 4.6 | U22: 43 | W22: 20 | X22: 5.2 | Y22: 38 | AA22: 20 | AB22: 9.8 | AC22: 44
A23: 22 | B23: 1122 | L23: 0 | M23: 0 | N23: 0 | S23: 21 | T23: 6.8 | U23: 1 | W23: 21 | X23: 6.4 | Y23: 10 | AA23: 21 | AB23: 13.2 | AC23: 3
A24: 23 | B24: 1123 | L24: 0 | M24: 0 | N24: 0 | S24: 22 | T24: 6.4 | U24: 8 | W24: 22 | X24: 6.8 | Y24: 5 | AA24: 22 | AB24: 13.2 | AC24: 3
A25: 24 | B25: 1124 | L25: 0 | M25: 0 | N25: 0 | S25: 23 | T25: 6 | U25: 18 | W25: 23 | X25: 6.4 | Y25: 10 | AA25: 23 | AB25: 12.4 | AC25: 12
A26: 25 | B26: 1125 | L26: 0 | M26: 0 | N26: 0 | S26: 24 | T26: 6.4 | U26: 8 | W26: 24 | X26: 6 | Y26: 18 | AA26: 24 | AB26: 12.4 | AC26: 12
A27: 26 | B27: 1126 | L27: 0 | M27: 0 | N27: 0 | S27: 25 | T27: 5.6 | U27: 30 | W27: 25 | X27: 5.8 | Y27: 26 | AA27: 25 | AB27: 11.4 | AC27: 31
A28: 27 | B28: 1127 | L28: 0 | M28: 0 | N28: 0 | S28: 26 | T28: 6.8 | U28: 1 | W28: 26 | X28: 5.6 | Y28: 33 | AA28: 26 | AB28: 12.4 | AC28: 12
A29: 28 | B29: 1128 | L29: 0 | M29: 0 | N29: 0 | S29: 27 | T29: 5.8 | U29: 25 | W29: 27 | X29: 6 | Y29: 18 | AA29: 27 | AB29: 11.8 | AC29: 26
A30: 29 | B30: 1129 | L30: 0 | M30: 0 | N30: 0 | S30: 28 | T30: 5.8 | U30: 25 | W30: 28 | X30: 5.8 | Y30: 26 | AA30: 28 | AB30: 11.6 | AC30: 27
A31: 30 | B31: 1130 | L31: 0 | M31: 0 | N31: 0 | S31: 29 | T31: 5.8 | U31: 25 | W31: 29 | X31: 7.2 | Y31: 3 | AA31: 29 | AB31: 13 | AC31: 8
A32: 31 | B32: 1131 | L32: 0 | M32: 0 | N32: 0 | S32: 30 | T32: 6 | U32: 18 | W32: 30 | X32: 6.2 | Y32: 14 | AA32: 30 | AB32: 12.2 | AC32: 16
A33: 32 | B33: 1132 | L33: 0 | M33: 0 | N33: 0 | S33: 31 | T33: 6.2 | U33: 10 | W33: 31 | X33: 5.2 | Y33: 38 | AA33: 31 | AB33: 11.4 | AC33: 31
A34: 33 | B34: 1133 | L34: 0 | M34: 0 | N34: 0 | S34: 32 | T34: 5.6 | U34: 30 | W34: 32 | X34: 5.2 | Y34: 38 | AA34: 32 | AB34: 10.8 | AC34: 38
A35: 34 | B35: 1134 | L35: 0 | M35: 0 | N35: 0 | S35: 33 | T35: 6.2 | U35: 10 | W35: 33 | X35: 6 | Y35: 18 | AA35: 33 | AB35: 12.2 | AC35: 16
A36: 35 | B36: 1135 | L36: 0 | M36: 0 | N36: 0 | S36: 34 | T36: 5.6 | U36: 30 | W36: 34 | X36: 6.6 | Y36: 7 | AA36: 34 | AB36: 12.2 | AC36: 16
A37: 36 | B37: 1136 | L37: 0 | M37: 0 | N37: 0 | S37: 35 | T37: 4.8 | U37: 42 | W37: 35 | X37: 6 | Y37: 18 | AA37: 35 | AB37: 10.8 | AC37: 38
A38: 37 | B38: 1137 | L38: 0 | M38: 0 | N38: 0 | S38: 36 | T38: 5.2 | U38: 37 | W38: 36 | X38: 6 | Y38: 18 | AA38: 36 | AB38: 11.2 | AC38: 33
A39: 38 | B39: 1138 | L39: 0 | M39: 0 | N39: 0 | S39: 37 | T39: 6.8 | U39: 1 | W39: 37 | X39: 7.2 | Y39: 3 | AA39: 37 | AB39: 14 | AC39: 1
A40: 39 | B40: 1139 | L40: 0 | M40: 0 | N40: 0 | S40: 38 | T40: 6.2 | U40: 10 | W40: 38 | X40: 6.8 | Y40: 5 | AA40: 38 | AB40: 13 | AC40: 8
A41: 40 | B41: 1140 | L41: 0 | M41: 0 | N41: 0 | S41: 39 | T41: 5.6 | U41: 30 | W41: 39 | X41: 5 | Y41: 42 | AA41: 39 | AB41: 10.6 | AC41: 41
A42: 41 | B42: 1141 | L42: 0 | M42: 0 | N42: 0 | S42: 40 | T42: 5.2 | U42: 37 | W42: 40 | X42: 5.8 | Y42: 26 | AA42: 40 | AB42: 11 | AC42: 36
A43: 42 | B43: 1142 | L43: 0 | M43: 0 | N43: 0 | S43: 41 | T43: 6 | U43: 18 | W43: 41 | X43: 5.6 | Y43: 33 | AA43: 41 | AB43: 11.6 | AC43: 27
A44: 43 | B44: 1143 | L44: 0 | M44: 0 | N44: 0 | S44: 42 | T44: 6.8 | U44: 1 | W44: 42 | X44: 6.6 | Y44: 7 | AA44: 42 | AB44: 13.4 | AC44: 2
A45: 44 | B45: 1144 | L45: 0 | M45: 0 | N45: 0 | S45: 43 | T45: 5.6 | U45: 30 | W45: 43 | X45: 5.6 | Y45: 33 | AA45: 43 | AB45: 11.2 | AC45: 33
A46: 45 | B46: 1145 | L46: 0 | M46: 0 | N46: 0 | S46: 44 | T46: 5.8 | U46: 25 | W46: 44 | X46: 5.4 | Y46: 37 | AA46: 44 | AB46: 11.2 | AC46: 33
K47: 平均 | L47: =IF(SUM(L2:L46)=0,0,AVERAGEIF(L2:L46,">0")) -> 5.8 | M47: =IF(SUM(M2:M46)=0,0,AVERAGEIF(M2:M46,">0")) -> 6 | N47: =IF(SUM(N2:N46)=0,0,AVERAGEIF(N2:N46,">0")) -> 11.8 | S47: 45 | T47: 6 | U47: 18 | W47: 45 | X47: 5 | Y47: 42 | AA47: 45 | AB47: 11 | AC47: =_xlfn.RANK.EQ(AB47,$AB$3:$AB$47) -> 36

Sheet 28s
A1: 連番 | B1: HRNO | C1: 名前 | D1: 列１ | E1: 列２ | F1: 列３ | G1: 列４ | H1: 列５ | I1: 列６ | J1: 感想 | L1: 発表 | M1: 制作 | N1: 総計 | P1: class | Q1: =集計!Q1 -> 11 | S1: 発表 | W1: 制作物 | AA1: 総合
A2: 1 | B2: =$Q$1*100+A2 -> 1101 | C2: =INDIRECT($B2&"!I2") -> 情報太郎 | D2: =INDIRECT($B2&"!"&$Q$4&$Q$3+5) -> 1 | E2: =INDIRECT($B2&"!"&$Q$5&$Q$3+5) -> 1 | F2: =INDIRECT($B2&"!"&$Q$6&$Q$3+5) -> 3 | G2: =INDIRECT($B2&"!"&$Q$7&$Q$3+5) -> 2 | H2: =INDIRECT($B2&"!"&$Q$8&$Q$3+5) -> 1 | I2: =INDIRECT($B2&"!"&$Q$9&$Q$3+5) -> 1 | J2: =INDIRECT($B2&"!"&$Q$10&$Q$3+5) -> 1番28番への感想 | L2: =SUMIF(D2:F2,">=0") -> 5 | M2: =SUMIF(G2:I2,">=0") -> 4 | N2: =SUMIF(D2:I2,">=0") -> 9 | S2: 番号 | T2: 平均 | U2: 順位 | W2: 番号 | X2: 平均 | Y2: 順位 | AA2: 番号 | AB2: 平均 | AC2: 順位
A3: 2 | B3: 1102 | C3: =INDIRECT($B3&"!I2") -> 情報次郎 | D3: =INDIRECT($B3&"!"&$Q$4&$Q$3+5) -> 2 | E3: =INDIRECT($B3&"!"&$Q$5&$Q$3+5) -> 2 | F3: =INDIRECT($B3&"!"&$Q$6&$Q$3+5) -> 2 | G3: =INDIRECT($B3&"!"&$Q$7&$Q$3+5) -> 3 | H3: =INDIRECT($B3&"!"&$Q$8&$Q$3+5) -> 2 | I3: =INDIRECT($B3&"!"&$Q$9&$Q$3+5) -> 1 | J3: =INDIRECT($B3&"!"&$Q$10&$Q$3+5) -> 2番28番への感想 | L3: 6 | M3: 6 | N3: 12 | P3: No | Q3: 28 | S3: 1 | T3: =INDIRECT($S3&"s!L47") -> 3 | U3: =_xlfn.RANK.EQ(T3,$T$3:$T$47) -> 45 | W3: 1 | X3: =INDIRECT($S3&"s!M47") -> 3 | Y3: =_xlfn.RANK.EQ(X3,$X$3:$X$47) -> 45 | AA3: 1 | AB3: =INDIRECT($S3&"s!N47") -> 6 | AC3: =_xlfn.RANK.EQ(AB3,$AB$3:$AB$47) -> 45
A4: 3 | B4: 1103 | C4: 情報三郎 | D4: =INDIRECT($B4&"!"&$Q$4&$Q$3+5) -> 2 | E4: 1 | F4: 3 | G4: 3 | H4: 3 | I4: 2 | J4: 3番28番への感想 | L4: 6 | M4: 8 | N4: 14 | P4: 列２ | Q4: C | S4: 2 | T4: =INDIRECT($S4&"s!L47") -> 6.2 | U4: =_xlfn.RANK.EQ(T4,$T$3:$T$47) -> 10 | W4: 2 | X4: =INDIRECT($S4&"s!M47") -> 6 | Y4: =_xlfn.RANK.EQ(X4,$X$3:$X$47) -> 18 | AA4: 2 | AB4: =INDIRECT($S4&"s!N47") -> 12.2 | AC4: =_xlfn.RANK.EQ(AB4,$AB$3:$AB$47) -> 16
A5: 4 | B5: 1104 | C5: 情報四郎 | D5: =INDIRECT($B5&"!"&$Q$4&$Q$3+5) -> 3 | E5: 2 | F5: 3 | G5: 2 | H5: 1 | I5: 3 | J5: 4番28番への感想 | L5: 8 | M5: 6 | N5: 14 | P5: 列３ | Q5: D | S5: 3 | T5: 6 | U5: 18 | W5: 3 | X5: 6.2 | Y5: 14 | AA5: 3 | AB5: 12.2 | AC5: 16
A6: 5 | B6: 1105 | C6: 情報五郎 | D6: =INDIRECT($B6&"!"&$Q$4&$Q$3+5) -> 1 | E6: 1 | F6: 2 | G6: 2 | H6: 1 | I6: 2 | J6: 5番28番への感想 | L6: 4 | M6: 5 | N6: 9 | P6: 列４ | Q6: E | S6: 4 | T6: 4 | U6: 44 | W6: 4 | X6: 8 | Y6: 1 | AA6: 4 | AB6: 12 | AC6: 21
A7: 6 | B7: 1106 | C7: =INDIRECT($B7&"!H1") ->  | L7: 0 | M7: 0 | N7: 0 | P7: 列５ | Q7: F | S7: 5 | T7: 6 | U7: 18 | W7: 5 | X7: 6 | Y7: 18 | AA7: 5 | AB7: 12 | AC7: 21
A8: 7 | B8: 1107 | L8: 0 | M8: 0 | N8: 0 | P8: 列６ | Q8: G | S8: 6 | T8: 6.8 | U8: 1 | W8: 6 | X8: 5.8 | Y8: 26 | AA8: 6 | AB8: 12.6 | AC8: 10
A9: 8 | B9: 1108 | L9: 0 | M9: 0 | N9: 0 | P9: 列７ | Q9: H | S9: 7 | T9: 5 | U9: 40 | W9: 7 | X9: 5.8 | Y9: 26 | AA9: 7 | AB9: 10.8 | AC9: 38
A10: 9 | B10: 1109 | L10: 0 | M10: 0 | N10: 0 | P10: 列８ | Q10: I | S10: 8 | T10: 6.2 | U10: 10 | W10: 8 | X10: 6.4 | Y10: 10 | AA10: 8 | AB10: 12.6 | AC10: 10
A11: 10 | B11: 1110 | L11: 0 | M11: 0 | N11: 0 | S11: 9 | T11: 5.6 | U11: 30 | W11: 9 | X11: 6 | Y11: 18 | AA11: 9 | AB11: 11.6 | AC11: 27
A12: 11 | B12: 1111 | L12: 0 | M12: 0 | N12: 0 | S12: 10 | T12: 6.6 | U12: 7 | W12: 10 | X12: 6.6 | Y12: 7 | AA12: 10 | AB12: 13.2 | AC12: 3
A13: 12 | B13: 1112 | L13: 0 | M13: 0 | N13: 0 | S13: 11 | T13: 6 | U13: 18 | W13: 11 | X13: 5.6 | Y13: 33 | AA13: 11 | AB13: 11.6 | AC13: 27
A14: 13 | B14: 1113 | L14: 0 | M14: 0 | N14: 0 | S14: 12 | T14: 5.2 | U14: 37 | W14: 12 | X14: 5.2 | Y14: 38 | AA14: 12 | AB14: 10.4 | AC14: 42
A15: 14 | B15: 1114 | L15: 0 | M15: 0 | N15: 0 | S15: 13 | T15: 6.8 | U15: 1 | W15: 13 | X15: 6.4 | Y15: 10 | AA15: 13 | AB15: 13.2 | AC15: 3
A16: 15 | B16: 1115 | L16: 0 | M16: 0 | N16: 0 | S16: 14 | T16: 5 | U16: 40 | W16: 14 | X16: 5 | Y16: 42 | AA16: 14 | AB16: 10 | AC16: 43
A17: 16 | B17: 1116 | L17: 0 | M17: 0 | N17: 0 | S17: 15 | T17: 5.6 | U17: 30 | W17: 15 | X17: 7.6 | Y17: 2 | AA17: 15 | AB17: 13.2 | AC17: 3
A18: 17 | B18: 1117 | L18: 0 | M18: 0 | N18: 0 | S18: 16 | T18: 6.2 | U18: 10 | W18: 16 | X18: 6.2 | Y18: 14 | AA18: 16 | AB18: 12.4 | AC18: 12
A19: 18 | B19: 1118 | L19: 0 | M19: 0 | N19: 0 | S19: 17 | T19: 6.2 | U19: 10 | W19: 17 | X19: 5.8 | Y19: 26 | AA19: 17 | AB19: 12 | AC19: 21
A20: 19 | B20: 1119 | L20: 0 | M20: 0 | N20: 0 | S20: 18 | T20: 6.2 | U20: 10 | W20: 18 | X20: 5.8 | Y20: 26 | AA20: 18 | AB20: 12 | AC20: 21
A21: 20 | B21: 1120 | L21: 0 | M21: 0 | N21: 0 | S21: 19 | T21: 5.8 | U21: 25 | W21: 19 | X21: 6.2 | Y21: 14 | AA21: 19 | AB21: 12 | AC21: 21
A22: 21 | B22: 1121 | L22: 0 | M22: 0 | N22: 0 | S22: 20 | T22: 4.6 | U22: 43 | W22: 20 | X22: 5.2 | Y22: 38 | AA22: 20 | AB22: 9.8 | AC22: 44
A23: 22 | B23: 1122 | L23: 0 | M23: 0 | N23: 0 | S23: 21 | T23: 6.8 | U23: 1 | W23: 21 | X23: 6.4 | Y23: 10 | AA23: 21 | AB23: 13.2 | AC23: 3
A24: 23 | B24: 1123 | L24: 0 | M24: 0 | N24: 0 | S24: 22 | T24: 6.4 | U24: 8 | W24: 22 | X24: 6.8 | Y24: 5 | AA24: 22 | AB24: 13.2 | AC24: 3
A25: 24 | B25: 1124 | L25: 0 | M25: 0 | N25: 0 | S25: 23 | T25: 6 | U25: 18 | W25: 23 | X25: 6.4 | Y25: 10 | AA25: 23 | AB25: 12.4 | AC25: 12
A26: 25 | B26: 1125 | L26: 0 | M26: 0 | N26: 0 | S26: 24 | T26: 6.4 | U26: 8 | W26: 24 | X26: 6 | Y26: 18 | AA26: 24 | AB26: 12.4 | AC26: 12
A27: 26 | B27: 1126 | L27: 0 | M27: 0 | N27: 0 | S27: 25 | T27: 5.6 | U27: 30 | W27: 25 | X27: 5.8 | Y27: 26 | AA27: 25 | AB27: 11.4 | AC27: 31
A28: 27 | B28: 1127 | L28: 0 | M28: 0 | N28: 0 | S28: 26 | T28: 6.8 | U28: 1 | W28: 26 | X28: 5.6 | Y28: 33 | AA28: 26 | AB28: 12.4 | AC28: 12
A29: 28 | B29: 1128 | L29: 0 | M29: 0 | N29: 0 | S29: 27 | T29: 5.8 | U29: 25 | W29: 27 | X29: 6 | Y29: 18 | AA29: 27 | AB29: 11.8 | AC29: 26
A30: 29 | B30: 1129 | L30: 0 | M30: 0 | N30: 0 | S30: 28 | T30: 5.8 | U30: 25 | W30: 28 | X30: 5.8 | Y30: 26 | AA30: 28 | AB30: 11.6 | AC30: 27
A31: 30 | B31: 1130 | L31: 0 | M31: 0 | N31: 0 | S31: 29 | T31: 5.8 | U31: 25 | W31: 29 | X31: 7.2 | Y31: 3 | AA31: 29 | AB31: 13 | AC31: 8
A32: 31 | B32: 1131 | L32: 0 | M32: 0 | N32: 0 | S32: 30 | T32: 6 | U32: 18 | W32: 30 | X32: 6.2 | Y32: 14 | AA32: 30 | AB32: 12.2 | AC32: 16
A33: 32 | B33: 1132 | L33: 0 | M33: 0 | N33: 0 | S33: 31 | T33: 6.2 | U33: 10 | W33: 31 | X33: 5.2 | Y33: 38 | AA33: 31 | AB33: 11.4 | AC33: 31
A34: 33 | B34: 1133 | L34: 0 | M34: 0 | N34: 0 | S34: 32 | T34: 5.6 | U34: 30 | W34: 32 | X34: 5.2 | Y34: 38 | AA34: 32 | AB34: 10.8 | AC34: 38
A35: 34 | B35: 1134 | L35: 0 | M35: 0 | N35: 0 | S35: 33 | T35: 6.2 | U35: 10 | W35: 33 | X35: 6 | Y35: 18 | AA35: 33 | AB35: 12.2 | AC35: 16
A36: 35 | B36: 1135 | L36: 0 | M36: 0 | N36: 0 | S36: 34 | T36: 5.6 | U36: 30 | W36: 34 | X36: 6.6 | Y36: 7 | AA36: 34 | AB36: 12.2 | AC36: 16
A37: 36 | B37: 1136 | L37: 0 | M37: 0 | N37: 0 | S37: 35 | T37: 4.8 | U37: 42 | W37: 35 | X37: 6 | Y37: 18 | AA37: 35 | AB37: 10.8 | AC37: 38
A38: 37 | B38: 1137 | L38: 0 | M38: 0 | N38: 0 | S38: 36 | T38: 5.2 | U38: 37 | W38: 36 | X38: 6 | Y38: 18 | AA38: 36 | AB38: 11.2 | AC38: 33
A39: 38 | B39: 1138 | L39: 0 | M39: 0 | N39: 0 | S39: 37 | T39: 6.8 | U39: 1 | W39: 37 | X39: 7.2 | Y39: 3 | AA39: 37 | AB39: 14 | AC39: 1
A40: 39 | B40: 1139 | L40: 0 | M40: 0 | N40: 0 | S40: 38 | T40: 6.2 | U40: 10 | W40: 38 | X40: 6.8 | Y40: 5 | AA40: 38 | AB40: 13 | AC40: 8
A41: 40 | B41: 1140 | L41: 0 | M41: 0 | N41: 0 | S41: 39 | T41: 5.6 | U41: 30 | W41: 39 | X41: 5 | Y41: 42 | AA41: 39 | AB41: 10.6 | AC41: 41
A42: 41 | B42: 1141 | L42: 0 | M42: 0 | N42: 0 | S42: 40 | T42: 5.2 | U42: 37 | W42: 40 | X42: 5.8 | Y42: 26 | AA42: 40 | AB42: 11 | AC42: 36
A43: 42 | B43: 1142 | L43: 0 | M43: 0 | N43: 0 | S43: 41 | T43: 6 | U43: 18 | W43: 41 | X43: 5.6 | Y43: 33 | AA43: 41 | AB43: 11.6 | AC43: 27
A44: 43 | B44: 1143 | L44: 0 | M44: 0 | N44: 0 | S44: 42 | T44: 6.8 | U44: 1 | W44: 42 | X44: 6.6 | Y44: 7 | AA44: 42 | AB44: 13.4 | AC44: 2
A45: 44 | B45: 1144 | L45: 0 | M45: 0 | N45: 0 | S45: 43 | T45: 5.6 | U45: 30 | W45: 43 | X45: 5.6 | Y45: 33 | AA45: 43 | AB45: 11.2 | AC45: 33
A46: 45 | B46: 1145 | L46: 0 | M46: 0 | N46: 0 | S46: 44 | T46: 5.8 | U46: 25 | W46: 44 | X46: 5.4 | Y46: 37 | AA46: 44 | AB46: 11.2 | AC46: 33
K47: 平均 | L47: =IF(SUM(L2:L46)=0,0,AVERAGEIF(L2:L46,">0")) -> 5.8 | M47: =IF(SUM(M2:M46)=0,0,AVERAGEIF(M2:M46,">0")) -> 5.8 | N47: =IF(SUM(N2:N46)=0,0,AVERAGEIF(N2:N46,">0")) -> 11.6 | S47: 45 | T47: 6 | U47: 18 | W47: 45 | X47: 5 | Y47: 42 | AA47: 45 | AB47: 11 | AC47: =_xlfn.RANK.EQ(AB47,$AB$3:$AB$47) -> 36

Sheet 29s
A1: 連番 | B1: HRNO | C1: 名前 | D1: 列１ | E1: 列２ | F1: 列３ | G1: 列４ | H1: 列５ | I1: 列６ | J1: 感想 | L1: 発表 | M1: 制作 | N1: 総計 | P1: class | Q1: =集計!Q1 -> 11 | S1: 発表 | W1: 制作物 | AA1: 総合
A2: 1 | B2: =$Q$1*100+A2 -> 1101 | C2: =INDIRECT($B2&"!I2") -> 情報太郎 | D2: =INDIRECT($B2&"!"&$Q$4&$Q$3+5) -> 1 | E2: =INDIRECT($B2&"!"&$Q$5&$Q$3+5) -> 3 | F2: =INDIRECT($B2&"!"&$Q$6&$Q$3+5) -> 3 | G2: =INDIRECT($B2&"!"&$Q$7&$Q$3+5) -> 3 | H2: =INDIRECT($B2&"!"&$Q$8&$Q$3+5) -> 3 | I2: =INDIRECT($B2&"!"&$Q$9&$Q$3+5) -> 3 | J2: =INDIRECT($B2&"!"&$Q$10&$Q$3+5) -> 1番29番への感想 | L2: =SUMIF(D2:F2,">=0") -> 7 | M2: =SUMIF(G2:I2,">=0") -> 9 | N2: =SUMIF(D2:I2,">=0") -> 16 | S2: 番号 | T2: 平均 | U2: 順位 | W2: 番号 | X2: 平均 | Y2: 順位 | AA2: 番号 | AB2: 平均 | AC2: 順位
A3: 2 | B3: 1102 | C3: =INDIRECT($B3&"!I2") -> 情報次郎 | D3: =INDIRECT($B3&"!"&$Q$4&$Q$3+5) -> 1 | E3: =INDIRECT($B3&"!"&$Q$5&$Q$3+5) -> 2 | F3: =INDIRECT($B3&"!"&$Q$6&$Q$3+5) -> 1 | G3: =INDIRECT($B3&"!"&$Q$7&$Q$3+5) -> 3 | H3: =INDIRECT($B3&"!"&$Q$8&$Q$3+5) -> 2 | I3: =INDIRECT($B3&"!"&$Q$9&$Q$3+5) -> 1 | J3: =INDIRECT($B3&"!"&$Q$10&$Q$3+5) -> 2番29番への感想 | L3: 4 | M3: 6 | N3: 10 | P3: No | Q3: 29 | S3: 1 | T3: =INDIRECT($S3&"s!L47") -> 3 | U3: =_xlfn.RANK.EQ(T3,$T$3:$T$47) -> 45 | W3: 1 | X3: =INDIRECT($S3&"s!M47") -> 3 | Y3: =_xlfn.RANK.EQ(X3,$X$3:$X$47) -> 45 | AA3: 1 | AB3: =INDIRECT($S3&"s!N47") -> 6 | AC3: =_xlfn.RANK.EQ(AB3,$AB$3:$AB$47) -> 45
A4: 3 | B4: 1103 | C4: 情報三郎 | D4: =INDIRECT($B4&"!"&$Q$4&$Q$3+5) -> 2 | E4: 3 | F4: 3 | G4: 2 | H4: 2 | I4: 3 | J4: 3番29番への感想 | L4: 8 | M4: 7 | N4: 15 | P4: 列２ | Q4: C | S4: 2 | T4: =INDIRECT($S4&"s!L47") -> 6.2 | U4: =_xlfn.RANK.EQ(T4,$T$3:$T$47) -> 10 | W4: 2 | X4: =INDIRECT($S4&"s!M47") -> 6 | Y4: =_xlfn.RANK.EQ(X4,$X$3:$X$47) -> 18 | AA4: 2 | AB4: =INDIRECT($S4&"s!N47") -> 12.2 | AC4: =_xlfn.RANK.EQ(AB4,$AB$3:$AB$47) -> 16
A5: 4 | B5: 1104 | C5: 情報四郎 | D5: =INDIRECT($B5&"!"&$Q$4&$Q$3+5) -> 3 | E5: 1 | F5: 1 | G5: 3 | H5: 3 | I5: 2 | J5: 4番29番への感想 | L5: 5 | M5: 8 | N5: 13 | P5: 列３ | Q5: D | S5: 3 | T5: 6 | U5: 18 | W5: 3 | X5: 6.2 | Y5: 14 | AA5: 3 | AB5: 12.2 | AC5: 16
A6: 5 | B6: 1105 | C6: 情報五郎 | D6: =INDIRECT($B6&"!"&$Q$4&$Q$3+5) -> 2 | E6: 1 | F6: 2 | G6: 2 | H6: 3 | I6: 1 | J6: 5番29番への感想 | L6: 5 | M6: 6 | N6: 11 | P6: 列４ | Q6: E | S6: 4 | T6: 4 | U6: 44 | W6: 4 | X6: 8 | Y6: 1 | AA6: 4 | AB6: 12 | AC6: 21
A7: 6 | B7: 1106 | C7: =INDIRECT($B7&"!H1") ->  | L7: 0 | M7: 0 | N7: 0 | P7: 列５ | Q7: F | S7: 5 | T7: 6 | U7: 18 | W7: 5 | X7: 6 | Y7: 18 | AA7: 5 | AB7: 12 | AC7: 21
A8: 7 | B8: 1107 | L8: 0 | M8: 0 | N8: 0 | P8: 列６ | Q8: G | S8: 6 | T8: 6.8 | U8: 1 | W8: 6 | X8: 5.8 | Y8: 26 | AA8: 6 | AB8: 12.6 | AC8: 10
A9: 8 | B9: 1108 | L9: 0 | M9: 0 | N9: 0 | P9: 列７ | Q9: H | S9: 7 | T9: 5 | U9: 40 | W9: 7 | X9: 5.8 | Y9: 26 | AA9: 7 | AB9: 10.8 | AC9: 38
A10: 9 | B10: 1109 | L10: 0 | M10: 0 | N10: 0 | P10: 列８ | Q10: I | S10: 8 | T10: 6.2 | U10: 10 | W10: 8 | X10: 6.4 | Y10: 10 | AA10: 8 | AB10: 12.6 | AC10: 10
A11: 10 | B11: 1110 | L11: 0 | M11: 0 | N11: 0 | S11: 9 | T11: 5.6 | U11: 30 | W11: 9 | X11: 6 | Y11: 18 | AA11: 9 | AB11: 11.6 | AC11: 27
A12: 11 | B12: 1111 | L12: 0 | M12: 0 | N12: 0 | S12: 10 | T12: 6.6 | U12: 7 | W12: 10 | X12: 6.6 | Y12: 7 | AA12: 10 | AB12: 13.2 | AC12: 3
A13: 12 | B13: 1112 | L13: 0 | M13: 0 | N13: 0 | S13: 11 | T13: 6 | U13: 18 | W13: 11 | X13: 5.6 | Y13: 33 | AA13: 11 | AB13: 11.6 | AC13: 27
A14: 13 | B14: 1113 | L14: 0 | M14: 0 | N14: 0 | S14: 12 | T14: 5.2 | U14: 37 | W14: 12 | X14: 5.2 | Y14: 38 | AA14: 12 | AB14: 10.4 | AC14: 42
A15: 14 | B15: 1114 | L15: 0 | M15: 0 | N15: 0 | S15: 13 | T15: 6.8 | U15: 1 | W15: 13 | X15: 6.4 | Y15: 10 | AA15: 13 | AB15: 13.2 | AC15: 3
A16: 15 | B16: 1115 | L16: 0 | M16: 0 | N16: 0 | S16: 14 | T16: 5 | U16: 40 | W16: 14 | X16: 5 | Y16: 42 | AA16: 14 | AB16: 10 | AC16: 43
A17: 16 | B17: 1116 | L17: 0 | M17: 0 | N17: 0 | S17: 15 | T17: 5.6 | U17: 30 | W17: 15 | X17: 7.6 | Y17: 2 | AA17: 15 | AB17: 13.2 | AC17: 3
A18: 17 | B18: 1117 | L18: 0 | M18: 0 | N18: 0 | S18: 16 | T18: 6.2 | U18: 10 | W18: 16 | X18: 6.2 | Y18: 14 | AA18: 16 | AB18: 12.4 | AC18: 12
A19: 18 | B19: 1118 | L19: 0 | M19: 0 | N19: 0 | S19: 17 | T19: 6.2 | U19: 10 | W19: 17 | X19: 5.8 | Y19: 26 | AA19: 17 | AB19: 12 | AC19: 21
A20: 19 | B20: 1119 | L20: 0 | M20: 0 | N20: 0 | S20: 18 | T20: 6.2 | U20: 10 | W20: 18 | X20: 5.8 | Y20: 26 | AA20: 18 | AB20: 12 | AC20: 21
A21: 20 | B21: 1120 | L21: 0 | M21: 0 | N21: 0 | S21: 19 | T21: 5.8 | U21: 25 | W21: 19 | X21: 6.2 | Y21: 14 | AA21: 19 | AB21: 12 | AC21: 21
A22: 21 | B22: 1121 | L22: 0 | M22: 0 | N22: 0 | S22: 20 | T22: 4.6 | U22: 43 | W22: 20 | X22: 5.2 | Y22: 38 | AA22: 20 | AB22: 9.8 | AC22: 44
A23: 22 | B23: 1122 | L23: 0 | M23: 0 | N23: 0 | S23: 21 | T23: 6.8 | U23: 1 | W23: 21 | X23: 6.4 | Y23: 10 | AA23: 21 | AB23: 13.2 | AC23: 3
A24: 23 | B24: 1123 | L24: 0 | M24: 0 | N24: 0 | S24: 22 | T24: 6.4 | U24: 8 | W24: 22 | X24: 6.8 | Y24: 5 | AA24: 22 | AB24: 13.2 | AC24: 3
A25: 24 | B25: 1124 | L25: 0 | M25: 0 | N25: 0 | S25: 23 | T25: 6 | U25: 18 | W25: 23 | X25: 6.4 | Y25: 10 | AA25: 23 | AB25: 12.4 | AC25: 12
A26: 25 | B26: 1125 | L26: 0 | M26: 0 | N26: 0 | S26: 24 | T26: 6.4 | U26: 8 | W26: 24 | X26: 6 | Y26: 18 | AA26: 24 | AB26: 12.4 | AC26: 12
A27: 26 | B27: 1126 | L27: 0 | M27: 0 | N27: 0 | S27: 25 | T27: 5.6 | U27: 30 | W27: 25 | X27: 5.8 | Y27: 26 | AA27: 25 | AB27: 11.4 | AC27: 31
A28: 27 | B28: 1127 | L28: 0 | M28: 0 | N28: 0 | S28: 26 | T28: 6.8 | U28: 1 | W28: 26 | X28: 5.6 | Y28: 33 | AA28: 26 | AB28: 12.4 | AC28: 12
A29: 28 | B29: 1128 | L29: 0 | M29: 0 | N29: 0 | S29: 27 | T29: 5.8 | U29: 25 | W29: 27 | X29: 6 | Y29: 18 | AA29: 27 | AB29: 11.8 | AC29: 26
A30: 29 | B30: 1129 | L30: 0 | M30: 0 | N30: 0 | S30: 28 | T30: 5.8 | U30: 25 | W30: 28 | X30: 5.8 | Y30: 26 | AA30: 28 | AB30: 11.6 | AC30: 27
A31: 30 | B31: 1130 | L31: 0 | M31: 0 | N31: 0 | S31: 29 | T31: 5.8 | U31: 25 | W31: 29 | X31: 7.2 | Y31: 3 | AA31: 29 | AB31: 13 | AC31: 8
A32: 31 | B32: 1131 | L32: 0 | M32: 0 | N32: 0 | S32: 30 | T32: 6 | U32: 18 | W32: 30 | X32: 6.2 | Y32: 14 | AA32: 30 | AB32: 12.2 | AC32: 16
A33: 32 | B33: 1132 | L33: 0 | M33: 0 | N33: 0 | S33: 31 | T33: 6.2 | U33: 10 | W33: 31 | X33: 5.2 | Y33: 38 | AA33: 31 | AB33: 11.4 | AC33: 31
A34: 33 | B34: 1133 | L34: 0 | M34: 0 | N34: 0 | S34: 32 | T34: 5.6 | U34: 30 | W34: 32 | X34: 5.2 | Y34: 38 | AA34: 32 | AB34: 10.8 | AC34: 38
A35: 34 | B35: 1134 | L35: 0 | M35: 0 | N35: 0 | S35: 33 | T35: 6.2 | U35: 10 | W35: 33 | X35: 6 | Y35: 18 | AA35: 33 | AB35: 12.2 | AC35: 16
A36: 35 | B36: 1135 | L36: 0 | M36: 0 | N36: 0 | S36: 34 | T36: 5.6 | U36: 30 | W36: 34 | X36: 6.6 | Y36: 7 | AA36: 34 | AB36: 12.2 | AC36: 16
A37: 36 | B37: 1136 | L37: 0 | M37: 0 | N37: 0 | S37: 35 | T37: 4.8 | U37: 42 | W37: 35 | X37: 6 | Y37: 18 | AA37: 35 | AB37: 10.8 | AC37: 38
A38: 37 | B38: 1137 | L38: 0 | M38: 0 | N38: 0 | S38: 36 | T38: 5.2 | U38: 37 | W38: 36 | X38: 6 | Y38: 18 | AA38: 36 | AB38: 11.2 | AC38: 33
A39: 38 | B39: 1138 | L39: 0 | M39: 0 | N39: 0 | S39: 37 | T39: 6.8 | U39: 1 | W39: 37 | X39: 7.2 | Y39: 3 | AA39: 37 | AB39: 14 | AC39: 1
A40: 39 | B40: 1139 | L40: 0 | M40: 0 | N40: 0 | S40: 38 | T40: 6.2 | U40: 10 | W40: 38 | X40: 6.8 | Y40: 5 | AA40: 38 | AB40: 13 | AC40: 8
A41: 40 | B41: 1140 | L41: 0 | M41: 0 | N41: 0 | S41: 39 | T41: 5.6 | U41: 30 | W41: 39 | X41: 5 | Y41: 42 | AA41: 39 | AB41: 10.6 | AC41: 41
A42: 41 | B42: 1141 | L42: 0 | M42: 0 | N42: 0 | S42: 40 | T42: 5.2 | U42: 37 | W42: 40 | X42: 5.8 | Y42: 26 | AA42: 40 | AB42: 11 | AC42: 36
A43: 42 | B43: 1142 | L43: 0 | M43: 0 | N43: 0 | S43: 41 | T43: 6 | U43: 18 | W43: 41 | X43: 5.6 | Y43: 33 | AA43: 41 | AB43: 11.6 | AC43: 27
A44: 43 | B44: 1143 | L44: 0 | M44: 0 | N44: 0 | S44: 42 | T44: 6.8 | U44: 1 | W44: 42 | X44: 6.6 | Y44: 7 | AA44: 42 | AB44: 13.4 | AC44: 2
A45: 44 | B45: 1144 | L45: 0 | M45: 0 | N45: 0 | S45: 43 | T45: 5.6 | U45: 30 | W45: 43 | X45: 5.6 | Y45: 33 | AA45: 43 | AB45: 11.2 | AC45: 33
A46: 45 | B46: 1145 | L46: 0 | M46: 0 | N46: 0 | S46: 44 | T46: 5.8 | U46: 25 | W46: 44 | X46: 5.4 | Y46: 37 | AA46: 44 | AB46: 11.2 | AC46: 33
K47: 平均 | L47: =IF(SUM(L2:L46)=0,0,AVERAGEIF(L2:L46,">0")) -> 5.8 | M47: =IF(SUM(M2:M46)=0,0,AVERAGEIF(M2:M46,">0")) -> 7.2 | N47: =IF(SUM(N2:N46)=0,0,AVERAGEIF(N2:N46,">0")) -> 13 | S47: 45 | T47: 6 | U47: 18 | W47: 45 | X47: 5 | Y47: 42 | AA47: 45 | AB47: 11 | AC47: =_xlfn.RANK.EQ(AB47,$AB$3:$AB$47) -> 36

Sheet 30s
A1: 連番 | B1: HRNO | C1: 名前 | D1: 列１ | E1: 列２ | F1: 列３ | G1: 列４ | H1: 列５ | I1: 列６ | J1: 感想 | L1: 発表 | M1: 制作 | N1: 総計 | P1: class | Q1: =集計!Q1 -> 11 | S1: 発表 | W1: 制作物 | AA1: 総合
A2: 1 | B2: =$Q$1*100+A2 -> 1101 | C2: =INDIRECT($B2&"!I2") -> 情報太郎 | D2: =INDIRECT($B2&"!"&$Q$4&$Q$3+5) -> 1 | E2: =INDIRECT($B2&"!"&$Q$5&$Q$3+5) -> 2 | F2: =INDIRECT($B2&"!"&$Q$6&$Q$3+5) -> 1 | G2: =INDIRECT($B2&"!"&$Q$7&$Q$3+5) -> 2 | H2: =INDIRECT($B2&"!"&$Q$8&$Q$3+5) -> 1 | I2: =INDIRECT($B2&"!"&$Q$9&$Q$3+5) -> 3 | J2: =INDIRECT($B2&"!"&$Q$10&$Q$3+5) -> 1番30番への感想 | L2: =SUMIF(D2:F2,">=0") -> 4 | M2: =SUMIF(G2:I2,">=0") -> 6 | N2: =SUMIF(D2:I2,">=0") -> 10 | S2: 番号 | T2: 平均 | U2: 順位 | W2: 番号 | X2: 平均 | Y2: 順位 | AA2: 番号 | AB2: 平均 | AC2: 順位
A3: 2 | B3: 1102 | C3: =INDIRECT($B3&"!I2") -> 情報次郎 | D3: =INDIRECT($B3&"!"&$Q$4&$Q$3+5) -> 2 | E3: =INDIRECT($B3&"!"&$Q$5&$Q$3+5) -> 2 | F3: =INDIRECT($B3&"!"&$Q$6&$Q$3+5) -> 2 | G3: =INDIRECT($B3&"!"&$Q$7&$Q$3+5) -> 2 | H3: =INDIRECT($B3&"!"&$Q$8&$Q$3+5) -> 3 | I3: =INDIRECT($B3&"!"&$Q$9&$Q$3+5) -> 2 | J3: =INDIRECT($B3&"!"&$Q$10&$Q$3+5) -> 2番30番への感想 | L3: 6 | M3: 7 | N3: 13 | P3: No | Q3: 30 | S3: 1 | T3: =INDIRECT($S3&"s!L47") -> 3 | U3: =_xlfn.RANK.EQ(T3,$T$3:$T$47) -> 45 | W3: 1 | X3: =INDIRECT($S3&"s!M47") -> 3 | Y3: =_xlfn.RANK.EQ(X3,$X$3:$X$47) -> 45 | AA3: 1 | AB3: =INDIRECT($S3&"s!N47") -> 6 | AC3: =_xlfn.RANK.EQ(AB3,$AB$3:$AB$47) -> 45
A4: 3 | B4: 1103 | C4: 情報三郎 | D4: =INDIRECT($B4&"!"&$Q$4&$Q$3+5) -> 1 | E4: 3 | F4: 3 | G4: 2 | H4: 2 | I4: 1 | J4: 3番30番への感想 | L4: 7 | M4: 5 | N4: 12 | P4: 列２ | Q4: C | S4: 2 | T4: =INDIRECT($S4&"s!L47") -> 6.2 | U4: =_xlfn.RANK.EQ(T4,$T$3:$T$47) -> 10 | W4: 2 | X4: =INDIRECT($S4&"s!M47") -> 6 | Y4: =_xlfn.RANK.EQ(X4,$X$3:$X$47) -> 18 | AA4: 2 | AB4: =INDIRECT($S4&"s!N47") -> 12.2 | AC4: =_xlfn.RANK.EQ(AB4,$AB$3:$AB$47) -> 16
A5: 4 | B5: 1104 | C5: 情報四郎 | D5: =INDIRECT($B5&"!"&$Q$4&$Q$3+5) -> 1 | E5: 3 | F5: 2 | G5: 3 | H5: 3 | I5: 1 | J5: 4番30番への感想 | L5: 6 | M5: 7 | N5: 13 | P5: 列３ | Q5: D | S5: 3 | T5: 6 | U5: 18 | W5: 3 | X5: 6.2 | Y5: 14 | AA5: 3 | AB5: 12.2 | AC5: 16
A6: 5 | B6: 1105 | C6: 情報五郎 | D6: =INDIRECT($B6&"!"&$Q$4&$Q$3+5) -> 3 | E6: 3 | F6: 1 | G6: 2 | H6: 1 | I6: 3 | J6: 5番30番への感想 | L6: 7 | M6: 6 | N6: 13 | P6: 列４ | Q6: E | S6: 4 | T6: 4 | U6: 44 | W6: 4 | X6: 8 | Y6: 1 | AA6: 4 | AB6: 12 | AC6: 21
A7: 6 | B7: 1106 | C7: =INDIRECT($B7&"!H1") ->  | L7: 0 | M7: 0 | N7: 0 | P7: 列５ | Q7: F | S7: 5 | T7: 6 | U7: 18 | W7: 5 | X7: 6 | Y7: 18 | AA7: 5 | AB7: 12 | AC7: 21
A8: 7 | B8: 1107 | L8: 0 | M8: 0 | N8: 0 | P8: 列６ | Q8: G | S8: 6 | T8: 6.8 | U8: 1 | W8: 6 | X8: 5.8 | Y8: 26 | AA8: 6 | AB8: 12.6 | AC8: 10
A9: 8 | B9: 1108 | L9: 0 | M9: 0 | N9: 0 | P9: 列７ | Q9: H | S9: 7 | T9: 5 | U9: 40 | W9: 7 | X9: 5.8 | Y9: 26 | AA9: 7 | AB9: 10.8 | AC9: 38
A10: 9 | B10: 1109 | L10: 0 | M10: 0 | N10: 0 | P10: 列８ | Q10: I | S10: 8 | T10: 6.2 | U10: 10 | W10: 8 | X10: 6.4 | Y10: 10 | AA10: 8 | AB10: 12.6 | AC10: 10
A11: 10 | B11: 1110 | L11: 0 | M11: 0 | N11: 0 | S11: 9 | T11: 5.6 | U11: 30 | W11: 9 | X11: 6 | Y11: 18 | AA11: 9 | AB11: 11.6 | AC11: 27
A12: 11 | B12: 1111 | L12: 0 | M12: 0 | N12: 0 | S12: 10 | T12: 6.6 | U12: 7 | W12: 10 | X12: 6.6 | Y12: 7 | AA12: 10 | AB12: 13.2 | AC12: 3
A13: 12 | B13: 1112 | L13: 0 | M13: 0 | N13: 0 | S13: 11 | T13: 6 | U13: 18 | W13: 11 | X13: 5.6 | Y13: 33 | AA13: 11 | AB13: 11.6 | AC13: 27
A14: 13 | B14: 1113 | L14: 0 | M14: 0 | N14: 0 | S14: 12 | T14: 5.2 | U14: 37 | W14: 12 | X14: 5.2 | Y14: 38 | AA14: 12 | AB14: 10.4 | AC14: 42
A15: 14 | B15: 1114 | L15: 0 | M15: 0 | N15: 0 | S15: 13 | T15: 6.8 | U15: 1 | W15: 13 | X15: 6.4 | Y15: 10 | AA15: 13 | AB15: 13.2 | AC15: 3
A16: 15 | B16: 1115 | L16: 0 | M16: 0 | N16: 0 | S16: 14 | T16: 5 | U16: 40 | W16: 14 | X16: 5 | Y16: 42 | AA16: 14 | AB16: 10 | AC16: 43
A17: 16 | B17: 1116 | L17: 0 | M17: 0 | N17: 0 | S17: 15 | T17: 5.6 | U17: 30 | W17: 15 | X17: 7.6 | Y17: 2 | AA17: 15 | AB17: 13.2 | AC17: 3
A18: 17 | B18: 1117 | L18: 0 | M18: 0 | N18: 0 | S18: 16 | T18: 6.2 | U18: 10 | W18: 16 | X18: 6.2 | Y18: 14 | AA18: 16 | AB18: 12.4 | AC18: 12
A19: 18 | B19: 1118 | L19: 0 | M19: 0 | N19: 0 | S19: 17 | T19: 6.2 | U19: 10 | W19: 17 | X19: 5.8 | Y19: 26 | AA19: 17 | AB19: 12 | AC19: 21
A20: 19 | B20: 1119 | L20: 0 | M20: 0 | N20: 0 | S20: 18 | T20: 6.2 | U20: 10 | W20: 18 | X20: 5.8 | Y20: 26 | AA20: 18 | AB20: 12 | AC20: 21
A21: 20 | B21: 1120 | L21: 0 | M21: 0 | N21: 0 | S21: 19 | T21: 5.8 | U21: 25 | W21: 19 | X21: 6.2 | Y21: 14 | AA21: 19 | AB21: 12 | AC21: 21
A22: 21 | B22: 1121 | L22: 0 | M22: 0 | N22: 0 | S22: 20 | T22: 4.6 | U22: 43 | W22: 20 | X22: 5.2 | Y22: 38 | AA22: 20 | AB22: 9.8 | AC22: 44
A23: 22 | B23: 1122 | L23: 0 | M23: 0 | N23: 0 | S23: 21 | T23: 6.8 | U23: 1 | W23: 21 | X23: 6.4 | Y23: 10 | AA23: 21 | AB23: 13.2 | AC23: 3
A24: 23 | B24: 1123 | L24: 0 | M24: 0 | N24: 0 | S24: 22 | T24: 6.4 | U24: 8 | W24: 22 | X24: 6.8 | Y24: 5 | AA24: 22 | AB24: 13.2 | AC24: 3
A25: 24 | B25: 1124 | L25: 0 | M25: 0 | N25: 0 | S25: 23 | T25: 6 | U25: 18 | W25: 23 | X25: 6.4 | Y25: 10 | AA25: 23 | AB25: 12.4 | AC25: 12
A26: 25 | B26: 1125 | L26: 0 | M26: 0 | N26: 0 | S26: 24 | T26: 6.4 | U26: 8 | W26: 24 | X26: 6 | Y26: 18 | AA26: 24 | AB26: 12.4 | AC26: 12
A27: 26 | B27: 1126 | L27: 0 | M27: 0 | N27: 0 | S27: 25 | T27: 5.6 | U27: 30 | W27: 25 | X27: 5.8 | Y27: 26 | AA27: 25 | AB27: 11.4 | AC27: 31
A28: 27 | B28: 1127 | L28: 0 | M28: 0 | N28: 0 | S28: 26 | T28: 6.8 | U28: 1 | W28: 26 | X28: 5.6 | Y28: 33 | AA28: 26 | AB28: 12.4 | AC28: 12
A29: 28 | B29: 1128 | L29: 0 | M29: 0 | N29: 0 | S29: 27 | T29: 5.8 | U29: 25 | W29: 27 | X29: 6 | Y29: 18 | AA29: 27 | AB29: 11.8 | AC29: 26
A30: 29 | B30: 1129 | L30: 0 | M30: 0 | N30: 0 | S30: 28 | T30: 5.8 | U30: 25 | W30: 28 | X30: 5.8 | Y30: 26 | AA30: 28 | AB30: 11.6 | AC30: 27
A31: 30 | B31: 1130 | L31: 0 | M31: 0 | N31: 0 | S31: 29 | T31: 5.8 | U31: 25 | W31: 29 | X31: 7.2 | Y31: 3 | AA31: 29 | AB31: 13 | AC31: 8
A32: 31 | B32: 1131 | L32: 0 | M32: 0 | N32: 0 | S32: 30 | T32: 6 | U32: 18 | W32: 30 | X32: 6.2 | Y32: 14 | AA32: 30 | AB32: 12.2 | AC32: 16
A33: 32 | B33: 1132 | L33: 0 | M33: 0 | N33: 0 | S33: 31 | T33: 6.2 | U33: 10 | W33: 31 | X33: 5.2 | Y33: 38 | AA33: 31 | AB33: 11.4 | AC33: 31
A34: 33 | B34: 1133 | L34: 0 | M34: 0 | N34: 0 | S34: 32 | T34: 5.6 | U34: 30 | W34: 32 | X34: 5.2 | Y34: 38 | AA34: 32 | AB34: 10.8 | AC34: 38
A35: 34 | B35: 1134 | L35: 0 | M35: 0 | N35: 0 | S35: 33 | T35: 6.2 | U35: 10 | W35: 33 | X35: 6 | Y35: 18 | AA35: 33 | AB35: 12.2 | AC35: 16
A36: 35 | B36: 1135 | L36: 0 | M36: 0 | N36: 0 | S36: 34 | T36: 5.6 | U36: 30 | W36: 34 | X36: 6.6 | Y36: 7 | AA36: 34 | AB36: 12.2 | AC36: 16
A37: 36 | B37: 1136 | L37: 0 | M37: 0 | N37: 0 | S37: 35 | T37: 4.8 | U37: 42 | W37: 35 | X37: 6 | Y37: 18 | AA37: 35 | AB37: 10.8 | AC37: 38
A38: 37 | B38: 1137 | L38: 0 | M38: 0 | N38: 0 | S38: 36 | T38: 5.2 | U38: 37 | W38: 36 | X38: 6 | Y38: 18 | AA38: 36 | AB38: 11.2 | AC38: 33
A39: 38 | B39: 1138 | L39: 0 | M39: 0 | N39: 0 | S39: 37 | T39: 6.8 | U39: 1 | W39: 37 | X39: 7.2 | Y39: 3 | AA39: 37 | AB39: 14 | AC39: 1
A40: 39 | B40: 1139 | L40: 0 | M40: 0 | N40: 0 | S40: 38 | T40: 6.2 | U40: 10 | W40: 38 | X40: 6.8 | Y40: 5 | AA40: 38 | AB40: 13 | AC40: 8
A41: 40 | B41: 1140 | L41: 0 | M41: 0 | N41: 0 | S41: 39 | T41: 5.6 | U41: 30 | W41: 39 | X41: 5 | Y41: 42 | AA41: 39 | AB41: 10.6 | AC41: 41
A42: 41 | B42: 1141 | L42: 0 | M42: 0 | N42: 0 | S42: 40 | T42: 5.2 | U42: 37 | W42: 40 | X42: 5.8 | Y42: 26 | AA42: 40 | AB42: 11 | AC42: 36
A43: 42 | B43: 1142 | L43: 0 | M43: 0 | N43: 0 | S43: 41 | T43: 6 | U43: 18 | W43: 41 | X43: 5.6 | Y43: 33 | AA43: 41 | AB43: 11.6 | AC43: 27
A44: 43 | B44: 1143 | L44: 0 | M44: 0 | N44: 0 | S44: 42 | T44: 6.8 | U44: 1 | W44: 42 | X44: 6.6 | Y44: 7 | AA44: 42 | AB44: 13.4 | AC44: 2
A45: 44 | B45: 1144 | L45: 0 | M45: 0 | N45: 0 | S45: 43 | T45: 5.6 | U45: 30 | W45: 43 | X45: 5.6 | Y45: 33 | AA45: 43 | AB45: 11.2 | AC45: 33
A46: 45 | B46: 1145 | L46: 0 | M46: 0 | N46: 0 | S46: 44 | T46: 5.8 | U46: 25 | W46: 44 | X46: 5.4 | Y46: 37 | AA46: 44 | AB46: 11.2 | AC46: 33
K47: 平均 | L47: =IF(SUM(L2:L46)=0,0,AVERAGEIF(L2:L46,">0")) -> 6 | M47: =IF(SUM(M2:M46)=0,0,AVERAGEIF(M2:M46,">0")) -> 6.2 | N47: =IF(SUM(N2:N46)=0,0,AVERAGEIF(N2:N46,">0")) -> 12.2 | S47: 45 | T47: 6 | U47: 18 | W47: 45 | X47: 5 | Y47: 42 | AA47: 45 | AB47: 11 | AC47: =_xlfn.RANK.EQ(AB47,$AB$3:$AB$47) -> 36

Sheet 31s
A1: 連番 | B1: HRNO | C1: 名前 | D1: 列１ | E1: 列２ | F1: 列３ | G1: 列４ | H1: 列５ | I1: 列６ | J1: 感想 | L1: 発表 | M1: 制作 | N1: 総計 | P1: class | Q1: =集計!Q1 -> 11 | S1: 発表 | W1: 制作物 | AA1: 総合
A2: 1 | B2: =$Q$1*100+A2 -> 1101 | C2: =INDIRECT($B2&"!I2") -> 情報太郎 | D2: =INDIRECT($B2&"!"&$Q$4&$Q$3+5) -> 1 | E2: =INDIRECT($B2&"!"&$Q$5&$Q$3+5) -> 1 | F2: =INDIRECT($B2&"!"&$Q$6&$Q$3+5) -> 2 | G2: =INDIRECT($B2&"!"&$Q$7&$Q$3+5) -> 1 | H2: =INDIRECT($B2&"!"&$Q$8&$Q$3+5) -> 2 | I2: =INDIRECT($B2&"!"&$Q$9&$Q$3+5) -> 1 | J2: =INDIRECT($B2&"!"&$Q$10&$Q$3+5) -> 1番31番への感想 | L2: =SUMIF(D2:F2,">=0") -> 4 | M2: =SUMIF(G2:I2,">=0") -> 4 | N2: =SUMIF(D2:I2,">=0") -> 8 | S2: 番号 | T2: 平均 | U2: 順位 | W2: 番号 | X2: 平均 | Y2: 順位 | AA2: 番号 | AB2: 平均 | AC2: 順位
A3: 2 | B3: 1102 | C3: =INDIRECT($B3&"!I2") -> 情報次郎 | D3: =INDIRECT($B3&"!"&$Q$4&$Q$3+5) -> 3 | E3: =INDIRECT($B3&"!"&$Q$5&$Q$3+5) -> 2 | F3: =INDIRECT($B3&"!"&$Q$6&$Q$3+5) -> 2 | G3: =INDIRECT($B3&"!"&$Q$7&$Q$3+5) -> 2 | H3: =INDIRECT($B3&"!"&$Q$8&$Q$3+5) -> 1 | I3: =INDIRECT($B3&"!"&$Q$9&$Q$3+5) -> 3 | J3: =INDIRECT($B3&"!"&$Q$10&$Q$3+5) -> 2番31番への感想 | L3: 7 | M3: 6 | N3: 13 | P3: No | Q3: 31 | S3: 1 | T3: =INDIRECT($S3&"s!L47") -> 3 | U3: =_xlfn.RANK.EQ(T3,$T$3:$T$47) -> 45 | W3: 1 | X3: =INDIRECT($S3&"s!M47") -> 3 | Y3: =_xlfn.RANK.EQ(X3,$X$3:$X$47) -> 45 | AA3: 1 | AB3: =INDIRECT($S3&"s!N47") -> 6 | AC3: =_xlfn.RANK.EQ(AB3,$AB$3:$AB$47) -> 45
A4: 3 | B4: 1103 | C4: 情報三郎 | D4: =INDIRECT($B4&"!"&$Q$4&$Q$3+5) -> 2 | E4: 1 | F4: 3 | G4: 2 | H4: 3 | I4: 3 | J4: 3番31番への感想 | L4: 6 | M4: 8 | N4: 14 | P4: 列２ | Q4: C | S4: 2 | T4: =INDIRECT($S4&"s!L47") -> 6.2 | U4: =_xlfn.RANK.EQ(T4,$T$3:$T$47) -> 10 | W4: 2 | X4: =INDIRECT($S4&"s!M47") -> 6 | Y4: =_xlfn.RANK.EQ(X4,$X$3:$X$47) -> 18 | AA4: 2 | AB4: =INDIRECT($S4&"s!N47") -> 12.2 | AC4: =_xlfn.RANK.EQ(AB4,$AB$3:$AB$47) -> 16
A5: 4 | B5: 1104 | C5: 情報四郎 | D5: =INDIRECT($B5&"!"&$Q$4&$Q$3+5) -> 2 | E5: 2 | F5: 3 | G5: 1 | H5: 1 | I5: 2 | J5: 4番31番への感想 | L5: 7 | M5: 4 | N5: 11 | P5: 列３ | Q5: D | S5: 3 | T5: 6 | U5: 18 | W5: 3 | X5: 6.2 | Y5: 14 | AA5: 3 | AB5: 12.2 | AC5: 16
A6: 5 | B6: 1105 | C6: 情報五郎 | D6: =INDIRECT($B6&"!"&$Q$4&$Q$3+5) -> 3 | E6: 2 | F6: 2 | G6: 2 | H6: 1 | I6: 1 | J6: 5番31番への感想 | L6: 7 | M6: 4 | N6: 11 | P6: 列４ | Q6: E | S6: 4 | T6: 4 | U6: 44 | W6: 4 | X6: 8 | Y6: 1 | AA6: 4 | AB6: 12 | AC6: 21
A7: 6 | B7: 1106 | C7: =INDIRECT($B7&"!H1") ->  | L7: 0 | M7: 0 | N7: 0 | P7: 列５ | Q7: F | S7: 5 | T7: 6 | U7: 18 | W7: 5 | X7: 6 | Y7: 18 | AA7: 5 | AB7: 12 | AC7: 21
A8: 7 | B8: 1107 | L8: 0 | M8: 0 | N8: 0 | P8: 列６ | Q8: G | S8: 6 | T8: 6.8 | U8: 1 | W8: 6 | X8: 5.8 | Y8: 26 | AA8: 6 | AB8: 12.6 | AC8: 10
A9: 8 | B9: 1108 | L9: 0 | M9: 0 | N9: 0 | P9: 列７ | Q9: H | S9: 7 | T9: 5 | U9: 40 | W9: 7 | X9: 5.8 | Y9: 26 | AA9: 7 | AB9: 10.8 | AC9: 38
A10: 9 | B10: 1109 | L10: 0 | M10: 0 | N10: 0 | P10: 列８ | Q10: I | S10: 8 | T10: 6.2 | U10: 10 | W10: 8 | X10: 6.4 | Y10: 10 | AA10: 8 | AB10: 12.6 | AC10: 10
A11: 10 | B11: 1110 | L11: 0 | M11: 0 | N11: 0 | S11: 9 | T11: 5.6 | U11: 30 | W11: 9 | X11: 6 | Y11: 18 | AA11: 9 | AB11: 11.6 | AC11: 27
A12: 11 | B12: 1111 | L12: 0 | M12: 0 | N12: 0 | S12: 10 | T12: 6.6 | U12: 7 | W12: 10 | X12: 6.6 | Y12: 7 | AA12: 10 | AB12: 13.2 | AC12: 3
A13: 12 | B13: 1112 | L13: 0 | M13: 0 | N13: 0 | S13: 11 | T13: 6 | U13: 18 | W13: 11 | X13: 5.6 | Y13: 33 | AA13: 11 | AB13: 11.6 | AC13: 27
A14: 13 | B14: 1113 | L14: 0 | M14: 0 | N14: 0 | S14: 12 | T14: 5.2 | U14: 37 | W14: 12 | X14: 5.2 | Y14: 38 | AA14: 12 | AB14: 10.4 | AC14: 42
A15: 14 | B15: 1114 | L15: 0 | M15: 0 | N15: 0 | S15: 13 | T15: 6.8 | U15: 1 | W15: 13 | X15: 6.4 | Y15: 10 | AA15: 13 | AB15: 13.2 | AC15: 3
A16: 15 | B16: 1115 | L16: 0 | M16: 0 | N16: 0 | S16: 14 | T16: 5 | U16: 40 | W16: 14 | X16: 5 | Y16: 42 | AA16: 14 | AB16: 10 | AC16: 43
A17: 16 | B17: 1116 | L17: 0 | M17: 0 | N17: 0 | S17: 15 | T17: 5.6 | U17: 30 | W17: 15 | X17: 7.6 | Y17: 2 | AA17: 15 | AB17: 13.2 | AC17: 3
A18: 17 | B18: 1117 | L18: 0 | M18: 0 | N18: 0 | S18: 16 | T18: 6.2 | U18: 10 | W18: 16 | X18: 6.2 | Y18: 14 | AA18: 16 | AB18: 12.4 | AC18: 12
A19: 18 | B19: 1118 | L19: 0 | M19: 0 | N19: 0 | S19: 17 | T19: 6.2 | U19: 10 | W19: 17 | X19: 5.8 | Y19: 26 | AA19: 17 | AB19: 12 | AC19: 21
A20: 19 | B20: 1119 | L20: 0 | M20: 0 | N20: 0 | S20: 18 | T20: 6.2 | U20: 10 | W20: 18 | X20: 5.8 | Y20: 26 | AA20: 18 | AB20: 12 | AC20: 21
A21: 20 | B21: 1120 | L21: 0 | M21: 0 | N21: 0 | S21: 19 | T21: 5.8 | U21: 25 | W21: 19 | X21: 6.2 | Y21: 14 | AA21: 19 | AB21: 12 | AC21: 21
A22: 21 | B22: 1121 | L22: 0 | M22: 0 | N22: 0 | S22: 20 | T22: 4.6 | U22: 43 | W22: 20 | X22: 5.2 | Y22: 38 | AA22: 20 | AB22: 9.8 | AC22: 44
A23: 22 | B23: 1122 | L23: 0 | M23: 0 | N23: 0 | S23: 21 | T23: 6.8 | U23: 1 | W23: 21 | X23: 6.4 | Y23: 10 | AA23: 21 | AB23: 13.2 | AC23: 3
A24: 23 | B24: 1123 | L24: 0 | M24: 0 | N24: 0 | S24: 22 | T24: 6.4 | U24: 8 | W24: 22 | X24: 6.8 | Y24: 5 | AA24: 22 | AB24: 13.2 | AC24: 3
A25: 24 | B25: 1124 | L25: 0 | M25: 0 | N25: 0 | S25: 23 | T25: 6 | U25: 18 | W25: 23 | X25: 6.4 | Y25: 10 | AA25: 23 | AB25: 12.4 | AC25: 12
A26: 25 | B26: 1125 | L26: 0 | M26: 0 | N26: 0 | S26: 24 | T26: 6.4 | U26: 8 | W26: 24 | X26: 6 | Y26: 18 | AA26: 24 | AB26: 12.4 | AC26: 12
A27: 26 | B27: 1126 | L27: 0 | M27: 0 | N27: 0 | S27: 25 | T27: 5.6 | U27: 30 | W27: 25 | X27: 5.8 | Y27: 26 | AA27: 25 | AB27: 11.4 | AC27: 31
A28: 27 | B28: 1127 | L28: 0 | M28: 0 | N28: 0 | S28: 26 | T28: 6.8 | U28: 1 | W28: 26 | X28: 5.6 | Y28: 33 | AA28: 26 | AB28: 12.4 | AC28: 12
A29: 28 | B29: 1128 | L29: 0 | M29: 0 | N29: 0 | S29: 27 | T29: 5.8 | U29: 25 | W29: 27 | X29: 6 | Y29: 18 | AA29: 27 | AB29: 11.8 | AC29: 26
A30: 29 | B30: 1129 | L30: 0 | M30: 0 | N30: 0 | S30: 28 | T30: 5.8 | U30: 25 | W30: 28 | X30: 5.8 | Y30: 26 | AA30: 28 | AB30: 11.6 | AC30: 27
A31: 30 | B31: 1130 | L31: 0 | M31: 0 | N31: 0 | S31: 29 | T31: 5.8 | U31: 25 | W31: 29 | X31: 7.2 | Y31: 3 | AA31: 29 | AB31: 13 | AC31: 8
A32: 31 | B32: 1131 | L32: 0 | M32: 0 | N32: 0 | S32: 30 | T32: 6 | U32: 18 | W32: 30 | X32: 6.2 | Y32: 14 | AA32: 30 | AB32: 12.2 | AC32: 16
A33: 32 | B33: 1132 | L33: 0 | M33: 0 | N33: 0 | S33: 31 | T33: 6.2 | U33: 10 | W33: 31 | X33: 5.2 | Y33: 38 | AA33: 31 | AB33: 11.4 | AC33: 31
A34: 33 | B34: 1133 | L34: 0 | M34: 0 | N34: 0 | S34: 32 | T34: 5.6 | U34: 30 | W34: 32 | X34: 5.2 | Y34: 38 | AA34: 32 | AB34: 10.8 | AC34: 38
A35: 34 | B35: 1134 | L35: 0 | M35: 0 | N35: 0 | S35: 33 | T35: 6.2 | U35: 10 | W35: 33 | X35: 6 | Y35: 18 | AA35: 33 | AB35: 12.2 | AC35: 16
A36: 35 | B36: 1135 | L36: 0 | M36: 0 | N36: 0 | S36: 34 | T36: 5.6 | U36: 30 | W36: 34 | X36: 6.6 | Y36: 7 | AA36: 34 | AB36: 12.2 | AC36: 16
A37: 36 | B37: 1136 | L37: 0 | M37: 0 | N37: 0 | S37: 35 | T37: 4.8 | U37: 42 | W37: 35 | X37: 6 | Y37: 18 | AA37: 35 | AB37: 10.8 | AC37: 38
A38: 37 | B38: 1137 | L38: 0 | M38: 0 | N38: 0 | S38: 36 | T38: 5.2 | U38: 37 | W38: 36 | X38: 6 | Y38: 18 | AA38: 36 | AB38: 11.2 | AC38: 33
A39: 38 | B39: 1138 | L39: 0 | M39: 0 | N39: 0 | S39: 37 | T39: 6.8 | U39: 1 | W39: 37 | X39: 7.2 | Y39: 3 | AA39: 37 | AB39: 14 | AC39: 1
A40: 39 | B40: 1139 | L40: 0 | M40: 0 | N40: 0 | S40: 38 | T40: 6.2 | U40: 10 | W40: 38 | X40: 6.8 | Y40: 5 | AA40: 38 | AB40: 13 | AC40: 8
A41: 40 | B41: 1140 | L41: 0 | M41: 0 | N41: 0 | S41: 39 | T41: 5.6 | U41: 30 | W41: 39 | X41: 5 | Y41: 42 | AA41: 39 | AB41: 10.6 | AC41: 41
A42: 41 | B42: 1141 | L42: 0 | M42: 0 | N42: 0 | S42: 40 | T42: 5.2 | U42: 37 | W42: 40 | X42: 5.8 | Y42: 26 | AA42: 40 | AB42: 11 | AC42: 36
A43: 42 | B43: 1142 | L43: 0 | M43: 0 | N43: 0 | S43: 41 | T43: 6 | U43: 18 | W43: 41 | X43: 5.6 | Y43: 33 | AA43: 41 | AB43: 11.6 | AC43: 27
A44: 43 | B44: 1143 | L44: 0 | M44: 0 | N44: 0 | S44: 42 | T44: 6.8 | U44: 1 | W44: 42 | X44: 6.6 | Y44: 7 | AA44: 42 | AB44: 13.4 | AC44: 2
A45: 44 | B45: 1144 | L45: 0 | M45: 0 | N45: 0 | S45: 43 | T45: 5.6 | U45: 30 | W45: 43 | X45: 5.6 | Y45: 33 | AA45: 43 | AB45: 11.2 | AC45: 33
A46: 45 | B46: 1145 | L46: 0 | M46: 0 | N46: 0 | S46: 44 | T46: 5.8 | U46: 25 | W46: 44 | X46: 5.4 | Y46: 37 | AA46: 44 | AB46: 11.2 | AC46: 33
K47: 平均 | L47: =IF(SUM(L2:L46)=0,0,AVERAGEIF(L2:L46,">0")) -> 6.2 | M47: =IF(SUM(M2:M46)=0,0,AVERAGEIF(M2:M46,">0")) -> 5.2 | N47: =IF(SUM(N2:N46)=0,0,AVERAGEIF(N2:N46,">0")) -> 11.4 | S47: 45 | T47: 6 | U47: 18 | W47: 45 | X47: 5 | Y47: 42 | AA47: 45 | AB47: 11 | AC47: =_xlfn.RANK.EQ(AB47,$AB$3:$AB$47) -> 36

Sheet 32s
A1: 連番 | B1: HRNO | C1: 名前 | D1: 列１ | E1: 列２ | F1: 列３ | G1: 列４ | H1: 列５ | I1: 列６ | J1: 感想 | L1: 発表 | M1: 制作 | N1: 総計 | P1: class | Q1: =集計!Q1 -> 11 | S1: 発表 | W1: 制作物 | AA1: 総合
A2: 1 | B2: =$Q$1*100+A2 -> 1101 | C2: =INDIRECT($B2&"!I2") -> 情報太郎 | D2: =INDIRECT($B2&"!"&$Q$4&$Q$3+5) -> 1 | E2: =INDIRECT($B2&"!"&$Q$5&$Q$3+5) -> 1 | F2: =INDIRECT($B2&"!"&$Q$6&$Q$3+5) -> 1 | G2: =INDIRECT($B2&"!"&$Q$7&$Q$3+5) -> 3 | H2: =INDIRECT($B2&"!"&$Q$8&$Q$3+5) -> 2 | I2: =INDIRECT($B2&"!"&$Q$9&$Q$3+5) -> 1 | J2: =INDIRECT($B2&"!"&$Q$10&$Q$3+5) -> 1番32番への感想 | L2: =SUMIF(D2:F2,">=0") -> 3 | M2: =SUMIF(G2:I2,">=0") -> 6 | N2: =SUMIF(D2:I2,">=0") -> 9 | S2: 番号 | T2: 平均 | U2: 順位 | W2: 番号 | X2: 平均 | Y2: 順位 | AA2: 番号 | AB2: 平均 | AC2: 順位
A3: 2 | B3: 1102 | C3: =INDIRECT($B3&"!I2") -> 情報次郎 | D3: =INDIRECT($B3&"!"&$Q$4&$Q$3+5) -> 1 | E3: =INDIRECT($B3&"!"&$Q$5&$Q$3+5) -> 2 | F3: =INDIRECT($B3&"!"&$Q$6&$Q$3+5) -> 2 | G3: =INDIRECT($B3&"!"&$Q$7&$Q$3+5) -> 3 | H3: =INDIRECT($B3&"!"&$Q$8&$Q$3+5) -> 1 | I3: =INDIRECT($B3&"!"&$Q$9&$Q$3+5) -> 1 | J3: =INDIRECT($B3&"!"&$Q$10&$Q$3+5) -> 2番32番への感想 | L3: 5 | M3: 5 | N3: 10 | P3: No | Q3: 32 | S3: 1 | T3: =INDIRECT($S3&"s!L47") -> 3 | U3: =_xlfn.RANK.EQ(T3,$T$3:$T$47) -> 45 | W3: 1 | X3: =INDIRECT($S3&"s!M47") -> 3 | Y3: =_xlfn.RANK.EQ(X3,$X$3:$X$47) -> 45 | AA3: 1 | AB3: =INDIRECT($S3&"s!N47") -> 6 | AC3: =_xlfn.RANK.EQ(AB3,$AB$3:$AB$47) -> 45
A4: 3 | B4: 1103 | C4: 情報三郎 | D4: =INDIRECT($B4&"!"&$Q$4&$Q$3+5) -> 2 | E4: 2 | F4: 3 | G4: 1 | H4: 2 | I4: 1 | J4: 3番32番への感想 | L4: 7 | M4: 4 | N4: 11 | P4: 列２ | Q4: C | S4: 2 | T4: =INDIRECT($S4&"s!L47") -> 6.2 | U4: =_xlfn.RANK.EQ(T4,$T$3:$T$47) -> 10 | W4: 2 | X4: =INDIRECT($S4&"s!M47") -> 6 | Y4: =_xlfn.RANK.EQ(X4,$X$3:$X$47) -> 18 | AA4: 2 | AB4: =INDIRECT($S4&"s!N47") -> 12.2 | AC4: =_xlfn.RANK.EQ(AB4,$AB$3:$AB$47) -> 16
A5: 4 | B5: 1104 | C5: 情報四郎 | D5: =INDIRECT($B5&"!"&$Q$4&$Q$3+5) -> 2 | E5: 1 | F5: 3 | G5: 2 | H5: 1 | I5: 2 | J5: 4番32番への感想 | L5: 6 | M5: 5 | N5: 11 | P5: 列３ | Q5: D | S5: 3 | T5: 6 | U5: 18 | W5: 3 | X5: 6.2 | Y5: 14 | AA5: 3 | AB5: 12.2 | AC5: 16
A6: 5 | B6: 1105 | C6: 情報五郎 | D6: =INDIRECT($B6&"!"&$Q$4&$Q$3+5) -> 1 | E6: 3 | F6: 3 | G6: 2 | H6: 2 | I6: 2 | J6: 5番32番への感想 | L6: 7 | M6: 6 | N6: 13 | P6: 列４ | Q6: E | S6: 4 | T6: 4 | U6: 44 | W6: 4 | X6: 8 | Y6: 1 | AA6: 4 | AB6: 12 | AC6: 21
A7: 6 | B7: 1106 | C7: =INDIRECT($B7&"!H1") ->  | L7: 0 | M7: 0 | N7: 0 | P7: 列５ | Q7: F | S7: 5 | T7: 6 | U7: 18 | W7: 5 | X7: 6 | Y7: 18 | AA7: 5 | AB7: 12 | AC7: 21
A8: 7 | B8: 1107 | L8: 0 | M8: 0 | N8: 0 | P8: 列６ | Q8: G | S8: 6 | T8: 6.8 | U8: 1 | W8: 6 | X8: 5.8 | Y8: 26 | AA8: 6 | AB8: 12.6 | AC8: 10
A9: 8 | B9: 1108 | L9: 0 | M9: 0 | N9: 0 | P9: 列７ | Q9: H | S9: 7 | T9: 5 | U9: 40 | W9: 7 | X9: 5.8 | Y9: 26 | AA9: 7 | AB9: 10.8 | AC9: 38
A10: 9 | B10: 1109 | L10: 0 | M10: 0 | N10: 0 | P10: 列８ | Q10: I | S10: 8 | T10: 6.2 | U10: 10 | W10: 8 | X10: 6.4 | Y10: 10 | AA10: 8 | AB10: 12.6 | AC10: 10
A11: 10 | B11: 1110 | L11: 0 | M11: 0 | N11: 0 | S11: 9 | T11: 5.6 | U11: 30 | W11: 9 | X11: 6 | Y11: 18 | AA11: 9 | AB11: 11.6 | AC11: 27
A12: 11 | B12: 1111 | L12: 0 | M12: 0 | N12: 0 | S12: 10 | T12: 6.6 | U12: 7 | W12: 10 | X12: 6.6 | Y12: 7 | AA12: 10 | AB12: 13.2 | AC12: 3
A13: 12 | B13: 1112 | L13: 0 | M13: 0 | N13: 0 | S13: 11 | T13: 6 | U13: 18 | W13: 11 | X13: 5.6 | Y13: 33 | AA13: 11 | AB13: 11.6 | AC13: 27
A14: 13 | B14: 1113 | L14: 0 | M14: 0 | N14: 0 | S14: 12 | T14: 5.2 | U14: 37 | W14: 12 | X14: 5.2 | Y14: 38 | AA14: 12 | AB14: 10.4 | AC14: 42
A15: 14 | B15: 1114 | L15: 0 | M15: 0 | N15: 0 | S15: 13 | T15: 6.8 | U15: 1 | W15: 13 | X15: 6.4 | Y15: 10 | AA15: 13 | AB15: 13.2 | AC15: 3
A16: 15 | B16: 1115 | L16: 0 | M16: 0 | N16: 0 | S16: 14 | T16: 5 | U16: 40 | W16: 14 | X16: 5 | Y16: 42 | AA16: 14 | AB16: 10 | AC16: 43
A17: 16 | B17: 1116 | L17: 0 | M17: 0 | N17: 0 | S17: 15 | T17: 5.6 | U17: 30 | W17: 15 | X17: 7.6 | Y17: 2 | AA17: 15 | AB17: 13.2 | AC17: 3
A18: 17 | B18: 1117 | L18: 0 | M18: 0 | N18: 0 | S18: 16 | T18: 6.2 | U18: 10 | W18: 16 | X18: 6.2 | Y18: 14 | AA18: 16 | AB18: 12.4 | AC18: 12
A19: 18 | B19: 1118 | L19: 0 | M19: 0 | N19: 0 | S19: 17 | T19: 6.2 | U19: 10 | W19: 17 | X19: 5.8 | Y19: 26 | AA19: 17 | AB19: 12 | AC19: 21
A20: 19 | B20: 1119 | L20: 0 | M20: 0 | N20: 0 | S20: 18 | T20: 6.2 | U20: 10 | W20: 18 | X20: 5.8 | Y20: 26 | AA20: 18 | AB20: 12 | AC20: 21
A21: 20 | B21: 1120 | L21: 0 | M21: 0 | N21: 0 | S21: 19 | T21: 5.8 | U21: 25 | W21: 19 | X21: 6.2 | Y21: 14 | AA21: 19 | AB21: 12 | AC21: 21
A22: 21 | B22: 1121 | L22: 0 | M22: 0 | N22: 0 | S22: 20 | T22: 4.6 | U22: 43 | W22: 20 | X22: 5.2 | Y22: 38 | AA22: 20 | AB22: 9.8 | AC22: 44
A23: 22 | B23: 1122 | L23: 0 | M23: 0 | N23: 0 | S23: 21 | T23: 6.8 | U23: 1 | W23: 21 | X23: 6.4 | Y23: 10 | AA23: 21 | AB23: 13.2 | AC23: 3
A24: 23 | B24: 1123 | L24: 0 | M24: 0 | N24: 0 | S24: 22 | T24: 6.4 | U24: 8 | W24: 22 | X24: 6.8 | Y24: 5 | AA24: 22 | AB24: 13.2 | AC24: 3
A25: 24 | B25: 1124 | L25: 0 | M25: 0 | N25: 0 | S25: 23 | T25: 6 | U25: 18 | W25: 23 | X25: 6.4 | Y25: 10 | AA25: 23 | AB25: 12.4 | AC25: 12
A26: 25 | B26: 1125 | L26: 0 | M26: 0 | N26: 0 | S26: 24 | T26: 6.4 | U26: 8 | W26: 24 | X26: 6 | Y26: 18 | AA26: 24 | AB26: 12.4 | AC26: 12
A27: 26 | B27: 1126 | L27: 0 | M27: 0 | N27: 0 | S27: 25 | T27: 5.6 | U27: 30 | W27: 25 | X27: 5.8 | Y27: 26 | AA27: 25 | AB27: 11.4 | AC27: 31
A28: 27 | B28: 1127 | L28: 0 | M28: 0 | N28: 0 | S28: 26 | T28: 6.8 | U28: 1 | W28: 26 | X28: 5.6 | Y28: 33 | AA28: 26 | AB28: 12.4 | AC28: 12
A29: 28 | B29: 1128 | L29: 0 | M29: 0 | N29: 0 | S29: 27 | T29: 5.8 | U29: 25 | W29: 27 | X29: 6 | Y29: 18 | AA29: 27 | AB29: 11.8 | AC29: 26
A30: 29 | B30: 1129 | L30: 0 | M30: 0 | N30: 0 | S30: 28 | T30: 5.8 | U30: 25 | W30: 28 | X30: 5.8 | Y30: 26 | AA30: 28 | AB30: 11.6 | AC30: 27
A31: 30 | B31: 1130 | L31: 0 | M31: 0 | N31: 0 | S31: 29 | T31: 5.8 | U31: 25 | W31: 29 | X31: 7.2 | Y31: 3 | AA31: 29 | AB31: 13 | AC31: 8
A32: 31 | B32: 1131 | L32: 0 | M32: 0 | N32: 0 | S32: 30 | T32: 6 | U32: 18 | W32: 30 | X32: 6.2 | Y32: 14 | AA32: 30 | AB32: 12.2 | AC32: 16
A33: 32 | B33: 1132 | L33: 0 | M33: 0 | N33: 0 | S33: 31 | T33: 6.2 | U33: 10 | W33: 31 | X33: 5.2 | Y33: 38 | AA33: 31 | AB33: 11.4 | AC33: 31
A34: 33 | B34: 1133 | L34: 0 | M34: 0 | N34: 0 | S34: 32 | T34: 5.6 | U34: 30 | W34: 32 | X34: 5.2 | Y34: 38 | AA34: 32 | AB34: 10.8 | AC34: 38
A35: 34 | B35: 1134 | L35: 0 | M35: 0 | N35: 0 | S35: 33 | T35: 6.2 | U35: 10 | W35: 33 | X35: 6 | Y35: 18 | AA35: 33 | AB35: 12.2 | AC35: 16
A36: 35 | B36: 1135 | L36: 0 | M36: 0 | N36: 0 | S36: 34 | T36: 5.6 | U36: 30 | W36: 34 | X36: 6.6 | Y36: 7 | AA36: 34 | AB36: 12.2 | AC36: 16
A37: 36 | B37: 1136 | L37: 0 | M37: 0 | N37: 0 | S37: 35 | T37: 4.8 | U37: 42 | W37: 35 | X37: 6 | Y37: 18 | AA37: 35 | AB37: 10.8 | AC37: 38
A38: 37 | B38: 1137 | L38: 0 | M38: 0 | N38: 0 | S38: 36 | T38: 5.2 | U38: 37 | W38: 36 | X38: 6 | Y38: 18 | AA38: 36 | AB38: 11.2 | AC38: 33
A39: 38 | B39: 1138 | L39: 0 | M39: 0 | N39: 0 | S39: 37 | T39: 6.8 | U39: 1 | W39: 37 | X39: 7.2 | Y39: 3 | AA39: 37 | AB39: 14 | AC39: 1
A40: 39 | B40: 1139 | L40: 0 | M40: 0 | N40: 0 | S40: 38 | T40: 6.2 | U40: 10 | W40: 38 | X40: 6.8 | Y40: 5 | AA40: 38 | AB40: 13 | AC40: 8
A41: 40 | B41: 1140 | L41: 0 | M41: 0 | N41: 0 | S41: 39 | T41: 5.6 | U41: 30 | W41: 39 | X41: 5 | Y41: 42 | AA41: 39 | AB41: 10.6 | AC41: 41
A42: 41 | B42: 1141 | L42: 0 | M42: 0 | N42: 0 | S42: 40 | T42: 5.2 | U42: 37 | W42: 40 | X42: 5.8 | Y42: 26 | AA42: 40 | AB42: 11 | AC42: 36
A43: 42 | B43: 1142 | L43: 0 | M43: 0 | N43: 0 | S43: 41 | T43: 6 | U43: 18 | W43: 41 | X43: 5.6 | Y43: 33 | AA43: 41 | AB43: 11.6 | AC43: 27
A44: 43 | B44: 1143 | L44: 0 | M44: 0 | N44: 0 | S44: 42 | T44: 6.8 | U44: 1 | W44: 42 | X44: 6.6 | Y44: 7 | AA44: 42 | AB44: 13.4 | AC44: 2
A45: 44 | B45: 1144 | L45: 0 | M45: 0 | N45: 0 | S45: 43 | T45: 5.6 | U45: 30 | W45: 43 | X45: 5.6 | Y45: 33 | AA45: 43 | AB45: 11.2 | AC45: 33
A46: 45 | B46: 1145 | L46: 0 | M46: 0 | N46: 0 | S46: 44 | T46: 5.8 | U46: 25 | W46: 44 | X46: 5.4 | Y46: 37 | AA46: 44 | AB46: 11.2 | AC46: 33
K47: 平均 | L47: =IF(SUM(L2:L46)=0,0,AVERAGEIF(L2:L46,">0")) -> 5.6 | M47: =IF(SUM(M2:M46)=0,0,AVERAGEIF(M2:M46,">0")) -> 5.2 | N47: =IF(SUM(N2:N46)=0,0,AVERAGEIF(N2:N46,">0")) -> 10.8 | S47: 45 | T47: 6 | U47: 18 | W47: 45 | X47: 5 | Y47: 42 | AA47: 45 | AB47: 11 | AC47: =_xlfn.RANK.EQ(AB47,$AB$3:$AB$47) -> 36

Sheet 33s
A1: 連番 | B1: HRNO | C1: 名前 | D1: 列１ | E1: 列２ | F1: 列３ | G1: 列４ | H1: 列５ | I1: 列６ | J1: 感想 | L1: 発表 | M1: 制作 | N1: 総計 | P1: class | Q1: =集計!Q1 -> 11 | S1: 発表 | W1: 制作物 | AA1: 総合
A2: 1 | B2: =$Q$1*100+A2 -> 1101 | C2: =INDIRECT($B2&"!I2") -> 情報太郎 | D2: =INDIRECT($B2&"!"&$Q$4&$Q$3+5) -> 1 | E2: =INDIRECT($B2&"!"&$Q$5&$Q$3+5) -> 1 | F2: =INDIRECT($B2&"!"&$Q$6&$Q$3+5) -> 3 | G2: =INDIRECT($B2&"!"&$Q$7&$Q$3+5) -> 3 | H2: =INDIRECT($B2&"!"&$Q$8&$Q$3+5) -> 3 | I2: =INDIRECT($B2&"!"&$Q$9&$Q$3+5) -> 3 | J2: =INDIRECT($B2&"!"&$Q$10&$Q$3+5) -> 1番33番への感想 | L2: =SUMIF(D2:F2,">=0") -> 5 | M2: =SUMIF(G2:I2,">=0") -> 9 | N2: =SUMIF(D2:I2,">=0") -> 14 | S2: 番号 | T2: 平均 | U2: 順位 | W2: 番号 | X2: 平均 | Y2: 順位 | AA2: 番号 | AB2: 平均 | AC2: 順位
A3: 2 | B3: 1102 | C3: =INDIRECT($B3&"!I2") -> 情報次郎 | D3: =INDIRECT($B3&"!"&$Q$4&$Q$3+5) -> 3 | E3: =INDIRECT($B3&"!"&$Q$5&$Q$3+5) -> 2 | F3: =INDIRECT($B3&"!"&$Q$6&$Q$3+5) -> 1 | G3: =INDIRECT($B3&"!"&$Q$7&$Q$3+5) -> 2 | H3: =INDIRECT($B3&"!"&$Q$8&$Q$3+5) -> 1 | I3: =INDIRECT($B3&"!"&$Q$9&$Q$3+5) -> 2 | J3: =INDIRECT($B3&"!"&$Q$10&$Q$3+5) -> 2番33番への感想 | L3: 6 | M3: 5 | N3: 11 | P3: No | Q3: 33 | S3: 1 | T3: =INDIRECT($S3&"s!L47") -> 3 | U3: =_xlfn.RANK.EQ(T3,$T$3:$T$47) -> 45 | W3: 1 | X3: =INDIRECT($S3&"s!M47") -> 3 | Y3: =_xlfn.RANK.EQ(X3,$X$3:$X$47) -> 45 | AA3: 1 | AB3: =INDIRECT($S3&"s!N47") -> 6 | AC3: =_xlfn.RANK.EQ(AB3,$AB$3:$AB$47) -> 45
A4: 3 | B4: 1103 | C4: 情報三郎 | D4: =INDIRECT($B4&"!"&$Q$4&$Q$3+5) -> 2 | E4: 3 | F4: 3 | G4: 2 | H4: 1 | I4: 2 | J4: 3番33番への感想 | L4: 8 | M4: 5 | N4: 13 | P4: 列２ | Q4: C | S4: 2 | T4: =INDIRECT($S4&"s!L47") -> 6.2 | U4: =_xlfn.RANK.EQ(T4,$T$3:$T$47) -> 10 | W4: 2 | X4: =INDIRECT($S4&"s!M47") -> 6 | Y4: =_xlfn.RANK.EQ(X4,$X$3:$X$47) -> 18 | AA4: 2 | AB4: =INDIRECT($S4&"s!N47") -> 12.2 | AC4: =_xlfn.RANK.EQ(AB4,$AB$3:$AB$47) -> 16
A5: 4 | B5: 1104 | C5: 情報四郎 | D5: =INDIRECT($B5&"!"&$Q$4&$Q$3+5) -> 1 | E5: 1 | F5: 2 | G5: 2 | H5: 3 | I5: 1 | J5: 4番33番への感想 | L5: 4 | M5: 6 | N5: 10 | P5: 列３ | Q5: D | S5: 3 | T5: 6 | U5: 18 | W5: 3 | X5: 6.2 | Y5: 14 | AA5: 3 | AB5: 12.2 | AC5: 16
A6: 5 | B6: 1105 | C6: 情報五郎 | D6: =INDIRECT($B6&"!"&$Q$4&$Q$3+5) -> 3 | E6: 3 | F6: 2 | G6: 1 | H6: 1 | I6: 3 | J6: 5番33番への感想 | L6: 8 | M6: 5 | N6: 13 | P6: 列４ | Q6: E | S6: 4 | T6: 4 | U6: 44 | W6: 4 | X6: 8 | Y6: 1 | AA6: 4 | AB6: 12 | AC6: 21
A7: 6 | B7: 1106 | C7: =INDIRECT($B7&"!H1") ->  | L7: 0 | M7: 0 | N7: 0 | P7: 列５ | Q7: F | S7: 5 | T7: 6 | U7: 18 | W7: 5 | X7: 6 | Y7: 18 | AA7: 5 | AB7: 12 | AC7: 21
A8: 7 | B8: 1107 | L8: 0 | M8: 0 | N8: 0 | P8: 列６ | Q8: G | S8: 6 | T8: 6.8 | U8: 1 | W8: 6 | X8: 5.8 | Y8: 26 | AA8: 6 | AB8: 12.6 | AC8: 10
A9: 8 | B9: 1108 | L9: 0 | M9: 0 | N9: 0 | P9: 列７ | Q9: H | S9: 7 | T9: 5 | U9: 40 | W9: 7 | X9: 5.8 | Y9: 26 | AA9: 7 | AB9: 10.8 | AC9: 38
A10: 9 | B10: 1109 | L10: 0 | M10: 0 | N10: 0 | P10: 列８ | Q10: I | S10: 8 | T10: 6.2 | U10: 10 | W10: 8 | X10: 6.4 | Y10: 10 | AA10: 8 | AB10: 12.6 | AC10: 10
A11: 10 | B11: 1110 | L11: 0 | M11: 0 | N11: 0 | S11: 9 | T11: 5.6 | U11: 30 | W11: 9 | X11: 6 | Y11: 18 | AA11: 9 | AB11: 11.6 | AC11: 27
A12: 11 | B12: 1111 | L12: 0 | M12: 0 | N12: 0 | S12: 10 | T12: 6.6 | U12: 7 | W12: 10 | X12: 6.6 | Y12: 7 | AA12: 10 | AB12: 13.2 | AC12: 3
A13: 12 | B13: 1112 | L13: 0 | M13: 0 | N13: 0 | S13: 11 | T13: 6 | U13: 18 | W13: 11 | X13: 5.6 | Y13: 33 | AA13: 11 | AB13: 11.6 | AC13: 27
A14: 13 | B14: 1113 | L14: 0 | M14: 0 | N14: 0 | S14: 12 | T14: 5.2 | U14: 37 | W14: 12 | X14: 5.2 | Y14: 38 | AA14: 12 | AB14: 10.4 | AC14: 42
A15: 14 | B15: 1114 | L15: 0 | M15: 0 | N15: 0 | S15: 13 | T15: 6.8 | U15: 1 | W15: 13 | X15: 6.4 | Y15: 10 | AA15: 13 | AB15: 13.2 | AC15: 3
A16: 15 | B16: 1115 | L16: 0 | M16: 0 | N16: 0 | S16: 14 | T16: 5 | U16: 40 | W16: 14 | X16: 5 | Y16: 42 | AA16: 14 | AB16: 10 | AC16: 43
A17: 16 | B17: 1116 | L17: 0 | M17: 0 | N17: 0 | S17: 15 | T17: 5.6 | U17: 30 | W17: 15 | X17: 7.6 | Y17: 2 | AA17: 15 | AB17: 13.2 | AC17: 3
A18: 17 | B18: 1117 | L18: 0 | M18: 0 | N18: 0 | S18: 16 | T18: 6.2 | U18: 10 | W18: 16 | X18: 6.2 | Y18: 14 | AA18: 16 | AB18: 12.4 | AC18: 12
A19: 18 | B19: 1118 | L19: 0 | M19: 0 | N19: 0 | S19: 17 | T19: 6.2 | U19: 10 | W19: 17 | X19: 5.8 | Y19: 26 | AA19: 17 | AB19: 12 | AC19: 21
A20: 19 | B20: 1119 | L20: 0 | M20: 0 | N20: 0 | S20: 18 | T20: 6.2 | U20: 10 | W20: 18 | X20: 5.8 | Y20: 26 | AA20: 18 | AB20: 12 | AC20: 21
A21: 20 | B21: 1120 | L21: 0 | M21: 0 | N21: 0 | S21: 19 | T21: 5.8 | U21: 25 | W21: 19 | X21: 6.2 | Y21: 14 | AA21: 19 | AB21: 12 | AC21: 21
A22: 21 | B22: 1121 | L22: 0 | M22: 0 | N22: 0 | S22: 20 | T22: 4.6 | U22: 43 | W22: 20 | X22: 5.2 | Y22: 38 | AA22: 20 | AB22: 9.8 | AC22: 44
A23: 22 | B23: 1122 | L23: 0 | M23: 0 | N23: 0 | S23: 21 | T23: 6.8 | U23: 1 | W23: 21 | X23: 6.4 | Y23: 10 | AA23: 21 | AB23: 13.2 | AC23: 3
A24: 23 | B24: 1123 | L24: 0 | M24: 0 | N24: 0 | S24: 22 | T24: 6.4 | U24: 8 | W24: 22 | X24: 6.8 | Y24: 5 | AA24: 22 | AB24: 13.2 | AC24: 3
A25: 24 | B25: 1124 | L25: 0 | M25: 0 | N25: 0 | S25: 23 | T25: 6 | U25: 18 | W25: 23 | X25: 6.4 | Y25: 10 | AA25: 23 | AB25: 12.4 | AC25: 12
A26: 25 | B26: 1125 | L26: 0 | M26: 0 | N26: 0 | S26: 24 | T26: 6.4 | U26: 8 | W26: 24 | X26: 6 | Y26: 18 | AA26: 24 | AB26: 12.4 | AC26: 12
A27: 26 | B27: 1126 | L27: 0 | M27: 0 | N27: 0 | S27: 25 | T27: 5.6 | U27: 30 | W27: 25 | X27: 5.8 | Y27: 26 | AA27: 25 | AB27: 11.4 | AC27: 31
A28: 27 | B28: 1127 | L28: 0 | M28: 0 | N28: 0 | S28: 26 | T28: 6.8 | U28: 1 | W28: 26 | X28: 5.6 | Y28: 33 | AA28: 26 | AB28: 12.4 | AC28: 12
A29: 28 | B29: 1128 | L29: 0 | M29: 0 | N29: 0 | S29: 27 | T29: 5.8 | U29: 25 | W29: 27 | X29: 6 | Y29: 18 | AA29: 27 | AB29: 11.8 | AC29: 26
A30: 29 | B30: 1129 | L30: 0 | M30: 0 | N30: 0 | S30: 28 | T30: 5.8 | U30: 25 | W30: 28 | X30: 5.8 | Y30: 26 | AA30: 28 | AB30: 11.6 | AC30: 27
A31: 30 | B31: 1130 | L31: 0 | M31: 0 | N31: 0 | S31: 29 | T31: 5.8 | U31: 25 | W31: 29 | X31: 7.2 | Y31: 3 | AA31: 29 | AB31: 13 | AC31: 8
A32: 31 | B32: 1131 | L32: 0 | M32: 0 | N32: 0 | S32: 30 | T32: 6 | U32: 18 | W32: 30 | X32: 6.2 | Y32: 14 | AA32: 30 | AB32: 12.2 | AC32: 16
A33: 32 | B33: 1132 | L33: 0 | M33: 0 | N33: 0 | S33: 31 | T33: 6.2 | U33: 10 | W33: 31 | X33: 5.2 | Y33: 38 | AA33: 31 | AB33: 11.4 | AC33: 31
A34: 33 | B34: 1133 | L34: 0 | M34: 0 | N34: 0 | S34: 32 | T34: 5.6 | U34: 30 | W34: 32 | X34: 5.2 | Y34: 38 | AA34: 32 | AB34: 10.8 | AC34: 38
A35: 34 | B35: 1134 | L35: 0 | M35: 0 | N35: 0 | S35: 33 | T35: 6.2 | U35: 10 | W35: 33 | X35: 6 | Y35: 18 | AA35: 33 | AB35: 12.2 | AC35: 16
A36: 35 | B36: 1135 | L36: 0 | M36: 0 | N36: 0 | S36: 34 | T36: 5.6 | U36: 30 | W36: 34 | X36: 6.6 | Y36: 7 | AA36: 34 | AB36: 12.2 | AC36: 16
A37: 36 | B37: 1136 | L37: 0 | M37: 0 | N37: 0 | S37: 35 | T37: 4.8 | U37: 42 | W37: 35 | X37: 6 | Y37: 18 | AA37: 35 | AB37: 10.8 | AC37: 38
A38: 37 | B38: 1137 | L38: 0 | M38: 0 | N38: 0 | S38: 36 | T38: 5.2 | U38: 37 | W38: 36 | X38: 6 | Y38: 18 | AA38: 36 | AB38: 11.2 | AC38: 33
A39: 38 | B39: 1138 | L39: 0 | M39: 0 | N39: 0 | S39: 37 | T39: 6.8 | U39: 1 | W39: 37 | X39: 7.2 | Y39: 3 | AA39: 37 | AB39: 14 | AC39: 1
A40: 39 | B40: 1139 | L40: 0 | M40: 0 | N40: 0 | S40: 38 | T40: 6.2 | U40: 10 | W40: 38 | X40: 6.8 | Y40: 5 | AA40: 38 | AB40: 13 | AC40: 8
A41: 40 | B41: 1140 | L41: 0 | M41: 0 | N41: 0 | S41: 39 | T41: 5.6 | U41: 30 | W41: 39 | X41: 5 | Y41: 42 | AA41: 39 | AB41: 10.6 | AC41: 41
A42: 41 | B42: 1141 | L42: 0 | M42: 0 | N42: 0 | S42: 40 | T42: 5.2 | U42: 37 | W42: 40 | X42: 5.8 | Y42: 26 | AA42: 40 | AB42: 11 | AC42: 36
A43: 42 | B43: 1142 | L43: 0 | M43: 0 | N43: 0 | S43: 41 | T43: 6 | U43: 18 | W43: 41 | X43: 5.6 | Y43: 33 | AA43: 41 | AB43: 11.6 | AC43: 27
A44: 43 | B44: 1143 | L44: 0 | M44: 0 | N44: 0 | S44: 42 | T44: 6.8 | U44: 1 | W44: 42 | X44: 6.6 | Y44: 7 | AA44: 42 | AB44: 13.4 | AC44: 2
A45: 44 | B45: 1144 | L45: 0 | M45: 0 | N45: 0 | S45: 43 | T45: 5.6 | U45: 30 | W45: 43 | X45: 5.6 | Y45: 33 | AA45: 43 | AB45: 11.2 | AC45: 33
A46: 45 | B46: 1145 | L46: 0 | M46: 0 | N46: 0 | S46: 44 | T46: 5.8 | U46: 25 | W46: 44 | X46: 5.4 | Y46: 37 | AA46: 44 | AB46: 11.2 | AC46: 33
K47: 平均 | L47: =IF(SUM(L2:L46)=0,0,AVERAGEIF(L2:L46,">0")) -> 6.2 | M47: =IF(SUM(M2:M46)=0,0,AVERAGEIF(M2:M46,">0")) -> 6 | N47: =IF(SUM(N2:N46)=0,0,AVERAGEIF(N2:N46,">0")) -> 12.2 | S47: 45 | T47: 6 | U47: 18 | W47: 45 | X47: 5 | Y47: 42 | AA47: 45 | AB47: 11 | AC47: =_xlfn.RANK.EQ(AB47,$AB$3:$AB$47) -> 36

Sheet 34s
A1: 連番 | B1: HRNO | C1: 名前 | D1: 列１ | E1: 列２ | F1: 列３ | G1: 列４ | H1: 列５ | I1: 列６ | J1: 感想 | L1: 発表 | M1: 制作 | N1: 総計 | P1: class | Q1: =集計!Q1 -> 11 | S1: 発表 | W1: 制作物 | AA1: 総合
A2: 1 | B2: =$Q$1*100+A2 -> 1101 | C2: =INDIRECT($B2&"!I2") -> 情報太郎 | D2: =INDIRECT($B2&"!"&$Q$4&$Q$3+5) -> 1 | E2: =INDIRECT($B2&"!"&$Q$5&$Q$3+5) -> 3 | F2: =INDIRECT($B2&"!"&$Q$6&$Q$3+5) -> 1 | G2: =INDIRECT($B2&"!"&$Q$7&$Q$3+5) -> 3 | H2: =INDIRECT($B2&"!"&$Q$8&$Q$3+5) -> 3 | I2: =INDIRECT($B2&"!"&$Q$9&$Q$3+5) -> 1 | J2: =INDIRECT($B2&"!"&$Q$10&$Q$3+5) -> 1番34番への感想 | L2: =SUMIF(D2:F2,">=0") -> 5 | M2: =SUMIF(G2:I2,">=0") -> 7 | N2: =SUMIF(D2:I2,">=0") -> 12 | S2: 番号 | T2: 平均 | U2: 順位 | W2: 番号 | X2: 平均 | Y2: 順位 | AA2: 番号 | AB2: 平均 | AC2: 順位
A3: 2 | B3: 1102 | C3: =INDIRECT($B3&"!I2") -> 情報次郎 | D3: =INDIRECT($B3&"!"&$Q$4&$Q$3+5) -> 1 | E3: =INDIRECT($B3&"!"&$Q$5&$Q$3+5) -> 2 | F3: =INDIRECT($B3&"!"&$Q$6&$Q$3+5) -> 2 | G3: =INDIRECT($B3&"!"&$Q$7&$Q$3+5) -> 1 | H3: =INDIRECT($B3&"!"&$Q$8&$Q$3+5) -> 2 | I3: =INDIRECT($B3&"!"&$Q$9&$Q$3+5) -> 3 | J3: =INDIRECT($B3&"!"&$Q$10&$Q$3+5) -> 2番34番への感想 | L3: 5 | M3: 6 | N3: 11 | P3: No | Q3: 34 | S3: 1 | T3: =INDIRECT($S3&"s!L47") -> 3 | U3: =_xlfn.RANK.EQ(T3,$T$3:$T$47) -> 45 | W3: 1 | X3: =INDIRECT($S3&"s!M47") -> 3 | Y3: =_xlfn.RANK.EQ(X3,$X$3:$X$47) -> 45 | AA3: 1 | AB3: =INDIRECT($S3&"s!N47") -> 6 | AC3: =_xlfn.RANK.EQ(AB3,$AB$3:$AB$47) -> 45
A4: 3 | B4: 1103 | C4: 情報三郎 | D4: =INDIRECT($B4&"!"&$Q$4&$Q$3+5) -> 1 | E4: 3 | F4: 3 | G4: 3 | H4: 1 | I4: 2 | J4: 3番34番への感想 | L4: 7 | M4: 6 | N4: 13 | P4: 列２ | Q4: C | S4: 2 | T4: =INDIRECT($S4&"s!L47") -> 6.2 | U4: =_xlfn.RANK.EQ(T4,$T$3:$T$47) -> 10 | W4: 2 | X4: =INDIRECT($S4&"s!M47") -> 6 | Y4: =_xlfn.RANK.EQ(X4,$X$3:$X$47) -> 18 | AA4: 2 | AB4: =INDIRECT($S4&"s!N47") -> 12.2 | AC4: =_xlfn.RANK.EQ(AB4,$AB$3:$AB$47) -> 16
A5: 4 | B5: 1104 | C5: 情報四郎 | D5: =INDIRECT($B5&"!"&$Q$4&$Q$3+5) -> 2 | E5: 3 | F5: 1 | G5: 2 | H5: 1 | I5: 2 | J5: 4番34番への感想 | L5: 6 | M5: 5 | N5: 11 | P5: 列３ | Q5: D | S5: 3 | T5: 6 | U5: 18 | W5: 3 | X5: 6.2 | Y5: 14 | AA5: 3 | AB5: 12.2 | AC5: 16
A6: 5 | B6: 1105 | C6: 情報五郎 | D6: =INDIRECT($B6&"!"&$Q$4&$Q$3+5) -> 1 | E6: 3 | F6: 1 | G6: 3 | H6: 3 | I6: 3 | J6: 5番34番への感想 | L6: 5 | M6: 9 | N6: 14 | P6: 列４ | Q6: E | S6: 4 | T6: 4 | U6: 44 | W6: 4 | X6: 8 | Y6: 1 | AA6: 4 | AB6: 12 | AC6: 21
A7: 6 | B7: 1106 | C7: =INDIRECT($B7&"!H1") ->  | L7: 0 | M7: 0 | N7: 0 | P7: 列５ | Q7: F | S7: 5 | T7: 6 | U7: 18 | W7: 5 | X7: 6 | Y7: 18 | AA7: 5 | AB7: 12 | AC7: 21
A8: 7 | B8: 1107 | L8: 0 | M8: 0 | N8: 0 | P8: 列６ | Q8: G | S8: 6 | T8: 6.8 | U8: 1 | W8: 6 | X8: 5.8 | Y8: 26 | AA8: 6 | AB8: 12.6 | AC8: 10
A9: 8 | B9: 1108 | L9: 0 | M9: 0 | N9: 0 | P9: 列７ | Q9: H | S9: 7 | T9: 5 | U9: 40 | W9: 7 | X9: 5.8 | Y9: 26 | AA9: 7 | AB9: 10.8 | AC9: 38
A10: 9 | B10: 1109 | L10: 0 | M10: 0 | N10: 0 | P10: 列８ | Q10: I | S10: 8 | T10: 6.2 | U10: 10 | W10: 8 | X10: 6.4 | Y10: 10 | AA10: 8 | AB10: 12.6 | AC10: 10
A11: 10 | B11: 1110 | L11: 0 | M11: 0 | N11: 0 | S11: 9 | T11: 5.6 | U11: 30 | W11: 9 | X11: 6 | Y11: 18 | AA11: 9 | AB11: 11.6 | AC11: 27
A12: 11 | B12: 1111 | L12: 0 | M12: 0 | N12: 0 | S12: 10 | T12: 6.6 | U12: 7 | W12: 10 | X12: 6.6 | Y12: 7 | AA12: 10 | AB12: 13.2 | AC12: 3
A13: 12 | B13: 1112 | L13: 0 | M13: 0 | N13: 0 | S13: 11 | T13: 6 | U13: 18 | W13: 11 | X13: 5.6 | Y13: 33 | AA13: 11 | AB13: 11.6 | AC13: 27
A14: 13 | B14: 1113 | L14: 0 | M14: 0 | N14: 0 | S14: 12 | T14: 5.2 | U14: 37 | W14: 12 | X14: 5.2 | Y14: 38 | AA14: 12 | AB14: 10.4 | AC14: 42
A15: 14 | B15: 1114 | L15: 0 | M15: 0 | N15: 0 | S15: 13 | T15: 6.8 | U15: 1 | W15: 13 | X15: 6.4 | Y15: 10 | AA15: 13 | AB15: 13.2 | AC15: 3
A16: 15 | B16: 1115 | L16: 0 | M16: 0 | N16: 0 | S16: 14 | T16: 5 | U16: 40 | W16: 14 | X16: 5 | Y16: 42 | AA16: 14 | AB16: 10 | AC16: 43
A17: 16 | B17: 1116 | L17: 0 | M17: 0 | N17: 0 | S17: 15 | T17: 5.6 | U17: 30 | W17: 15 | X17: 7.6 | Y17: 2 | AA17: 15 | AB17: 13.2 | AC17: 3
A18: 17 | B18: 1117 | L18: 0 | M18: 0 | N18: 0 | S18: 16 | T18: 6.2 | U18: 10 | W18: 16 | X18: 6.2 | Y18: 14 | AA18: 16 | AB18: 12.4 | AC18: 12
A19: 18 | B19: 1118 | L19: 0 | M19: 0 | N19: 0 | S19: 17 | T19: 6.2 | U19: 10 | W19: 17 | X19: 5.8 | Y19: 26 | AA19: 17 | AB19: 12 | AC19: 21
A20: 19 | B20: 1119 | L20: 0 | M20: 0 | N20: 0 | S20: 18 | T20: 6.2 | U20: 10 | W20: 18 | X20: 5.8 | Y20: 26 | AA20: 18 | AB20: 12 | AC20: 21
A21: 20 | B21: 1120 | L21: 0 | M21: 0 | N21: 0 | S21: 19 | T21: 5.8 | U21: 25 | W21: 19 | X21: 6.2 | Y21: 14 | AA21: 19 | AB21: 12 | AC21: 21
A22: 21 | B22: 1121 | L22: 0 | M22: 0 | N22: 0 | S22: 20 | T22: 4.6 | U22: 43 | W22: 20 | X22: 5.2 | Y22: 38 | AA22: 20 | AB22: 9.8 | AC22: 44
A23: 22 | B23: 1122 | L23: 0 | M23: 0 | N23: 0 | S23: 21 | T23: 6.8 | U23: 1 | W23: 21 | X23: 6.4 | Y23: 10 | AA23: 21 | AB23: 13.2 | AC23: 3
A24: 23 | B24: 1123 | L24: 0 | M24: 0 | N24: 0 | S24: 22 | T24: 6.4 | U24: 8 | W24: 22 | X24: 6.8 | Y24: 5 | AA24: 22 | AB24: 13.2 | AC24: 3
A25: 24 | B25: 1124 | L25: 0 | M25: 0 | N25: 0 | S25: 23 | T25: 6 | U25: 18 | W25: 23 | X25: 6.4 | Y25: 10 | AA25: 23 | AB25: 12.4 | AC25: 12
A26: 25 | B26: 1125 | L26: 0 | M26: 0 | N26: 0 | S26: 24 | T26: 6.4 | U26: 8 | W26: 24 | X26: 6 | Y26: 18 | AA26: 24 | AB26: 12.4 | AC26: 12
A27: 26 | B27: 1126 | L27: 0 | M27: 0 | N27: 0 | S27: 25 | T27: 5.6 | U27: 30 | W27: 25 | X27: 5.8 | Y27: 26 | AA27: 25 | AB27: 11.4 | AC27: 31
A28: 27 | B28: 1127 | L28: 0 | M28: 0 | N28: 0 | S28: 26 | T28: 6.8 | U28: 1 | W28: 26 | X28: 5.6 | Y28: 33 | AA28: 26 | AB28: 12.4 | AC28: 12
A29: 28 | B29: 1128 | L29: 0 | M29: 0 | N29: 0 | S29: 27 | T29: 5.8 | U29: 25 | W29: 27 | X29: 6 | Y29: 18 | AA29: 27 | AB29: 11.8 | AC29: 26
A30: 29 | B30: 1129 | L30: 0 | M30: 0 | N30: 0 | S30: 28 | T30: 5.8 | U30: 25 | W30: 28 | X30: 5.8 | Y30: 26 | AA30: 28 | AB30: 11.6 | AC30: 27
A31: 30 | B31: 1130 | L31: 0 | M31: 0 | N31: 0 | S31: 29 | T31: 5.8 | U31: 25 | W31: 29 | X31: 7.2 | Y31: 3 | AA31: 29 | AB31: 13 | AC31: 8
A32: 31 | B32: 1131 | L32: 0 | M32: 0 | N32: 0 | S32: 30 | T32: 6 | U32: 18 | W32: 30 | X32: 6.2 | Y32: 14 | AA32: 30 | AB32: 12.2 | AC32: 16
A33: 32 | B33: 1132 | L33: 0 | M33: 0 | N33: 0 | S33: 31 | T33: 6.2 | U33: 10 | W33: 31 | X33: 5.2 | Y33: 38 | AA33: 31 | AB33: 11.4 | AC33: 31
A34: 33 | B34: 1133 | L34: 0 | M34: 0 | N34: 0 | S34: 32 | T34: 5.6 | U34: 30 | W34: 32 | X34: 5.2 | Y34: 38 | AA34: 32 | AB34: 10.8 | AC34: 38
A35: 34 | B35: 1134 | L35: 0 | M35: 0 | N35: 0 | S35: 33 | T35: 6.2 | U35: 10 | W35: 33 | X35: 6 | Y35: 18 | AA35: 33 | AB35: 12.2 | AC35: 16
A36: 35 | B36: 1135 | L36: 0 | M36: 0 | N36: 0 | S36: 34 | T36: 5.6 | U36: 30 | W36: 34 | X36: 6.6 | Y36: 7 | AA36: 34 | AB36: 12.2 | AC36: 16
A37: 36 | B37: 1136 | L37: 0 | M37: 0 | N37: 0 | S37: 35 | T37: 4.8 | U37: 42 | W37: 35 | X37: 6 | Y37: 18 | AA37: 35 | AB37: 10.8 | AC37: 38
A38: 37 | B38: 1137 | L38: 0 | M38: 0 | N38: 0 | S38: 36 | T38: 5.2 | U38: 37 | W38: 36 | X38: 6 | Y38: 18 | AA38: 36 | AB38: 11.2 | AC38: 33
A39: 38 | B39: 1138 | L39: 0 | M39: 0 | N39: 0 | S39: 37 | T39: 6.8 | U39: 1 | W39: 37 | X39: 7.2 | Y39: 3 | AA39: 37 | AB39: 14 | AC39: 1
A40: 39 | B40: 1139 | L40: 0 | M40: 0 | N40: 0 | S40: 38 | T40: 6.2 | U40: 10 | W40: 38 | X40: 6.8 | Y40: 5 | AA40: 38 | AB40: 13 | AC40: 8
A41: 40 | B41: 1140 | L41: 0 | M41: 0 | N41: 0 | S41: 39 | T41: 5.6 | U41: 30 | W41: 39 | X41: 5 | Y41: 42 | AA41: 39 | AB41: 10.6 | AC41: 41
A42: 41 | B42: 1141 | L42: 0 | M42: 0 | N42: 0 | S42: 40 | T42: 5.2 | U42: 37 | W42: 40 | X42: 5.8 | Y42: 26 | AA42: 40 | AB42: 11 | AC42: 36
A43: 42 | B43: 1142 | L43: 0 | M43: 0 | N43: 0 | S43: 41 | T43: 6 | U43: 18 | W43: 41 | X43: 5.6 | Y43: 33 | AA43: 41 | AB43: 11.6 | AC43: 27
A44: 43 | B44: 1143 | L44: 0 | M44: 0 | N44: 0 | S44: 42 | T44: 6.8 | U44: 1 | W44: 42 | X44: 6.6 | Y44: 7 | AA44: 42 | AB44: 13.4 | AC44: 2
A45: 44 | B45: 1144 | L45: 0 | M45: 0 | N45: 0 | S45: 43 | T45: 5.6 | U45: 30 | W45: 43 | X45: 5.6 | Y45: 33 | AA45: 43 | AB45: 11.2 | AC45: 33
A46: 45 | B46: 1145 | L46: 0 | M46: 0 | N46: 0 | S46: 44 | T46: 5.8 | U46: 25 | W46: 44 | X46: 5.4 | Y46: 37 | AA46: 44 | AB46: 11.2 | AC46: 33
K47: 平均 | L47: =IF(SUM(L2:L46)=0,0,AVERAGEIF(L2:L46,">0")) -> 5.6 | M47: =IF(SUM(M2:M46)=0,0,AVERAGEIF(M2:M46,">0")) -> 6.6 | N47: =IF(SUM(N2:N46)=0,0,AVERAGEIF(N2:N46,">0")) -> 12.2 | S47: 45 | T47: 6 | U47: 18 | W47: 45 | X47: 5 | Y47: 42 | AA47: 45 | AB47: 11 | AC47: =_xlfn.RANK.EQ(AB47,$AB$3:$AB$47) -> 36

Sheet 35s
A1: 連番 | B1: HRNO | C1: 名前 | D1: 列１ | E1: 列２ | F1: 列３ | G1: 列４ | H1: 列５ | I1: 列６ | J1: 感想 | L1: 発表 | M1: 制作 | N1: 総計 | P1: class | Q1: =集計!Q1 -> 11 | S1: 発表 | W1: 制作物 | AA1: 総合
A2: 1 | B2: =$Q$1*100+A2 -> 1101 | C2: =INDIRECT($B2&"!I2") -> 情報太郎 | D2: =INDIRECT($B2&"!"&$Q$4&$Q$3+5) -> 1 | E2: =INDIRECT($B2&"!"&$Q$5&$Q$3+5) -> 2 | F2: =INDIRECT($B2&"!"&$Q$6&$Q$3+5) -> 3 | G2: =INDIRECT($B2&"!"&$Q$7&$Q$3+5) -> 2 | H2: =INDIRECT($B2&"!"&$Q$8&$Q$3+5) -> 1 | I2: =INDIRECT($B2&"!"&$Q$9&$Q$3+5) -> 1 | J2: =INDIRECT($B2&"!"&$Q$10&$Q$3+5) -> 1番35番への感想 | L2: =SUMIF(D2:F2,">=0") -> 6 | M2: =SUMIF(G2:I2,">=0") -> 4 | N2: =SUMIF(D2:I2,">=0") -> 10 | S2: 番号 | T2: 平均 | U2: 順位 | W2: 番号 | X2: 平均 | Y2: 順位 | AA2: 番号 | AB2: 平均 | AC2: 順位
A3: 2 | B3: 1102 | C3: =INDIRECT($B3&"!I2") -> 情報次郎 | D3: =INDIRECT($B3&"!"&$Q$4&$Q$3+5) -> 2 | E3: =INDIRECT($B3&"!"&$Q$5&$Q$3+5) -> 2 | F3: =INDIRECT($B3&"!"&$Q$6&$Q$3+5) -> 1 | G3: =INDIRECT($B3&"!"&$Q$7&$Q$3+5) -> 1 | H3: =INDIRECT($B3&"!"&$Q$8&$Q$3+5) -> 1 | I3: =INDIRECT($B3&"!"&$Q$9&$Q$3+5) -> 3 | J3: =INDIRECT($B3&"!"&$Q$10&$Q$3+5) -> 2番35番への感想 | L3: 5 | M3: 5 | N3: 10 | P3: No | Q3: 35 | S3: 1 | T3: =INDIRECT($S3&"s!L47") -> 3 | U3: =_xlfn.RANK.EQ(T3,$T$3:$T$47) -> 45 | W3: 1 | X3: =INDIRECT($S3&"s!M47") -> 3 | Y3: =_xlfn.RANK.EQ(X3,$X$3:$X$47) -> 45 | AA3: 1 | AB3: =INDIRECT($S3&"s!N47") -> 6 | AC3: =_xlfn.RANK.EQ(AB3,$AB$3:$AB$47) -> 45
A4: 3 | B4: 1103 | C4: 情報三郎 | D4: =INDIRECT($B4&"!"&$Q$4&$Q$3+5) -> 2 | E4: 1 | F4: 3 | G4: 2 | H4: 3 | I4: 2 | J4: 3番35番への感想 | L4: 6 | M4: 7 | N4: 13 | P4: 列２ | Q4: C | S4: 2 | T4: =INDIRECT($S4&"s!L47") -> 6.2 | U4: =_xlfn.RANK.EQ(T4,$T$3:$T$47) -> 10 | W4: 2 | X4: =INDIRECT($S4&"s!M47") -> 6 | Y4: =_xlfn.RANK.EQ(X4,$X$3:$X$47) -> 18 | AA4: 2 | AB4: =INDIRECT($S4&"s!N47") -> 12.2 | AC4: =_xlfn.RANK.EQ(AB4,$AB$3:$AB$47) -> 16
A5: 4 | B5: 1104 | C5: 情報四郎 | D5: =INDIRECT($B5&"!"&$Q$4&$Q$3+5) -> 1 | E5: 1 | F5: 2 | G5: 2 | H5: 3 | I5: 1 | J5: 4番35番への感想 | L5: 4 | M5: 6 | N5: 10 | P5: 列３ | Q5: D | S5: 3 | T5: 6 | U5: 18 | W5: 3 | X5: 6.2 | Y5: 14 | AA5: 3 | AB5: 12.2 | AC5: 16
A6: 5 | B6: 1105 | C6: 情報五郎 | D6: =INDIRECT($B6&"!"&$Q$4&$Q$3+5) -> 1 | E6: 1 | F6: 1 | G6: 3 | H6: 2 | I6: 3 | J6: 5番35番への感想 | L6: 3 | M6: 8 | N6: 11 | P6: 列４ | Q6: E | S6: 4 | T6: 4 | U6: 44 | W6: 4 | X6: 8 | Y6: 1 | AA6: 4 | AB6: 12 | AC6: 21
A7: 6 | B7: 1106 | C7: =INDIRECT($B7&"!H1") ->  | L7: 0 | M7: 0 | N7: 0 | P7: 列５ | Q7: F | S7: 5 | T7: 6 | U7: 18 | W7: 5 | X7: 6 | Y7: 18 | AA7: 5 | AB7: 12 | AC7: 21
A8: 7 | B8: 1107 | L8: 0 | M8: 0 | N8: 0 | P8: 列６ | Q8: G | S8: 6 | T8: 6.8 | U8: 1 | W8: 6 | X8: 5.8 | Y8: 26 | AA8: 6 | AB8: 12.6 | AC8: 10
A9: 8 | B9: 1108 | L9: 0 | M9: 0 | N9: 0 | P9: 列７ | Q9: H | S9: 7 | T9: 5 | U9: 40 | W9: 7 | X9: 5.8 | Y9: 26 | AA9: 7 | AB9: 10.8 | AC9: 38
A10: 9 | B10: 1109 | L10: 0 | M10: 0 | N10: 0 | P10: 列８ | Q10: I | S10: 8 | T10: 6.2 | U10: 10 | W10: 8 | X10: 6.4 | Y10: 10 | AA10: 8 | AB10: 12.6 | AC10: 10
A11: 10 | B11: 1110 | L11: 0 | M11: 0 | N11: 0 | S11: 9 | T11: 5.6 | U11: 30 | W11: 9 | X11: 6 | Y11: 18 | AA11: 9 | AB11: 11.6 | AC11: 27
A12: 11 | B12: 1111 | L12: 0 | M12: 0 | N12: 0 | S12: 10 | T12: 6.6 | U12: 7 | W12: 10 | X12: 6.6 | Y12: 7 | AA12: 10 | AB12: 13.2 | AC12: 3
A13: 12 | B13: 1112 | L13: 0 | M13: 0 | N13: 0 | S13: 11 | T13: 6 | U13: 18 | W13: 11 | X13: 5.6 | Y13: 33 | AA13: 11 | AB13: 11.6 | AC13: 27
A14: 13 | B14: 1113 | L14: 0 | M14: 0 | N14: 0 | S14: 12 | T14: 5.2 | U14: 37 | W14: 12 | X14: 5.2 | Y14: 38 | AA14: 12 | AB14: 10.4 | AC14: 42
A15: 14 | B15: 1114 | L15: 0 | M15: 0 | N15: 0 | S15: 13 | T15: 6.8 | U15: 1 | W15: 13 | X15: 6.4 | Y15: 10 | AA15: 13 | AB15: 13.2 | AC15: 3
A16: 15 | B16: 1115 | L16: 0 | M16: 0 | N16: 0 | S16: 14 | T16: 5 | U16: 40 | W16: 14 | X16: 5 | Y16: 42 | AA16: 14 | AB16: 10 | AC16: 43
A17: 16 | B17: 1116 | L17: 0 | M17: 0 | N17: 0 | S17: 15 | T17: 5.6 | U17: 30 | W17: 15 | X17: 7.6 | Y17: 2 | AA17: 15 | AB17: 13.2 | AC17: 3
A18: 17 | B18: 1117 | L18: 0 | M18: 0 | N18: 0 | S18: 16 | T18: 6.2 | U18: 10 | W18: 16 | X18: 6.2 | Y18: 14 | AA18: 16 | AB18: 12.4 | AC18: 12
A19: 18 | B19: 1118 | L19: 0 | M19: 0 | N19: 0 | S19: 17 | T19: 6.2 | U19: 10 | W19: 17 | X19: 5.8 | Y19: 26 | AA19: 17 | AB19: 12 | AC19: 21
A20: 19 | B20: 1119 | L20: 0 | M20: 0 | N20: 0 | S20: 18 | T20: 6.2 | U20: 10 | W20: 18 | X20: 5.8 | Y20: 26 | AA20: 18 | AB20: 12 | AC20: 21
A21: 20 | B21: 1120 | L21: 0 | M21: 0 | N21: 0 | S21: 19 | T21: 5.8 | U21: 25 | W21: 19 | X21: 6.2 | Y21: 14 | AA21: 19 | AB21: 12 | AC21: 21
A22: 21 | B22: 1121 | L22: 0 | M22: 0 | N22: 0 | S22: 20 | T22: 4.6 | U22: 43 | W22: 20 | X22: 5.2 | Y22: 38 | AA22: 20 | AB22: 9.8 | AC22: 44
